Workbook

Sheet Zmeny
B1: Změna
A2: Datum | B2: Rev | C2: Popis
A3: 2025-12-07 | B3: 00 | C3: První draft
A4: 2025-12-13 | B4: 01 | C4: Doplněny chybějící koeficienty soutěží, rozšířen W/RV 2026
A5: 2025-12-21 | B5: 02 | C5: Opraveny chyby, odstraněny HOP 2025

Sheet Soutez
A1: Soutěž | B1: Stát | C1: Rok | D1: Místo | E1: Termín | F1: Poč. disc. | G1: Poč. pilotů | H1: Ki | I1: Kn1 | J1: Kn2 | K1: Kp | L1: Kinp | M1: dKinp | N1: Poznámka | O1: Results
A2: Zařazené soutěže 2023:
A3: SGP Final 2023 | B3: IT | C3: 2023 | D3: Pavullo | E3: 16.4.-27.4.23 | F3: 4 | G3: 19 | H3: 1 | I3: 0.035 | J3: 0.03 | K3: =VLOOKUP(F3,Kp!$A$4:$B$24,2,FALSE) -> 0 | L3: =IF(H3=0,0,IF(OR(F3=0,F3=1,F3=2),0,IF(G3<10,0,SUM(H3:K3)))) -> 1.065 | M3: =L3-H3 -> 0.065 | O3: https://sgpfinal23.sgp.aero/results
A4: FCC Gliding 2023 - Klub | B4: SK | C4: 2023 | D4: Prievidza | E4: 16.4.-27.4.23 | F4: 7 | G4: 21 | H4: 0.9 | I4: 0.01 | J4: 0.01 | K4: =VLOOKUP(F4,Kp!$A$4:$B$24,2,FALSE) -> 0.015 | L4: 0.935 | M4: 0.035 | O4: https://www.soaringspot.com/cs/fcc-gliding-2023-prievidza-2023/results/club
A5: FCC Gliding 2023 - Kombi 15m | B5: SK | C5: 2023 | D5: Prievidza | E5: 16.4.-27.4.23 | F5: 7 | G5: 31 | H5: 0.9 | I5: 0.05 | J5: 0.02 | K5: =VLOOKUP(F5,Kp!$A$4:$B$24,2,FALSE) -> 0.015 | L5: 0.985 | M5: 0.085 | O5: https://www.soaringspot.com/cs/fcc-gliding-2023-prievidza-2023/results/15m
A6: FCC Gliding 2023 - Kombi Open | B6: SK | C6: 2023 | D6: Prievidza | E6: 16.4.-27.4.23 | F6: 7 | G6: 39 | H6: 0.9 | I6: 0.02 | J6: 0.02 | K6: =VLOOKUP(F6,Kp!$A$4:$B$24,2,FALSE) -> 0.015 | L6: 0.955 | M6: 0.055 | O6: https://www.soaringspot.com/cs/fcc-gliding-2023-prievidza-2023/results/combi
A7: Fatraglide 2023 - Klub | B7: SK | C7: 2023 | D7: Martin | E7: 29.4.-6.5.23 | F7: 4 | G7: 19 | H7: 0.75 | I7: 0.005 | J7: 0 | K7: =VLOOKUP(F7,Kp!$A$4:$B$24,2,FALSE) -> 0 | L7: 0.755 | M7: 0.005 | O7: https://www.soaringspot.com/cs/21-fatraglide-2023-martin-2023/results/klubova-trieda
A8: Fatraglide 2023 - Kombi | B8: SK | C8: 2023 | D8: Martin | E8: 29.4.-6.5.23 | F8: 4 | G8: 15 | H8: 0.75 | I8: 0.005 | J8: 0 | K8: =VLOOKUP(F8,Kp!$A$4:$B$24,2,FALSE) -> 0 | L8: 0.755 | M8: 0.005 | O8: https://www.soaringspot.com/cs/21-fatraglide-2023-martin-2023/results/kombi-trieda
A9: AZ Cup 2023 - Klub | B9: CZ | C9: 2023 | D9: Zbraslavice | E9: 25.5.-3.6.23 | F9: 9 | G9: 27 | H9: 0.9 | I9: 0.02 | J9: 0.01 | K9: =VLOOKUP(F9,Kp!$A$4:$B$24,2,FALSE) -> 0.025 | L9: 0.955 | M9: 0.055 | O9: https://www.soaringspot.com/en_gb/azcup/results/klub
A10: AZ Cup 2023 - Kombi | B10: CZ | C10: 2023 | D10: Zbraslavice | E10: 25.5.-3.6.23 | F10: 9 | G10: 32 | H10: 0.9 | I10: 0.045 | J10: 0.03 | K10: =VLOOKUP(F10,Kp!$A$4:$B$24,2,FALSE) -> 0.025 | L10: 1 | M10: 0.1 | O10: https://www.soaringspot.com/en_gb/azcup/results/kombi
A11: FL 2023 - Kombi | B11: CZ | C11: 2023 | D11: Frýdlant n/Ostr. | E11: 30.6.-9.7.23 | F11: 7 | G11: 11 | H11: 0.9 | I11: 0 | J11: 0 | K11: =VLOOKUP(F11,Kp!$A$4:$B$24,2,FALSE) -> 0.015 | L11: 0.915 | M11: 0.015 | O11: https://www.soaringspot.com/cs/fl-2023-frydlant-2023/results/fl-kombi
A12: FL 2023 - Klub | B12: CZ | C12: 2023 | D12: Frýdlant n/Ostr. | E12: 30.6.-9.7.23 | F12: 7 | G12: 9 | H12: 0 | I12: 0 | J12: 0 | K12: =VLOOKUP(F12,Kp!$A$4:$B$24,2,FALSE) -> 0.015 | L12: 0 | M12: 0 | O12: https://www.soaringspot.com/cs/fl-2023-frydlant-2023/results/fl-klub
A13: JPJ 2023 - Klub | B13: CZ | C13: 2023 | D13: Šumperk | E13: 6.5.-13.5.23 | F13: 4 | G13: 40 | H13: 0.9 | I13: 0.005 | J13: 0 | K13: =VLOOKUP(F13,Kp!$A$4:$B$24,2,FALSE) -> 0 | L13: 0.905 | M13: 0.005 | O13: https://www.soaringspot.com/cs/jpj2023/results/klubova-trida
A14: JPJ 2023 - Kombi | B14: CZ | C14: 2023 | D14: Šumperk | E14: 6.5.-13.5.23 | F14: 4 | G14: 19 | H14: 0.9 | I14: 0.005 | J14: 0.01 | K14: =VLOOKUP(F14,Kp!$A$4:$B$24,2,FALSE) -> 0 | L14: 0.915 | M14: 0.015 | O14: https://www.soaringspot.com/cs/jpj2023/results/kombi-trida
A15: Alpe Adria Cup 2023 - 113 | B15: AT | C15: 2023 | D15: Feldkirchen | E15: 10.6.-17.6.23 | F15: 5 | G15: 17 | H15: 0.75 | I15: 0 | J15: 0 | K15: =VLOOKUP(F15,Kp!$A$4:$B$24,2,FALSE) -> 0.005 | L15: =IF(H15=0,0,IF(OR(F15=0,F15=1,F15=2),0,IF(G15<10,0,SUM(H15:K15)))) -> 0.755 | M15: =L15-H15 -> 0.005 | O15: https://www.soaringspot.com/en_gb/aac2023/results/113er
A16: Alpe Adria Cup 2023 - Kombi Open | B16: AT | C16: 2023 | D16: Feldkirchen | E16: 10.6.-17.6.23 | F16: 5 | G16: 24 | H16: 0.75 | I16: 0 | J16: 0 | K16: =VLOOKUP(F16,Kp!$A$4:$B$24,2,FALSE) -> 0.005 | L16: =IF(H16=0,0,IF(OR(F16=0,F16=1,F16=2),0,IF(G16<10,0,SUM(H16:K16)))) -> 0.755 | M16: =L16-H16 -> 0.005 | O16: https://www.soaringspot.com/en_gb/aac2023/results/offene
A17: PMRg 2023 - Klub | B17: CZ | C17: 2023 | D17: Hosín | E17: 1.7.-15.7.23 | F17: 10 | G17: 13 | H17: 0.9 | I17: 0 | J17: 0 | K17: =VLOOKUP(F17,Kp!$A$4:$B$24,2,FALSE) -> 0.03 | L17: 0.93 | M17: 0.03 | O17: https://www.soaringspot.com/cs/plachtarske-mistrovstvi-regionu-cr-2023-hosin-2023/results/klub
A18: PMRg, PMČRj 2023 - Kombi | B18: CZ | C18: 2023 | D18: Hosín | E18: 1.7.-15.7.23 | F18: 10 | G18: 11 | H18: 0.9 | I18: 0.02 | J18: 0 | K18: =VLOOKUP(F18,Kp!$A$4:$B$24,2,FALSE) -> 0.03 | L18: 0.95 | M18: 0.05 | O18: https://www.soaringspot.com/cs/plachtarske-mistrovstvi-regionu-cr-2023-hosin-2023/results/kombi
A19: PMČRj 2023 - Klub | B19: CZ | C19: 2023 | D19: Hosín | E19: 1.7.-15.7.23 | F19: 10 | G19: 25 | H19: 0.9 | I19: 0.01 | J19: 0 | K19: =VLOOKUP(F19,Kp!$A$4:$B$24,2,FALSE) -> 0.03 | L19: 0.94 | M19: 0.04 | O19: https://www.soaringspot.com/en_gb/plachtarske-mistrovstvi-cr-junioru-2023-hosin-2023/results/klub
A20: WWGC 2023 - Klub | B20: SP | C20: 2023 | D20: Garray | E20: 2.7.-14.7.23 | F20: 8 | G20: 19 | H20: 1 | I20: 0.015 | J20: 0.01 | K20: =VLOOKUP(F20,Kp!$A$4:$B$24,2,FALSE) -> 0.02 | L20: 1.045 | M20: 0.045 | O20: https://www.soaringspot.com/cs/12th-fai-womens-world-gliding-championship-garray-2023/results/club
A21: WWGC 2023 - Std | B21: SP | C21: 2023 | D21: Garray | E21: 2.7.-14.7.23 | F21: 10 | G21: 16 | H21: 1 | I21: 0.015 | J21: 0.01 | K21: =VLOOKUP(F21,Kp!$A$4:$B$24,2,FALSE) -> 0.03 | L21: 1.055 | M21: 0.055 | O21: https://www.soaringspot.com/cs/12th-fai-womens-world-gliding-championship-garray-2023/results/standard
A22: WWGC 2023 - 18m | B22: SP | C22: 2023 | D22: Garray | E22: 2.7.-14.7.23 | F22: 10 | G22: 12 | H22: 1 | I22: 0.01 | J22: 0, 03 | K22: =VLOOKUP(F22,Kp!$A$4:$B$24,2,FALSE) -> 0.03 | L22: 1.04 | M22: 0.04 | O22: https://www.soaringspot.com/cs/12th-fai-womens-world-gliding-championship-garray-2023/results/18-meter
A23: Safari Cup 2023 - Klub | B23: CZ | C23: 2023 | D23: Dvůr Králové | E23: 2.7.-15.7.23 | F23: 9 | G23: 25 | H23: 0.75 | I23: 0 | J23: 0 | K23: =VLOOKUP(F23,Kp!$A$4:$B$24,2,FALSE) -> 0.025 | L23: =IF(H23=0,0,IF(OR(F23=0,F23=1,F23=2),0,IF(G23<10,0,SUM(H23:K23)))) -> 0.775 | M23: =L23-H23 -> 0.025 | O23: https://www.soaringspot.com/en_gb/safari-and-blanik-cup-dvur-kralove-nad-labem-2023/results/dvousedadlovky
A24: Safari Cup 2023 - Kombi | B24: CZ | C24: 2023 | D24: Dvůr Králové | E24: 2.7.-15.7.23 | F24: 9 | G24: 10 | H24: 0.75 | I24: 0 | J24: 0 | K24: =VLOOKUP(F24,Kp!$A$4:$B$24,2,FALSE) -> 0.025 | L24: =IF(H24=0,0,IF(OR(F24=0,F24=1,F24=2),0,IF(G24<10,0,SUM(H24:K24)))) -> 0.775 | M24: =L24-H24 -> 0.025 | O24: https://www.soaringspot.com/en_gb/safari-and-blanik-cup-dvur-kralove-nad-labem-2023/results/unknown
A25: Toužim Cup 2023 - Klub | B25: CZ | C25: 2023 | D25: Toužim | E25: 8.7.-16.7.23 | F25: 6 | G25: 18 | H25: 0.9 | I25: 0.005 | J25: 0 | K25: =VLOOKUP(F25,Kp!$A$4:$B$24,2,FALSE) -> 0.01 | L25: =IF(H25=0,0,IF(OR(F25=0,F25=1,F25=2),0,IF(G25<10,0,SUM(H25:K25)))) -> 0.915 | M25: =L25-H25 -> 0.015 | O25: https://www.soaringspot.com/en_gb/tcup2023/results/klub
A26: Toužim Cup 2023 - Kombi | B26: CZ | C26: 2023 | D26: Toužim | E26: 8.7.-16.7.23 | F26: 6 | G26: 26 | H26: 0.9 | I26: 0.015 | J26: 0 | K26: =VLOOKUP(F26,Kp!$A$4:$B$24,2,FALSE) -> 0.01 | L26: 0.925 | M26: 0.025 | O26: https://www.soaringspot.com/en_gb/tcup2023/results/kombi
A27: PMSR 2023 - Kombi Open | B27: SK | C27: 2023 | D27: Prievidza | E27: 9.7.-22.7.23 | F27: 10 | G27: 14 | H27: 0.9 | I27: 0.02 | J27: 0 | K27: =VLOOKUP(F27,Kp!$A$4:$B$24,2,FALSE) -> 0.03 | L27: =IF(H27=0,0,IF(OR(F27=0,F27=1,F27=2),0,IF(G27<10,0,SUM(H27:K27)))) -> 0.95 | M27: =L27-H27 -> 0.05 | O27: https://www.soaringspot.com/cs/slovak-gliding-nationals-pmsr-2023-prievidza-2023/results/kombi-b
A28: Cirrus GP 2023 - Klub | B28: CZ | C28: 2023 | D28: Křižanov | E28: 15.7.-22.7.23 | F28: 5 | G28: 12 | H28: 0.75 | I28: 0 | J28: 0 | K28: =VLOOKUP(F28,Kp!$A$4:$B$24,2,FALSE) -> 0.005 | L28: 0.755 | M28: 0.005 | O28: https://www.soaringspot.com/en_gb/cgp2023/results/cirrus-grand-prix
A29: Cirrus GP 2023 - Kombi 15m | B29: CZ | C29: 2023 | D29: Křižanov | E29: 15.7.-22.7.23 | F29: 4 | G29: 9 | H29: 0 | I29: 0 | J29: 0 | K29: =VLOOKUP(F29,Kp!$A$4:$B$24,2,FALSE) -> 0 | L29: =IF(H29=0,0,IF(OR(F29=0,F29=1,F29=2),0,IF(G29<10,0,SUM(H29:K29)))) -> 0 | M29: =L29-H29 -> 0 | O29: https://www.soaringspot.com/en_gb/cgp2023/results/15m-grand-prix
A30: PPV 2023 - Klub | B30: CZ | C30: 2023 | D30: Havlíčkův Brod | E30: 22.7-30.7.23 | F30: 4 | G30: 42 | H30: 0.9 | I30: 0 | J30: 0 | K30: =VLOOKUP(F30,Kp!$A$4:$B$24,2,FALSE) -> 0 | L30: 0.9 | M30: 0 | O30: https://www.soaringspot.com/en_gb/ppv2023-lkhb/results/klub
A31: PPV 2023 - Kombi | B31: CZ | C31: 2023 | D31: Havlíčkův Brod | E31: 22.7-30.7.23 | F31: 4 | G31: 19 | H31: 0.9 | I31: 0.02 | J31: 0 | K31: =VLOOKUP(F31,Kp!$A$4:$B$24,2,FALSE) -> 0 | L31: 0.92 | M31: 0.02 | O31: https://www.soaringspot.com/en_gb/ppv2023-lkhb/results/kombi
A32: EGC 2023 - 18m | B32: PL | C32: 2023 | D32: Leszno | E32: 26.7.-11.8.23 | F32: 7 | G32: 36 | H32: 1 | I32: 0.06 | J32: 0.02 | K32: =VLOOKUP(F32,Kp!$A$4:$B$24,2,FALSE) -> 0.015 | L32: 1.095 | M32: 0.095 | O32: https://www.soaringspot.com/cs/egc2023/results/18m
A33: EGC 2023 - Open | B33: PL | C33: 2023 | D33: Leszno | E33: 26.7.-11.8.23 | F33: 8 | G33: 15 | H33: 1 | I33: 0.03 | J33: 0.01 | K33: =VLOOKUP(F33,Kp!$A$4:$B$24,2,FALSE) -> 0.02 | L33: =IF(H33=0,0,IF(OR(F33=0,F33=1,F33=2),0,IF(G33<10,0,SUM(H33:K33)))) -> 1.06 | M33: =L33-H33 -> 0.06 | O33: https://www.soaringspot.com/cs/egc2023/results/open
A34: EGC 2023 - Duo 20m | B34: PL | C34: 2023 | D34: Leszno | E34: 26.7.-11.8.23 | F34: 8 | G34: 22 | H34: 1 | I34: 0.035 | J34: 0.03 | K34: =VLOOKUP(F34,Kp!$A$4:$B$24,2,FALSE) -> 0.02 | L34: 1.085 | M34: 0.085 | O34: https://www.soaringspot.com/cs/egc2023/results/20m-multi-seat
A35: JEGC 2023 - Klub | B35: DK | C35: 2023 | D35: Arnborg | E35: 29.7.-12.8.23 | F35: 4 | G35: 36 | H35: 1 | I35: 0.01 | J35: 0.01 | K35: =VLOOKUP(F35,Kp!$A$4:$B$24,2,FALSE) -> 0 | L35: 1.02 | M35: 0.02 | O35: https://www.soaringspot.com/cs/6th-fai-junior-european-gliding-championship-2023/results/club
A36: JEGC 2023 - Std | B36: DK | C36: 2023 | D36: Arnborg | E36: 29.7.-12.8.23 | F36: 4 | G36: 20 | H36: 1 | I36: 0 | J36: 0.02 | K36: =VLOOKUP(F36,Kp!$A$4:$B$24,2,FALSE) -> 0 | L36: 1.02 | M36: 0.02 | O36: https://www.soaringspot.com/cs/6th-fai-junior-european-gliding-championship-2023/results/standard
A37: PMČR 2023 - Klub | B37: CZ | C37: 2023 | D37: Moravská Třebová | E37: 14.8.-25.8.23 | F37: 9 | G37: 16 | H37: 1 | I37: 0.015 | J37: 0.01 | K37: =VLOOKUP(F37,Kp!$A$4:$B$24,2,FALSE) -> 0.025 | L37: 1.05 | M37: 0.05 | O37: https://www.soaringspot.com/en_gb/plachtarske-mistrovstvi-cr-2023-moravska-trebova-2023/results/klubova-trida
A38: PMČR 2023 - Kombi 15m | B38: CZ | C38: 2023 | D38: Moravská Třebová | E38: 14.8.-25.8.23 | F38: 9 | G38: 10 | H38: 1 | I38: 0.02 | J38: 0 | K38: =VLOOKUP(F38,Kp!$A$4:$B$24,2,FALSE) -> 0.025 | L38: 1.045 | M38: 0.045 | O38: https://www.soaringspot.com/en_gb/plachtarske-mistrovstvi-cr-2023-moravska-trebova-2023/results/kombi-15m
A39: PMČR 2023 - Kombi Open | B39: CZ | C39: 2023 | D39: Moravská Třebová | E39: 14.8.-25.8.23 | F39: 9 | G39: 11 | H39: 1 | I39: 0.025 | J39: 0.01 | K39: =VLOOKUP(F39,Kp!$A$4:$B$24,2,FALSE) -> 0.025 | L39: 1.06 | M39: 0.06 | O39: https://www.soaringspot.com/en_gb/plachtarske-mistrovstvi-cr-2023-moravska-trebova-2023/results/kombi-open
A40: WGC 2023 - Klub | B40: AU | C40: 2023 | D40: Narromine | E40: 2.12.-17.12.23 | F40: 10 | G40: 30 | H40: 1 | I40: 0.05 | J40: 0.03 | K40: =VLOOKUP(F40,Kp!$A$4:$B$24,2,FALSE) -> 0.03 | L40: 1.11 | M40: 0.11 | O40: https://www.soaringspot.com/cs/37th-fai-world-gliding-championships-narromine-2023/results/club
A41: WGC 2023 - Std | B41: AU | C41: 2023 | D41: Narromine | E41: 2.12.-17.12.23 | F41: 10 | G41: 21 | H41: 1 | I41: 0.045 | J41: 0.03 | K41: =VLOOKUP(F41,Kp!$A$4:$B$24,2,FALSE) -> 0.03 | L41: 1.105 | M41: 0.105 | O41: https://www.soaringspot.com/cs/37th-fai-world-gliding-championships-narromine-2023/results/standard
A42: WGC 2023 - 15m | B42: AU | C42: 2023 | D42: Narromine | E42: 2.12.-17.12.23 | F42: 10 | G42: 27 | H42: 1 | I42: 0.065 | J42: 0.03 | K42: =VLOOKUP(F42,Kp!$A$4:$B$24,2,FALSE) -> 0.03 | L42: 1.125 | M42: 0.125 | O42: https://www.soaringspot.com/cs/37th-fai-world-gliding-championships-narromine-2023/results/15m
A43: Zařazené soutěže 2024:
A44: Podbrdský pohár 2024 - Kombi | B44: CZ | C44: 2024 | D44: Letkov | E44: 27.4.-4.5.24 | F44: 3 | G44: 10 | H44: 0.75 | I44: 0 | J44: 0 | K44: =VLOOKUP(F44,Kp!$A$4:$B$24,2,FALSE) -> -0.02 | L44: =IF(H44=0,0,IF(OR(F44=0,F44=1,F44=2),0,IF(G44<10,0,SUM(H44:K44)))) -> 0.73 | M44: =L44-H44 -> -0.02 | O44: https://www.soaringspot.com/en_gb/pp2024/results/kombi
A45: JPJ 2024 - Klub | B45: CZ | C45: 2024 | D45: Šumperk | E45: 4.5.-11.5.24 | F45: 4 | G45: 32 | H45: 0.9 | I45: 0 | J45: 0 | K45: =VLOOKUP(F45,Kp!$A$4:$B$24,2,FALSE) -> 0 | L45: 0.9 | M45: 0 | O45: https://www.soaringspot.com/en_gb/jpj2024/results/klubova-trida
A46: JPJ 2024 - Kombi | B46: CZ | C46: 2024 | D46: Šumperk | E46: 4.5.-11.5.24 | F46: 5 | G46: 24 | H46: 0.9 | I46: 0.01 | J46: 0.01 | K46: =VLOOKUP(F46,Kp!$A$4:$B$24,2,FALSE) -> 0.005 | L46: 0.925 | M46: 0.025 | O46: https://www.soaringspot.com/en_gb/jpj2024/results/kombi-trida
A47: AZ Cup 2024 - Klub | B47: CZ | C47: 2024 | D47: Zbraslavice | E47: 24.5.-1.6.24 | F47: 3 | G47: 28 | H47: 0.9 | I47: 0.02 | J47: 0.02 | K47: =VLOOKUP(F47,Kp!$A$4:$B$24,2,FALSE) -> -0.02 | L47: 0.92 | M47: 0.02 | O47: https://www.soaringspot.com/en_gb/az-cup-2024-zbraslavice-2024/results/club
A48: AZ Cup 2024 - Kombi 15m | B48: CZ | C48: 2024 | D48: Zbraslavice | E48: 24.5.-1.6.24 | F48: 3 | G48: 15 | H48: 0.9 | I48: 0.015 | J48: 0.03 | K48: =VLOOKUP(F48,Kp!$A$4:$B$24,2,FALSE) -> -0.02 | L48: 0.925 | M48: 0.025 | O48: https://www.soaringspot.com/en_gb/az-cup-2024-zbraslavice-2024/results/klub
A49: AZ Cup 2024 - Kombi Open | B49: CZ | C49: 2024 | D49: Zbraslavice | E49: 24.5.-1.6.24 | F49: 2 | G49: 39 | H49: 0 | I49: 0 | J49: 0 | K49: =VLOOKUP(F49,Kp!$A$4:$B$24,2,FALSE) -> 0 | L49: 0 | M49: 0 | O49: https://www.soaringspot.com/en_gb/az-cup-2024-zbraslavice-2024/results/open-mixed
A50: PMČR 2024 - Klub | B50: CZ | C50: 2024 | D50: Toužim | E50: 8.6.-21.6.24 | F50: 6 | G50: 27 | H50: 1 | I50: 0.03 | J50: 0.02 | K50: =VLOOKUP(F50,Kp!$A$4:$B$24,2,FALSE) -> 0.01 | L50: 1.06 | M50: 0.06 | O50: https://www.soaringspot.com/en_gb/plachtarske-mistrovstvi-cr-2024-touzim-2024/results/klub
A51: PMČR 2024 - Kombi 15m | B51: CZ | C51: 2024 | D51: Toužim | E51: 8.6.-21.6.24 | F51: 6 | G51: 11 | H51: 1 | I51: 0.025 | J51: 0.01 | K51: =VLOOKUP(F51,Kp!$A$4:$B$24,2,FALSE) -> 0.01 | L51: 1.045 | M51: 0.045 | O51: https://www.soaringspot.com/en_gb/plachtarske-mistrovstvi-cr-2024-touzim-2024/results/15m
A52: PMČR 2024 - Kombi Open | B52: CZ | C52: 2024 | D52: Toužim | E52: 8.6.-21.6.24 | F52: 6 | G52: 21 | H52: 1 | I52: 0.05 | J52: 0.03 | K52: =VLOOKUP(F52,Kp!$A$4:$B$24,2,FALSE) -> 0.01 | L52: 1.09 | M52: 0.09 | O52: https://www.soaringspot.com/en_gb/plachtarske-mistrovstvi-cr-2024-touzim-2024/results/open
A53: PMRg 2024 - Klub | B53: CZ | C53: 2024 | D53: Hodkovice | E53: 27.6.-6.7.24 | F53: 3 | G53: 23 | H53: 0.9 | I53: 0 | J53: 0 | K53: =VLOOKUP(F53,Kp!$A$4:$B$24,2,FALSE) -> -0.02 | L53: =IF(H53=0,0,IF(OR(F53=0,F53=1,F53=2),0,IF(G53<10,0,SUM(H53:K53)))) -> 0.88 | M53: =L53-H53 -> -0.02 | O53: https://www.soaringspot.com/en_gb/mistrovstvi-ceske-republiky-regionu-2024-hodkovice/results/klubova-trida
A54: PMRg 2024 - Kombi | B54: CZ | C54: 2024 | D54: Hodkovice | E54: 27.6.-6.7.24 | F54: 3 | G54: 10 | H54: 0.9 | I54: 0.02 | J54: 0 | K54: =VLOOKUP(F54,Kp!$A$4:$B$24,2,FALSE) -> -0.02 | L54: =IF(H54=0,0,IF(OR(F54=0,F54=1,F54=2),0,IF(G54<10,0,SUM(H54:K54)))) -> 0.9 | M54: =L54-H54 -> 0 | O54: https://www.soaringspot.com/en_gb/mistrovstvi-ceske-republiky-regionu-2024-hodkovice/results/kombi-open
A55: PMČRj 2024 - Klub | B55: CZ | C55: 2024 | D55: Hodkovice | E55: 27.6.-6.7.24 | F55: 3 | G55: 34 | H55: 0.9 | I55: 0.01 | J55: 0.02 | K55: =VLOOKUP(F55,Kp!$A$4:$B$24,2,FALSE) -> -0.02 | L55: 0.91 | M55: 0.01 | O55: https://www.soaringspot.com/en_gb/plachtarske-mistrovstvi-cr-junioru-2024-hodkovice/results/klubova-trida
A56: FL 2024 - Klub | B56: CZ | C56: 2024 | D56: Frýdlant n/Ostr. | E56: 28.6.-6.7.24 | F56: 5 | G56: 16 | H56: 0.75 | I56: 0 | J56: 0 | K56: =VLOOKUP(F56,Kp!$A$4:$B$24,2,FALSE) -> 0.005 | L56: =IF(H56=0,0,IF(OR(F56=0,F56=1,F56=2),0,IF(G56<10,0,SUM(H56:K56)))) -> 0.755 | M56: =L56-H56 -> 0.005 | O56: https://www.soaringspot.com/en_gb/fl-2024-frydlant-2024/results/fl-klub
A57: FL 2024 - Kombi | B57: CZ | C57: 2024 | D57: Frýdlant n/Ostr. | E57: 28.6.-6.7.24 | F57: 3 | G57: 7 | H57: 0 | I57: 0.01 | J57: 0 | K57: =VLOOKUP(F57,Kp!$A$4:$B$24,2,FALSE) -> -0.02 | L57: 0 | M57: 0 | O57: https://www.soaringspot.com/en_gb/fl-2024-frydlant-2024/results/fl-kombi
A58: Safari Cup 2024 - Klub | B58: CZ | C58: 2024 | D58: Dvůr Králové | E58: 4.7.-14.7.24 | F58: 3 | G58: 27 | H58: 0.75 | I58: 0 | J58: 0 | K58: =VLOOKUP(F58,Kp!$A$4:$B$24,2,FALSE) -> -0.02 | L58: =IF(H58=0,0,IF(OR(F58=0,F58=1,F58=2),0,IF(G58<10,0,SUM(H58:K58)))) -> 0.73 | M58: =L58-H58 -> -0.02 | O58: https://www.soaringspot.com/en_gb/safari-2024-dvur-kralove-nad-labem-2024/results/klub
A59: Safari Cup 2024 - Kombi | B59: CZ | C59: 2024 | D59: Dvůr Králové | E59: 4.7.-14.7.24 | F59: 4 | G59: 10 | H59: 0.75 | I59: 0 | J59: 0 | K59: =VLOOKUP(F59,Kp!$A$4:$B$24,2,FALSE) -> 0 | L59: =IF(H59=0,0,IF(OR(F59=0,F59=1,F59=2),0,IF(G59<10,0,SUM(H59:K59)))) -> 0.75 | M59: =L59-H59 -> 0 | O59: https://www.soaringspot.com/en_gb/safari-2024-dvur-kralove-nad-labem-2024/results/volna
A60: Toužim Cup 2024 - Klub | B60: CZ | C60: 2024 | D60: Toužim | E60: 5.7.-13.7.24 | F60: 4 | G60: 23 | H60: 0.9 | I60: 0.01 | J60: 0 | K60: =VLOOKUP(F60,Kp!$A$4:$B$24,2,FALSE) -> 0 | L60: =IF(H60=0,0,IF(OR(F60=0,F60=1,F60=2),0,IF(G60<10,0,SUM(H60:K60)))) -> 0.91 | M60: =L60-H60 -> 0.01 | O60: https://www.soaringspot.com/en_gb/tcup2024/results/klub
A61: Toužim Cup 2024 - Kombi | B61: CZ | C61: 2024 | D61: Toužim | E61: 5.7.-13.7.24 | F61: 4 | G61: 32 | H61: 0.9 | I61: 0.015 | J61: 0 | K61: =VLOOKUP(F61,Kp!$A$4:$B$24,2,FALSE) -> 0 | L61: =IF(H61=0,0,IF(OR(F61=0,F61=1,F61=2),0,IF(G61<10,0,SUM(H61:K61)))) -> 0.915 | M61: =L61-H61 -> 0.015 | O61: https://www.soaringspot.com/en_gb/tcup2024/results/kombi
A62: PPV 2024 - Klub | B62: CZ | C62: 2024 | D62: Havlíčkův Brod | E62: 20.7.-27.7.24 | F62: 6 | G62: 30 | H62: 0.9 | I62: 0.05 | J62: 0 | K62: =VLOOKUP(F62,Kp!$A$4:$B$24,2,FALSE) -> 0.01 | L62: =IF(H62=0,0,IF(OR(F62=0,F62=1,F62=2),0,IF(G62<10,0,SUM(H62:K62)))) -> 0.96 | M62: =L62-H62 -> 0.06 | O62: https://www.soaringspot.com/en_gb/plachtarsky-pohar-vysociny-2024-havlickuv-brod-2024/results/klubova-trida
A63: PPV 2024 - Kombi | B63: CZ | C63: 2024 | D63: Havlíčkův Brod | E63: 20.7.-27.7.24 | F63: 6 | G63: 31 | H63: 0.9 | I63: 0.015 | J63: 0 | K63: =VLOOKUP(F63,Kp!$A$4:$B$24,2,FALSE) -> 0.01 | L63: 0.925 | M63: 0.025 | O63: https://www.soaringspot.com/en_gb/plachtarsky-pohar-vysociny-2024-havlickuv-brod-2024/results/kombinovana-trida
A64: Pohár Českého Ráje 2024 - Klub | B64: CZ | C64: 2024 | D64: Jičín | E64: 26.7.-3.8.24 | F64: 3 | G64: 14 | H64: 0.75 | I64: 0 | J64: 0 | K64: =VLOOKUP(F64,Kp!$A$4:$B$24,2,FALSE) -> -0.02 | L64: =IF(H64=0,0,IF(OR(F64=0,F64=1,F64=2),0,IF(G64<10,0,SUM(H64:K64)))) -> 0.73 | M64: =L64-H64 -> -0.02 | O64: https://www.soaringspot.com/en_gb/pohar-ceskeho-raje-2024-jicin-2024/results/club
A65: Ranský pohár 2024 - Klub | B65: CZ | C65: 2024 | D65: Raná | E65: 27.7.-3.8.24 | F65: 7 | G65: 22 | H65: 0.75 | I65: 0 | J65: 0 | K65: =VLOOKUP(F65,Kp!$A$4:$B$24,2,FALSE) -> 0.015 | L65: =IF(H65=0,0,IF(OR(F65=0,F65=1,F65=2),0,IF(G65<10,0,SUM(H65:K65)))) -> 0.765 | M65: =L65-H65 -> 0.015 | O65: https://www.soaringspot.com/en_gb/ransky-pohar-2024-rana-loumy-2024/results/combi
A66: Rakovnická Dlaždice 2024 - Kombi | B66: CZ | C66: 2024 | D66: Rakovník | E66: 3.8.-10.8.24 | F66: 5 | G66: 20 | H66: 0.75 | I66: 0 | J66: 0 | K66: =VLOOKUP(F66,Kp!$A$4:$B$24,2,FALSE) -> 0.005 | L66: =IF(H66=0,0,IF(OR(F66=0,F66=1,F66=2),0,IF(G66<10,0,SUM(H66:K66)))) -> 0.755 | M66: =L66-H66 -> 0.005 | O66: https://www.soaringspot.com/en_gb/rakovnicka-dlazdice-2024-rakovnik-2024/results/club
A67: EGC 2024 - Klub | B67: CZ | C67: 2024 | D67: Tábor | E67: 3.8.-17.8.24 | F67: 11 | G67: 40 | H67: 1 | I67: 0.05 | J67: 0.02 | K67: =VLOOKUP(F67,Kp!$A$4:$B$24,2,FALSE) -> 0.03 | L67: =IF(H67=0,0,IF(OR(F67=0,F67=1,F67=2),0,IF(G67<10,0,SUM(H67:K67)))) -> 1.1 | M67: =L67-H67 -> 0.1 | O67: https://www.soaringspot.com/en_gb/22nd-fai-european-gliding-championships-tabor-2024/results/club
A68: EGC 2024 - Std | B68: CZ | C68: 2024 | D68: Tábor | E68: 3.8.-17.8.24 | F68: 11 | G68: 33 | H68: 1 | I68: 0.065 | J68: 0.03 | K68: =VLOOKUP(F68,Kp!$A$4:$B$24,2,FALSE) -> 0.03 | L68: =IF(H68=0,0,IF(OR(F68=0,F68=1,F68=2),0,IF(G68<10,0,SUM(H68:K68)))) -> 1.125 | M68: =L68-H68 -> 0.125 | O68: https://www.soaringspot.com/en_gb/22nd-fai-european-gliding-championships-tabor-2024/results/standard
A69: EGC 2024 - 15m | B69: CZ | C69: 2024 | D69: Tábor | E69: 3.8.-17.8.24 | F69: 11 | G69: 27 | H69: 1 | I69: 0.03 | J69: 0.03 | K69: =VLOOKUP(F69,Kp!$A$4:$B$24,2,FALSE) -> 0.03 | L69: 1.09 | M69: 0.09 | O69: https://www.soaringspot.com/en_gb/22nd-fai-european-gliding-championships-tabor-2024/results/15-meter
A70: GGP MB 2024 - Klub GP | B70: CZ | C70: 2024 | D70: Mladá Boleslav | E70: 24.8.-31.8.24 | F70: 3 | G70: 12 | H70: 0.9 | I70: 0 | J70: 0 | K70: =VLOOKUP(F70,Kp!$A$4:$B$24,2,FALSE) -> -0.02 | L70: =IF(H70=0,0,IF(OR(F70=0,F70=1,F70=2),0,IF(G70<10,0,SUM(H70:K70)))) -> 0.88 | M70: =L70-H70 -> -0.02 | O70: https://www.soaringspot.com/en_gb/ggp2024/results/club-gp
A71: GGP MB 2024 - Pohár MV - Kombi | B71: CZ | C71: 2024 | D71: Mladá Boleslav | E71: 24.8.-31.8.24 | F71: 3 | G71: 13 | H71: 0.75 | I71: 0.015 | J71: 0 | K71: =VLOOKUP(F71,Kp!$A$4:$B$24,2,FALSE) -> -0.02 | L71: =IF(H71=0,0,IF(OR(F71=0,F71=1,F71=2),0,IF(G71<10,0,SUM(H71:K71)))) -> 0.745 | M71: =L71-H71 -> -0.005 | O71: https://www.soaringspot.com/en_gb/ggp2024/results/pohar-metodeje-vlach
A72: JWGC 2024 - Klub | B72: PL | C72: 2024 | D72: Ostrow Wielkopolski | E72: 14.7.-26.7.24 | F72: 11 | G72: 44 | H72: 1 | I72: 0.01 | J72: 0.03 | K72: =VLOOKUP(F72,Kp!$A$4:$B$24,2,FALSE) -> 0.03 | L72: =IF(H72=0,0,IF(OR(F72=0,F72=1,F72=2),0,IF(G72<10,0,SUM(H72:K72)))) -> 1.07 | M72: =L72-H72 -> 0.07 | O72: https://www.soaringspot.com/en_gb/jwgc2024/results/club
A73: JWGC 2024 - Std | B73: PL | C73: 2024 | D73: Ostrow Wielkopolski | E73: 14.7.-26.7.24 | F73: 11 | G73: 23 | H73: 1 | I73: 0.03 | J73: 0.03 | K73: =VLOOKUP(F73,Kp!$A$4:$B$24,2,FALSE) -> 0.03 | L73: 1.09 | M73: 0.09 | O73: https://www.soaringspot.com/en_gb/jwgc2024/results/standard
A74: Pribina Cup 2024 - Klub | B74: SK | C74: 2024 | D74: Nitra | E74: 29.3.-6.4.24 | F74: 6 | G74: 11 | H74: 0.9 | I74: 0.005 | J74: 0 | K74: =VLOOKUP(F74,Kp!$A$4:$B$24,2,FALSE) -> 0.01 | L74: =IF(H74=0,0,IF(OR(F74=0,F74=1,F74=2),0,IF(G74<10,0,SUM(H74:K74)))) -> 0.915 | M74: =L74-H74 -> 0.015 | O74: https://www.soaringspot.com/en_gb/pribina-cup-2024-nitra-2024/results/15-meter
A75: Pribina Cup 2024 - Kombi Open | B75: SK | C75: 2024 | D75: Nitra | E75: 29.3.-6.4.24 | F75: 6 | G75: 21 | H75: 0.9 | I75: 0.03 | J75: 0.01 | K75: =VLOOKUP(F75,Kp!$A$4:$B$24,2,FALSE) -> 0.01 | L75: =IF(H75=0,0,IF(OR(F75=0,F75=1,F75=2),0,IF(G75<10,0,SUM(H75:K75)))) -> 0.95 | M75: =L75-H75 -> 0.05 | O75: https://www.soaringspot.com/en_gb/pribina-cup-2024-nitra-2024/results/open
A76: Fatraglide 2024 - Klub | B76: SK | C76: 2024 | D76: Martin | E76: 28.4.-7.5.24 | F76: 7 | G76: 29 | H76: 0.75 | I76: 0 | J76: 0 | K76: =VLOOKUP(F76,Kp!$A$4:$B$24,2,FALSE) -> 0.015 | L76: =IF(H76=0,0,IF(OR(F76=0,F76=1,F76=2),0,IF(G76<10,0,SUM(H76:K76)))) -> 0.765 | M76: =L76-H76 -> 0.015 | O76: https://www.soaringspot.com/en_gb/fatraglide24/results/club
A77: Fatraglide 2024 - Kombi | B77: SK | C77: 2024 | D77: Martin | E77: 28.4.-7.5.24 | F77: 7 | G77: 28 | H77: 0.75 | I77: 0 | J77: 0 | K77: =VLOOKUP(F77,Kp!$A$4:$B$24,2,FALSE) -> 0.015 | L77: =IF(H77=0,0,IF(OR(F77=0,F77=1,F77=2),0,IF(G77<10,0,SUM(H77:K77)))) -> 0.765 | M77: =L77-H77 -> 0.015 | O77: https://www.soaringspot.com/en_gb/fatraglide24/results/combi
A78: PMSR 2024 - Kombi | B78: SK | C78: 2024 | D78: Prievidza | E78: 23.6.-6.7.24 | F78: 8 | G78: 20 | H78: 0.9 | I78: 0.005 | J78: 0.01 | K78: =VLOOKUP(F78,Kp!$A$4:$B$24,2,FALSE) -> 0.02 | L78: =IF(H78=0,0,IF(OR(F78=0,F78=1,F78=2),0,IF(G78<10,0,SUM(H78:K78)))) -> 0.935 | M78: =L78-H78 -> 0.035 | O78: https://www.soaringspot.com/en_gb/slovak-gliding-nationals-pmsr-2024-pre-jegc2025-prievidza/results/kombi
A79: Lilienthal Glide 2024 - Duo 20m | B79: DE | C79: 2024 | D79: Lüsse | E79: 3.8.-11.8.24 | F79: 5 | G79: 28 | H79: 0.75 | I79: 0.005 | J79: 0 | K79: =VLOOKUP(F79,Kp!$A$4:$B$24,2,FALSE) -> 0.005 | L79: =IF(H79=0,0,IF(OR(F79=0,F79=1,F79=2),0,IF(G79<10,0,SUM(H79:K79)))) -> 0.76 | M79: =L79-H79 -> 0.01 | O79: https://www.soaringspot.com/en_gb/lilienthal-glide-2024/results/doppelsitzer-klasse
A80: Hahnweide 2024 - Duo 20m | B80: DE | C80: 2024 | D80: Hahnweide | E80: 4.5.-11.5.24 | F80: 4 | G80: 20 | H80: 0.9 | I80: 0.03 | J80: 0 | K80: =VLOOKUP(F80,Kp!$A$4:$B$24,2,FALSE) -> 0 | L80: 0.93 | M80: 0.03 | O80: https://www.soaringspot.com/en_gb/56-hww/results/dosi
A81: WGC 2024 - 18m | B81: US | C81: 2024 | D81: Uvalde | E81: 18.8.-31.8.24 | F81: 11 | G81: 32 | H81: 1 | I81: 0.075 | J81: 0.03 | K81: =VLOOKUP(F81,Kp!$A$4:$B$24,2,FALSE) -> 0.03 | L81: =IF(H81=0,0,IF(OR(F81=0,F81=1,F81=2),0,IF(G81<10,0,SUM(H81:K81)))) -> 1.135 | M81: =L81-H81 -> 0.135 | O81: https://www.soaringspot.com/en_gb/38th-fai-world-gliding-championship-uvalde-garner-field-2024/results/18-meter
A82: WGC 2024 - Duo 20m | B82: US | C82: 2024 | D82: Uvalde | E82: 18.8.-31.8.24 | F82: 11 | G82: 16 | H82: 1 | I82: 0.02 | J82: 0.035 | K82: =VLOOKUP(F82,Kp!$A$4:$B$24,2,FALSE) -> 0.03 | L82: 1.085 | M82: 0.085 | O82: https://www.soaringspot.com/en_gb/38th-fai-world-gliding-championship-uvalde-garner-field-2024/results/double-seater
A83: WGC 2024 - Open | B83: US | C83: 2024 | D83: Uvalde | E83: 18.8.-31.8.24 | F83: 12 | G83: 17 | H83: 1 | I83: 0.03 | J83: 0.03 | K83: =VLOOKUP(F83,Kp!$A$4:$B$24,2,FALSE) -> 0.03 | L83: 1.09 | M83: 0.09 | O83: https://www.soaringspot.com/en_gb/38th-fai-world-gliding-championship-uvalde-garner-field-2024/results/open
A84: Zařazené soutěže 2025:
A85: AZ Cup 2025 - Klub | B85: CZ | C85: 2025 | D85: Zbraslavice | E85: 17.4.-26.4.25 | F85: 4 | G85: 27 | H85: 0.9 | I85: 0.02 | J85: 0.01 | K85: =VLOOKUP(F85,Kp!$A$4:$B$24,2,FALSE) -> 0 | L85: =IF(H85=0,0,IF(OR(F85=0,F85=1,F85=2),0,IF(G85<10,0,SUM(H85:K85)))) -> 0.93 | M85: =L85-H85 -> 0.03 | O85: https://www.soaringspot.com/en_gb/az-cup-2025-zbraslavice-2025/results/club
A86: AZ Cup 2025 - Kombi 15m | B86: CZ | C86: 2025 | D86: Zbraslavice | E86: 17.4.-26.4.25 | F86: 5 | G86: 16 | H86: 0.9 | I86: 0.035 | J86: 0.02 | K86: =VLOOKUP(F86,Kp!$A$4:$B$24,2,FALSE) -> 0.005 | L86: =IF(H86=0,0,IF(OR(F86=0,F86=1,F86=2),0,IF(G86<10,0,SUM(H86:K86)))) -> 0.96 | M86: =L86-H86 -> 0.06 | O86: https://www.soaringspot.com/en_gb/az-cup-2025-zbraslavice-2025/results/15m-mixed
A87: AZ Cup 2025 - Kombi Open | B87: CZ | C87: 2025 | D87: Zbraslavice | E87: 17.4.-26.4.25 | F87: 4 | G87: 21 | H87: 0.9 | I87: 0.03 | J87: 0.01 | K87: =VLOOKUP(F87,Kp!$A$4:$B$24,2,FALSE) -> 0 | L87: 0.94 | M87: 0.04 | O87: https://www.soaringspot.com/en_gb/az-cup-2025-zbraslavice-2025/results/open-mixed
A88: Podbrdský pohár 2025 - Klub | B88: CZ | C88: 2025 | D88: Letkov | E88: 26.4.-3.5.25 | F88: 5 | G88: 13 | H88: 0.75 | I88: 0 | J88: 0 | K88: =VLOOKUP(F88,Kp!$A$4:$B$24,2,FALSE) -> 0.005 | L88: =IF(H88=0,0,IF(OR(F88=0,F88=1,F88=2),0,IF(G88<10,0,SUM(H88:K88)))) -> 0.755 | M88: =L88-H88 -> 0.005 | N88: Více jak 1/2 soutěžících z jednoho klubu | O88: https://www.soaringspot.com/en_gb/pp2025/results/club
A89: Podbrdský pohár 2025 - Kombi | B89: CZ | C89: 2025 | D89: Letkov | E89: 26.4.-3.5.25 | F89: 6 | G89: 15 | H89: 0.75 | I89: 0.00 | J89: 0 | K89: =VLOOKUP(F89,Kp!$A$4:$B$24,2,FALSE) -> 0.01 | L89: =IF(H89=0,0,IF(OR(F89=0,F89=1,F89=2),0,IF(G89<10,0,SUM(H89:K89)))) -> 0.76 | M89: =L89-H89 -> 0.01 | N89: Více jak 1/2 soutěžících z jednoho klubu | O89: https://www.soaringspot.com/en_gb/pp2025/results/kombi
A90: JPJ 2025 - Klub | B90: CZ | C90: 2025 | D90: Šumperk | E90: 1.5.-10.5.25 | F90: 6 | G90: 31 | H90: 0.9 | I90: 0 | J90: 0 | K90: =VLOOKUP(F90,Kp!$A$4:$B$24,2,FALSE) -> 0.01 | L90: =IF(H90=0,0,IF(OR(F90=0,F90=1,F90=2),0,IF(G90<10,0,SUM(H90:K90)))) -> 0.91 | M90: =L90-H90 -> 0.01 | O90: https://www.soaringspot.com/en_gb/jpj2025/results/klubova-trida
A91: JPJ 2025 - Kombi 15m | B91: CZ | C91: 2025 | D91: Šumperk | E91: 1.5.-10.5.25 | F91: 6 | G91: 11 | H91: 0.9 | I91: 0 | J91: 0.01 | K91: =VLOOKUP(F91,Kp!$A$4:$B$24,2,FALSE) -> 0.01 | L91: 0.92 | M91: 0.02 | O91: https://www.soaringspot.com/en_gb/jpj2025/results/kombi-15m-trida
A92: JPJ 2025 - Kombi Open | B92: CZ | C92: 2025 | D92: Šumperk | E92: 1.5.-10.5.25 | F92: 6 | G92: 18 | H92: 0.9 | I92: 0 | J92: 0 | K92: =VLOOKUP(F92,Kp!$A$4:$B$24,2,FALSE) -> 0.01 | L92: 0.91 | M92: 0.01 | O92: https://www.soaringspot.com/en_gb/jpj2025/results/kombi-trida
A93: Ulf Memorial 2025 - Klub | B93: CZ | C93: 2025 | D93: Raná | E93: 25.5.-31.5.25 | F93: 4 | G93: 11 | H93: 0.75 | I93: 0 | J93: 0 | K93: =VLOOKUP(F93,Kp!$A$4:$B$24,2,FALSE) -> 0 | L93: =IF(H93=0,0,IF(OR(F93=0,F93=1,F93=2),0,IF(G93<10,0,SUM(H93:K93)))) -> 0.75 | M93: =L93-H93 -> 0 | N93: Oldtimer | O93: https://www.soaringspot.com/en_gb/ulf-memorial-2025-rana-louny-2025/results/unknown
A94: PMČR 2025 - Klub | B94: CZ | C94: 2025 | D94: Havlíčkův Brod | E94: 22.5.-31.5.25 | F94: 5 | G94: 23 | H94: 1 | I94: 0.02 | J94: 0.01 | K94: =VLOOKUP(F94,Kp!$A$4:$B$24,2,FALSE) -> 0.005 | L94: =IF(H94=0,0,IF(OR(F94=0,F94=1,F94=2),0,IF(G94<10,0,SUM(H94:K94)))) -> 1.035 | M94: =L94-H94 -> 0.035 | O94: https://www.soaringspot.com/en_gb/czech-gliding-championship-2025-havlickuv-brod-2025/results/club
A95: PMČR 2025 - Kombi 15m | B95: CZ | C95: 2025 | D95: Havlíčkův Brod | E95: 22.5.-31.5.25 | F95: 6 | G95: 19 | H95: 1 | I95: 0.015 | J95: 0.03 | K95: =VLOOKUP(F95,Kp!$A$4:$B$24,2,FALSE) -> 0.01 | L95: =IF(H95=0,0,IF(OR(F95=0,F95=1,F95=2),0,IF(G95<10,0,SUM(H95:K95)))) -> 1.055 | M95: =L95-H95 -> 0.055 | O95: https://www.soaringspot.com/en_gb/czech-gliding-championship-2025-havlickuv-brod-2025/results/15m-combi-multi-seat
A96: PMČR 2025 - Kombi Open | B96: CZ | C96: 2025 | D96: Havlíčkův Brod | E96: 22.5.-31.5.25 | F96: 5 | G96: 27 | H96: 1 | I96: 0.05 | J96: 0 | K96: =VLOOKUP(F96,Kp!$A$4:$B$24,2,FALSE) -> 0.005 | L96: 1.055 | M96: 0.055 | O96: https://www.soaringspot.com/en_gb/czech-gliding-championship-2025-havlickuv-brod-2025/results/open
A97: FL 2025 - Klub | B97: CZ | C97: 2025 | D97: Frýdlant n/Ostr. | E97: 14.6.-21.6.25 | F97: 7 | G97: 17 | H97: 0.9 | I97: 0 | J97: 0 | K97: =VLOOKUP(F97,Kp!$A$4:$B$24,2,FALSE) -> 0.015 | L97: =IF(H97=0,0,IF(OR(F97=0,F97=1,F97=2),0,IF(G97<10,0,SUM(H97:K97)))) -> 0.915 | M97: =L97-H97 -> 0.015 | O97: https://www.soaringspot.com/en_gb/fl2025-frydlant-2025/results/fl-klub
A98: FL 2025 - Kombi | B98: CZ | C98: 2025 | D98: Frýdlant n/Ostr. | E98: 14.6.-21.6.25 | F98: 7 | G98: 14 | H98: 0.75 | I98: 0 | J98: 0 | K98: =VLOOKUP(F98,Kp!$A$4:$B$24,2,FALSE) -> 0.015 | L98: 0.765 | M98: 0.015 | O98: https://www.soaringspot.com/en_gb/fl2025-frydlant-2025/results/fl-kombi
A99: WGC 2025 - Klub | B99: CZ | C99: 2025 | D99: Tábor | E99: 7.6.-21.6.25 | F99: 9 | G99: 42 | H99: 1 | I99: 0.065 | J99: 0.03 | K99: =VLOOKUP(F99,Kp!$A$4:$B$24,2,FALSE) -> 0.025 | L99: =IF(H99=0,0,IF(OR(F99=0,F99=1,F99=2),0,IF(G99<10,0,SUM(H99:K99)))) -> 1.12 | M99: =L99-H99 -> 0.12 | O99: https://www.soaringspot.com/en_gb/39th-fai-world-gliding-championships-tabor-2025/results/club
A100: WGC 2025 - Std | B100: CZ | C100: 2025 | D100: Tábor | E100: 7.6.-21.6.25 | F100: 9 | G100: 38 | H100: 1 | I100: 0.065 | J100: 0.03 | K100: =VLOOKUP(F100,Kp!$A$4:$B$24,2,FALSE) -> 0.025 | L100: 1.12 | M100: 0.12 | O100: https://www.soaringspot.com/en_gb/39th-fai-world-gliding-championships-tabor-2025/results/standard
A101: WGC 2025 - 15m | B101: CZ | C101: 2025 | D101: Tábor | E101: 7.6.-21.6.25 | F101: 9 | G101: 35 | H101: 1 | I101: 0.07 | J101: 0.03 | K101: =VLOOKUP(F101,Kp!$A$4:$B$24,2,FALSE) -> 0.025 | L101: 1.125 | M101: 0.125 | O101: https://www.soaringspot.com/en_gb/39th-fai-world-gliding-championships-tabor-2025/results/-15-meter
A102: Safari Cup 2025 - Klub | B102: CZ | C102: 2025 | D102: Dvůr Králové | E102: 28.6.-12.7.25 | F102: 3 | G102: 29 | H102: 0.75 | I102: 0.00 | J102: 0 | K102: =VLOOKUP(F102,Kp!$A$4:$B$24,2,FALSE) -> -0.02 | L102: =IF(H102=0,0,IF(OR(F102=0,F102=1,F102=2),0,IF(G102<10,0,SUM(H102:K102)))) -> 0.73 | M102: =L102-H102 -> -0.02 | O102: https://www.soaringspot.com/en_gb/safari-cup-dvur-kralove-nad-labem-2025/results/klub
A103: Safari Cup 2025 - Kombi | B103: CZ | C103: 2025 | D103: Dvůr Králové | E103: 28.6.-12.7.25 | F103: 5 | G103: 10 | H103: 0.75 | I103: 0 | J103: 0 | K103: =VLOOKUP(F103,Kp!$A$4:$B$24,2,FALSE) -> 0.005 | L103: 0.755 | M103: 0.005 | O103: https://www.soaringspot.com/en_gb/safari-cup-dvur-kralove-nad-labem-2025/results/kombi
A104: Toužim Cup 2025 - Klub | B104: CZ | C104: 2025 | D104: Toužim | E104: 12.7.-20.7.25 | F104: 3 | G104: 26 | H104: 0.9 | I104: 0 | J104: 0 | K104: =VLOOKUP(F104,Kp!$A$4:$B$24,2,FALSE) -> -0.02 | L104: =IF(H104=0,0,IF(OR(F104=0,F104=1,F104=2),0,IF(G104<10,0,SUM(H104:K104)))) -> 0.88 | M104: =L104-H104 -> -0.02 | O104: https://www.soaringspot.com/en_gb/tcup2025/results/klub
A105: Toužim Cup 2025 - Kombi | B105: CZ | C105: 2025 | D105: Toužim | E105: 12.7.-20.7.25 | F105: 4 | G105: 34 | H105: 0.9 | I105: 0.02 | J105: 0 | K105: =VLOOKUP(F105,Kp!$A$4:$B$24,2,FALSE) -> 0 | L105: 0.92 | M105: 0.02 | O105: https://www.soaringspot.com/en_gb/tcup2025/results/kombi
A106: PPV 2025 - Klub | B106: CZ | C106: 2025 | D106: Havlíčkův Brod | E106: 19.7.-26.7.25 | F106: 4 | G106: 31 | H106: 0.9 | I106: 0 | J106: 0 | K106: =VLOOKUP(F106,Kp!$A$4:$B$24,2,FALSE) -> 0 | L106: =IF(H106=0,0,IF(OR(F106=0,F106=1,F106=2),0,IF(G106<10,0,SUM(H106:K106)))) -> 0.9 | M106: =L106-H106 -> 0 | O106: https://www.soaringspot.com/en_gb/plachtarsky-pohar-vysociny-2025-havlickuv-brod/results/club
A107: PPV 2025 - Kombi | B107: CZ | C107: 2025 | D107: Havlíčkův Brod | E107: 19.7.-26.7.25 | F107: 5 | G107: 28 | H107: 0.9 | I107: 0.01 | J107: 0 | K107: =VLOOKUP(F107,Kp!$A$4:$B$24,2,FALSE) -> 0.005 | L107: 0.915 | M107: 0.015 | O107: https://www.soaringspot.com/en_gb/plachtarsky-pohar-vysociny-2025-havlickuv-brod/results/combi
A108: Rakovnická Dlaždice 2025 - Klub | B108: CZ | C108: 2025 | D108: Rakovník | E108: 19.7.-27.7.25 | F108: 3 | G108: 9 | H108: 0 | I108: 0 | J108: 0 | K108: =VLOOKUP(F108,Kp!$A$4:$B$24,2,FALSE) -> -0.02 | L108: =IF(H108=0,0,IF(OR(F108=0,F108=1,F108=2),0,IF(G108<10,0,SUM(H108:K108)))) -> 0 | M108: =L108-H108 -> 0 | N108: Více jak 1/2 soutěžících z jednoho klubu, méně jak 10 bodovaných soutěžících | O108: https://www.soaringspot.com/en_gb/rakovnicka-dlazdice-2025-rakovnik-2025/results/club
A109: Ranský pohár 2025 - Klub | B109: CZ | C109: 2025 | D109: Raná | E109: 26.7.-3.8.25 | F109: 4 | G109: 17 | H109: 0.75 | I109: 0 | J109: 0 | K109: =VLOOKUP(F109,Kp!$A$4:$B$24,2,FALSE) -> 0 | L109: =IF(H109=0,0,IF(OR(F109=0,F109=1,F109=2),0,IF(G109<10,0,SUM(H109:K109)))) -> 0.75 | M109: =L109-H109 -> 0 | O109: https://www.soaringspot.com/en_gb/ransky-pohar-2025-rana-louny-2025/results/club
A110: PMRg 2025 - Klub | B110: CZ | C110: 2025 | D110: Strakonice | E110: 27.7.-8.8.25 | F110: 4 | G110: 10 | H110: 0.9 | I110: 0 | J110: 0 | K110: =VLOOKUP(F110,Kp!$A$4:$B$24,2,FALSE) -> 0 | L110: =IF(H110=0,0,IF(OR(F110=0,F110=1,F110=2),0,IF(G110<10,0,SUM(H110:K110)))) -> 0.9 | M110: =L110-H110 -> 0 | N110: POZOR 9. a 10. soutěžící v pořadí 3 a 2 b., 7. soutěžící nejprve 3x 0 b. | O110: https://www.soaringspot.com/en_gb/pmcrj-pmrg-2025-strakonice-2025/results/pmrg-klub
A111: PMRg 2025 - Kombi | B111: CZ | C111: 2025 | D111: Strakonice | E111: 27.7.-8.8.25 | F111: 4 | G111: 10 | H111: 0.9 | I111: 0.005 | J111: 0.01 | K111: =VLOOKUP(F111,Kp!$A$4:$B$24,2,FALSE) -> 0 | L111: 0.915 | M111: 0.015 | N111: POZOR 10. soutěžící v pořadí 4x 0 b. | O111: https://www.soaringspot.com/en_gb/pmcrj-pmrg-2025-strakonice-2025/results/pmrg-kombi-mixed
A112: PMČRj 2025 - Klub | B112: CZ | C112: 2025 | D112: Strakonice | E112: 27.7.-8.8.25 | F112: 4 | G112: 27 | H112: 0.9 | I112: 0.01 | J112: 0 | K112: =VLOOKUP(F112,Kp!$A$4:$B$24,2,FALSE) -> 0 | L112: 0.91 | M112: 0.01 | O112: https://www.soaringspot.com/en_gb/pmcrj-pmrg-2025-strakonice-2025/results/pmcrj-club
A113: Pohár Českého Ráje 2025 - Kombi | B113: CZ | C113: 2025 | D113: Jičín | E113: 1.8.-9.8.25 | F113: 2 | G113: 17 | H113: 0 | I113: 0 | J113: 0 | K113: =VLOOKUP(F113,Kp!$A$4:$B$24,2,FALSE) -> 0 | L113: =IF(H113=0,0,IF(OR(F113=0,F113=1,F113=2),0,IF(G113<10,0,SUM(H113:K113)))) -> 0 | M113: =L113-H113 -> 0 | N113: Pouze 2 soutěžní disciplíny | O113: https://www.soaringspot.com/en_gb/pohar-ceskeho-raje-2025-jicin-2025/results/klub-ul
A114: Cirrus GP 2025 - Klub | B114: CZ | C114: 2025 | D114: Hodkovice | E114: 2.8.-9.8.25 | F114: 6 | G114: 7 | H114: 0 | I114: 0 | J114: 0 | K114: =VLOOKUP(F114,Kp!$A$4:$B$24,2,FALSE) -> 0.01 | L114: =IF(H114=0,0,IF(OR(F114=0,F114=1,F114=2),0,IF(G114<10,0,SUM(H114:K114)))) -> 0 | M114: =L114-H114 -> 0 | N114: Pouze 7 soutěžících ve třídě | O114: https://www.soaringspot.com/en_gb/cgp2025/results/std-cirrus
A115: Cirrus GP 2025 - Kombi 15m | B115: CZ | C115: 2025 | D115: Hodkovice | E115: 2.8.-9.8.25 | F115: 5 | G115: 7 | H115: 0 | I115: 0 | J115: 0 | K115: =VLOOKUP(F115,Kp!$A$4:$B$24,2,FALSE) -> 0.005 | L115: =IF(H115=0,0,IF(OR(F115=0,F115=1,F115=2),0,IF(G115<10,0,SUM(H115:K115)))) -> 0 | M115: =L115-H115 -> 0 | N115: Pouze 7 soutěžících ve třídě | O115: https://www.soaringspot.com/en_gb/cgp2025/results/15-meter
A116: WWGC 2025 - Klub | B116: CZ | C116: 2025 | D116: Zbraslavice | E116: 26.7.-9.8.25 | F116: 6 | G116: 25 | H116: 1 | I116: 0.01 | J116: 0.01 | K116: =VLOOKUP(F116,Kp!$A$4:$B$24,2,FALSE) -> 0.01 | L116: 1.03 | M116: 0.03 | O116: https://www.soaringspot.com/en_gb/13th-fai-womens-world-gliding-championship-zbraslavice-2025/results/club
A117: WWGC 2025 - Std | B117: CZ | C117: 2025 | D117: Zbraslavice | E117: 26.7.-9.8.25 | F117: 7 | G117: 14 | H117: 1 | I117: 0.005 | J117: 0.03 | K117: =VLOOKUP(F117,Kp!$A$4:$B$24,2,FALSE) -> 0.015 | L117: 1.05 | M117: 0.05 | O117: https://www.soaringspot.com/en_gb/13th-fai-womens-world-gliding-championship-zbraslavice-2025/results/standard
A118: WWGC 2025 - 18m | B118: CZ | C118: 2025 | D118: Zbraslavice | E118: 26.7.-9.8.25 | F118: 7 | G118: 11 | H118: 1 | I118: 0.005 | J118: 0.03 | K118: =VLOOKUP(F118,Kp!$A$4:$B$24,2,FALSE) -> 0.015 | L118: 1.05 | M118: 0.05 | O118: https://www.soaringspot.com/en_gb/13th-fai-womens-world-gliding-championship-zbraslavice-2025/results/18-meter
A119: HOP 2025 - Klub | B119: CZ | C119: 2025 | D119: Hronov | E119: 9.8.-16.8.25 | F119: 5 | G119: 21 | H119: 0.75 | I119: 0 | J119: 0 | K119: =VLOOKUP(F119,Kp!$A$4:$B$24,2,FALSE) -> 0.005 | L119: =IF(H119=0,0,IF(OR(F119=0,F119=1,F119=2),0,IF(G119<10,0,SUM(H119:K119)))) -> 0.755 | M119: =L119-H119 -> 0.005 | O119: https://www.soaringspot.com/en_gb/24-hop-2025-velke-porici-2025/results/klub-hop
A120: HOP 2025 - Kombi | B120: CZ | C120: 2025 | D120: Hronov | E120: 9.8.-16.8.25 | F120: 5 | G120: 14 | H120: 0.75 | I120: 0 | J120: 0 | K120: =VLOOKUP(F120,Kp!$A$4:$B$24,2,FALSE) -> 0.005 | L120: =IF(H120=0,0,IF(OR(F120=0,F120=1,F120=2),0,IF(G120<10,0,SUM(H120:K120)))) -> 0.755 | M120: =L120-H120 -> 0.005 | O120: https://www.soaringspot.com/en_gb/24-hop-2025-velke-porici-2025/results/kombi-mix-ppf
A121: GGP MB 2025 - Klub GP | B121: CZ | C121: 2025 | D121: Mladá Boleslav | E121: 16.8.-24.8.25 | F121: 5 | G121: 15 | H121: 0.75 | I121: 0 | J121: 0 | K121: =VLOOKUP(F121,Kp!$A$4:$B$24,2,FALSE) -> 0.005 | L121: =IF(H121=0,0,IF(OR(F121=0,F121=1,F121=2),0,IF(G121<10,0,SUM(H121:K121)))) -> 0.755 | M121: =L121-H121 -> 0.005 | O121: https://www.soaringspot.com/en_gb/ggp2025/results/cgp
A122: GGP MB 2025 - Pohár MV - Kombi | B122: CZ | C122: 2025 | D122: Mladá Boleslav | E122: 16.8.-24.8.25 | F122: 5 | G122: 10 | H122: 0.75 | I122: 0 | J122: 0 | K122: =VLOOKUP(F122,Kp!$A$4:$B$24,2,FALSE) -> 0.005 | L122: 0.755 | M122: 0.005 | O122: https://www.soaringspot.com/en_gb/ggp2025/results/pmv
A123: GGP MB 2025 - Gradient GP | B123: CZ | C123: 2025 | D123: Mladá Boleslav | E123: 16.8.-24.8.25 | F123: 5 | G123: 8 | H123: 0 | I123: 0 | J123: 0 | K123: =VLOOKUP(F123,Kp!$A$4:$B$24,2,FALSE) -> 0.005 | L123: 0 | M123: 0 | N123: Pouze 8 soutěžících ve třídě | O123: https://www.soaringspot.com/en_gb/ggp2025/results/ggp
A124: GGP MB 2025 - Super Klub GP | B124: CZ | C124: 2025 | D124: Mladá Boleslav | E124: 16.8.-24.8.25 | F124: 5 | G124: 4 | H124: 0 | I124: 0 | J124: 0 | K124: =VLOOKUP(F124,Kp!$A$4:$B$24,2,FALSE) -> 0.005 | L124: =IF(H124=0,0,IF(OR(F124=0,F124=1,F124=2),0,IF(G124<10,0,SUM(H124:K124)))) -> 0 | M124: =L124-H124 -> 0 | N124: Pouze 8 soutěžících ve třídě | O124: https://www.soaringspot.com/en_gb/ggp2025/results/scgp
A125: Pribina Cup 2025 - Klub | B125: SK | C125: 2025 | D125: Nitra | E125: 18.4.-26.4.25 | F125: 5 | G125: 15 | H125: 0.9 | I125: 0.005 | J125: 0 | K125: =VLOOKUP(F125,Kp!$A$4:$B$24,2,FALSE) -> 0.005 | L125: 0.91 | M125: 0.01 | O125: https://www.soaringspot.com/en_gb/pribina-cup-2025-nitra-2025/results/club
A126: Pribina Cup 2025 - Kombi 15m | B126: SK | C126: 2025 | D126: Nitra | E126: 18.4.-26.4.25 | F126: 4 | G126: 18 | H126: 0.9 | I126: 0.015 | J126: 0.01 | K126: =VLOOKUP(F126,Kp!$A$4:$B$24,2,FALSE) -> 0 | L126: =IF(H126=0,0,IF(OR(F126=0,F126=1,F126=2),0,IF(G126<10,0,SUM(H126:K126)))) -> 0.925 | M126: =L126-H126 -> 0.025 | O126: https://www.soaringspot.com/en_gb/pribina-cup-2025-nitra-2025/results/15m
A127: Pribina Cup 2025 - Kombi Open | B127: SK | C127: 2025 | D127: Nitra | E127: 18.4.-26.4.25 | F127: 5 | G127: 19 | H127: 0.9 | I127: 0.02 | J127: 0 | K127: =VLOOKUP(F127,Kp!$A$4:$B$24,2,FALSE) -> 0.005 | L127: =IF(H127=0,0,IF(OR(F127=0,F127=1,F127=2),0,IF(G127<10,0,SUM(H127:K127)))) -> 0.925 | M127: =L127-H127 -> 0.025 | O127: https://www.soaringspot.com/en_gb/pribina-cup-2025-nitra-2025/results/open
A128: FCC 2025 - Klub | B128: SK | C128: 2025 | D128: Prievidza | E128: 27.4.-8.5.25 | F128: 7 | G128: 34 | H128: 0.9 | I128: 0.025 | J128: 0 | K128: =VLOOKUP(F128,Kp!$A$4:$B$24,2,FALSE) -> 0.015 | L128: 0.94 | M128: 0.04 | O128: https://www.soaringspot.com/en_gb/fcc-lzpe-2025/results/club
A129: FCC 2025 - Kombi 15m | B129: SK | C129: 2025 | D129: Prievidza | E129: 27.4.-8.5.25 | F129: 7 | G129: 35 | H129: 0.9 | I129: 0.04 | J129: 0.02 | K129: =VLOOKUP(F129,Kp!$A$4:$B$24,2,FALSE) -> 0.015 | L129: =IF(H129=0,0,IF(OR(F129=0,F129=1,F129=2),0,IF(G129<10,0,SUM(H129:K129)))) -> 0.975 | M129: =L129-H129 -> 0.075 | O129: https://www.soaringspot.com/en_gb/fcc-lzpe-2025/results/kombi-15m
A130: FCC 2025 - Kombi Open | B130: SK | C130: 2025 | D130: Prievidza | E130: 27.4.-8.5.25 | F130: 8 | G130: 47 | H130: 0.9 | I130: 0.035 | J130: 0.01 | K130: =VLOOKUP(F130,Kp!$A$4:$B$24,2,FALSE) -> 0.02 | L130: =IF(H130=0,0,IF(OR(F130=0,F130=1,F130=2),0,IF(G130<10,0,SUM(H130:K130)))) -> 0.965 | M130: =L130-H130 -> 0.065 | O130: https://www.soaringspot.com/en_gb/fcc-lzpe-2025/results/kombi-open
A131: Fatraglide 2025 - Klub | B131: SK | C131: 2025 | D131: Martin | E131: 28.4.-7.5.25 | F131: 6 | G131: 23 | H131: 0.75 | I131: 0.00 | J131: 0 | K131: =VLOOKUP(F131,Kp!$A$4:$B$24,2,FALSE) -> 0.01 | L131: =IF(H131=0,0,IF(OR(F131=0,F131=1,F131=2),0,IF(G131<10,0,SUM(H131:K131)))) -> 0.76 | M131: =L131-H131 -> 0.01 | O131: https://www.soaringspot.com/en_gb/fatraglide25/results/club
A132: Fatraglide 2025 - Kombi | B132: SK | C132: 2025 | D132: Martin | E132: 28.4.-7.5.25 | F132: 6 | G132: 18 | H132: 0.75 | I132: 0.00 | J132: 0 | K132: =VLOOKUP(F132,Kp!$A$4:$B$24,2,FALSE) -> 0.01 | L132: =IF(H132=0,0,IF(OR(F132=0,F132=1,F132=2),0,IF(G132<10,0,SUM(H132:K132)))) -> 0.76 | M132: =L132-H132 -> 0.01 | O132: https://www.soaringspot.com/en_gb/fatraglide25/results/combi
A133: JEGC 2025 - Klub | B133: SK | C133: 2025 | D133: Prievidza | E133: 5.7.-19.7.25 | F133: 8 | G133: 28 | H133: 1 | I133: 0.015 | J133: 0.01 | K133: =VLOOKUP(F133,Kp!$A$4:$B$24,2,FALSE) -> 0.02 | L133: =IF(H133=0,0,IF(OR(F133=0,F133=1,F133=2),0,IF(G133<10,0,SUM(H133:K133)))) -> 1.045 | M133: =L133-H133 -> 0.045 | O133: https://www.soaringspot.com/en_gb/7th-fai-junior-european-gliding-championships-prievidza-2025/results/unknown
A134: JEGC 2025 - Std | B134: SK | C134: 2025 | D134: Prievidza | E134: 5.7.-19.7.25 | F134: 8 | G134: 19 | H134: 1 | I134: 0.005 | J134: 0.02 | K134: =VLOOKUP(F134,Kp!$A$4:$B$24,2,FALSE) -> 0.02 | L134: =IF(H134=0,0,IF(OR(F134=0,F134=1,F134=2),0,IF(G134<10,0,SUM(H134:K134)))) -> 1.045 | M134: =L134-H134 -> 0.045 | O134: https://www.soaringspot.com/en_gb/7th-fai-junior-european-gliding-championships-prievidza-2025/results/standard
A135: EGC 2025 - 18m | B135: HU | C135: 2025 | D135: Békéscsaba | E135: 27.7.-8.8.25 | F135: 8 | G135: 11 | H135: 1 | I135: 0.075 | J135: 0.03 | K135: =VLOOKUP(F135,Kp!$A$4:$B$24,2,FALSE) -> 0.02 | L135: =IF(H135=0,0,IF(OR(F135=0,F135=1,F135=2),0,IF(G135<10,0,SUM(H135:K135)))) -> 1.125 | M135: =L135-H135 -> 0.125 | O135: https://www.soaringspot.com/en_gb/23rd-fai-european-gliding-championships-bekescsaba-2025/results/18-meter
A136: EGC 2025 - Open | B136: HU | C136: 2025 | D136: Békéscsaba | E136: 27.7.-8.8.25 | F136: 8 | G136: 13 | H136: 1 | I136: 0.03 | J136: 0.03 | K136: =VLOOKUP(F136,Kp!$A$4:$B$24,2,FALSE) -> 0.02 | L136: =IF(H136=0,0,IF(OR(F136=0,F136=1,F136=2),0,IF(G136<10,0,SUM(H136:K136)))) -> 1.08 | M136: =L136-H136 -> 0.08 | O136: https://www.soaringspot.com/en_gb/23rd-fai-european-gliding-championships-bekescsaba-2025/results/open
A137: EGC 2025 - Duo 20m | B137: HU | C137: 2025 | D137: Békéscsaba | E137: 27.7.-8.8.25 | F137: 16 | G137: 11 | H137: 1 | I137: 0.02 | J137: 0.03 | K137: =VLOOKUP(F137,Kp!$A$4:$B$24,2,FALSE) -> 0.03 | L137: =IF(H137=0,0,IF(OR(F137=0,F137=1,F137=2),0,IF(G137<10,0,SUM(H137:K137)))) -> 1.08 | M137: =L137-H137 -> 0.08 | O137: https://www.soaringspot.com/en_gb/23rd-fai-european-gliding-championships-bekescsaba-2025/results/double-seater

Sheet Kp (hidden)
A1: Korekce na počet platných disciplín
A3: Počet platných disciplín | B3: Korekce Kp
A4: 0 | B4: 0
A5: 1 | B5: 0
A6: 2 | B6: 0
A7: 3 | B7: -0.02
A8: 4 | B8: 0
A9: 5 | B9: 0.005
A10: 6 | B10: 0.01
A11: 7 | B11: 0.015
A12: 8 | B12: 0.02
A13: 9 | B13: 0.025
A14: 10 | B14: 0.03
A15: 11 | B15: 0.03
A16: 12 | B16: 0.03
A17: 13 | B17: 0.03
A18: 14 | B18: 0.03
A19: 15 | B19: 0.03
A20: 16 | B20: 0.03
A21: 17 | B21: 0.03
A22: 18 | B22: 0.03
A23: 19 | B23: 0.03
A24: 20 | B24: 0.03

Sheet Pilot
A1: Jmeno | B1: Rok nar. | C1: Aeroklub | D1: Region | E1: M/F | F1: Junior v roce | G1: 2026 | H1: Hranice pro juniory: / Poznámka: | I1: =G1-25 -> 2001 | J1: Počet Jun: | K1: =COUNTIF(F2:F2251,"Junior v roce "&G1) -> 60 | L1: Počet F: | M1: =COUNTIF(E2:E2251,"F") -> 81 | N1: Počet M: | O1: =COUNTIF(E2:E2251,"M") -> 1002 | P1: Počet celk: | Q1: =COUNTIF(A2:A2251,"<>") -> 1084
A2: - | D2: Region
A3: Adam Hepal | B3: 2004 | C3: Moravská Třebová | D3: =VLOOKUP(C3,Region,2,0) -> CZ/M | E3: M | F3: =IF(A3="(prázdné)","",IF(($G$1-B3)>25,"","Junior v roce "&$G$1)) -> Junior v roce 2026 | H3: Kolín do 2022
A4: Adam Jandora | B4: 1992 | C4: Medlánky | D4: =VLOOKUP(C4,Region,2,0) -> CZ/M | E4: M | F4: =IF(A4="(prázdné)","",IF(($G$1-B4)>25,"","Junior v roce "&$G$1)) -> 
A5: Adam Laburda | B5: 2005 | C5: Raná | D5: =VLOOKUP(C5,Region,2,0) -> CZ/C2 | E5: M | F5: =IF(A5="(prázdné)","",IF(($G$1-B5)>25,"","Junior v roce "&$G$1)) -> Junior v roce 2026
A6: Adam Olejar | B6: 1991 | C6: Medlánky | D6: CZ/M | E6: M | F6: =IF(A6="(prázdné)","",IF(($G$1-B6)>25,"","Junior v roce "&$G$1)) -> 
A7: Adam Pergner | B7: 2002 | C7: Rakovník | D7: =VLOOKUP(C7,Region,2,0) -> CZ/C1 | E7: M | F7: =IF(A7="(prázdné)","",IF(($G$1-B7)>25,"","Junior v roce "&$G$1)) -> Junior v roce 2026
A8: Adam Sostaric | B8: 1991 | C8: Chrudim | D8: CZ/C2 | E8: M
A9: Adam Sugl | B9: 1987 | C9: Vyškov | D9: CZ/M | E9: M
A10: Adela Vachova | B10: 2007 | C10: Hodkovice | D10: CZ/C2 | E10: F | F10: Junior v roce 2026
A11: Albert Schneider | B11: 1967 | C11: Hranice | D11: =VLOOKUP(C11,Region,2,0) -> CZ/M | E11: M
A12: Alena Netusilova | B12: 1970 | C12: Zbraslavice | D12: CZ/C1 | E12: F
A13: Ales Cervenka | B13: 1981 | C13: Soběslav | D13: CZ/C1 | E13: M
A14: Ales Hajek | B14: 1958 | C14: Mladá Boleslav | D14: CZ/C1 | E14: M
A15: Ales Hala | B15: 1994 | C15: Tábor | D15: CZ/C1 | E15: M
A16: Ales Holoubek | B16: 1966 | C16: Jičín | D16: CZ/C2 | E16: M
A17: Ales Nestrojil | B17: 1980 | C17: Medlánky | D17: =VLOOKUP(C17,Region,2,0) -> CZ/M | E17: M | F17: =IF(A17="(prázdné)","",IF(($G$1-B17)>25,"","Junior v roce "&$G$1)) -> 
A18: Ales Sokolik | B18: 1973 | C18: Strakonice | D18: =VLOOKUP(C18,Region,2,0) -> CZ/C1 | E18: M | F18: =IF(A18="(prázdné)","",IF(($G$1-B18)>25,"","Junior v roce "&$G$1)) -> 
A19: Ales Tresl | B19: 1958 | C19: Raná | D19: CZ/C2 | E19: M
A20: Ales Valenta | B20: 1973 | C20: Hořice | D20: =VLOOKUP(C20,Region,2,0) -> CZ/C2 | E20: M | F20: =IF(A20="(prázdné)","",IF(($G$1-B20)>25,"","Junior v roce "&$G$1)) -> 
A21: Ales Vorac | B21: 1985 | C21: Křižanov | D21: CZ/M | E21: M
A22: Ales Vyhnal | B22: 1989 | C22: Kralupy | D22: CZ/C1 | E22: M
A23: Alex Gulich | B23: 2005 | C23: Slaný | D23: =VLOOKUP(C23,Region,2,0) -> CZ/C1 | E23: M | F23: Junior v roce 2026
A24: Alexander Nerandzic | B24: 1966 | C24: Raná | D24: CZ/C2 | E24: M
A25: Alois Cmajdalka | B25: 1963 | C25: Kunovice | D25: CZ/M | E25: M
A26: Alois Sohr | B26: 1939 | C26: Hranice | D26: CZ/M | E26: M
A27: Andrea Bensova | B27: 1978 | C27: Zbraslavice | D27: CZ/C1 | E27: F
A28: Aneta Prachtova | B28: 1991 | C28: Kralupy | D28: CZ/C1 | E28: F
A29: Anna Bordovska | B29: 1989 | C29: Mladá Boleslav | D29: CZ/C1 | E29: F
A30: Anna Lanzendorfova | B30: 2005 | C30: Letkov | D30: =VLOOKUP(C30,Region,2,0) -> CZ/C1 | E30: F | F30: =IF(A30="(prázdné)","",IF(($G$1-B30)>25,"","Junior v roce "&$G$1)) -> Junior v roce 2026
A31: Antonin Bordovsky | B31: 1951 | C31: Krnov | D31: CZ/M | E31: M
A32: Antonin Bruna | B32: 1945 | C32: GAC Benešov | D32: CZ/C1 | E32: M
A33: Antonin Burger | B33: 1943 | C33: Panenský Týnec | D33: CZ/C1 | E33: M
A34: Antonin Klika | B34: 1964 | C34: Beroun | D34: =VLOOKUP(C34,Region,2,0) -> CZ/C1 | E34: M | F34: =IF(A34="(prázdné)","",IF(($G$1-B34)>25,"","Junior v roce "&$G$1)) -> 
A35: Antonin Konicek | B35: 1973 | C35: Kunovice | D35: CZ/M | E35: M
A36: Antonin Kutalek | B36: 1943 | C36: Zábřeh | D36: CZ/M | E36: M
A37: Antonin Novotny | B37: 1972 | C37: Luhačovice | D37: CZ/M | E37: M
A38: Antonin Otrusina | B38: 1948 | C38: Křižanov | D38: CZ/M | E38: M
A39: Antonin Pilat | B39: 1971 | C39: Vyškov | D39: CZ/M | E39: M
A40: Antonin Teichmann | B40: 1965 | C40: Hronov | D40: CZ/C2 | E40: M
A41: Barbora Kubickova | B41: 1993 | C41: Medlánky | D41: CZ/M | E41: F
A42: Barbora Moravcova | B42: 1994 | C42: Zbraslavice | D42: CZ/C1 | E42: F
A43: Barbora Nahodilova | B43: 1989 | C43: Hosín | D43: CZ/C1 | E43: F
A44: Beat Albrecht | B44: 1953 | C44: Šumperk | D44: =VLOOKUP(C44,Region,2,0) -> CZ/M | E44: M | F44: =IF(A44="(prázdné)","",IF(($G$1-B44)>25,"","Junior v roce "&$G$1)) -> 
A45: Bedrich Honzicek | B45: 1972 | C45: Letňany | D45: =VLOOKUP(C45,Region,2,0) -> CZ/C1 | E45: M
A46: Bedrich Prochazka | B46: 1957 | C46: Rakovník | D46: CZ/C1 | E46: M
A47: Bohdan Sebestik | B47: 1957 | C47: Kroměříž | D47: CZ/M | E47: M
A48: Bohumil Kunc | B48: 1983 | C48: Kunovice | D48: CZ/M | E48: M
A49: Bohumil Rikal | B49: 1946 | C49: Hronov | D49: CZ/C2 | E49: M
A50: Bohumil Svec | B50: 1985 | C50: Roudnice | D50: CZ/C2 | E50: M
A51: Bohumir Zajdl | B51: 1950 | C51: Dvůr Králové | D51: CZ/C2 | E51: M
A52: Bohus Marcinik | B52: 1947 | C52: Příbram | D52: CZ/C1 | E52: M
A53: Boris Bachraty | B53: 1974 | C53: Kyjov | D53: CZ/M | E53: M | H53: Dříve Břeclav
A54: Boris Guic | B54: 1966 | C54: Zbraslavice | D54: =VLOOKUP(C54,Region,2,0) -> CZ/C1 | E54: M | F54: =IF(A54="(prázdné)","",IF(($G$1-B54)>25,"","Junior v roce "&$G$1)) -> 
A55: Bronislav Smatana | B55: 1970 | C55: Zbraslavice | D55: CZ/C1 | E55: M
A56: Carsten Tietz | B56: 1966 | C56: Hronov | D56: =VLOOKUP(C56,Region,2,0) -> CZ/C2 | E56: M
A57: Christof Madoery | B57: 1958 | C57: Šumperk | D57: =VLOOKUP(C57,Region,2,0) -> CZ/M | E57: M
A58: Dalibor Bucha | B58: 1973 | C58: Hranice | D58: =VLOOKUP(C58,Region,2,0) -> CZ/M | E58: M | F58: =IF(A58="(prázdné)","",IF(($G$1-B58)>25,"","Junior v roce "&$G$1)) -> 
A59: Dalibor Daricek | B59: 1993 | C59: Kunovice | D59: CZ/M | E59: M
A60: Dalibor Fencl | B60: 1966 | C60: Zbraslavice | D60: CZ/C1 | E60: M
A61: Dalibor Pek | B61: 1968 | C61: Raná | D61: CZ/C2 | E61: M
A62: Dana Novakova | B62: 1965 | C62: Mladá Boleslav | D62: CZ/C1 | E62: F
A63: Danes Grula | B63: 1961 | C63: Medlánky | D63: CZ/M | E63: M
A64: Daniel Adamec | B64: 1977 | C64: Hranice | D64: CZ/M | E64: M
A65: Daniel Brichta | B65: 1962 | C65: GAC Benešov | D65: =VLOOKUP(C65,Region,2,0) -> CZ/C1 | E65: M
A66: Daniel Devecka | B66: 1981 | C66: Vlašim | D66: =VLOOKUP(C66,Region,2,0) -> CZ/C1 | E66: M | F66: =IF(A66="(prázdné)","",IF(($G$1-B66)>25,"","Junior v roce "&$G$1)) -> 
A67: Daniel Dvorak | B67: 1980 | C67: Letkov | D67: CZ/C1 | E67: M
A68: Daniel Krasnicky | B68: 1984 | C68: Příbram | D68: CZ/C1 | E68: M
A69: Daniel Marek | B69: 1983 | C69: Hosín | D69: =VLOOKUP(C69,Region,2,0) -> CZ/C1 | E69: M
A70: Daniel Moravek | B70: 1973 | C70: Hodkovice | D70: CZ/C2 | E70: M
A71: Daniel Novak | B71: 1971 | C71: Letkov | D71: CZ/C1 | E71: M
A72: Daniel Ryba | B72: 1994 | C72: Dvůr Králové | D72: CZ/C2 | E72: M
A73: Daniel Sirmer | B73: 2005 | C73: Jihlava | D73: =VLOOKUP(C73,Region,2,0) -> CZ/M | E73: M | F73: Junior v roce 2026
A74: Daniel Suchy | B74: 1995 | C74: Hranice | D74: CZ/M | E74: M
A75: Daniela Frankova | B75: 1997 | C75: Jaroměř | D75: CZ/C2 | E75: M
A76: Daniela Stepankova | B76: 1988 | C76: Hosín | D76: CZ/C1 | E76: F
A77: David Benda | B77: 1974 | C77: Letňany | D77: =VLOOKUP(C77,Region,2,0) -> CZ/C1 | E77: M | F77: =IF(A77="(prázdné)","",IF(($G$1-B77)>25,"","Junior v roce "&$G$1)) -> 
A78: David Brunclik | B78: 2006 | C78: Zbraslavice | D78: =VLOOKUP(C78,Region,2,0) -> CZ/C1 | E78: M | F78: Junior v roce 2026
A79: David Cisar | B79: 1987 | C79: Křižanov | D79: CZ/M | E79: M
A80: David Kaspar | B80: 1993 | C80: Jaroměř | D80: =VLOOKUP(C80,Region,2,0) -> CZ/C2 | E80: M
A81: David Kraus | B81: 1990 | C81: Olomouc | D81: =VLOOKUP(C81,Region,2,0) -> CZ/M | E81: M | F81: =IF(A81="(prázdné)","",IF(($G$1-B81)>25,"","Junior v roce "&$G$1)) -> 
A82: David Krcil | B82: 1976 | C82: Raná | D82: =VLOOKUP(C82,Region,2,0) -> CZ/C2 | E82: M
A83: David Londa | B83: 1973 | C83: Mladá Boleslav | D83: CZ/C1 | E83: M
A84: David Mach | B84: 1994 | C84: Hronov | D84: CZ/C2 | E84: M
A85: David Marek | B85: 1991 | C85: Křižanov | D85: CZ/M | E85: M
A86: David Nenicka | B86: 2005 | C86: Hranice | D86: =VLOOKUP(C86,Region,2,0) -> CZ/M | E86: M | F86: =IF(A86="(prázdné)","",IF(($G$1-B86)>25,"","Junior v roce "&$G$1)) -> Junior v roce 2026
A87: David Novotny | B87: 1984 | C87: Polička | D87: CZ/C2 | E87: M
A88: David Popovsky | B88: 1976 | C88: Rakovník | D88: CZ/C1 | E88: M | F88: =IF(A88="(prázdné)","",IF(($G$1-B88)>25,"","Junior v roce "&$G$1)) -> 
A89: David Prihoda | B89: 1994 | C89: Hranice | D89: CZ/M | E89: M
A90: David Rozporka | B90: 1994 | C90: Hronov | D90: CZ/C2 | E90: M
A91: David Rytina | B91: 1983 | C91: Zbraslavice | D91: CZ/C1 | E91: M
A92: David Riha | B92: 1983 | C92: Vlašim | D92: CZ/C1 | E92: M
A93: David Sachl | B93: 1978 | C93: Kralupy | D93: CZ/C1 | E93: M
A94: David Tejnora | B94: 1982 | C94: Jaroměř | D94: CZ/C2 | E94: M
A95: David Trnecka | B95: 1979 | C95: Medlánky | D95: CZ/M | E95: M
A96: David Vrchota | B96: 1976 | C96: Jaroměř | D96: =VLOOKUP(C96,Region,2,0) -> CZ/C2 | E96: M
A97: David Zapletal | B97: 1970 | C97: Mladá Boleslav | D97: CZ/C1 | E97: M
A98: David Zatecka | B98: 1993 | C98: GAC Benešov | D98: =VLOOKUP(C98,Region,2,0) -> CZ/C1 | E98: M
A99: Dusan Gadas | B99: 1960 | C99: Hranice | D99: CZ/M | E99: M
A100: Dusan Kmet | B100: 1972 | C100: Křižanov | D100: CZ/M | E100: M
A101: Dusan Patocka | B101: 1972 | C101: Vrchlabí | D101: =VLOOKUP(C101,Region,2,0) -> CZ/C2 | E101: M | F101: =IF(A101="(prázdné)","",IF(($G$1-B101)>25,"","Junior v roce "&$G$1)) -> 
A102: Dusan Sys | B102: 1977 | C102: Šumperk | D102: CZ/M | E102: M
A103: Dusan Zerzan | B103: 1970 | C103: Šumperk | D103: CZ/M | E103: M
A104: Eduard Niko | B104: 1988 | C104: Zbraslavice | D104: =VLOOKUP(C104,Region,2,0) -> CZ/C1 | E104: M | F104: =IF(A104="(prázdné)","",IF(($G$1-B104)>25,"","Junior v roce "&$G$1)) -> 
A105: Eduard Svoboda | B105: 1957 | C105: Raná | D105: CZ/C2 | E105: M
A106: Eliska Bohunovska | B106: 2001 | C106: Hranice | D106: =VLOOKUP(C106,Region,2,0) -> CZ/M | E106: F | F106: Junior v roce 2026
A107: Eliska Kudejova | B107: 2006 | C107: Strakonice | D107: =VLOOKUP(C107,Region,2,0) -> CZ/C1 | E107: F | F107: =IF(A107="(prázdné)","",IF(($G$1-B107)>25,"","Junior v roce "&$G$1)) -> Junior v roce 2026
A108: Eva Cerna | B108: 1964 | C108: Příbram | D108: CZ/C1 | E108: F
A109: Eva Klapkova | B109: 1993 | C109: Raná | D109: =VLOOKUP(C109,Region,2,0) -> CZ/C2 | E109: F | F109: =IF(A109="(prázdné)","",IF(($G$1-B109)>25,"","Junior v roce "&$G$1)) -> 
A110: Evzen Skala | B110: 1954 | C110: Vrchlabí | D110: CZ/C2 | E110: M
A111: Fabian Curda | B111: 2004 | C111: Zábřeh | D111: =VLOOKUP(C111,Region,2,0) -> CZ/M | E111: M | F111: Junior v roce 2026
A112: Filip Borůvka | B112: 2004 | C112: Nové Město nad Metují | D112: =VLOOKUP(C112,Region,2,0) -> CZ/C2 | E112: M | F112: =IF(A112="(prázdné)","",IF(($G$1-B112)>25,"","Junior v roce "&$G$1)) -> Junior v roce 2026
A113: Filip Graf | B113: 1981 | C113: Křižanov | D113: CZ/M | E113: M
A114: Filip Malik | B114: 2001 | C114: Letňany | D114: =VLOOKUP(C114,Region,2,0) -> CZ/C1 | E114: M | F114: Junior v roce 2026
A115: Filip Mrstny | B115: 2006 | C115: Beroun | D115: =VLOOKUP(C115,Region,2,0) -> CZ/C1 | E115: M | F115: Junior v roce 2026
A116: Filip Neumann | B116: 1977 | C116: GAC Benešov | D116: CZ/C1 | E116: M
A117: Filip Riabec | B117: 2006 | C117: Broumov | D117: =VLOOKUP(C117,Region,2,0) -> CZ/C2 | E117: M | F117: =IF(A117="(prázdné)","",IF(($G$1-B117)>25,"","Junior v roce "&$G$1)) -> Junior v roce 2026
A118: Filip Sklenar | B118: 1990 | C118: Žamberk | D118: CZ/C2 | E118: M
A119: Filip Sirc | B119: 1993 | C119: Letňany | D119: CZ/C1 | E119: M
A120: Filip Vita | B120: 2001 | C120: Kroměříž | D120: CZ/M | E120: M | F120: Junior v roce 2026
A121: Frantisek Brozman | B121: 1960 | C121: Tachov | D121: CZ/C1 | E121: M
A122: Frantisek Filandr | B122: 1956 | C122: Most | D122: CZ/C2 | E122: M
A123: Frantisek Hubacek | B123: 1978 | C123: Točná | D123: CZ/C1 | E123: M
A124: Frantisek Komarek | B124: 1985 | C124: Zbraslavice | D124: CZ/C1 | E124: M
A125: Frantisek Kriz | B125: 1961 | C125: Toužim | D125: CZ/C1 | E125: M
A126: Frantisek Marek | B126: 1960 | C126: Křižanov | D126: CZ/M | E126: M
A127: Frantisek Matousek | B127: 1937 | C127: Nové Město nad Metují | D127: CZ/C2 | E127: M
A128: Frantisek Myska | B128: 1968 | C128: Most | D128: CZ/C2 | E128: M
A129: Frantisek Pycha | B129: 1972 | C129: Chrudim | D129: CZ/C2 | E129: M
A130: Frantisek Soucek | B130: 1945 | C130: Dvůr Králové | D130: CZ/C2 | E130: M
A131: Frantisek Sindelar | B131: 1954 | C131: Kralupy | D131: CZ/C1 | E131: M
A132: Frantisek Suna | B132: 1983 | C132: Hosín | D132: =VLOOKUP(C132,Region,2,0) -> CZ/C1 | E132: M
A133: Frantisek Vancura | B133: 1966 | C133: Hranice | D133: CZ/M | E133: M
A134: Gabriela Cervena | B134: 1966 | C134: Jaroměř | D134: CZ/C2 | E134: F
A135: Gustav Vrbacky | B135: 1933 | C135: Medlánky | D135: CZ/M | E135: M
A136: Hana Treslova | B136: 1991 | C136: Raná | D136: CZ/C2 | E136: F
A137: Hana Vokrinkova | B137: 1958 | C137: Hodkovice | D137: CZ/C2 | E137: F
A138: Hynek Pokorny | B138: 1991 | C138: Letňany | D138: CZ/C1 | E138: M
A139: Christof Madory | B139: 1958 | C139: Šumperk | D139: CZ/M | E139: M
A140: Ilja Kopacek | B140: 1943 | C140: Jičín | D140: =VLOOKUP(C140,Region,2,0) -> CZ/C2 | E140: M
A141: Ivan Filakovsky | B141: 1965 | C141: Medlánky | D141: CZ/M | E141: M
A142: Ivan Harasta 65 | B142: 1965 | C142: Toužim | D142: CZ/C1 | E142: M
A143: Ivan Harasta 98 | B143: 1998 | C143: Toužim | D143: CZ/C1 | E143: M
A144: Ivan Kuzelka | B144: 1945 | C144: Havlíčkův Brod | D144: CZ/C2 | E144: M
A145: Ivan Ladr | B145: 1940 | C145: Dvůr Králové | D145: CZ/C2 | E145: M
A146: Ivan Morkovsky | B146: 2008 | C146: Polička | D146: =VLOOKUP(C146,Region,2,0) -> CZ/C2 | E146: M | F146: =IF(A146="(prázdné)","",IF(($G$1-B146)>25,"","Junior v roce "&$G$1)) -> Junior v roce 2026
A147: Ivan Novak | B147: 1962 | C147: Mladá Boleslav | D147: CZ/C1 | E147: M
A148: Ivan Tvrdik | B148: 1997 | C148: Letňany | D148: CZ/C1 | E148: M
A149: Ivo Burda | B149: 1962 | C149: Zbraslavice | D149: CZ/C1 | E149: M
A150: Ivo Nezval | B150: 1964 | C150: Šumperk | D150: CZ/M | E150: M
A151: Ivo Vudarcik | B151: 1994 | C151: Rakovník | D151: CZ/C1 | E151: M
A152: Jacek Kerum | B152: 1943 | C152: Příbram | D152: CZ/C1 | E152: M
A153: Jakub Brotanek | B153: 1985 | C153: Roudnice | D153: CZ/C2 | E153: M
A154: Jakub Hlavacek | B154: 1991 | C154: Letkov | D154: CZ/C1 | E154: M
A155: Jakub Jezek | B155: 2002 | C155: Ústí nad Orlicí | D155: =VLOOKUP(C155,Region,2,0) -> CZ/C2 | E155: M | F155: =IF(A155="(prázdné)","",IF(($G$1-B155)>25,"","Junior v roce "&$G$1)) -> Junior v roce 2026
A156: Jakub Kmosek | B156: 1978 | C156: Zbraslavice | D156: CZ/C1 | E156: M
A157: Jakub Kohn | B157: 1992 | C157: Prostějov | D157: CZ/M | E157: M
A158: Jakub Koudelka | B158: 2000 | C158: Křižanov | D158: =VLOOKUP(C158,Region,2,0) -> CZ/M | E158: M
A159: Jakub Malik | B159: 1999 | C159: Letňany | D159: CZ/C1 | E159: M
A160: Jakub Michalicka | B160: 1993 | C160: Rakovník | D160: CZ/C1 | E160: M
A161: Jakub Safar | B161: 1990 | C161: Olomouc | D161: =VLOOKUP(C161,Region,2,0) -> CZ/M | E161: M | F161: =IF(A161="(prázdné)","",IF(($G$1-B161)>25,"","Junior v roce "&$G$1)) -> 
A162: Jakub Sachl | B162: 2006 | C162: Kralupy | D162: =VLOOKUP(C162,Region,2,0) -> CZ/C1 | E162: M | F162: =IF(A162="(prázdné)","",IF(($G$1-B162)>25,"","Junior v roce "&$G$1)) -> Junior v roce 2026
A163: Jakub Spanger | B163: 2002 | C163: Jeseník | D163: =VLOOKUP(C163,Region,2,0) -> CZ/M | E163: M | F163: Junior v roce 2026
A164: Jakub Tiller | B164: 1987 | C164: Broumov | D164: CZ/C2 | E164: M
A165: Jakub Vimr | B165: 1975 | C165: GAC Benešov | D165: CZ/C1 | E165: M | F165: =IF(A165="(prázdné)","",IF(($G$1-B165)>25,"","Junior v roce "&$G$1)) -> 
A166: Jakub Vlk | B166: 1986 | C166: GAC Benešov | D166: =VLOOKUP(C166,Region,2,0) -> CZ/C1 | E166: M | F166: =IF(A166="(prázdné)","",IF(($G$1-B166)>25,"","Junior v roce "&$G$1)) -> 
A167: Jan Adam | B167: 2002 | C167: Podhořany | D167: =VLOOKUP(C167,Region,2,0) -> CZ/C2 | E167: M | F167: Junior v roce 2026
A168: Jan Bejdl | B168: 1978 | C168: Zbraslavice | D168: =VLOOKUP(C168,Region,2,0) -> CZ/C1 | E168: M
A169: Jan Belina | B169: 1979 | C169: Hořice | D169: CZ/C2 | E169: M
A170: Jan Beran | B170: 1999 | C170: Kladno | D170: =VLOOKUP(C170,Region,2,0) -> CZ/C1 | E170: M
A171: Jan Beranek | B171: 1976 | C171: Jihlava | D171: CZ/M | E171: M
A172: Jan Blaha | B172: 1983 | C172: Kyjov | D172: =VLOOKUP(C172,Region,2,0) -> CZ/M | E172: M | F172: =IF(A172="(prázdné)","",IF(($G$1-B172)>25,"","Junior v roce "&$G$1)) -> 
A173: Jan Boruvka | B173: 1984 | C173: Jičín | D173: CZ/C2 | E173: M
A174: Jan Camr | B174: 2002 | C174: Jaroměř | D174: =VLOOKUP(C174,Region,2,0) -> CZ/C2 | E174: M | F174: Junior v roce 2026
A175: Jan Cerveny | B175: 1984 | C175: Jaroměř | D175: CZ/C2 | E175: M
A176: Jan Cibulka | B176: 2002 | C176: Letňany | D176: =VLOOKUP(C176,Region,2,0) -> CZ/C1 | E176: M | F176: Junior v roce 2026
A177: Jan Dersak 69 | B177: 1969 | C177: Kralupy | D177: CZ/C1 | E177: M
A178: Jan Dersak 92 | B178: 1992 | C178: Kralupy | D178: CZ/C1 | E178: M
A179: Jan Drahota | B179: 1988 | C179: Rakovník | D179: CZ/C1 | E179: M
A180: Jan Drbohlav | B180: 1999 | C180: Hodkovice | D180: =VLOOKUP(C180,Region,2,0) -> CZ/C2 | E180: M
A181: Jan Florian | B181: 1992 | C181: Zbraslavice | D181: CZ/C1 | E181: M
A182: Jan Habermann | B182: 1975 | C182: Vlašim | D182: =VLOOKUP(C182,Region,2,0) -> CZ/C1 | E182: M
A183: Jan Hejret | B183: 1976 | C183: Jaroměř | D183: CZ/C2 | E183: M
A184: Jan Heroudek | B184: 1970 | C184: Rakovník | D184: =VLOOKUP(C184,Region,2,0) -> CZ/C1 | E184: M
A185: Jan Hirs | B185: 1975 | C185: Strakonice | D185: =VLOOKUP(C185,Region,2,0) -> CZ/C1 | E185: M | F185: =IF(A185="(prázdné)","",IF(($G$1-B185)>25,"","Junior v roce "&$G$1)) -> 
A186: Jan Hlavacek 65 | B186: 1965 | C186: Rakovník | D186: CZ/C1 | E186: M
A187: Jan Hlavacek 04 | B187: 2004 | C187: Hosín | D187: =VLOOKUP(C187,Region,2,0) -> CZ/C1 | E187: M | F187: =IF(A187="(prázdné)","",IF(($G$1-B187)>25,"","Junior v roce "&$G$1)) -> Junior v roce 2026
A188: Jan Horak | B188: 1971 | C188: Zbraslavice | D188: CZ/C1 | E188: M
A189: Jan Horky | B189: 1968 | C189: Medlánky | D189: CZ/M | E189: M
A190: Jan Hrbatsch | B190: 1989 | C190: Hodkovice | D190: CZ/C2 | E190: M
A191: Jan Hruska | B191: 1988 | C191: Tábor | D191: CZ/C1 | E191: M
A192: Jan Hybner | B192: 1977 | C192: Liberec | D192: =VLOOKUP(C192,Region,2,0) -> CZ/C2 | E192: M
A193: Jan Jicha | B193: 1984 | C193: Podhořany | D193: CZ/C2 | E193: M
A194: Jan Jindra | B194: 1981 | C194: Roudnice | D194: CZ/C2 | E194: M
A195: Jan Kantor | B195: 1983 | C195: Letňany | D195: CZ/C1 | E195: M
A196: Jan Kapralek | B196: 1991 | C196: Kladno | D196: CZ/C1 | E196: M
A197: Jan Karabec | B197: 2000 | C197: Podhořany | D197: =VLOOKUP(C197,Region,2,0) -> CZ/C2 | E197: M
A198: Jan Karas | B198: 1985 | C198: Jihlava | D198: CZ/M | E198: M
A199: Jan Karnik | B199: 1976 | C199: Letkov | D199: =VLOOKUP(C199,Region,2,0) -> CZ/C1 | E199: M
A200: Jan Kaspar | B200: 1994 | C200: Letňany | D200: =VLOOKUP(C200,Region,2,0) -> CZ/C1 | E200: M
... 885 more rows

Sheet Region (hidden)
A1: Aeroklub | B1: Region | C1: Počet | D1: =C70+C37+C2 -> 89
A2: Benešov | B2: CZ/C1 | C2: =COUNTIF(B2:B35,B2) -> 34
A3: Beroun | B3: CZ/C1
A4: Bystřice u Benešova | B4: CZ/C1
A5: Erpužice | B5: CZ/C1
A6: GAC Benešov | B6: CZ/C1
A7: Hořovice | B7: CZ/C1
A8: Hosín | B8: CZ/C1
A9: Jindřichův Hradec | B9: CZ/C1
A10: Karlovy Vary | B10: CZ/C1
A11: Karlštejn | B11: CZ/C1
A12: Kladno | B12: CZ/C1
A13: Klatovy | B13: CZ/C1
A14: Kolín | B14: CZ/C1
A15: Kralupy | B15: CZ/C1
A16: Letkov | B16: CZ/C1
A17: Letňany | B17: CZ/C1
A18: Mladá Boleslav | B18: CZ/C1
A19: Nesvačily | B19: CZ/C1
A20: Panenský Týnec | B20: CZ/C1
A21: Plasy | B21: CZ/C1
A22: Plzeň Bory | B22: CZ/C1
A23: Prachatice | B23: CZ/C1
A24: Příbram | B24: CZ/C1
A25: Rakovník | B25: CZ/C1
A26: Slaný | B26: CZ/C1
A27: Soběslav | B27: CZ/C1
A28: Staňkov | B28: CZ/C1
A29: Strakonice | B29: CZ/C1
A30: Tábor | B30: CZ/C1
A31: Tachov | B31: CZ/C1
A32: Točná | B32: CZ/C1
A33: Toužim | B33: CZ/C1
A34: Vlašim | B34: CZ/C1
A35: Zbraslavice | B35: CZ/C1
A36: - | B36: -
A37: Broumov | B37: CZ/C2 | C37: =COUNTIF(B37:B68,B37) -> 32
A38: Česká Lípa | B38: CZ/C2
A39: Dvůr Králové | B39: CZ/C2
A40: Havlíčkův Brod | B40: CZ/C2
A41: Hodkovice | B41: CZ/C2
A42: Hořice | B42: CZ/C2
A43: Hradčany | B43: CZ/C2
A44: Hronov | B44: CZ/C2
A45: Chomutov | B45: CZ/C2
A46: Chotěboř | B46: CZ/C2
A47: Chrudim | B47: CZ/C2
A48: Jaroměř | B48: CZ/C2
A49: Jičín | B49: CZ/C2
A50: Letecká společnost na Vysočině | B50: CZ/C2
A51: Liberec | B51: CZ/C2
A52: Mnichovo Hradiště | B52: CZ/C2
A53: Most | B53: CZ/C2
A54: Náchod | B54: CZ/C2
A55: Nové Město nad Metují | B55: CZ/C2
A56: Pardubice | B56: CZ/C2
A57: Podhořany | B57: CZ/C2
A58: Polička | B58: CZ/C2
A59: Přibyslav | B59: CZ/C2
A60: Raná | B60: CZ/C2
A61: Roudnice | B61: CZ/C2
A62: Skuteč | B62: CZ/C2
A63: Turnov | B63: CZ/C2
A64: Ústí nad Labem | B64: CZ/C2
A65: Ústí nad Orlicí | B65: CZ/C2
A66: Vrchlabí | B66: CZ/C2
A67: Vysoké Mýto | B67: CZ/C2
A68: Žamberk | B68: CZ/C2
A69: - | B69: -
A70: Bohuňovice | B70: CZ/M | C70: =COUNTIF(B70:B92,B70) -> 23
A71: Břeclav | B71: CZ/M
A72: LK Břeclav | B72: CZ/M
A73: Frýdlant | B73: CZ/M
A74: Hranice | B74: CZ/M
A75: Jeseník | B75: CZ/M
A76: Jihlava | B76: CZ/M
A77: Krnov | B77: CZ/M
A78: Kroměříž | B78: CZ/M
A79: Křižanov | B79: CZ/M
A80: Kunovice | B80: CZ/M
A81: Kyjov | B81: CZ/M
A82: Luhačovice | B82: CZ/M
A83: Medlánky | B83: CZ/M
A84: Moravská Třebová | B84: CZ/M
A85: Olomouc | B85: CZ/M
A86: Prostějov | B86: CZ/M
A87: Slatina | B87: CZ/M
A88: Slavičín | B88: CZ/M
A89: Stichovice | B89: CZ/M
A90: Šumperk | B90: CZ/M
A91: Vyškov | B91: CZ/M
A92: Zábřeh | B92: CZ/M
A94: Aalborg | B94: DK
A95: Air Sympatia | B95: SK
A96: Akaflieg Dresden | B96: DE
A97: Bad Nauheim | B97: DE
A98: Bratislava | B98: SK
A99: Dánsko | B99: DK
A100: Greiz | B100: DE
A101: Japonsko | B101: JP
A102: Jelenia Góra | B102: PL
A103: Martin | B103: SK
A104: Německo | B104: DE
A105: Nitra | B105: SK
A106: Novo Mesto | B106: SI
A107: Poprad | B107: SK
A108: Prešov | B108: SK
A109: Prievidza | B109: SK
A110: Rakousko | B110: AT
A111: Ružomberok | B111: SK
A112: SGC Martin | B112: SK
A113: Slovinsko | B113: SI
A114: Trenčín | B114: SK
A115: Trnava | B115: SK
A116: Žilina | B116: SK

Sheet Temp
A1: Jmeno | B1: Rok narození | C1: M/F | D1: Aeroklub | E1: Region | F1: Soutěž | G1: Stát | H1: Rok | I1: Pořadí ve třídě | J1: Body ve třídě | K1: Kinp | L1: Bi | M1: Bi×Kinp | N1: G | O1: W | P1: Typ | Q1: CN | R1: Junior | S1: Poznámka
B2: =MID(A2,2,100) -> 

Sheet Data
M1: Počet X filtr: | N1: =SUBTOTAL(103,N7:N7900) -> 959 | O1: =SUBTOTAL(103,O7:O7900) -> 65
A2: * | M2: Počet X: | N2: =COUNTIFS(N$7:N$7900,"x",$A$7:$A$7900,$A$2) -> 959 | O2: =COUNTIFS(O$7:O$7900,"x",$A$7:$A$7900,$A$2) -> 65
H3: 2024 | N3: =COUNTIFS(H7:H8599,$H3,N7:N8599,"x",A7:A8599,$A$2) -> 344 | O3: =COUNTIFS(H7:H8599,$H3,O7:O8599,"x",A7:A8599,$A$2) -> 21
H4: 2023 | N4: =COUNTIFS(H7:H8599,$H4,N7:N8599,"x",A7:A8599,$A$2) -> 257 | O4: =COUNTIFS(H7:H8599,$H4,O7:O8599,"x",A7:A8599,$A$2) -> 15
H5: 2022 | N5: =COUNTIFS(H7:H8599,$H5,N7:N8599,"x",A7:A8599,$A$2) -> 0 | O5: =COUNTIFS(H7:H8599,$H5,O7:O8599,"x",A7:A8599,$A$2) -> 0
A6: Jméno | B6: Rok narození | C6: M/F | D6: Aeroklub | E6: Region | F6: Soutěž | G6: Stát | H6: Rok | I6: Pořadí ve třídě | J6: Body ve třídě | K6: Kinp | L6: Bi | M6: Bi×Kinp | N6: G | O6: W | P6: Typ | Q6: CN | R6: Junior | S6: Poznámka
A7: Jaroslav Tomana | B7: =VLOOKUP(A7,Pilot,2,0) -> 1975 | C7: =VLOOKUP(A7,Pilot,5,0) -> M | D7: =VLOOKUP(A7,Pilot,3,0) -> Zbraslavice | E7: =VLOOKUP(A7,Pilot,4,0) -> CZ/C1 | F7: AZ Cup 2023 - Klub | G7: =VLOOKUP(F7,Soutez!A:B,2,FALSE) -> CZ | H7: =VLOOKUP(F7,Soutez!A:C,3,FALSE) -> 2023 | I7: 1 | J7: 8564 | K7: =VLOOKUP(F7,Soutez,12,0) -> 0.955 | L7: =ROUND(J7/MAX($J$7:$J$33)*10000*0.7+(MAX($I$7:$I$33)-I7)/(MAX($I$7:$I$33)-1)*10000*0.3,0) -> 10000 | M7: =ROUND(K7*L7,0) -> 9550 | P7: Pegase-101 BC | Q7: RT | R7: =IF(ISERROR(VLOOKUP(A7,Pilot,6,0)),"Není v databázi",VLOOKUP(A7,Pilot,6,0)) -> 
A8: Pavel Trybenekr | B8: 1990 | C8: M | D8: Hořice | E8: CZ/C2 | F8: AZ Cup 2023 - Klub | G8: =VLOOKUP(F8,Soutez!A:B,2,FALSE) -> CZ | H8: =VLOOKUP(F8,Soutez!A:C,3,FALSE) -> 2023 | I8: 2 | J8: 8430 | K8: 0.955 | L8: 9775 | M8: =ROUND(K8*L8,0) -> 9335 | N8: x | P8: LS-4 | Q8: PF
A9: Ivan Harasta 65 | B9: 1965 | C9: M | D9: Toužim | E9: CZ/C1 | F9: AZ Cup 2023 - Klub | G9: =VLOOKUP(F9,Soutez!A:B,2,FALSE) -> CZ | H9: =VLOOKUP(F9,Soutez!A:C,3,FALSE) -> 2023 | I9: 3 | J9: 8364 | K9: 0.955 | L9: 9606 | M9: 9174 | N9: x | P9: LS-4B | Q9: IX
A10: Lukas Kriz | B10: 2003 | C10: M | D10: Křižanov | E10: CZ/M | F10: AZ Cup 2023 - Klub | G10: =VLOOKUP(F10,Soutez!A:B,2,FALSE) -> CZ | H10: =VLOOKUP(F10,Soutez!A:C,3,FALSE) -> 2023 | I10: 4 | J10: 8061 | K10: 0.955 | L10: 9243 | M10: 8827 | P10: LS-4B | Q10: 6L | R10: Junior v roce 2026
A11: Mark Travner | D11: Aeroklub Celje | F11: AZ Cup 2023 - Klub | G11: =VLOOKUP(F11,Soutez!A:B,2,FALSE) -> CZ | H11: =VLOOKUP(F11,Soutez!A:C,3,FALSE) -> 2023 | I11: 5 | J11: 7999 | K11: 0.955 | L11: 9077 | M11: 8669 | P11: SZD-55 | Q11: NX | R11: Není v databázi
A12: David Darnady | C12: M | D12: SGC Martin | E12: SK | F12: AZ Cup 2023 - Klub | G12: =VLOOKUP(F12,Soutez!A:B,2,FALSE) -> CZ | H12: =VLOOKUP(F12,Soutez!A:C,3,FALSE) -> 2023 | I12: 6 | J12: 7968 | K12: 0.955 | L12: 8936 | M12: 8534 | P12: ASW-20 | Q12: 311 | R12: Není v databázi
A13: Martin Urban | B13: =VLOOKUP(A13,Pilot,2,0) -> 1971 | C13: =VLOOKUP(A13,Pilot,5,0) -> M | D13: =VLOOKUP(A13,Pilot,3,0) -> Frýdlant | E13: =VLOOKUP(A13,Pilot,4,0) -> CZ/M | F13: AZ Cup 2023 - Klub | G13: =VLOOKUP(F13,Soutez!A:B,2,FALSE) -> CZ | H13: =VLOOKUP(F13,Soutez!A:C,3,FALSE) -> 2023 | I13: 7 | J13: 7764 | K13: 0.955 | L13: 8654 | M13: 8265 | N13: x | P13: LS-3A | Q13: SJ
A14: Michal Lesinger | B14: 1966 | C14: M | D14: Moravská Třebová | E14: CZ/M | F14: AZ Cup 2023 - Klub | G14: =VLOOKUP(F14,Soutez!A:B,2,FALSE) -> CZ | H14: =VLOOKUP(F14,Soutez!A:C,3,FALSE) -> 2023 | I14: 8 | J14: 7615 | K14: 0.955 | L14: 8417 | M14: 8038 | P14: ASW-20A | Q14: LL
A15: Jan Stastny | B15: 2003 | C15: M | D15: Medlánky | E15: CZ/M | F15: AZ Cup 2023 - Klub | G15: =VLOOKUP(F15,Soutez!A:B,2,FALSE) -> CZ | H15: =VLOOKUP(F15,Soutez!A:C,3,FALSE) -> 2023 | I15: 9 | J15: 7586 | K15: 0.955 | L15: 8278 | M15: 7905 | P15: ASW-20A | Q15: CX | R15: Junior v roce 2026
A16: Tomas Hynek | B16: 2002 | C16: M | D16: Dvůr Králové | E16: CZ/C2 | F16: AZ Cup 2023 - Klub | G16: =VLOOKUP(F16,Soutez!A:B,2,FALSE) -> CZ | H16: =VLOOKUP(F16,Soutez!A:C,3,FALSE) -> 2023 | I16: 10 | J16: 7489 | K16: 0.955 | L16: 8083 | M16: 7719 | P16: ASW-20C | Q16: VW | R16: Junior v roce 2026
A17: David Sachl | B17: 1978 | C17: M | D17: Kralupy | E17: CZ/C1 | F17: AZ Cup 2023 - Klub | G17: =VLOOKUP(F17,Soutez!A:B,2,FALSE) -> CZ | H17: =VLOOKUP(F17,Soutez!A:C,3,FALSE) -> 2023 | I17: 11 | J17: 6944 | K17: 0.955 | L17: 7522 | M17: 7184 | N17: x | P17: DG-300 Elan | Q17: BK
A18: Jan Smekal | B18: 1976 | C18: M | D18: Zbraslavice | E18: CZ/C1 | F18: AZ Cup 2023 - Klub | G18: =VLOOKUP(F18,Soutez!A:B,2,FALSE) -> CZ | H18: =VLOOKUP(F18,Soutez!A:C,3,FALSE) -> 2023 | I18: 12 | J18: 6703 | K18: 0.955 | L18: 7210 | M18: 6886 | N18: x | P18: AWS-20 | Q18: NW
A19: Petr Havelka | B19: 1997 | C19: M | D19: Zbraslavice | E19: CZ/C1 | F19: AZ Cup 2023 - Klub | G19: =VLOOKUP(F19,Soutez!A:B,2,FALSE) -> CZ | H19: =VLOOKUP(F19,Soutez!A:C,3,FALSE) -> 2023 | I19: 13 | J19: 6583 | K19: 0.955 | L19: 6996 | M19: 6681 | N19: x | P19: ASW-19B | Q19: PH
A20: Viktor Becan | D20: ALC Lesce | E20: SLO | F20: AZ Cup 2023 - Klub | G20: =VLOOKUP(F20,Soutez!A:B,2,FALSE) -> CZ | H20: =VLOOKUP(F20,Soutez!A:C,3,FALSE) -> 2023 | I20: 14 | J20: 6233 | K20: 0.955 | L20: 6595 | M20: 6298 | P20: ASW-20 L WL | Q20: CP | R20: Není v databázi
A21: Lukas Hynek | B21: =VLOOKUP(A21,Pilot,2,0) -> 1979 | C21: =VLOOKUP(A21,Pilot,5,0) -> M | D21: =VLOOKUP(A21,Pilot,3,0) -> Dvůr Králové | E21: =VLOOKUP(A21,Pilot,4,0) -> CZ/C2 | F21: AZ Cup 2023 - Klub | G21: =VLOOKUP(F21,Soutez!A:B,2,FALSE) -> CZ | H21: =VLOOKUP(F21,Soutez!A:C,3,FALSE) -> 2023 | I21: 15 | J21: 6125 | K21: 0.955 | L21: 6391 | M21: 6103 | P21: DG-200 | Q21: HL
A22: Frantisek Komarek | B22: 1985 | C22: M | D22: Zbraslavice | E22: CZ/C1 | F22: AZ Cup 2023 - Klub | G22: =VLOOKUP(F22,Soutez!A:B,2,FALSE) -> CZ | H22: =VLOOKUP(F22,Soutez!A:C,3,FALSE) -> 2023 | I22: 16 | J22: 5966 | K22: 0.955 | L22: 6146 | M22: =ROUND(K22*L22,0) -> 5869 | N22: x | P22: ASW-19B | Q22: PM
A23: Martin Kriz | B23: 1968 | C23: M | D23: Přibyslav | E23: CZ/C2 | F23: AZ Cup 2023 - Klub | G23: =VLOOKUP(F23,Soutez!A:B,2,FALSE) -> CZ | H23: =VLOOKUP(F23,Soutez!A:C,3,FALSE) -> 2023 | I23: 17 | J23: 5839 | K23: 0.955 | L23: 5926 | M23: 5659 | P23: ASW-20 | Q23: 67
A24: David Vrchota | B24: 1976 | C24: M | D24: Jaroměř | E24: CZ/C2 | F24: AZ Cup 2023 - Klub | G24: =VLOOKUP(F24,Soutez!A:B,2,FALSE) -> CZ | H24: =VLOOKUP(F24,Soutez!A:C,3,FALSE) -> 2023 | I24: 18 | J24: 5791 | K24: 0.955 | L24: 5772 | M24: 5512 | P24: Std.Cirrus 16m | Q24: CO
A25: Vaclav Sehnal | B25: 1962 | C25: M | D25: Kolín | E25: CZ/C1 | F25: AZ Cup 2023 - Klub | G25: =VLOOKUP(F25,Soutez!A:B,2,FALSE) -> CZ | H25: =VLOOKUP(F25,Soutez!A:C,3,FALSE) -> 2023 | I25: 19 | J25: 5493 | K25: 0.955 | L25: 5413 | M25: 5169 | N25: x | P25: JANTAR STD2 | Q25: VS
A26: Petr Vodicka | B26: 1965 | C26: M | D26: Jaroměř | E26: CZ/C2 | F26: AZ Cup 2023 - Klub | G26: =VLOOKUP(F26,Soutez!A:B,2,FALSE) -> CZ | H26: =VLOOKUP(F26,Soutez!A:C,3,FALSE) -> 2023 | I26: 20 | J26: 5043 | K26: 0.955 | L26: 4930 | M26: 4708 | N26: x | P26: JANUS B | Q26: BV
A27: Tomas Zamecnik | B27: 1988 | C27: M | D27: Zbraslavice | E27: CZ/C1 | F27: AZ Cup 2023 - Klub | G27: =VLOOKUP(F27,Soutez!A:B,2,FALSE) -> CZ | H27: =VLOOKUP(F27,Soutez!A:C,3,FALSE) -> 2023 | I27: 21 | J27: 4797 | K27: 0.955 | L27: 4613 | M27: 4405 | N27: x | P27: ASW-19B | Q27: O2
A28: Ales Holoubek | B28: 1966 | C28: M | D28: Jičín | E28: CZ/C2 | F28: AZ Cup 2023 - Klub | G28: =VLOOKUP(F28,Soutez!A:B,2,FALSE) -> CZ | H28: =VLOOKUP(F28,Soutez!A:C,3,FALSE) -> 2023 | I28: 22 | J28: 4506 | K28: 0.955 | L28: 4260 | M28: 4068 | N28: x | P28: ASW-15B | Q28: T
A29: Jan Kristof | B29: 1962 | C29: M | D29: Frýdlant | E29: CZ/M | F29: AZ Cup 2023 - Klub | G29: =VLOOKUP(F29,Soutez!A:B,2,FALSE) -> CZ | H29: =VLOOKUP(F29,Soutez!A:C,3,FALSE) -> 2023 | I29: 23 | J29: 3381 | K29: 0.955 | L29: 3225 | M29: 3080 | N29: x | P29: LS-3 | Q29: TX
A30: Petr Brezina | B30: 1963 | C30: M | D30: Frýdlant | E30: CZ/M | F30: AZ Cup 2023 - Klub | G30: =VLOOKUP(F30,Soutez!A:B,2,FALSE) -> CZ | H30: =VLOOKUP(F30,Soutez!A:C,3,FALSE) -> 2023 | I30: 24 | J30: 3327 | K30: 0.955 | L30: 3066 | M30: 2928 | N30: x | P30: DG-200 | Q30: AK
A31: David Popovsky | B31: 1976 | C31: M | D31: Rakovník | E31: CZ/C1 | F31: AZ Cup 2023 - Klub | G31: =VLOOKUP(F31,Soutez!A:B,2,FALSE) -> CZ | H31: =VLOOKUP(F31,Soutez!A:C,3,FALSE) -> 2023 | I31: 25 | J31: 2248 | K31: 0.955 | L31: 2068 | M31: 1975 | N31: x | P31: ASW-24 | Q31: 76
A32: Vladimir Hammer | B32: 2000 | C32: M | D32: Letkov | E32: CZ/C1 | F32: AZ Cup 2023 - Klub | G32: =VLOOKUP(F32,Soutez!A:B,2,FALSE) -> CZ | H32: =VLOOKUP(F32,Soutez!A:C,3,FALSE) -> 2023 | I32: 26 | J32: 1910 | K32: 0.955 | L32: 1677 | M32: 1602 | P32: DISCUS B | Q32: SJI
A33: Jiri Hodan | B33: 1959 | C33: M | D33: Zbraslavice | E33: CZ/C1 | F33: AZ Cup 2023 - Klub | G33: =VLOOKUP(F33,Soutez!A:B,2,FALSE) -> CZ | H33: =VLOOKUP(F33,Soutez!A:C,3,FALSE) -> 2023 | I33: 27 | J33: 1627 | K33: 0.955 | L33: 1330 | M33: 1270 | N33: x | P33: ASTIR G103 III | Q33: RB
A34: Radek Krejcirik | B34: =VLOOKUP(A34,Pilot,2,0) -> 1991 | C34: =VLOOKUP(A34,Pilot,5,0) -> M | D34: =VLOOKUP(A34,Pilot,3,0) -> Hranice | E34: =VLOOKUP(A34,Pilot,4,0) -> CZ/M | F34: AZ Cup 2023 - Kombi | G34: =VLOOKUP(F34,Soutez!A:B,2,FALSE) -> CZ | H34: =VLOOKUP(F34,Soutez!A:C,3,FALSE) -> 2023 | I34: 1 | J34: 8289 | K34: 1 | L34: =ROUND(J34/MAX($J$34:$J$65)*10000*0.7+(MAX($I$34:$I$65)-I34)/(MAX($I$34:$I$65)-1)*10000*0.3,0) -> 10000 | M34: =ROUND(K34*L34,0) -> 10000 | P34: AS-33 ES | Q34: 12
A35: Petr Krejcirik | B35: 1960 | C35: M | D35: Hranice | E35: CZ/M | F35: AZ Cup 2023 - Kombi | G35: =VLOOKUP(F35,Soutez!A:B,2,FALSE) -> CZ | H35: =VLOOKUP(F35,Soutez!A:C,3,FALSE) -> 2023 | I35: 2 | J35: 7812 | K35: 1 | L35: 9500 | M35: =ROUND(K35*L35,0) -> 9500 | N35: x | P35: JS3 18m | Q35: VB
A36: Radek Kucirek | B36: 1973 | C36: M | D36: Havlíčkův Brod | E36: CZ/C2 | F36: AZ Cup 2023 - Kombi | G36: =VLOOKUP(F36,Soutez!A:B,2,FALSE) -> CZ | H36: =VLOOKUP(F36,Soutez!A:C,3,FALSE) -> 2023 | I36: 3 | J36: 7722 | K36: 1 | L36: 9328 | M36: 9328 | P36: EB-28 Edition | Q36: NA
A37: Petr Tichy | B37: 1973 | C37: M | D37: Zbraslavice | E37: CZ/C1 | F37: AZ Cup 2023 - Kombi | G37: =VLOOKUP(F37,Soutez!A:B,2,FALSE) -> CZ | H37: =VLOOKUP(F37,Soutez!A:C,3,FALSE) -> 2023 | I37: 4 | J37: 7613 | K37: 1 | L37: 9139 | M37: 9139 | P37: JS1-C 21m | Q37: JX
A38: Vladimir Foltin | D38: Nitra SK | F38: AZ Cup 2023 - Kombi | G38: =VLOOKUP(F38,Soutez!A:B,2,FALSE) -> CZ | H38: =VLOOKUP(F38,Soutez!A:C,3,FALSE) -> 2023 | I38: 5 | J38: 7551 | K38: 1 | L38: 8990 | M38: 8990 | P38: JS3 18m | Q38: 3 | R38: Není v databázi
A39: Ivan Novak | B39: =VLOOKUP(A39,Pilot,2,0) -> 1962 | C39: =VLOOKUP(A39,Pilot,5,0) -> M | D39: =VLOOKUP(A39,Pilot,3,0) -> Mladá Boleslav | E39: =VLOOKUP(A39,Pilot,4,0) -> CZ/C1 | F39: AZ Cup 2023 - Kombi | G39: =VLOOKUP(F39,Soutez!A:B,2,FALSE) -> CZ | H39: =VLOOKUP(F39,Soutez!A:C,3,FALSE) -> 2023 | I39: 6 | J39: 7383 | K39: 1 | L39: 8751 | M39: 8751 | N39: x | P39: ASG-29E | Q39: QZ
A40: Ondrej Dupal | B40: 1966 | C40: M | D40: GAC Benešov | E40: CZ/C1 | F40: AZ Cup 2023 - Kombi | G40: =VLOOKUP(F40,Soutez!A:B,2,FALSE) -> CZ | H40: =VLOOKUP(F40,Soutez!A:C,3,FALSE) -> 2023 | I40: 7 | J40: 7369 | K40: 1 | L40: 8642 | M40: 8642 | P40: ASG-29E | Q40: GO
A41: Danes Grula | B41: 1961 | C41: M | D41: Medlánky | E41: CZ/M | F41: AZ Cup 2023 - Kombi | G41: =VLOOKUP(F41,Soutez!A:B,2,FALSE) -> CZ | H41: =VLOOKUP(F41,Soutez!A:C,3,FALSE) -> 2023 | I41: 8 | J41: 7240 | K41: 1 | L41: 8437 | M41: 8437 | N41: x | P41: ASG-32 MI | Q41: DX
A42: Jan Boruvka | B42: 1984 | C42: M | D42: Jičín | E42: CZ/C2 | F42: AZ Cup 2023 - Kombi | G42: =VLOOKUP(F42,Soutez!A:B,2,FALSE) -> CZ | H42: =VLOOKUP(F42,Soutez!A:C,3,FALSE) -> 2023 | I42: 9 | J42: 7221 | K42: 1 | L42: 8324 | M42: 8324 | P42: VENTUS C 17.6m | Q42: EG
A43: Jan Kantor | B43: 1983 | C43: M | D43: Letňany | E43: CZ/C1 | F43: AZ Cup 2023 - Kombi | G43: =VLOOKUP(F43,Soutez!A:B,2,FALSE) -> CZ | H43: =VLOOKUP(F43,Soutez!A:C,3,FALSE) -> 2023 | I43: 10 | J43: 7032 | K43: 1 | L43: 8068 | M43: 8068 | P43: ASG-29E | Q43: QX
A44: Alena Netusilova | B44: 1970 | C44: F | D44: Zbraslavice | E44: CZ/C1 | F44: AZ Cup 2023 - Kombi | G44: =VLOOKUP(F44,Soutez!A:B,2,FALSE) -> CZ | H44: =VLOOKUP(F44,Soutez!A:C,3,FALSE) -> 2023 | I44: 11 | J44: 6631 | K44: 1 | L44: 7632 | M44: 7632 | N44: x | P44: JS3 18m | Q44: ZE
A45: Karel Novak | B45: 1993 | C45: M | D45: Mladá Boleslav | E45: CZ/C1 | F45: AZ Cup 2023 - Kombi | G45: =VLOOKUP(F45,Soutez!A:B,2,FALSE) -> CZ | H45: =VLOOKUP(F45,Soutez!A:C,3,FALSE) -> 2023 | I45: 12 | J45: 6481 | K45: 1 | L45: 7409 | M45: 7409 | P45: VENTUS 2A 15m | Q45: AX
A46: Petr Starek | B46: 1974 | C46: M | D46: Zbraslavice | E46: CZ/C1 | F46: AZ Cup 2023 - Kombi | G46: =VLOOKUP(F46,Soutez!A:B,2,FALSE) -> CZ | H46: =VLOOKUP(F46,Soutez!A:C,3,FALSE) -> 2023 | I46: 13 | J46: 6292 | K46: 1 | L46: 7152 | M46: 7152 | N46: x | P46: HPH 304 JS | Q46: 66
A47: Michal Posluzny | B47: 1968 | C47: M | D47: Medlánky | E47: CZ/M | F47: AZ Cup 2023 - Kombi | G47: =VLOOKUP(F47,Soutez!A:B,2,FALSE) -> CZ | H47: =VLOOKUP(F47,Soutez!A:C,3,FALSE) -> 2023 | I47: 14 | J47: 6275 | K47: 1 | L47: 7041 | M47: 7041 | N47: x | P47: JS3 18m | Q47: QX1
A48: Jan Kotan | B48: 1982 | C48: M | D48: Letňany | E48: CZ/C1 | F48: AZ Cup 2023 - Kombi | G48: =VLOOKUP(F48,Soutez!A:B,2,FALSE) -> CZ | H48: =VLOOKUP(F48,Soutez!A:C,3,FALSE) -> 2023 | I48: 15 | J48: 6231 | K48: 1 | L48: 6907 | M48: 6907 | P48: VENTUS 2BX 15m | Q48: YA
A49: Hana Treslova | B49: 1991 | C49: F | D49: Raná | E49: CZ/C2 | F49: AZ Cup 2023 - Kombi | G49: =VLOOKUP(F49,Soutez!A:B,2,FALSE) -> CZ | H49: =VLOOKUP(F49,Soutez!A:C,3,FALSE) -> 2023 | I49: 16 | J49: 6193 | K49: 1 | L49: 6778 | M49: 6778 | P49: JS3 18m | Q49: XM
A50: Radek Zima 78 | B50: 1978 | C50: M | D50: Hodkovice | E50: CZ/C2 | F50: AZ Cup 2023 - Kombi | G50: =VLOOKUP(F50,Soutez!A:B,2,FALSE) -> CZ | H50: =VLOOKUP(F50,Soutez!A:C,3,FALSE) -> 2023 | I50: 17 | J50: 6150 | K50: 1 | L50: 6645 | M50: 6645 | N50: x | P50: ASG-29E | Q50: XZ
A51: Jan Dersak 69 | B51: 1969 | C51: M | D51: Kralupy | E51: CZ/C1 | F51: AZ Cup 2023 - Kombi | G51: =VLOOKUP(F51,Soutez!A:B,2,FALSE) -> CZ | H51: =VLOOKUP(F51,Soutez!A:C,3,FALSE) -> 2023 | I51: 18 | J51: 6043 | K51: 1 | L51: 6458 | M51: 6458 | P51: HPH 304 MS | Q51: DJ
A52: Zdenek Boruvka 86 | B52: 1986 | C52: M | D52: Jičín | E52: CZ/C2 | F52: AZ Cup 2023 - Kombi | G52: =VLOOKUP(F52,Soutez!A:B,2,FALSE) -> CZ | H52: =VLOOKUP(F52,Soutez!A:C,3,FALSE) -> 2023 | I52: 19 | J52: 5812 | K52: 1 | L52: 6166 | M52: 6166 | P52: VENTUS C 17.6m | Q52: VV
A53: Jan Ratz | B53: 1987 | C53: M | D53: Zbraslavice | E53: CZ/C1 | F53: AZ Cup 2023 - Kombi | G53: =VLOOKUP(F53,Soutez!A:B,2,FALSE) -> CZ | H53: =VLOOKUP(F53,Soutez!A:C,3,FALSE) -> 2023 | I53: 20 | J53: 5793 | K53: 1 | L53: 6053 | M53: 6053 | P53: LS-8 18m | Q53: FX
A54: Jaroslav Potmesil | B54: 1964 | C54: M | D54: Zbraslavice | E54: CZ/C1 | F54: AZ Cup 2023 - Kombi | G54: =VLOOKUP(F54,Soutez!A:B,2,FALSE) -> CZ | H54: =VLOOKUP(F54,Soutez!A:C,3,FALSE) -> 2023 | I54: 21 | J54: 5522 | K54: 1 | L54: 5728 | M54: 5728 | N54: x | P54: HpH 304 JS | Q54: JT
A55: Richard Jensen | B55: 1965 | C55: M | D55: Zbraslavice | E55: CZ/C1 | F55: AZ Cup 2023 - Kombi | G55: =VLOOKUP(F55,Soutez!A:B,2,FALSE) -> CZ | H55: =VLOOKUP(F55,Soutez!A:C,3,FALSE) -> 2023 | I55: 22 | J55: 5494 | K55: 1 | L55: 5607 | M55: =ROUND(K55*L55,0) -> 5607 | N55: x | P55: ASG-29E | Q55: AJ
A56: Ivo Burda | B56: 1962 | C56: M | D56: Zbraslavice | E56: CZ/C1 | F56: AZ Cup 2023 - Kombi | G56: =VLOOKUP(F56,Soutez!A:B,2,FALSE) -> CZ | H56: =VLOOKUP(F56,Soutez!A:C,3,FALSE) -> 2023 | I56: 23 | J56: 5179 | K56: 1 | L56: 5245 | M56: 5245 | N56: x | P56: VENTUS 2CXM 18m | Q56: IB
A57: Karel Krobath | D57: FRA | F57: AZ Cup 2023 - Kombi | G57: =VLOOKUP(F57,Soutez!A:B,2,FALSE) -> CZ | H57: =VLOOKUP(F57,Soutez!A:C,3,FALSE) -> 2023 | I57: 24 | J57: 5077 | K57: 1 | L57: 5062 | M57: 5062 | P57: HPH TWINSHARK | Q57: Q | R57: Není v databázi
A58: Jana Treslova | B58: =VLOOKUP(A58,Pilot,2,0) -> 1963 | C58: =VLOOKUP(A58,Pilot,5,0) -> F | D58: =VLOOKUP(A58,Pilot,3,0) -> Raná | E58: =VLOOKUP(A58,Pilot,4,0) -> CZ/C2 | F58: AZ Cup 2023 - Kombi | G58: =VLOOKUP(F58,Soutez!A:B,2,FALSE) -> CZ | H58: =VLOOKUP(F58,Soutez!A:C,3,FALSE) -> 2023 | I58: 25 | J58: 4996 | K58: 1 | L58: 4897 | M58: 4897 | P58: LS-8 15m | Q58: W8 | R58: =IF(ISERROR(VLOOKUP(A58,Pilot,6,0)),"Není v databázi",VLOOKUP(A58,Pilot,6,0)) -> 
A59: Zdenek Boruvka 54 | B59: 1954 | C59: M | D59: Jičín | E59: CZ/C2 | F59: AZ Cup 2023 - Kombi | G59: =VLOOKUP(F59,Soutez!A:B,2,FALSE) -> CZ | H59: =VLOOKUP(F59,Soutez!A:C,3,FALSE) -> 2023 | I59: 26 | J59: 4591 | K59: 1 | L59: 4458 | M59: 4458 | P59: LS-8 15m | Q59: ZB
A60: Michaela Rendlova | B60: 2004 | C60: F | D60: Toužim | E60: CZ/C1 | F60: AZ Cup 2023 - Kombi | G60: =VLOOKUP(F60,Soutez!A:B,2,FALSE) -> CZ | H60: =VLOOKUP(F60,Soutez!A:C,3,FALSE) -> 2023 | I60: 27 | J60: 4175 | K60: 1 | L60: 4010 | M60: 4010 | P60: AS-33 ES | Q60: EA | R60: Junior v roce 2026
A61: Dana Novakova | B61: 1965 | C61: F | D61: Mladá Boleslav | E61: CZ/C1 | F61: AZ Cup 2023 - Kombi | G61: =VLOOKUP(F61,Soutez!A:B,2,FALSE) -> CZ | H61: =VLOOKUP(F61,Soutez!A:C,3,FALSE) -> 2023 | I61: 28 | J61: 3989 | K61: 1 | L61: 3756 | M61: 3756 | P61: LS-8 15m | Q61: ID
A62: Tomas Suchanek | B62: 1964 | C62: M | D62: GAC Benešov | E62: CZ/C1 | F62: AZ Cup 2023 - Kombi | G62: =VLOOKUP(F62,Soutez!A:B,2,FALSE) -> CZ | H62: =VLOOKUP(F62,Soutez!A:C,3,FALSE) -> 2023 | I62: 29 | J62: 3678 | K62: 1 | L62: 3396 | M62: 3396 | P62: LS-8 18m | Q62: JB
A63: Matous Schmidt | B63: 1981 | C63: M | D63: Letňany | E63: CZ/C1 | F63: AZ Cup 2023 - Kombi | G63: =VLOOKUP(F63,Soutez!A:B,2,FALSE) -> CZ | H63: =VLOOKUP(F63,Soutez!A:C,3,FALSE) -> 2023 | I63: 30 | J63: 2152 | K63: 1 | L63: 2011 | M63: 2011 | N63: x | P63: VENTUS C 17.6m | Q63: UC
A64: Pavel Svrcek | B64: 1972 | C64: M | D64: Frýdlant | E64: CZ/M | F64: AZ Cup 2023 - Kombi | G64: =VLOOKUP(F64,Soutez!A:B,2,FALSE) -> CZ | H64: =VLOOKUP(F64,Soutez!A:C,3,FALSE) -> 2023 | I64: 31 | J64: 1862 | K64: 1 | L64: 1669 | M64: 1669 | N64: x | P64: DG-400 | Q64: PS
A65: Tomas Rendla | B65: 1973 | C65: M | D65: Zbraslavice | E65: CZ/C1 | F65: AZ Cup 2023 - Kombi | G65: =VLOOKUP(F65,Soutez!A:B,2,FALSE) -> CZ | H65: =VLOOKUP(F65,Soutez!A:C,3,FALSE) -> 2023 | I65: 32 | J65: 498 | K65: 1 | L65: 421 | M65: 421 | P65: HPH TWINSHARK | Q65: LK
A66: Rostislav Stryk | B66: =VLOOKUP(A66,Pilot,2,0) -> 1972 | C66: =VLOOKUP(A66,Pilot,5,0) -> M | D66: =VLOOKUP(A66,Pilot,3,0) -> Frýdlant | E66: =VLOOKUP(A66,Pilot,4,0) -> CZ/M | F66: FL 2023 - Klub | G66: =VLOOKUP(F66,Soutez!A:B,2,FALSE) -> CZ | H66: =VLOOKUP(F66,Soutez!A:C,3,FALSE) -> 2023 | I66: 1 | J66: 4451 | K66: 0 | L66: =ROUND(J66/MAX($J$66:$J$76)*10000*0.7+(MAX($I$66:$I$76)-I66)/(MAX($I$66:$I$76)-1)*10000*0.3,0) -> 10000 | M66: =ROUND(K66*L66,0) -> 0 | P66: Std. Cirrus | Q66: 22
A67: David Sachl | B67: 1978 | C67: M | D67: Kralupy | E67: CZ/C1 | F67: FL 2023 - Klub | G67: =VLOOKUP(F67,Soutez!A:B,2,FALSE) -> CZ | H67: =VLOOKUP(F67,Soutez!A:C,3,FALSE) -> 2023 | I67: 2 | J67: 4106 | K67: 0 | L67: 9124 | M67: =ROUND(K67*L67,0) -> 0 | P67: DG 300 WL | Q67: BK
A68: Jan Kristof | B68: =VLOOKUP(A68,Pilot,2,0) -> 1962 | C68: =VLOOKUP(A68,Pilot,5,0) -> M | D68: =VLOOKUP(A68,Pilot,3,0) -> Frýdlant | E68: =VLOOKUP(A68,Pilot,4,0) -> CZ/M | F68: FL 2023 - Klub | G68: =VLOOKUP(F68,Soutez!A:B,2,FALSE) -> CZ | H68: =VLOOKUP(F68,Soutez!A:C,3,FALSE) -> 2023 | I68: 3 | J68: 3573 | K68: 0 | L68: 7953 | M68: 0 | P68: LS 3 | Q68: TX
A69: Petr Brezina | B69: =VLOOKUP(A69,Pilot,2,0) -> 1963 | C69: =VLOOKUP(A69,Pilot,5,0) -> M | D69: =VLOOKUP(A69,Pilot,3,0) -> Frýdlant | E69: =VLOOKUP(A69,Pilot,4,0) -> CZ/M | F69: FL 2023 - Klub | G69: =VLOOKUP(F69,Soutez!A:B,2,FALSE) -> CZ | H69: =VLOOKUP(F69,Soutez!A:C,3,FALSE) -> 2023 | I69: 4 | J69: 2743 | K69: 0 | L69: 6314 | M69: 0 | P69: DG 200 | Q69: AK
A70: Jan Mareth | B70: 1979 | C70: M | D70: Frýdlant | E70: CZ/M | F70: FL 2023 - Klub | G70: =VLOOKUP(F70,Soutez!A:B,2,FALSE) -> CZ | H70: =VLOOKUP(F70,Soutez!A:C,3,FALSE) -> 2023 | I70: 5 | J70: 2191 | K70: 0 | L70: 5112 | M70: 0 | P70: ASW 15 B | Q70: PA
A71: Adam Sugl | B71: 1987 | C71: M | D71: Vyškov | E71: CZ/M | F71: FL 2023 - Klub | G71: =VLOOKUP(F71,Soutez!A:B,2,FALSE) -> CZ | H71: =VLOOKUP(F71,Soutez!A:C,3,FALSE) -> 2023 | I71: 6 | J71: 1920 | K71: =VLOOKUP(F71,Soutez,12,0) -> 0 | L71: 4353 | M71: 0 | P71: Std. Cirrus | Q71: GT
A72: Jan Sustr 76 | B72: =VLOOKUP(A72,Pilot,2,0) -> 1976 | C72: =VLOOKUP(A72,Pilot,5,0) -> M | D72: =VLOOKUP(A72,Pilot,3,0) -> Raná | E72: =VLOOKUP(A72,Pilot,4,0) -> CZ/C2 | F72: FL 2023 - Klub | G72: =VLOOKUP(F72,Soutez!A:B,2,FALSE) -> CZ | H72: =VLOOKUP(F72,Soutez!A:C,3,FALSE) -> 2023 | I72: 7 | J72: 501 | K72: 0 | L72: 1788 | M72: 0 | P72: DG 300 | Q72: WL
A73: Stepan Obrovsky | B73: 1990 | C73: M | D73: Frýdlant | E73: CZ/M | F73: FL 2023 - Klub | G73: =VLOOKUP(F73,Soutez!A:B,2,FALSE) -> CZ | H73: =VLOOKUP(F73,Soutez!A:C,3,FALSE) -> 2023 | I73: 8 | J73: 419 | K73: 0 | L73: 1326 | M73: 0 | P73: LS 1-f | Q73: EM
A74: Jan Mrozek | B74: =VLOOKUP(A74,Pilot,2,0) -> 1982 | C74: =VLOOKUP(A74,Pilot,5,0) -> M | D74: =VLOOKUP(A74,Pilot,3,0) -> Frýdlant | E74: =VLOOKUP(A74,Pilot,4,0) -> CZ/M | F74: FL 2023 - Klub | G74: =VLOOKUP(F74,Soutez!A:B,2,FALSE) -> CZ | H74: =VLOOKUP(F74,Soutez!A:C,3,FALSE) -> 2023 | I74: 9 | J74: 285 | K74: 0 | L74: 782 | M74: =ROUND(K74*L74,0) -> 0 | P74: Std. Cirrus | Q74: E
A75: Ludek Mikl | B75: 1963 | C75: M | D75: Šumperk | E75: CZ/M | F75: FL 2023 - Klub | G75: =VLOOKUP(F75,Soutez!A:B,2,FALSE) -> CZ | H75: =VLOOKUP(F75,Soutez!A:C,3,FALSE) -> 2023 | I75: 10 | J75: 0 | K75: 0 | L75: 0 | M75: 0 | P75: Std. Cirrus | Q75: 16
A76: Jiri Koudela | B76: 1974 | C76: M | D76: Vyškov | E76: CZ/M | F76: FL 2023 - Klub | G76: =VLOOKUP(F76,Soutez!A:B,2,FALSE) -> CZ | H76: =VLOOKUP(F76,Soutez!A:C,3,FALSE) -> 2023 | I76: 10 | J76: 0 | K76: 0 | L76: 0 | M76: 0 | P76: ASW 19 B | Q76: JK
A77: Frantisek Vancura | B77: =VLOOKUP(A77,Pilot,2,0) -> 1966 | C77: =VLOOKUP(A77,Pilot,5,0) -> M | D77: =VLOOKUP(A77,Pilot,3,0) -> Hranice | E77: =VLOOKUP(A77,Pilot,4,0) -> CZ/M | F77: FL 2023 - Kombi | G77: =VLOOKUP(F77,Soutez!A:B,2,FALSE) -> CZ | H77: =VLOOKUP(F77,Soutez!A:C,3,FALSE) -> 2023 | I77: 1 | J77: 4392 | K77: 0.915 | L77: =ROUND(J77/MAX($J$77:$J$89)*10000*0.7+(MAX($I$77:$I$89)-I77)/(MAX($I$77:$I$89)-1)*10000*0.3,0) -> 10000 | M77: =ROUND(K77*L77,0) -> 9150 | N77: x | P77: Nimbus 3T 24.5m | Q77: A1
A78: Pavel Foldyna | B78: 1976 | C78: M | D78: Frýdlant | E78: CZ/M | F78: FL 2023 - Kombi | G78: =VLOOKUP(F78,Soutez!A:B,2,FALSE) -> CZ | H78: =VLOOKUP(F78,Soutez!A:C,3,FALSE) -> 2023 | I78: 2 | J78: 4239 | K78: 0.915 | L78: 9483 | M78: =ROUND(K78*L78,0) -> 8677 | N78: x | P78: Arcus M | Q78: FJ
A79: Martin Suchy | B79: 1969 | C79: M | D79: Hranice | E79: CZ/M | F79: FL 2023 - Kombi | G79: =VLOOKUP(F79,Soutez!A:B,2,FALSE) -> CZ | H79: =VLOOKUP(F79,Soutez!A:C,3,FALSE) -> 2023 | I79: 3 | J79: 3820 | K79: 0.915 | L79: 8543 | M79: 7817 | N79: x | P79: DG 500M 22m | Q79: T1
A80: Zdenek Balcarek | B80: 1967 | C80: M | D80: Kroměříž | E80: CZ/M | F80: FL 2023 - Kombi | G80: =VLOOKUP(F80,Soutez!A:B,2,FALSE) -> CZ | H80: =VLOOKUP(F80,Soutez!A:C,3,FALSE) -> 2023 | I80: 4 | J80: 3689 | K80: 0.915 | L80: 8061 | M80: 7376 | P80: Discus b | Q80: AI
A81: Michal Cechmanek | B81: 1978 | C81: M | D81: Kroměříž | E81: CZ/M | F81: FL 2023 - Kombi | G81: =VLOOKUP(F81,Soutez!A:B,2,FALSE) -> CZ | H81: =VLOOKUP(F81,Soutez!A:C,3,FALSE) -> 2023 | I81: 5 | J81: 3365 | K81: 0.915 | L81: 7272 | M81: 6654 | P81: ASW 20 | Q81: MK
A82: Vladimir Jirka | B82: =VLOOKUP(A82,Pilot,2,0) -> 1965 | C82: =VLOOKUP(A82,Pilot,5,0) -> M | D82: =VLOOKUP(A82,Pilot,3,0) -> Zábřeh | E82: =VLOOKUP(A82,Pilot,4,0) -> CZ/M | F82: FL 2023 - Kombi | G82: =VLOOKUP(F82,Soutez!A:B,2,FALSE) -> CZ | H82: =VLOOKUP(F82,Soutez!A:C,3,FALSE) -> 2023 | I82: 6 | J82: 3074 | K82: 0.915 | L82: 6536 | M82: 5980 | N82: x | P82: HpH 304 TS Twin Shark | Q82: 11
A83: Lumir Motyka | B83: =VLOOKUP(A83,Pilot,2,0) -> 1955 | C83: =VLOOKUP(A83,Pilot,5,0) -> M | D83: =VLOOKUP(A83,Pilot,3,0) -> Frýdlant | E83: =VLOOKUP(A83,Pilot,4,0) -> CZ/M | F83: FL 2023 - Kombi | G83: =VLOOKUP(F83,Soutez!A:B,2,FALSE) -> CZ | H83: =VLOOKUP(F83,Soutez!A:C,3,FALSE) -> 2023 | I83: 7 | J83: 2960 | K83: 0.915 | L83: 6081 | M83: 5564 | N83: x | P83: LAK-12 | Q83: DE
A84: Zdenek Schenk | B84: 1972 | C84: M | D84: Hranice | E84: CZ/M | F84: FL 2023 - Kombi | G84: =VLOOKUP(F84,Soutez!A:B,2,FALSE) -> CZ | H84: =VLOOKUP(F84,Soutez!A:C,3,FALSE) -> 2023 | I84: 8 | J84: 2053 | K84: 0.915 | L84: 4363 | M84: 3992 | P84: duo discus | Q84: OK
A85: Milos Matejka | B85: 1956 | C85: M | D85: Beroun | E85: CZ/C1 | F85: FL 2023 - Kombi | G85: =VLOOKUP(F85,Soutez!A:B,2,FALSE) -> CZ | H85: =VLOOKUP(F85,Soutez!A:C,3,FALSE) -> 2023 | I85: 9 | J85: 1890 | K85: 0.915 | L85: 3830 | M85: =ROUND(K85*L85,0) -> 3504 | N85: x | P85: Discus b WL | Q85: SH
A86: Antonin Kutalek | B86: 1943 | C86: M | D86: Zábřeh | E86: CZ/M | F86: FL 2023 - Kombi | G86: =VLOOKUP(F86,Soutez!A:B,2,FALSE) -> CZ | H86: =VLOOKUP(F86,Soutez!A:C,3,FALSE) -> 2023 | I86: 10 | J86: 1368 | K86: 0.915 | L86: 2726 | M86: 2494 | P86: LAK 17A | Q86: GL
A87: Jaroslav Buryan | B87: 1953 | C87: M | D87: Zábřeh | E87: CZ/M | F87: FL 2023 - Kombi | G87: =VLOOKUP(F87,Soutez!A:B,2,FALSE) -> CZ | H87: =VLOOKUP(F87,Soutez!A:C,3,FALSE) -> 2023 | I87: 11 | J87: 1278 | K87: 0.915 | L87: 2310 | M87: 2114 | P87: ASW 20 WL | Q87: NS
A88: Pavel Handl | B88: 1971 | C88: M | D88: Kroměříž | E88: CZ/M | F88: FL 2023 - Kombi | G88: =VLOOKUP(F88,Soutez!A:B,2,FALSE) -> CZ | H88: =VLOOKUP(F88,Soutez!A:C,3,FALSE) -> 2023 | I88: 12 | J88: 0 | K88: 0.915 | L88: 0 | M88: 0 | P88: Ventus 2c 18m | Q88: VJ
A89: Roman Cerny | B89: 1971 | C89: M | D89: Hranice | E89: CZ/M | F89: FL 2023 - Kombi | G89: =VLOOKUP(F89,Soutez!A:B,2,FALSE) -> CZ | H89: =VLOOKUP(F89,Soutez!A:C,3,FALSE) -> 2023 | I89: 12 | J89: 0 | K89: 0.915 | L89: 0 | M89: 0 | P89: Nimbus 3 25.5m | Q89: RF
A90: Josef Novotny | B90: =VLOOKUP(A90,Pilot,2,0) -> 1983 | C90: =VLOOKUP(A90,Pilot,5,0) -> M | D90: =VLOOKUP(A90,Pilot,3,0) -> Přibyslav | E90: =VLOOKUP(A90,Pilot,4,0) -> CZ/C2 | F90: JPJ 2023 - Klub | G90: =VLOOKUP(F90,Soutez!A:B,2,FALSE) -> CZ | H90: =VLOOKUP(F90,Soutez!A:C,3,FALSE) -> 2023 | I90: 1 | J90: 2829 | K90: 0.905 | L90: =ROUND(J90/MAX($J$90:$J$129)*10000*0.7+(MAX($I$90:$I$129)-I90)/(MAX($I$90:$I$129)-1)*10000*0.3,0) -> 10000 | M90: =ROUND(K90*L90,0) -> 9050 | N90: x | P90: Std. Cirrus | Q90: AW
A91: Lukas Kriz | B91: 2003 | C91: M | D91: Křižanov | E91: CZ/M | F91: JPJ 2023 - Klub | G91: =VLOOKUP(F91,Soutez!A:B,2,FALSE) -> CZ | H91: =VLOOKUP(F91,Soutez!A:C,3,FALSE) -> 2023 | I91: 2 | J91: 2819 | K91: 0.905 | L91: 9898 | M91: =ROUND(K91*L91,0) -> 8958 | P91: LS-4 | Q91: 6L | R91: Junior v roce 2026
A92: Jindrich Svorc | B92: 1978 | C92: M | D92: Letňany | E92: CZ/C1 | F92: JPJ 2023 - Klub | G92: =VLOOKUP(F92,Soutez!A:B,2,FALSE) -> CZ | H92: =VLOOKUP(F92,Soutez!A:C,3,FALSE) -> 2023 | I92: 3 | J92: 2794 | K92: 0.905 | L92: 9760 | M92: 8833 | N92: x | P92: Std. Cirrus | Q92: IMI
A93: Rene Hudak | B93: 1972 | C93: M | D93: Kunovice | E93: CZ/M | F93: JPJ 2023 - Klub | G93: =VLOOKUP(F93,Soutez!A:B,2,FALSE) -> CZ | H93: =VLOOKUP(F93,Soutez!A:C,3,FALSE) -> 2023 | I93: 4 | J93: 2696 | K93: 0.905 | L93: 9440 | M93: 8543 | N93: x | P93: Std. Cirrus WL | Q93: NK
A94: Michal Cechmanek | B94: 1978 | C94: M | D94: Kroměříž | E94: CZ/M | F94: JPJ 2023 - Klub | G94: =VLOOKUP(F94,Soutez!A:B,2,FALSE) -> CZ | H94: =VLOOKUP(F94,Soutez!A:C,3,FALSE) -> 2023 | I94: 5 | J94: 2643 | K94: 0.905 | L94: 9232 | M94: 8355 | N94: x | P94: ASW-20 (A)+L+F 15m | Q94: MK
A95: Jiri Prochazka | B95: 1971 | C95: M | D95: Toužim | E95: CZ/C1 | F95: JPJ 2023 - Klub | G95: =VLOOKUP(F95,Soutez!A:B,2,FALSE) -> CZ | H95: =VLOOKUP(F95,Soutez!A:C,3,FALSE) -> 2023 | I95: 6 | J95: 2624 | K95: 0.905 | L95: 9108 | M95: 8243 | N95: x | P95: Janus CM pevný podv. | Q95: J59
A96: Zdenek Balcarek | B96: 1967 | C96: M | D96: Kroměříž | E96: CZ/M | F96: JPJ 2023 - Klub | G96: =VLOOKUP(F96,Soutez!A:B,2,FALSE) -> CZ | H96: =VLOOKUP(F96,Soutez!A:C,3,FALSE) -> 2023 | I96: 7 | J96: 2581 | K96: 0.905 | L96: 8925 | M96: 8077 | N96: x | P96: Discus b | Q96: AI
A97: Josef Novak | B97: 1981 | C97: M | D97: Kunovice | E97: CZ/M | F97: JPJ 2023 - Klub | G97: =VLOOKUP(F97,Soutez!A:B,2,FALSE) -> CZ | H97: =VLOOKUP(F97,Soutez!A:C,3,FALSE) -> 2023 | I97: 8 | J97: 2576 | K97: 0.905 | L97: 8836 | M97: 7997 | N97: x | P97: Discus CS | Q97: CS
A98: Antonin Novotny | B98: 1972 | C98: M | D98: Luhačovice | E98: CZ/M | F98: JPJ 2023 - Klub | G98: =VLOOKUP(F98,Soutez!A:B,2,FALSE) -> CZ | H98: =VLOOKUP(F98,Soutez!A:C,3,FALSE) -> 2023 | I98: 9 | J98: 2558 | K98: 0.905 | L98: 8714 | M98: 7886 | N98: x | P98: Std. Cirrus | Q98: SJ
A99: Jaroslav Buryan | B99: 1953 | C99: M | D99: Zábřeh | E99: CZ/M | F99: JPJ 2023 - Klub | G99: =VLOOKUP(F99,Soutez!A:B,2,FALSE) -> CZ | H99: =VLOOKUP(F99,Soutez!A:C,3,FALSE) -> 2023 | I99: 10 | J99: 2553 | K99: 0.905 | L99: 8625 | M99: 7806 | N99: x | P99: ASW-20 (A)+L+F 15m | Q99: NS
A100: Rostislav Stryk | B100: 1972 | C100: M | D100: Frýdlant | E100: CZ/M | F100: JPJ 2023 - Klub | G100: =VLOOKUP(F100,Soutez!A:B,2,FALSE) -> CZ | H100: =VLOOKUP(F100,Soutez!A:C,3,FALSE) -> 2023 | I100: 11 | J100: 2483 | K100: 0.905 | L100: 8375 | M100: 7579 | N100: x | P100: Std. Cirrus | Q100: 22
A101: Martin Urner | B101: 1974 | C101: M | D101: Letňany | E101: CZ/C1 | F101: JPJ 2023 - Klub | G101: =VLOOKUP(F101,Soutez!A:B,2,FALSE) -> CZ | H101: =VLOOKUP(F101,Soutez!A:C,3,FALSE) -> 2023 | I101: 12 | J101: 2428 | K101: 0.905 | L101: 8162 | M101: 7387 | N101: x | P101: ASW-15B | Q101: JJ
A102: Martin Kriz | B102: 1968 | C102: M | D102: Přibyslav | E102: CZ/C2 | F102: JPJ 2023 - Klub | G102: =VLOOKUP(F102,Soutez!A:B,2,FALSE) -> CZ | H102: =VLOOKUP(F102,Soutez!A:C,3,FALSE) -> 2023 | I102: 13 | J102: 2354 | K102: 0.905 | L102: 7902 | M102: 7151 | N102: x | P102: ASW-20 (A)+L+F 15m | Q102: 67
A103: Jan Zezula | B103: 1979 | C103: M | D103: Letňany | E103: CZ/C1 | F103: JPJ 2023 - Klub | G103: =VLOOKUP(F103,Soutez!A:B,2,FALSE) -> CZ | H103: =VLOOKUP(F103,Soutez!A:C,3,FALSE) -> 2023 | I103: 14 | J103: 2331 | K103: 0.905 | L103: 7768 | M103: 7030 | N103: x | P103: ASW-19B | Q103: HD
A104: Jan Podhrazsky | B104: 1976 | C104: M | D104: Šumperk | E104: CZ/M | F104: JPJ 2023 - Klub | G104: =VLOOKUP(F104,Soutez!A:B,2,FALSE) -> CZ | H104: =VLOOKUP(F104,Soutez!A:C,3,FALSE) -> 2023 | I104: 15 | J104: 2284 | K104: 0.905 | L104: 7575 | M104: 6855 | N104: x | P104: Discus b | Q104: SJP
A105: Martin Ficnar | B105: 1971 | C105: M | D105: Šumperk | E105: CZ/M | F105: JPJ 2023 - Klub | G105: =VLOOKUP(F105,Soutez!A:B,2,FALSE) -> CZ | H105: =VLOOKUP(F105,Soutez!A:C,3,FALSE) -> 2023 | I105: 16 | J105: 2282 | K105: 0.905 | L105: 7493 | M105: 6781 | N105: x | P105: LS-3a 15m | Q105: S20
A106: Radim Sobek | B106: 1977 | C106: M | D106: Hranice | E106: CZ/M | F106: JPJ 2023 - Klub | G106: =VLOOKUP(F106,Soutez!A:B,2,FALSE) -> CZ | H106: =VLOOKUP(F106,Soutez!A:C,3,FALSE) -> 2023 | I106: 17 | J106: 2235 | K106: 0.905 | L106: 7299 | M106: 6606 | P106: TST-10M Atlas | Q106: 7
A107: Petr Havrlant | B107: 1965 | C107: M | D107: Šumperk | E107: CZ/M | F107: JPJ 2023 - Klub | G107: =VLOOKUP(F107,Soutez!A:B,2,FALSE) -> CZ | H107: =VLOOKUP(F107,Soutez!A:C,3,FALSE) -> 2023 | I107: 18 | J107: 2223 | K107: 0.905 | L107: 7193 | M107: 6510 | N107: x | P107: ASW-15B | Q107: Q1
A108: Martin Svarc | B108: 1981 | C108: M | D108: Olomouc | E108: CZ/M | F108: JPJ 2023 - Klub | G108: =VLOOKUP(F108,Soutez!A:B,2,FALSE) -> CZ | H108: =VLOOKUP(F108,Soutez!A:C,3,FALSE) -> 2023 | I108: 19 | J108: 2219 | K108: 0.905 | L108: 7106 | M108: 6431 | N108: x | P108: DG-101 G | Q108: HE
A109: Karel Horalek | B109: 1976 | C109: M | D109: Olomouc | E109: CZ/M | F109: JPJ 2023 - Klub | G109: =VLOOKUP(F109,Soutez!A:B,2,FALSE) -> CZ | H109: =VLOOKUP(F109,Soutez!A:C,3,FALSE) -> 2023 | I109: 20 | J109: 2139 | K109: 0.905 | L109: 6831 | M109: 6182 | N109: x | P109: LS-3 15m | Q109: Y1
A110: Stepan Obrovsky | B110: 1990 | C110: M | D110: Frýdlant | E110: CZ/M | F110: JPJ 2023 - Klub | G110: =VLOOKUP(F110,Soutez!A:B,2,FALSE) -> CZ | H110: =VLOOKUP(F110,Soutez!A:C,3,FALSE) -> 2023 | I110: 21 | J110: 1956 | K110: 0.905 | L110: 6301 | M110: 5702 | N110: x | P110: LS-1f | Q110: EM
A111: Jakub Kohn | B111: 1992 | C111: M | D111: Prostějov | E111: CZ/M | F111: JPJ 2023 - Klub | G111: =VLOOKUP(F111,Soutez!A:B,2,FALSE) -> CZ | H111: =VLOOKUP(F111,Soutez!A:C,3,FALSE) -> 2023 | I111: 22 | J111: 1950 | K111: 0.905 | L111: 6210 | M111: =ROUND(K111*L111,0) -> 5620 | N111: x | P111: ASW-15B | Q111: FK
A112: Martin Hejny | B112: 1984 | C112: M | D112: Šumperk | E112: CZ/M | F112: JPJ 2023 - Klub | G112: =VLOOKUP(F112,Soutez!A:B,2,FALSE) -> CZ | H112: =VLOOKUP(F112,Soutez!A:C,3,FALSE) -> 2023 | I112: 23 | J112: 1945 | K112: 0.905 | L112: 6120 | M112: 5539 | N112: x | P112: ASW-19B | Q112: B8
A113: Petr Lonsky | B113: 1965 | C113: M | D113: Toužim | E113: CZ/C1 | F113: JPJ 2023 - Klub | G113: =VLOOKUP(F113,Soutez!A:B,2,FALSE) -> CZ | H113: =VLOOKUP(F113,Soutez!A:C,3,FALSE) -> 2023 | I113: 24 | J113: 1887 | K113: 0.905 | L113: 5900 | M113: 5340 | P113: Cirrus | Q113: JP
A114: Jan Florian | B114: 1992 | C114: M | D114: Zbraslavice | E114: CZ/C1 | F114: JPJ 2023 - Klub | G114: =VLOOKUP(F114,Soutez!A:B,2,FALSE) -> CZ | H114: =VLOOKUP(F114,Soutez!A:C,3,FALSE) -> 2023 | I114: 25 | J114: 1863 | K114: 0.905 | L114: 5764 | M114: 5216 | P114: Std. Cirrus | Q114: C1
A115: Jiri Koudela | B115: 1974 | C115: M | D115: Vyškov | E115: CZ/M | F115: JPJ 2023 - Klub | G115: =VLOOKUP(F115,Soutez!A:B,2,FALSE) -> CZ | H115: =VLOOKUP(F115,Soutez!A:C,3,FALSE) -> 2023 | I115: 26 | J115: 1802 | K115: 0.905 | L115: 5536 | M115: 5010 | P115: ASW-19B | Q115: JK
A116: Radim Tomala | B116: 1972 | C116: M | D116: Prostějov | E116: CZ/M | F116: JPJ 2023 - Klub | G116: =VLOOKUP(F116,Soutez!A:B,2,FALSE) -> CZ | H116: =VLOOKUP(F116,Soutez!A:C,3,FALSE) -> 2023 | I116: 27 | J116: 1640 | K116: 0.905 | L116: 5058 | M116: 4577 | P116: Std. Cirrus | Q116: RT
A117: Roman Schotli | B117: 1970 | C117: M | D117: Hranice | E117: CZ/M | F117: JPJ 2023 - Klub | G117: =VLOOKUP(F117,Soutez!A:B,2,FALSE) -> CZ | H117: =VLOOKUP(F117,Soutez!A:C,3,FALSE) -> 2023 | I117: 28 | J117: 1591 | K117: 0.905 | L117: 4860 | M117: 4398 | N117: x | P117: ASW-19B | Q117: 19
A118: Petr Masik | B118: 2001 | C118: M | D118: Zábřeh | E118: CZ/M | F118: JPJ 2023 - Klub | G118: =VLOOKUP(F118,Soutez!A:B,2,FALSE) -> CZ | H118: =VLOOKUP(F118,Soutez!A:C,3,FALSE) -> 2023 | I118: 29 | J118: 1590 | K118: 0.905 | L118: 4780 | M118: 4326 | P118: Std. Cirrus | Q118: MJ | R118: Junior v roce 2026
A119: Jaromir Vlk | B119: 1959 | C119: M | D119: Šumperk | E119: CZ/M | F119: JPJ 2023 - Klub | G119: =VLOOKUP(F119,Soutez!A:B,2,FALSE) -> CZ | H119: =VLOOKUP(F119,Soutez!A:C,3,FALSE) -> 2023 | I119: 30 | J119: 1492 | K119: 0.905 | L119: 4461 | M119: 4037 | N119: x | P119: ASW-15B | Q119: R5 | R119: =IF(ISERROR(VLOOKUP(A119,Pilot,6,0)),"Není v databázi",VLOOKUP(A119,Pilot,6,0)) -> 
A120: Petr Kolomaznik | B120: 1981 | C120: M | D120: Šumperk | E120: CZ/M | F120: JPJ 2023 - Klub | G120: =VLOOKUP(F120,Soutez!A:B,2,FALSE) -> CZ | H120: =VLOOKUP(F120,Soutez!A:C,3,FALSE) -> 2023 | I120: 31 | J120: 1162 | K120: 0.905 | L120: 3568 | M120: 3229 | N120: x | P120: Discus CS | Q120: VE
A121: Adam Sugl | B121: 1987 | C121: M | D121: Vyškov | E121: CZ/M | F121: JPJ 2023 - Klub | G121: =VLOOKUP(F121,Soutez!A:B,2,FALSE) -> CZ | H121: =VLOOKUP(F121,Soutez!A:C,3,FALSE) -> 2023 | I121: 32 | J121: 1034 | K121: 0.905 | L121: 3174 | M121: 2872 | P121: Std. Cirrus | Q121: GT
A122: Yvona Vyhnankova | B122: 1963 | C122: F | D122: Olomouc | E122: CZ/M | F122: JPJ 2023 - Klub | G122: =VLOOKUP(F122,Soutez!A:B,2,FALSE) -> CZ | H122: =VLOOKUP(F122,Soutez!A:C,3,FALSE) -> 2023 | I122: 33 | J122: 632 | K122: 0.905 | L122: 2102 | M122: 1902 | P122: ASW-15 | Q122: YZ
A123: Jan Sobotka | B123: =VLOOKUP(A123,Pilot,2,0) -> 1973 | C123: =VLOOKUP(A123,Pilot,5,0) -> M | D123: =VLOOKUP(A123,Pilot,3,0) -> Vyškov | E123: =VLOOKUP(A123,Pilot,4,0) -> CZ/M | F123: JPJ 2023 - Klub | G123: =VLOOKUP(F123,Soutez!A:B,2,FALSE) -> CZ | H123: =VLOOKUP(F123,Soutez!A:C,3,FALSE) -> 2023 | I123: 34 | J123: 498 | K123: 0.905 | L123: 1694 | M123: 1533 | N123: x | P123: LS-1f | Q123: DP
A124: Albert Schneider | B124: 1967 | C124: M | D124: Hranice | E124: CZ/M | F124: JPJ 2023 - Klub | G124: =VLOOKUP(F124,Soutez!A:B,2,FALSE) -> CZ | H124: =VLOOKUP(F124,Soutez!A:C,3,FALSE) -> 2023 | I124: 34 | J124: 498 | K124: 0.905 | L124: 1694 | M124: 1533 | N124: x | P124: Mini-Nimbus c | Q124: I
A125: Radek Jaksa | B125: 1979 | C125: M | D125: Prostějov | E125: CZ/M | F125: JPJ 2023 - Klub | G125: =VLOOKUP(F125,Soutez!A:B,2,FALSE) -> CZ | H125: =VLOOKUP(F125,Soutez!A:C,3,FALSE) -> 2023 | I125: 36 | J125: 325 | K125: 0.905 | L125: 1112 | M125: 1006 | N125: x | P125: Std. Cirrus | Q125: ER
A126: Lukas Zach | B126: 1987 | C126: M | D126: Vyškov | E126: CZ/M | F126: JPJ 2023 - Klub | G126: =VLOOKUP(F126,Soutez!A:B,2,FALSE) -> CZ | H126: =VLOOKUP(F126,Soutez!A:C,3,FALSE) -> 2023 | I126: 37 | J126: 306 | K126: 0.905 | L126: 988 | M126: 894 | N126: x | P126: G-102 Astir CS 77 | Q126: AS
A127: Michal Linhart | B127: 1982 | C127: M | D127: Vyškov | E127: CZ/M | F127: JPJ 2023 - Klub | G127: =VLOOKUP(F127,Soutez!A:B,2,FALSE) -> CZ | H127: =VLOOKUP(F127,Soutez!A:C,3,FALSE) -> 2023 | I127: 38 | J127: 304 | K127: 0.905 | L127: 906 | M127: 820 | N127: x | P127: DG-1001S 18m | Q127: 66
A128: Petr Omelka | B128: 1970 | C128: M | D128: Vyškov | E128: CZ/M | F128: JPJ 2023 - Klub | G128: =VLOOKUP(F128,Soutez!A:B,2,FALSE) -> CZ | H128: =VLOOKUP(F128,Soutez!A:C,3,FALSE) -> 2023 | I128: 39 | J128: 298 | K128: 0.905 | L128: 814 | M128: 737 | P128: DG-400 15m | Q128: MR
A129: Ludek Mikl | B129: 1963 | C129: M | D129: Šumperk | E129: CZ/M | F129: JPJ 2023 - Klub | G129: =VLOOKUP(F129,Soutez!A:B,2,FALSE) -> CZ | H129: =VLOOKUP(F129,Soutez!A:C,3,FALSE) -> 2023 | I129: 40 | J129: 59 | K129: 0.905 | L129: 146 | M129: 132 | N129: x | P129: Std. Cirrus | Q129: 16
A130: Jiri Steiger | B130: =VLOOKUP(A130,Pilot,2,0) -> 1969 | C130: =VLOOKUP(A130,Pilot,5,0) -> M | D130: =VLOOKUP(A130,Pilot,3,0) -> Olomouc | E130: =VLOOKUP(A130,Pilot,4,0) -> CZ/M | F130: JPJ 2023 - Kombi | G130: =VLOOKUP(F130,Soutez!A:B,2,FALSE) -> CZ | H130: =VLOOKUP(F130,Soutez!A:C,3,FALSE) -> 2023 | I130: 1 | J130: 2757 | K130: 0.915 | L130: =ROUND(J130/MAX($J$130:$J$148)*10000*0.7+(MAX($I$130:$I$148)-I130)/(MAX($I$130:$I$148)-1)*10000*0.3,0) -> 10000 | M130: =ROUND(K130*L130,0) -> 9150 | N130: x | P130: Ventus 3M 18m | Q130: JS
A131: Radek Hybl | B131: 1980 | C131: M | D131: Šumperk | E131: CZ/M | F131: JPJ 2023 - Kombi | G131: =VLOOKUP(F131,Soutez!A:B,2,FALSE) -> CZ | H131: =VLOOKUP(F131,Soutez!A:C,3,FALSE) -> 2023 | I131: 2 | J131: 2733 | K131: 0.915 | L131: 9772 | M131: =ROUND(K131*L131,0) -> 8941 | N131: x | P131: Ventus cm 17,6m | Q131: IHH
A132: Frantisek Vancura | B132: 1966 | C132: M | D132: Hranice | E132: CZ/M | F132: JPJ 2023 - Kombi | G132: =VLOOKUP(F132,Soutez!A:B,2,FALSE) -> CZ | H132: =VLOOKUP(F132,Soutez!A:C,3,FALSE) -> 2023 | I132: 3 | J132: 2597 | K132: 0.915 | L132: 9260 | M132: 8473 | P132: Nimbus 3T 24,5m WL 750kg | Q132: A1
A133: Jan Simon | B133: 1970 | C133: M | D133: Kralupy | E133: CZ/C1 | F133: JPJ 2023 - Kombi | G133: =VLOOKUP(F133,Soutez!A:B,2,FALSE) -> CZ | H133: =VLOOKUP(F133,Soutez!A:C,3,FALSE) -> 2023 | I133: 4 | J133: 2254 | K133: 0.915 | L133: 8223 | M133: 7524 | N133: x | P133: Duo Discus T 700kg | Q133: ZS
A134: Zdenek Boruvka 54 | B134: 1954 | C134: M | D134: Jičín | E134: CZ/C2 | F134: JPJ 2023 - Kombi | G134: =VLOOKUP(F134,Soutez!A:B,2,FALSE) -> CZ | H134: =VLOOKUP(F134,Soutez!A:C,3,FALSE) -> 2023 | I134: 5 | J134: 2251 | K134: 0.915 | L134: 8049 | M134: 7365 | N134: x | P134: LS-8 15m | Q134: ZB
A135: Zdenek Schenk | B135: =VLOOKUP(A135,Pilot,2,0) -> 1972 | C135: =VLOOKUP(A135,Pilot,5,0) -> M | D135: =VLOOKUP(A135,Pilot,3,0) -> Hranice | E135: =VLOOKUP(A135,Pilot,4,0) -> CZ/M | F135: JPJ 2023 - Kombi | G135: =VLOOKUP(F135,Soutez!A:B,2,FALSE) -> CZ | H135: =VLOOKUP(F135,Soutez!A:C,3,FALSE) -> 2023 | I135: 6 | J135: 2164 | K135: =VLOOKUP(F135,Soutez,12,0) -> 0.915 | L135: 7661 | M135: 7010 | N135: x | P135: Ventus cm 17,6m | Q135: ŠNeK
A136: Pavel Haluza | B136: 1966 | C136: M | D136: Prostějov | E136: CZ/M | F136: JPJ 2023 - Kombi | G136: =VLOOKUP(F136,Soutez!A:B,2,FALSE) -> CZ | H136: =VLOOKUP(F136,Soutez!A:C,3,FALSE) -> 2023 | I136: 7 | J136: 1956 | K136: 0.915 | L136: 6966 | M136: 6374 | N136: x | P136: Nimbus 2b | Q136: HT
A137: Olga Mokosova | B137: 1970 | C137: F | D137: Jihlava | E137: CZ/M | F137: JPJ 2023 - Kombi | G137: =VLOOKUP(F137,Soutez!A:B,2,FALSE) -> CZ | H137: =VLOOKUP(F137,Soutez!A:C,3,FALSE) -> 2023 | I137: 8 | J137: 1774 | K137: 0.915 | L137: 6338 | M137: 5799 | N137: x | O137: x | P137: LS-6c 18m WL | Q137: MM
A138: Beat Albrecht | B138: 1953 | C138: M | D138: Šumperk | E138: CZ/M | F138: JPJ 2023 - Kombi | G138: =VLOOKUP(F138,Soutez!A:B,2,FALSE) -> CZ | H138: =VLOOKUP(F138,Soutez!A:C,3,FALSE) -> 2023 | I138: 9 | J138: 1661 | K138: 0.915 | L138: 5884 | M138: 5384 | N138: x | P138: LS-8-18 18m | Q138: GL
A139: Jan Dersak 69 | B139: =VLOOKUP(A139,Pilot,2,0) -> 1969 | C139: =VLOOKUP(A139,Pilot,5,0) -> M | D139: =VLOOKUP(A139,Pilot,3,0) -> Kralupy | E139: =VLOOKUP(A139,Pilot,4,0) -> CZ/C1 | F139: JPJ 2023 - Kombi | G139: =VLOOKUP(F139,Soutez!A:B,2,FALSE) -> CZ | H139: =VLOOKUP(F139,Soutez!A:C,3,FALSE) -> 2023 | I139: 10 | J139: 1645 | K139: 0.915 | L139: 5677 | M139: 5194 | P139: HpH 304MS SHARK 18m 600kg | Q139: DJ
A140: Tomas Prikryl | B140: =VLOOKUP(A140,Pilot,2,0) -> 1973 | C140: =VLOOKUP(A140,Pilot,5,0) -> M | D140: =VLOOKUP(A140,Pilot,3,0) -> Vyškov | E140: =VLOOKUP(A140,Pilot,4,0) -> CZ/M | F140: JPJ 2023 - Kombi | G140: =VLOOKUP(F140,Soutez!A:B,2,FALSE) -> CZ | H140: =VLOOKUP(F140,Soutez!A:C,3,FALSE) -> 2023 | I140: 11 | J140: 1632 | K140: 0.915 | L140: 5477 | M140: 5011 | N140: x | P140: Ventus 2cm 18m 525kg | Q140: FN
A141: Miroslav Sklenar | B141: 1964 | C141: M | D141: Žamberk | E141: CZ/C2 | F141: JPJ 2023 - Kombi | G141: =VLOOKUP(F141,Soutez!A:B,2,FALSE) -> CZ | H141: =VLOOKUP(F141,Soutez!A:C,3,FALSE) -> 2023 | I141: 12 | J141: 1559 | K141: 0.915 | L141: 5125 | M141: 4689 | N141: x | P141: Duo Discus 700kg | Q141: VP
A142: Lukas Petrzela | B142: 1987 | C142: M | D142: Olomouc | E142: CZ/M | F142: JPJ 2023 - Kombi | G142: =VLOOKUP(F142,Soutez!A:B,2,FALSE) -> CZ | H142: =VLOOKUP(F142,Soutez!A:C,3,FALSE) -> 2023 | I142: 13 | J142: 1282 | K142: 0.915 | L142: 4255 | M142: =ROUND(K142*L142,0) -> 3893 | N142: x | P142: Nimbus 2b | Q142: MT
A143: Antonin Kutalek | B143: 1943 | C143: M | D143: Zábřeh | E143: CZ/M | F143: JPJ 2023 - Kombi | G143: =VLOOKUP(F143,Soutez!A:B,2,FALSE) -> CZ | H143: =VLOOKUP(F143,Soutez!A:C,3,FALSE) -> 2023 | I143: 14 | J143: 1187 | K143: 0.915 | L143: 3847 | M143: 3520 | N143: x | P143: LAK-17AT 18m | Q143: GLK
A144: Miroslav Koci | B144: 1961 | C144: M | D144: Žamberk | E144: CZ/C2 | F144: JPJ 2023 - Kombi | G144: =VLOOKUP(F144,Soutez!A:B,2,FALSE) -> CZ | H144: =VLOOKUP(F144,Soutez!A:C,3,FALSE) -> 2023 | I144: 15 | J144: 1186 | K144: 0.915 | L144: 3678 | M144: 3365 | P144: Ventus 2cxm 18m 565kg | Q144: E8
A145: Vit Grossmann | B145: 1977 | C145: M | D145: Hranice | E145: CZ/M | F145: JPJ 2023 - Kombi | G145: =VLOOKUP(F145,Soutez!A:B,2,FALSE) -> CZ | H145: =VLOOKUP(F145,Soutez!A:C,3,FALSE) -> 2023 | I145: 16 | J145: 1012 | K145: 0.915 | L145: 3069 | M145: 2808 | N145: x | P145: Duo Discus 700kg | Q145: OK
A146: Tomas Profeld | B146: 1964 | C146: M | D146: Jičín | E146: CZ/C2 | F146: JPJ 2023 - Kombi | G146: =VLOOKUP(F146,Soutez!A:B,2,FALSE) -> CZ | H146: =VLOOKUP(F146,Soutez!A:C,3,FALSE) -> 2023 | I146: 17 | J146: 861 | K146: 0.915 | L146: 2519 | M146: 2305 | N146: x | P146: Ventus 2cm 18m 525kg | Q146: OZ
A147: Vladimir Spilka | B147: 1940 | C147: M | D147: Hranice | E147: CZ/M | F147: JPJ 2023 - Kombi | G147: =VLOOKUP(F147,Soutez!A:B,2,FALSE) -> CZ | H147: =VLOOKUP(F147,Soutez!A:C,3,FALSE) -> 2023 | I147: 18 | J147: 548 | K147: 0.915 | L147: 1558 | M147: 1426 | N147: x | P147: Nimbus 2b | Q147: AY
A148: Pavel Handl | B148: 1971 | C148: M | D148: Kroměříž | E148: CZ/M | F148: JPJ 2023 - Kombi | G148: =VLOOKUP(F148,Soutez!A:B,2,FALSE) -> CZ | H148: =VLOOKUP(F148,Soutez!A:C,3,FALSE) -> 2023 | I148: 19 | J148: 217 | K148: 0.915 | L148: 551 | M148: 504 | N148: x | P148: Ventus 2cm 18m 525kg | Q148: VJ
A149: Pavel Rericha | B149: =VLOOKUP(A149,Pilot,2,0) -> 1967 | C149: =VLOOKUP(A149,Pilot,5,0) -> M | D149: =VLOOKUP(A149,Pilot,3,0) -> Moravská Třebová | E149: =VLOOKUP(A149,Pilot,4,0) -> CZ/M | F149: PMRg 2023 - Klub | G149: =VLOOKUP(F149,Soutez!A:B,2,FALSE) -> CZ | H149: =VLOOKUP(F149,Soutez!A:C,3,FALSE) -> 2023 | I149: 1 | J149: 8730 | K149: 0.93 | L149: =ROUND(J149/MAX($J$149:$J$162)*10000*0.7+(MAX($I$149:$I$162)-I149)/(MAX($I$149:$I$162)-1)*10000*0.3,0) -> 10000 | M149: =ROUND(K149*L149,0) -> 9300 | N149: x | P149: ASW-19B | Q149: NO
A150: Jan Louda | B150: 1986 | C150: M | D150: Mladá Boleslav | E150: CZ/C1 | F150: PMRg 2023 - Klub | G150: =VLOOKUP(F150,Soutez!A:B,2,FALSE) -> CZ | H150: =VLOOKUP(F150,Soutez!A:C,3,FALSE) -> 2023 | I150: 2 | J150: 8448 | K150: 0.93 | L150: 9543 | M150: =ROUND(K150*L150,0) -> 8875 | N150: x | P150: ASW-19 | Q150: XS
A151: Marek Svancara | B151: 1976 | C151: M | D151: GAC Benešov | E151: CZ/C1 | F151: PMRg 2023 - Klub | G151: =VLOOKUP(F151,Soutez!A:B,2,FALSE) -> CZ | H151: =VLOOKUP(F151,Soutez!A:C,3,FALSE) -> 2023 | I151: 3 | J151: 7660 | K151: 0.93 | L151: 8681 | M151: 8073 | N151: x | P151: Std. Cirrus | Q151: GT
A152: Jan Smaha | B152: 1958 | C152: M | D152: Česká Lípa | E152: CZ/C2 | F152: PMRg 2023 - Klub | G152: =VLOOKUP(F152,Soutez!A:B,2,FALSE) -> CZ | H152: =VLOOKUP(F152,Soutez!A:C,3,FALSE) -> 2023 | I152: 4 | J152: 7225 | K152: 0.93 | L152: 8101 | M152: 7534 | N152: x | P152: ASW-15B | Q152: CW
A153: Petr Rozhon | B153: 1972 | C153: M | D153: Hosín | E153: CZ/C1 | F153: PMRg 2023 - Klub | G153: =VLOOKUP(F153,Soutez!A:B,2,FALSE) -> CZ | H153: =VLOOKUP(F153,Soutez!A:C,3,FALSE) -> 2023 | I153: 5 | J153: 5980 | K153: 0.93 | L153: 6872 | M153: 6391 | N153: x | P153: VSO-10 | Q153: 9
A154: Pavel Koudelka | B154: 1973 | C154: M | D154: Křižanov | E154: CZ/M | F154: PMRg 2023 - Klub | G154: =VLOOKUP(F154,Soutez!A:B,2,FALSE) -> CZ | H154: =VLOOKUP(F154,Soutez!A:C,3,FALSE) -> 2023 | I154: 6 | J154: 5915 | K154: 0.93 | L154: 6589 | M154: 6128 | N154: x | P154: STD. Cirrus | Q154: ZL
A155: Jiri Krofta | B155: 1988 | C155: M | D155: Hosín | E155: CZ/C1 | F155: PMRg 2023 - Klub | G155: =VLOOKUP(F155,Soutez!A:B,2,FALSE) -> CZ | H155: =VLOOKUP(F155,Soutez!A:C,3,FALSE) -> 2023 | I155: 7 | J155: 5909 | K155: 0.93 | L155: 6353 | M155: 5908 | N155: x | P155: Std. Cirrus | Q155: UY
A156: Michal Vranek | B156: 1993 | C156: M | D156: Hosín | E156: CZ/C1 | F156: PMRg 2023 - Klub | G156: =VLOOKUP(F156,Soutez!A:B,2,FALSE) -> CZ | H156: =VLOOKUP(F156,Soutez!A:C,3,FALSE) -> 2023 | I156: 8 | J156: 5599 | K156: 0.93 | L156: 5874 | M156: 5463 | N156: x | P156: DG-100 | Q156: 8W
A157: Miloslav Hulmak | B157: 1963 | C157: M | D157: Hosín | E157: CZ/C1 | F157: PMRg 2023 - Klub | G157: =VLOOKUP(F157,Soutez!A:B,2,FALSE) -> CZ | H157: =VLOOKUP(F157,Soutez!A:C,3,FALSE) -> 2023 | I157: 9 | J157: 4969 | K157: 0.93 | L157: 5138 | M157: 4778 | P157: ASW-15B | Q157: HH
A158: Daniel Marek | B158: =VLOOKUP(A158,Pilot,2,0) -> 1983 | C158: =VLOOKUP(A158,Pilot,5,0) -> M | D158: =VLOOKUP(A158,Pilot,3,0) -> Hosín | E158: =VLOOKUP(A158,Pilot,4,0) -> CZ/C1 | F158: PMRg 2023 - Klub | G158: =VLOOKUP(F158,Soutez!A:B,2,FALSE) -> CZ | H158: =VLOOKUP(F158,Soutez!A:C,3,FALSE) -> 2023 | I158: 10 | J158: 4846 | K158: 0.93 | L158: 4809 | M158: 4472 | N158: x | P158: Std. Cirrus | Q158: XII
A159: Frantisek Suna | B159: 1983 | C159: M | D159: Hosín | E159: CZ/C1 | F159: PMRg 2023 - Klub | G159: =VLOOKUP(F159,Soutez!A:B,2,FALSE) -> CZ | H159: =VLOOKUP(F159,Soutez!A:C,3,FALSE) -> 2023 | I159: 11 | J159: 4331 | K159: 0.93 | L159: 4165 | M159: =ROUND(K159*L159,0) -> 3873 | P159: DG-100 | Q159: 78
A160: Radoslav Pur | B160: 1973 | C160: M | D160: Hosín | E160: CZ/C1 | F160: PMRg 2023 - Klub | G160: =VLOOKUP(F160,Soutez!A:B,2,FALSE) -> CZ | H160: =VLOOKUP(F160,Soutez!A:C,3,FALSE) -> 2023 | I160: 12 | J160: 3358 | K160: 0.93 | L160: 3154 | M160: 2933 | P160: DG-200 | Q160: EK
A161: Jiri Holcman | B161: 1976 | C161: M | D161: Hosín | E161: CZ/C1 | F161: PMRg 2023 - Klub | G161: =VLOOKUP(F161,Soutez!A:B,2,FALSE) -> CZ | H161: =VLOOKUP(F161,Soutez!A:C,3,FALSE) -> 2023 | I161: 13 | J161: 2234 | K161: 0.93 | L161: 2022 | M161: 1880 | P161: ASW-19 | Q161: BO
A162: Petr Sochor | B162: 1986 | C162: M | D162: Hosín | E162: CZ/C1 | F162: PMRg 2023 - Klub | G162: =VLOOKUP(F162,Soutez!A:B,2,FALSE) -> CZ | H162: =VLOOKUP(F162,Soutez!A:C,3,FALSE) -> 2023 | I162: 14 | J162: 0 | K162: 0.93 | L162: 0 | M162: 0 | P162: ASW-15B | Q162: 6Y
A163: Lukas Kriz | B163: =VLOOKUP(A163,Pilot,2,0) -> 2003 | C163: =VLOOKUP(A163,Pilot,5,0) -> M | D163: =VLOOKUP(A163,Pilot,3,0) -> Křižanov | E163: =VLOOKUP(A163,Pilot,4,0) -> CZ/M | F163: PMRg, PMČRj 2023 - Kombi | G163: =VLOOKUP(F163,Soutez!A:B,2,FALSE) -> CZ | H163: =VLOOKUP(F163,Soutez!A:C,3,FALSE) -> 2023 | I163: 1 | J163: 9417 | K163: 0.95 | L163: =ROUND(J163/MAX($J$163:$J$173)*10000*0.7+(MAX($I$163:$I$173)-I163)/(MAX($I$163:$I$173)-1)*10000*0.3,0) -> 10000 | M163: =ROUND(K163*L163,0) -> 9500 | P163: LS 8 15m | Q163: AU | R163: Junior v roce 2026
A164: Jaromir Macoun | B164: 1999 | C164: M | D164: Jičín | E164: CZ/C2 | F164: PMRg, PMČRj 2023 - Kombi | G164: =VLOOKUP(F164,Soutez!A:B,2,FALSE) -> CZ | H164: =VLOOKUP(F164,Soutez!A:C,3,FALSE) -> 2023 | I164: 2 | J164: 9221 | K164: 0.95 | L164: 9554 | M164: =ROUND(K164*L164,0) -> 9076 | P164: LS 8A | Q164: EU
A165: Josef Busek | B165: 1967 | C165: M | D165: Hosín | E165: CZ/C1 | F165: PMRg, PMČRj 2023 - Kombi | G165: =VLOOKUP(F165,Soutez!A:B,2,FALSE) -> CZ | H165: =VLOOKUP(F165,Soutez!A:C,3,FALSE) -> 2023 | I165: 3 | J165: 8601 | K165: 0.95 | L165: 8793 | M165: 8353 | N165: x | P165: Duo Discus | Q165: BB
A166: Theo Manfredi | D166: Association Aéronautique du Val d\'Oise | F166: PMRg, PMČRj 2023 - Kombi | G166: =VLOOKUP(F166,Soutez!A:B,2,FALSE) -> CZ | H166: =VLOOKUP(F166,Soutez!A:C,3,FALSE) -> 2023 | I166: 4 | J166: 7258 | K166: 0.95 | L166: 7495 | M166: 7120 | P166: LAK-17A WL 15m | Q166: LE | R166: Není v databázi
A167: Jaromir Pauer | B167: =VLOOKUP(A167,Pilot,2,0) -> 1974 | C167: =VLOOKUP(A167,Pilot,5,0) -> M | D167: =VLOOKUP(A167,Pilot,3,0) -> Hosín | E167: =VLOOKUP(A167,Pilot,4,0) -> CZ/C1 | F167: PMRg, PMČRj 2023 - Kombi | G167: =VLOOKUP(F167,Soutez!A:B,2,FALSE) -> CZ | H167: =VLOOKUP(F167,Soutez!A:C,3,FALSE) -> 2023 | I167: 5 | J167: 6880 | K167: 0.95 | L167: 6914 | M167: 6568 | N167: x | P167: Ventus B 16.6m WL | Q167: 7F
A168: Michael Fik | B168: 1972 | C168: M | D168: Strakonice | E168: CZ/C1 | F168: PMRg, PMČRj 2023 - Kombi | G168: =VLOOKUP(F168,Soutez!A:B,2,FALSE) -> CZ | H168: =VLOOKUP(F168,Soutez!A:C,3,FALSE) -> 2023 | I168: 6 | J168: 6702 | K168: 0.95 | L168: 6482 | M168: 6158 | N168: x | P168: Ventus 2c | Q168: ZR
A169: Karel Mares | B169: 1974 | C169: M | D169: Slaný | E169: CZ/C1 | F169: PMRg, PMČRj 2023 - Kombi | G169: =VLOOKUP(F169,Soutez!A:B,2,FALSE) -> CZ | H169: =VLOOKUP(F169,Soutez!A:C,3,FALSE) -> 2023 | I169: 7 | J169: 5894 | K169: 0.95 | L169: 5581 | M169: 5302 | N169: x | P169: Duo Discus XT | Q169: DD
A170: Radek Zima 78 | B170: 1978 | C170: M | D170: Hodkovice | E170: CZ/C2 | F170: PMRg, PMČRj 2023 - Kombi | G170: =VLOOKUP(F170,Soutez!A:B,2,FALSE) -> CZ | H170: =VLOOKUP(F170,Soutez!A:C,3,FALSE) -> 2023 | I170: 8 | J170: 5577 | K170: 0.95 | L170: 5046 | M170: 4794 | P170: DG 500 22m | Q170: YA
A171: Peter Janoska | D171: Nitra | F171: PMRg, PMČRj 2023 - Kombi | G171: =VLOOKUP(F171,Soutez!A:B,2,FALSE) -> CZ | H171: =VLOOKUP(F171,Soutez!A:C,3,FALSE) -> 2023 | I171: 9 | J171: 4662 | K171: 0.95 | L171: 4065 | M171: =ROUND(K171*L171,0) -> 3862 | P171: LS 6C /17,5m | Q171: N6 | R171: Není v databázi
A172: Michal Hemrle | B172: =VLOOKUP(A172,Pilot,2,0) -> 1974 | C172: =VLOOKUP(A172,Pilot,5,0) -> M | D172: =VLOOKUP(A172,Pilot,3,0) -> Česká Lípa | E172: =VLOOKUP(A172,Pilot,4,0) -> CZ/C2 | F172: PMRg, PMČRj 2023 - Kombi | G172: =VLOOKUP(F172,Soutez!A:B,2,FALSE) -> CZ | H172: =VLOOKUP(F172,Soutez!A:C,3,FALSE) -> 2023 | I172: 10 | J172: 4036 | K172: 0.95 | L172: 3300 | M172: 3135 | P172: ASG 29 Es 18m | Q172: ET
A173: Tomas Vaclavik | B173: =VLOOKUP(A173,Pilot,2,0) -> 1974 | C173: =VLOOKUP(A173,Pilot,5,0) -> M | D173: =VLOOKUP(A173,Pilot,3,0) -> Hosín | E173: =VLOOKUP(A173,Pilot,4,0) -> CZ/C1 | F173: PMRg, PMČRj 2023 - Kombi | G173: =VLOOKUP(F173,Soutez!A:B,2,FALSE) -> CZ | H173: =VLOOKUP(F173,Soutez!A:C,3,FALSE) -> 2023 | I173: 11 | J173: 1238 | K173: 0.95 | L173: 920 | M173: 874 | N173: x | P173: LAK-12 | Q173: 12
A174: Vit Morkovsky | B174: =VLOOKUP(A174,Pilot,2,0) -> 2000 | C174: =VLOOKUP(A174,Pilot,5,0) -> M | D174: =VLOOKUP(A174,Pilot,3,0) -> Polička | E174: =VLOOKUP(A174,Pilot,4,0) -> CZ/C2 | F174: PMČRj 2023 - Klub | G174: =VLOOKUP(F174,Soutez!A:B,2,FALSE) -> CZ | H174: =VLOOKUP(F174,Soutez!A:C,3,FALSE) -> 2023 | I174: 1 | J174: 8171 | K174: 0.94 | L174: =ROUND(J174/MAX($J$174:$J$198)*10000*0.7+(MAX($I$174:$I$198)-I174)/(MAX($I$174:$I$198)-1)*10000*0.3,0) -> 10000 | M174: =ROUND(K174*L174,0) -> 9400 | N174: x | P174: ASW 24 WL /no TN8 | Q174: SM
A175: Jan Stastny | B175: 2003 | C175: M | D175: Medlánky | E175: CZ/M | F175: PMČRj 2023 - Klub | G175: =VLOOKUP(F175,Soutez!A:B,2,FALSE) -> CZ | H175: =VLOOKUP(F175,Soutez!A:C,3,FALSE) -> 2023 | I175: 2 | J175: 8092 | K175: 0.94 | L175: 9807 | M175: =ROUND(K175*L175,0) -> 9219 | P175: ASW-20 A L | Q175: CP | R175: Junior v roce 2026
A176: Alexandre Fierain | D176: Abbeville | F176: PMČRj 2023 - Klub | G176: =VLOOKUP(F176,Soutez!A:B,2,FALSE) -> CZ | H176: =VLOOKUP(F176,Soutez!A:C,3,FALSE) -> 2023 | I176: 3 | J176: 7868 | K176: 0.94 | L176: 9490 | M176: 8921 | P176: ASW-20 A WL | Q176: WE | R176: Není v databázi
A177: Vladimir Hammer | B177: =VLOOKUP(A177,Pilot,2,0) -> 2000 | C177: =VLOOKUP(A177,Pilot,5,0) -> M | D177: =VLOOKUP(A177,Pilot,3,0) -> Letkov | E177: =VLOOKUP(A177,Pilot,4,0) -> CZ/C1 | F177: PMČRj 2023 - Klub | G177: =VLOOKUP(F177,Soutez!A:B,2,FALSE) -> CZ | H177: =VLOOKUP(F177,Soutez!A:C,3,FALSE) -> 2023 | I177: 4 | J177: 7641 | K177: 0.94 | L177: 9171 | M177: 8621 | N177: x | P177: ASW-20A | Q177: WX
A178: Tomas Hynek | B178: 2002 | C178: M | D178: Dvůr Králové | E178: CZ/C2 | F178: PMČRj 2023 - Klub | G178: =VLOOKUP(F178,Soutez!A:B,2,FALSE) -> CZ | H178: =VLOOKUP(F178,Soutez!A:C,3,FALSE) -> 2023 | I178: 5 | J178: 7465 | K178: 0.94 | L178: 8895 | M178: 8361 | N178: x | P178: ASW-20 C L | Q178: VW | R178: Junior v roce 2026
A179: Jan Beran | B179: 1999 | C179: M | D179: Kladno | E179: CZ/C1 | F179: PMČRj 2023 - Klub | G179: =VLOOKUP(F179,Soutez!A:B,2,FALSE) -> CZ | H179: =VLOOKUP(F179,Soutez!A:C,3,FALSE) -> 2023 | I179: 6 | J179: 7359 | K179: 0.94 | L179: 8679 | M179: 8158 | N179: x | P179: ASW-19B | Q179: HB | R179: =IF(ISERROR(VLOOKUP(A179,Pilot,6,0)),"Není v databázi",VLOOKUP(A179,Pilot,6,0)) -> 
A180: Victor Mallick | D180: Sarreguemines | F180: PMČRj 2023 - Klub | G180: =VLOOKUP(F180,Soutez!A:B,2,FALSE) -> CZ | H180: =VLOOKUP(F180,Soutez!A:C,3,FALSE) -> 2023 | I180: 7 | J180: 7077 | K180: 0.94 | L180: 8313 | M180: 7814 | P180: LS-8 A | Q180: ZZ | R180: Není v databázi
A181: Lukas Maly | B181: =VLOOKUP(A181,Pilot,2,0) -> 1998 | C181: =VLOOKUP(A181,Pilot,5,0) -> M | D181: =VLOOKUP(A181,Pilot,3,0) -> Vysoké Mýto | E181: =VLOOKUP(A181,Pilot,4,0) -> CZ/C2 | F181: PMČRj 2023 - Klub | G181: =VLOOKUP(F181,Soutez!A:B,2,FALSE) -> CZ | H181: =VLOOKUP(F181,Soutez!A:C,3,FALSE) -> 2023 | I181: 8 | J181: 6831 | K181: 0.94 | L181: 7977 | M181: 7498 | N181: x | P181: Discus cs | Q181: 65
A182: Gaël Pischedda | D182: Vinon | F182: PMČRj 2023 - Klub | G182: =VLOOKUP(F182,Soutez!A:B,2,FALSE) -> CZ | H182: =VLOOKUP(F182,Soutez!A:C,3,FALSE) -> 2023 | I182: 9 | J182: 6802 | K182: 0.94 | L182: 7827 | M182: 7357 | P182: LS 4 | Q182: 73 | R182: Není v databázi
A183: Stepan Bartos | B183: =VLOOKUP(A183,Pilot,2,0) -> 2004 | C183: =VLOOKUP(A183,Pilot,5,0) -> M | D183: =VLOOKUP(A183,Pilot,3,0) -> Kolín | E183: =VLOOKUP(A183,Pilot,4,0) -> CZ/C1 | F183: PMČRj 2023 - Klub | G183: =VLOOKUP(F183,Soutez!A:B,2,FALSE) -> CZ | H183: =VLOOKUP(F183,Soutez!A:C,3,FALSE) -> 2023 | I183: 10 | J183: 6690 | K183: 0.94 | L183: 7606 | M183: 7150 | P183: DG-300 ELAN WL RG | Q183: DG | R183: Junior v roce 2026
A184: Stepan Filakovsky | B184: =VLOOKUP(A184,Pilot,2,0) -> 2005 | C184: =VLOOKUP(A184,Pilot,5,0) -> M | D184: =VLOOKUP(A184,Pilot,3,0) -> Medlánky | E184: =VLOOKUP(A184,Pilot,4,0) -> CZ/M | F184: PMČRj 2023 - Klub | G184: =VLOOKUP(F184,Soutez!A:B,2,FALSE) -> CZ | H184: =VLOOKUP(F184,Soutez!A:C,3,FALSE) -> 2023 | I184: 11 | J184: 6270 | K184: 0.94 | L184: 7121 | M184: 6694 | P184: LS-1 F | Q184: FD | R184: Junior v roce 2026
A185: Theo Napoleon | D185: AVCASA | F185: PMČRj 2023 - Klub | G185: =VLOOKUP(F185,Soutez!A:B,2,FALSE) -> CZ | H185: =VLOOKUP(F185,Soutez!A:C,3,FALSE) -> 2023 | I185: 12 | J185: 6077 | K185: 0.94 | L185: 6831 | M185: 6421 | P185: ASW-24 WL /w TN8 | Q185: 57 | R185: Není v databázi
A186: Matej Bartos | B186: =VLOOKUP(A186,Pilot,2,0) -> 1998 | C186: =VLOOKUP(A186,Pilot,5,0) -> M | D186: =VLOOKUP(A186,Pilot,3,0) -> Hodkovice | E186: =VLOOKUP(A186,Pilot,4,0) -> CZ/C2 | F186: PMČRj 2023 - Klub | G186: =VLOOKUP(F186,Soutez!A:B,2,FALSE) -> CZ | H186: =VLOOKUP(F186,Soutez!A:C,3,FALSE) -> 2023 | I186: 13 | J186: 5505 | K186: 0.94 | L186: 6216 | M186: 5843 | N186: x | P186: ASW-19B | Q186: XP
A187: Vojtech Vach 03 | B187: =VLOOKUP(A187,Pilot,2,0) -> 2003 | C187: =VLOOKUP(A187,Pilot,5,0) -> M | D187: =VLOOKUP(A187,Pilot,3,0) -> Vrchlabí | E187: =VLOOKUP(A187,Pilot,4,0) -> CZ/C2 | F187: PMČRj 2023 - Klub | G187: =VLOOKUP(F187,Soutez!A:B,2,FALSE) -> CZ | H187: =VLOOKUP(F187,Soutez!A:C,3,FALSE) -> 2023 | I187: 14 | J187: 5481 | K187: 0.94 | L187: 6071 | M187: =ROUND(K187*L187,0) -> 5707 | P187: Std. Cirrus | Q187: YU | R187: Junior v roce 2026
A188: Petr Masik | B188: 2001 | C188: M | D188: Zábřeh | E188: CZ/M | F188: PMČRj 2023 - Klub | G188: =VLOOKUP(F188,Soutez!A:B,2,FALSE) -> CZ | H188: =VLOOKUP(F188,Soutez!A:C,3,FALSE) -> 2023 | I188: 15 | J188: 5335 | K188: 0.94 | L188: 5820 | M188: 5471 | P188: Std.Cirrus | Q188: MJ | R188: Junior v roce 2026
A189: Tibor Hezina | B189: 2002 | C189: M | D189: Křižanov | E189: CZ/M | F189: PMČRj 2023 - Klub | G189: =VLOOKUP(F189,Soutez!A:B,2,FALSE) -> CZ | H189: =VLOOKUP(F189,Soutez!A:C,3,FALSE) -> 2023 | I189: 16 | J189: 5147 | K189: 0.94 | L189: 5534 | M189: 5202 | N189: x | P189: Std. Cirrus | Q189: IJ | R189: Junior v roce 2026
A190: Katerina Vancurova | B190: 2002 | C190: F | D190: Hranice | E190: CZ/M | F190: PMČRj 2023 - Klub | G190: =VLOOKUP(F190,Soutez!A:B,2,FALSE) -> CZ | H190: =VLOOKUP(F190,Soutez!A:C,3,FALSE) -> 2023 | I190: 17 | J190: 5082 | K190: 0.94 | L190: 5354 | M190: 5033 | N190: x | O190: x | P190: Discus cs | Q190: HD | R190: Junior v roce 2026
A191: Martin Stastny | B191: 2005 | C191: M | D191: Medlánky | E191: CZ/M | F191: PMČRj 2023 - Klub | G191: =VLOOKUP(F191,Soutez!A:B,2,FALSE) -> CZ | H191: =VLOOKUP(F191,Soutez!A:C,3,FALSE) -> 2023 | I191: 18 | J191: 5021 | K191: 0.94 | L191: 5176 | M191: 4865 | N191: x | P191: Std. Cirrus | Q191: CX | R191: Junior v roce 2026
A192: Jan Svestka | B192: 2005 | C192: M | D192: Křižanov | E192: CZ/M | F192: PMČRj 2023 - Klub | G192: =VLOOKUP(F192,Soutez!A:B,2,FALSE) -> CZ | H192: =VLOOKUP(F192,Soutez!A:C,3,FALSE) -> 2023 | I192: 19 | J192: 4989 | K192: 0.94 | L192: 5024 | M192: 4723 | N192: x | P192: Std. Cirrus | Q192: EJ | R192: Junior v roce 2026
A193: Eliska Kudejova | B193: =VLOOKUP(A193,Pilot,2,0) -> 2006 | C193: =VLOOKUP(A193,Pilot,5,0) -> F | D193: =VLOOKUP(A193,Pilot,3,0) -> Strakonice | E193: =VLOOKUP(A193,Pilot,4,0) -> CZ/C1 | F193: PMČRj 2023 - Klub | G193: =VLOOKUP(F193,Soutez!A:B,2,FALSE) -> CZ | H193: =VLOOKUP(F193,Soutez!A:C,3,FALSE) -> 2023 | I193: 20 | J193: 4572 | K193: 0.94 | L193: 4542 | M193: 4269 | P193: DG-101 | Q193: JL | R193: Junior v roce 2026
A194: Tim Raasch | B194: 2000 | C194: M | D194: Polička | E194: CZ/C2 | F194: PMČRj 2023 - Klub | G194: =VLOOKUP(F194,Soutez!A:B,2,FALSE) -> CZ | H194: =VLOOKUP(F194,Soutez!A:C,3,FALSE) -> 2023 | I194: 21 | J194: 4232 | K194: 0.94 | L194: 4126 | M194: 3878 | N194: x | P194: ASW-28 | Q194: RC
A195: Fabian Curda | B195: 2004 | C195: M | D195: Zábřeh | E195: CZ/M | F195: PMČRj 2023 - Klub | G195: =VLOOKUP(F195,Soutez!A:B,2,FALSE) -> CZ | H195: =VLOOKUP(F195,Soutez!A:C,3,FALSE) -> 2023 | I195: 22 | J195: 3996 | K195: 0.94 | L195: 3798 | M195: 3570 | P195: DG-300 ELAN RG | Q195: U7 | R195: Junior v roce 2026
A196: Adam Hepal | B196: =VLOOKUP(A196,Pilot,2,0) -> 2004 | C196: =VLOOKUP(A196,Pilot,5,0) -> M | D196: =VLOOKUP(A196,Pilot,3,0) -> Moravská Třebová | E196: =VLOOKUP(A196,Pilot,4,0) -> CZ/M | F196: PMČRj 2023 - Klub | G196: =VLOOKUP(F196,Soutez!A:B,2,FALSE) -> CZ | H196: =VLOOKUP(F196,Soutez!A:C,3,FALSE) -> 2023 | I196: 23 | J196: 3519 | K196: 0.94 | L196: 3265 | M196: 3069 | P196: ASW-19B | Q196: AE | R196: Junior v roce 2026
A197: Vojtech Pavek | B197: 2000 | C197: M | D197: Medlánky | E197: CZ/M | F197: PMČRj 2023 - Klub | G197: =VLOOKUP(F197,Soutez!A:B,2,FALSE) -> CZ | H197: =VLOOKUP(F197,Soutez!A:C,3,FALSE) -> 2023 | I197: 24 | J197: 3425 | K197: 0.94 | L197: 3059 | M197: 2875 | P197: Std.Cirrus | Q197: MP
A198: Marie Vesela | B198: =VLOOKUP(A198,Pilot,2,0) -> 1999 | C198: =VLOOKUP(A198,Pilot,5,0) -> F | D198: =VLOOKUP(A198,Pilot,3,0) -> Staňkov | E198: =VLOOKUP(A198,Pilot,4,0) -> CZ/C1 | F198: PMČRj 2023 - Klub | G198: =VLOOKUP(F198,Soutez!A:B,2,FALSE) -> CZ | H198: =VLOOKUP(F198,Soutez!A:C,3,FALSE) -> 2023 | I198: 25 | J198: 597 | K198: 0.94 | L198: 511 | M198: 480 | N198: x | O198: x | P198: Discus B | Q198: IJK
A199: Radim Sobek | B199: =VLOOKUP(A199,Pilot,2,0) -> 1977 | C199: =VLOOKUP(A199,Pilot,5,0) -> M | D199: =VLOOKUP(A199,Pilot,3,0) -> Hranice | E199: =VLOOKUP(A199,Pilot,4,0) -> CZ/M | F199: Safari Cup 2023 - Klub | G199: =VLOOKUP(F199,Soutez!A:B,2,FALSE) -> CZ | H199: =VLOOKUP(F199,Soutez!A:C,3,FALSE) -> 2023 | I199: 1 | J199: 6949 | K199: =VLOOKUP(F199,Soutez,12,0) -> 0.775 | L199: =ROUND(J199/MAX($J$199:$J$223)*10000*0.7+(MAX($I$199:$I$223)-I199)/(MAX($I$199:$I$223)-1)*10000*0.3,0) -> 10000 | M199: =ROUND(K199*L199,0) -> 7750 | N199: x | P199: TST-10M Atlas | Q199: 7
A200: Tomas Kulhavy | B200: 2001 | C200: M | D200: Liberec | E200: CZ/C2 | F200: Safari Cup 2023 - Klub | G200: =VLOOKUP(F200,Soutez!A:B,2,FALSE) -> CZ | H200: =VLOOKUP(F200,Soutez!A:C,3,FALSE) -> 2023 | I200: 2 | J200: 6770 | K200: 0.775 | L200: 9695 | M200: =ROUND(K200*L200,0) -> 7514 | N200: x | P200: HpH 304cz 15m | Q200: IH | R200: Junior v roce 2026
... 2596 more rows

Sheet Zebrik G
B1: ="Všeobecný Žebřík pilotů plachtařů PK AeČR "&A6 -> Všeobecný Žebřík pilotů plachtařů PK AeČR 2025 | K1: =Zmeny!A5 -> 2025-12-21 | L1: Rev. | M1: =Zmeny!B5 -> 02 | N1: =Zmeny!C5 -> Opraveny chyby, odstraněny HOP 2025
B3: G | C3: x | J3: Nominace | K3: Junior v roce: | L3: Junior v roce: | M3: ="Repre družstvo "&K4 -> Repre družstvo 2026 | N3: ="Repre výběr "&K4 -> Repre výběr 2026 | O3: ="W "&N3 -> W Repre výběr 2026 | P3: Poznámka
J4: PMČR 2026 | K4: =A6+1 -> 2026 | L4: =K4+1 -> 2027 | M4: (RD) | N4: (RV) | O4: (WRV)
A5: Pořadí | G5: Data | I5: Pořadí | K5: =COUNTIF(K7:K983,"Junior v roce "&$K$4) -> 43 | L5: =COUNTIF(L7:L983,"Junior v roce "&$L$4) -> 36 | M5: =COUNTIF(M7:M983,"RD "&$K$4) -> 0 | N5: =COUNTIF(N7:N983,"RV "&$K$4) -> 32 | O5: =COUNTIF(O7:O983,"WRV "&$K$4) -> 12 | P5: =COUNTIF(P7:P983,"<>") -> 0
A6: 2025 | B6: Jméno | C6: Rok narození | D6: M/F | E6: Aeroklub | F6: Region | G6: Součet z Bi×Kinp | H6: Počet G | I6: 2025
A7: =RANK(G7,G:G) -> 1 | B7: Jan Pavlik | C7: 1987 | D7: M | E7: Křižanov | F7: CZ/M | G7: 32031 | H7: 3 | I7: =RANK(G7,G:G) -> 1 | J7: =IF(ISERROR(VLOOKUP(B7,'N PMČR 2026'!B:G,6,0)),"-",VLOOKUP(B7,'N PMČR 2026'!B:G,6,0)) -> 1 | K7: =IF(C7="(prázdné)","",IF(($K$4-C7)>25,"","Junior v roce "&$K$4)) ->  | L7: =IF(C7="(prázdné)","",IF(($L$4-C7)>25,"","Junior v roce "&$L$4)) ->  | N7: RV 2026 | O7: =IF(ISERROR(VLOOKUP(B7,'Zebrik W'!$B$7:$N$1000,13,0)),"",IF(VLOOKUP(B7,'Zebrik W'!$B$7:$N$1000,13,0)=0,"--",VLOOKUP(B7,'Zebrik W'!$B$7:$N$1000,13,0))) -> 
A8: =RANK(G8,G:G) -> 2 | B8: Tomas Suchanek | C8: 1964 | D8: M | E8: GAC Benešov | F8: CZ/C1 | G8: 31583 | H8: 3 | I8: =RANK(G8,G:G) -> 2 | J8: =IF(ISERROR(VLOOKUP(B8,'N PMČR 2026'!B:G,6,0)),"-",VLOOKUP(B8,'N PMČR 2026'!B:G,6,0)) -> 2 | K8: =IF(C8="(prázdné)","",IF(($K$4-C8)>25,"","Junior v roce "&$K$4)) ->  | L8: =IF(C8="(prázdné)","",IF(($L$4-C8)>25,"","Junior v roce "&$L$4)) ->  | N8: RV 2026 | O8: =IF(ISERROR(VLOOKUP(B8,'Zebrik W'!$B$7:$N$1000,13,0)),"",IF(VLOOKUP(B8,'Zebrik W'!$B$7:$N$1000,13,0)=0,"--",VLOOKUP(B8,'Zebrik W'!$B$7:$N$1000,13,0))) -> 
A9: =RANK(G9,G:G) -> 3 | B9: Lukas Kriz | C9: 2003 | D9: M | E9: Křižanov | F9: CZ/M | G9: 31536 | H9: 3 | I9: =RANK(G9,G:G) -> 3 | J9: =IF(ISERROR(VLOOKUP(B9,'N PMČR 2026'!B:G,6,0)),"-",VLOOKUP(B9,'N PMČR 2026'!B:G,6,0)) -> 3 | K9: Junior v roce 2026 | L9: Junior v roce 2027 | N9: RV 2026 | O9: =IF(ISERROR(VLOOKUP(B9,'Zebrik W'!$B$7:$N$1000,13,0)),"",IF(VLOOKUP(B9,'Zebrik W'!$B$7:$N$1000,13,0)=0,"--",VLOOKUP(B9,'Zebrik W'!$B$7:$N$1000,13,0))) -> 
A10: =RANK(G10,G:G) -> 4 | B10: Radek Krejcirik | C10: 1991 | D10: M | E10: Hranice | F10: CZ/M | G10: 31348 | H10: 3 | I10: =RANK(G10,G:G) -> 4 | J10: =IF(ISERROR(VLOOKUP(B10,'N PMČR 2026'!B:G,6,0)),"-",VLOOKUP(B10,'N PMČR 2026'!B:G,6,0)) -> 4 | N10: RV 2026 | O10: =IF(ISERROR(VLOOKUP(B10,'Zebrik W'!$B$7:$N$1000,13,0)),"",IF(VLOOKUP(B10,'Zebrik W'!$B$7:$N$1000,13,0)=0,"--",VLOOKUP(B10,'Zebrik W'!$B$7:$N$1000,13,0))) -> 
A11: =RANK(G11,G:G) -> 5 | B11: Miloslav Cink | C11: 1987 | D11: M | E11: Letkov | F11: CZ/C1 | G11: 30530 | H11: 3 | I11: =RANK(G11,G:G) -> 5 | J11: =IF(ISERROR(VLOOKUP(B11,'N PMČR 2026'!B:G,6,0)),"-",VLOOKUP(B11,'N PMČR 2026'!B:G,6,0)) -> 5 | N11: RV 2026 | O11: =IF(ISERROR(VLOOKUP(B11,'Zebrik W'!$B$7:$N$1000,13,0)),"",IF(VLOOKUP(B11,'Zebrik W'!$B$7:$N$1000,13,0)=0,"--",VLOOKUP(B11,'Zebrik W'!$B$7:$N$1000,13,0))) -> 
A12: =RANK(G12,G:G) -> 6 | B12: Jaroslav Tomana | C12: 1975 | D12: M | E12: Zbraslavice | F12: CZ/C1 | G12: 30243 | H12: 3 | I12: =RANK(G12,G:G) -> 6 | J12: =IF(ISERROR(VLOOKUP(B12,'N PMČR 2026'!B:G,6,0)),"-",VLOOKUP(B12,'N PMČR 2026'!B:G,6,0)) -> 6 | N12: RV 2026 | O12: =IF(ISERROR(VLOOKUP(B12,'Zebrik W'!$B$7:$N$1000,13,0)),"",IF(VLOOKUP(B12,'Zebrik W'!$B$7:$N$1000,13,0)=0,"--",VLOOKUP(B12,'Zebrik W'!$B$7:$N$1000,13,0))) -> 
A13: =RANK(G13,G:G) -> 7 | B13: Jan Stastny | C13: 2003 | D13: M | E13: Medlánky | F13: CZ/M | G13: 29735 | H13: 3 | I13: =RANK(G13,G:G) -> 7 | J13: =IF(ISERROR(VLOOKUP(B13,'N PMČR 2026'!B:G,6,0)),"-",VLOOKUP(B13,'N PMČR 2026'!B:G,6,0)) -> 7 | K13: Junior v roce 2026 | L13: Junior v roce 2027 | N13: RV 2026 | O13: =IF(ISERROR(VLOOKUP(B13,'Zebrik W'!$B$7:$N$1000,13,0)),"",IF(VLOOKUP(B13,'Zebrik W'!$B$7:$N$1000,13,0)=0,"--",VLOOKUP(B13,'Zebrik W'!$B$7:$N$1000,13,0))) -> 
A14: =RANK(G14,G:G) -> 8 | B14: Petr Tichy | C14: 1973 | D14: M | E14: Zbraslavice | F14: CZ/C1 | G14: 29671 | H14: 3 | I14: =RANK(G14,G:G) -> 8 | J14: =IF(ISERROR(VLOOKUP(B14,'N PMČR 2026'!B:G,6,0)),"-",VLOOKUP(B14,'N PMČR 2026'!B:G,6,0)) -> 8 | N14: RV 2026 | O14: =IF(ISERROR(VLOOKUP(B14,'Zebrik W'!$B$7:$N$1000,13,0)),"",IF(VLOOKUP(B14,'Zebrik W'!$B$7:$N$1000,13,0)=0,"--",VLOOKUP(B14,'Zebrik W'!$B$7:$N$1000,13,0))) -> 
A15: =RANK(G15,G:G) -> 9 | B15: Michal Lesinger | C15: 1966 | D15: M | E15: Moravská Třebová | F15: CZ/M | G15: 29627 | H15: 3 | I15: =RANK(G15,G:G) -> 9 | J15: =IF(ISERROR(VLOOKUP(B15,'N PMČR 2026'!B:G,6,0)),"-",VLOOKUP(B15,'N PMČR 2026'!B:G,6,0)) -> 9 | N15: RV 2026 | O15: =IF(ISERROR(VLOOKUP(B15,'Zebrik W'!$B$7:$N$1000,13,0)),"",IF(VLOOKUP(B15,'Zebrik W'!$B$7:$N$1000,13,0)=0,"--",VLOOKUP(B15,'Zebrik W'!$B$7:$N$1000,13,0))) -> 
A16: =RANK(G16,G:G) -> 10 | B16: Karel Novak | C16: 1993 | D16: M | E16: Mladá Boleslav | F16: CZ/C1 | G16: 29256 | H16: 3 | I16: =RANK(G16,G:G) -> 10 | J16: =IF(ISERROR(VLOOKUP(B16,'N PMČR 2026'!B:G,6,0)),"-",VLOOKUP(B16,'N PMČR 2026'!B:G,6,0)) -> 10 | N16: RV 2026 | O16: =IF(ISERROR(VLOOKUP(B16,'Zebrik W'!$B$7:$N$1000,13,0)),"",IF(VLOOKUP(B16,'Zebrik W'!$B$7:$N$1000,13,0)=0,"--",VLOOKUP(B16,'Zebrik W'!$B$7:$N$1000,13,0))) -> 
A17: =RANK(G17,G:G) -> 11 | B17: Pavel Trybenekr | C17: 1990 | D17: M | E17: Hořice | F17: CZ/C2 | G17: 29141 | H17: 3 | I17: =RANK(G17,G:G) -> 11 | J17: =IF(ISERROR(VLOOKUP(B17,'N PMČR 2026'!B:G,6,0)),"-",VLOOKUP(B17,'N PMČR 2026'!B:G,6,0)) -> 11 | N17: RV 2026 | O17: =IF(ISERROR(VLOOKUP(B17,'Zebrik W'!$B$7:$N$1000,13,0)),"",IF(VLOOKUP(B17,'Zebrik W'!$B$7:$N$1000,13,0)=0,"--",VLOOKUP(B17,'Zebrik W'!$B$7:$N$1000,13,0))) -> 
A18: =RANK(G18,G:G) -> 12 | B18: Pavel Louzecky | C18: 1957 | D18: M | E18: Přibyslav | F18: CZ/C2 | G18: 28790 | H18: 3 | I18: =RANK(G18,G:G) -> 12 | J18: =IF(ISERROR(VLOOKUP(B18,'N PMČR 2026'!B:G,6,0)),"-",VLOOKUP(B18,'N PMČR 2026'!B:G,6,0)) -> 12 | N18: RV 2026 | O18: =IF(ISERROR(VLOOKUP(B18,'Zebrik W'!$B$7:$N$1000,13,0)),"",IF(VLOOKUP(B18,'Zebrik W'!$B$7:$N$1000,13,0)=0,"--",VLOOKUP(B18,'Zebrik W'!$B$7:$N$1000,13,0))) -> 
A19: =RANK(G19,G:G) -> 13 | B19: Ivan Harasta 65 | C19: 1965 | D19: M | E19: Toužim | F19: CZ/C1 | G19: 28712 | H19: 3 | I19: =RANK(G19,G:G) -> 13 | J19: =IF(ISERROR(VLOOKUP(B19,'N PMČR 2026'!B:G,6,0)),"-",VLOOKUP(B19,'N PMČR 2026'!B:G,6,0)) -> 13 | N19: RV 2026 | O19: =IF(ISERROR(VLOOKUP(B19,'Zebrik W'!$B$7:$N$1000,13,0)),"",IF(VLOOKUP(B19,'Zebrik W'!$B$7:$N$1000,13,0)=0,"--",VLOOKUP(B19,'Zebrik W'!$B$7:$N$1000,13,0))) -> 
A20: =RANK(G20,G:G) -> 14 | B20: Jiri Kusbach | C20: 1959 | D20: M | E20: Luhačovice | F20: CZ/M | G20: 28711 | H20: 3 | I20: =RANK(G20,G:G) -> 14 | J20: =IF(ISERROR(VLOOKUP(B20,'N PMČR 2026'!B:G,6,0)),"-",VLOOKUP(B20,'N PMČR 2026'!B:G,6,0)) -> 14 | N20: RV 2026 | O20: =IF(ISERROR(VLOOKUP(B20,'Zebrik W'!$B$7:$N$1000,13,0)),"",IF(VLOOKUP(B20,'Zebrik W'!$B$7:$N$1000,13,0)=0,"--",VLOOKUP(B20,'Zebrik W'!$B$7:$N$1000,13,0))) -> 
A21: =RANK(G21,G:G) -> 15 | B21: Michaela Krizova | C21: 2001 | D21: F | E21: Přibyslav | F21: CZ/C2 | G21: 28488 | H21: 3 | I21: =RANK(G21,G:G) -> 15 | J21: =IF(ISERROR(VLOOKUP(B21,'N PMČR 2026'!B:G,6,0)),"-",VLOOKUP(B21,'N PMČR 2026'!B:G,6,0)) -> 15 | K21: Junior v roce 2026 | N21: RV 2026 | O21: =IF(ISERROR(VLOOKUP(B21,'Zebrik W'!$B$7:$N$1000,13,0)),"",IF(VLOOKUP(B21,'Zebrik W'!$B$7:$N$1000,13,0)=0,"--",VLOOKUP(B21,'Zebrik W'!$B$7:$N$1000,13,0))) -> WRV 2026
A22: =RANK(G22,G:G) -> 16 | B22: Petr Krejcirik | C22: 1960 | D22: M | E22: Hranice | F22: CZ/M | G22: 28173 | H22: 3 | I22: =RANK(G22,G:G) -> 16 | J22: =IF(ISERROR(VLOOKUP(B22,'N PMČR 2026'!B:G,6,0)),"-",VLOOKUP(B22,'N PMČR 2026'!B:G,6,0)) -> 16 | N22: RV 2026 | O22: =IF(ISERROR(VLOOKUP(B22,'Zebrik W'!$B$7:$N$1000,13,0)),"",IF(VLOOKUP(B22,'Zebrik W'!$B$7:$N$1000,13,0)=0,"--",VLOOKUP(B22,'Zebrik W'!$B$7:$N$1000,13,0))) -> 
A23: =RANK(G23,G:G) -> 17 | B23: Hana Treslova | C23: 1991 | D23: F | E23: Raná | F23: CZ/C2 | G23: 28021 | H23: 3 | I23: =RANK(G23,G:G) -> 17 | J23: =IF(ISERROR(VLOOKUP(B23,'N PMČR 2026'!B:G,6,0)),"-",VLOOKUP(B23,'N PMČR 2026'!B:G,6,0)) -> 17 | N23: RV 2026 | O23: =IF(ISERROR(VLOOKUP(B23,'Zebrik W'!$B$7:$N$1000,13,0)),"",IF(VLOOKUP(B23,'Zebrik W'!$B$7:$N$1000,13,0)=0,"--",VLOOKUP(B23,'Zebrik W'!$B$7:$N$1000,13,0))) -> WRV 2026
A24: =RANK(G24,G:G) -> 18 | B24: Michaela Rendlova | C24: 2004 | D24: F | E24: Toužim | F24: CZ/C1 | G24: 27869 | H24: 3 | I24: =RANK(G24,G:G) -> 18 | J24: =IF(ISERROR(VLOOKUP(B24,'N PMČR 2026'!B:G,6,0)),"-",VLOOKUP(B24,'N PMČR 2026'!B:G,6,0)) -> 18 | K24: Junior v roce 2026 | L24: Junior v roce 2027 | N24: RV 2026 | O24: =IF(ISERROR(VLOOKUP(B24,'Zebrik W'!$B$7:$N$1000,13,0)),"",IF(VLOOKUP(B24,'Zebrik W'!$B$7:$N$1000,13,0)=0,"--",VLOOKUP(B24,'Zebrik W'!$B$7:$N$1000,13,0))) -> WRV 2026
A25: =RANK(G25,G:G) -> 19 | B25: Ivan Novak | C25: 1962 | D25: M | E25: Mladá Boleslav | F25: CZ/C1 | G25: 27777 | H25: 3 | I25: =RANK(G25,G:G) -> 19 | J25: =IF(ISERROR(VLOOKUP(B25,'N PMČR 2026'!B:G,6,0)),"-",VLOOKUP(B25,'N PMČR 2026'!B:G,6,0)) -> 19 | N25: RV 2026 | O25: =IF(ISERROR(VLOOKUP(B25,'Zebrik W'!$B$7:$N$1000,13,0)),"",IF(VLOOKUP(B25,'Zebrik W'!$B$7:$N$1000,13,0)=0,"--",VLOOKUP(B25,'Zebrik W'!$B$7:$N$1000,13,0))) -> 
A26: =RANK(G26,G:G) -> 20 | B26: Vit Morkovsky | C26: 2000 | D26: M | E26: Polička | F26: CZ/C2 | G26: 27674 | H26: 3 | I26: =RANK(G26,G:G) -> 20 | J26: =IF(ISERROR(VLOOKUP(B26,'N PMČR 2026'!B:G,6,0)),"-",VLOOKUP(B26,'N PMČR 2026'!B:G,6,0)) -> 20 | N26: RV 2026 | O26: =IF(ISERROR(VLOOKUP(B26,'Zebrik W'!$B$7:$N$1000,13,0)),"",IF(VLOOKUP(B26,'Zebrik W'!$B$7:$N$1000,13,0)=0,"--",VLOOKUP(B26,'Zebrik W'!$B$7:$N$1000,13,0))) -> 
A27: =RANK(G27,G:G) -> 21 | B27: Tomas Rendla | C27: 1973 | D27: M | E27: Zbraslavice | F27: CZ/C1 | G27: 27561 | H27: 3 | I27: =RANK(G27,G:G) -> 21 | J27: =IF(ISERROR(VLOOKUP(B27,'N PMČR 2026'!B:G,6,0)),"-",VLOOKUP(B27,'N PMČR 2026'!B:G,6,0)) -> 21 | N27: RV 2026 | O27: =IF(ISERROR(VLOOKUP(B27,'Zebrik W'!$B$7:$N$1000,13,0)),"",IF(VLOOKUP(B27,'Zebrik W'!$B$7:$N$1000,13,0)=0,"--",VLOOKUP(B27,'Zebrik W'!$B$7:$N$1000,13,0))) -> 
A28: =RANK(G28,G:G) -> 22 | B28: Jan Kotan | C28: 1982 | D28: M | E28: Letňany | F28: CZ/C1 | G28: 27475 | H28: 3 | I28: =RANK(G28,G:G) -> 22 | J28: =IF(ISERROR(VLOOKUP(B28,'N PMČR 2026'!B:G,6,0)),"-",VLOOKUP(B28,'N PMČR 2026'!B:G,6,0)) -> 42 | O28: =IF(ISERROR(VLOOKUP(B28,'Zebrik W'!$B$7:$N$1000,13,0)),"",IF(VLOOKUP(B28,'Zebrik W'!$B$7:$N$1000,13,0)=0,"--",VLOOKUP(B28,'Zebrik W'!$B$7:$N$1000,13,0))) -> 
A29: =RANK(G29,G:G) -> 23 | B29: Ondrej Dupal | C29: 1966 | D29: M | E29: GAC Benešov | F29: CZ/C1 | G29: 27371 | H29: 3 | I29: =RANK(G29,G:G) -> 23 | J29: =IF(ISERROR(VLOOKUP(B29,'N PMČR 2026'!B:G,6,0)),"-",VLOOKUP(B29,'N PMČR 2026'!B:G,6,0)) -> 39 | O29: =IF(ISERROR(VLOOKUP(B29,'Zebrik W'!$B$7:$N$1000,13,0)),"",IF(VLOOKUP(B29,'Zebrik W'!$B$7:$N$1000,13,0)=0,"--",VLOOKUP(B29,'Zebrik W'!$B$7:$N$1000,13,0))) -> 
A30: =RANK(G30,G:G) -> 24 | B30: Pavel Rericha | C30: 1967 | D30: M | E30: Moravská Třebová | F30: CZ/M | G30: 27321 | H30: 3 | I30: =RANK(G30,G:G) -> 24 | J30: =IF(ISERROR(VLOOKUP(B30,'N PMČR 2026'!B:G,6,0)),"-",VLOOKUP(B30,'N PMČR 2026'!B:G,6,0)) -> 68 | O30: =IF(ISERROR(VLOOKUP(B30,'Zebrik W'!$B$7:$N$1000,13,0)),"",IF(VLOOKUP(B30,'Zebrik W'!$B$7:$N$1000,13,0)=0,"--",VLOOKUP(B30,'Zebrik W'!$B$7:$N$1000,13,0))) -> 
A31: =RANK(G31,G:G) -> 25 | B31: Tereza Koubkova | C31: 1999 | D31: F | E31: Strakonice | F31: CZ/C1 | G31: 27285 | H31: 3 | I31: =RANK(G31,G:G) -> 25 | J31: =IF(ISERROR(VLOOKUP(B31,'N PMČR 2026'!B:G,6,0)),"-",VLOOKUP(B31,'N PMČR 2026'!B:G,6,0)) -> 22 | N31: RV 2026 | O31: =IF(ISERROR(VLOOKUP(B31,'Zebrik W'!$B$7:$N$1000,13,0)),"",IF(VLOOKUP(B31,'Zebrik W'!$B$7:$N$1000,13,0)=0,"--",VLOOKUP(B31,'Zebrik W'!$B$7:$N$1000,13,0))) -> WRV 2026
A32: =RANK(G32,G:G) -> 26 | B32: Tomas Hynek | C32: 2002 | D32: M | E32: Dvůr Králové | F32: CZ/C2 | G32: 27180 | H32: 3 | I32: =RANK(G32,G:G) -> 26 | J32: =IF(ISERROR(VLOOKUP(B32,'N PMČR 2026'!B:G,6,0)),"-",VLOOKUP(B32,'N PMČR 2026'!B:G,6,0)) -> 23 | K32: Junior v roce 2026 | L32: Junior v roce 2027 | N32: RV 2026 | O32: =IF(ISERROR(VLOOKUP(B32,'Zebrik W'!$B$7:$N$1000,13,0)),"",IF(VLOOKUP(B32,'Zebrik W'!$B$7:$N$1000,13,0)=0,"--",VLOOKUP(B32,'Zebrik W'!$B$7:$N$1000,13,0))) -> 
A33: =RANK(G33,G:G) -> 27 | B33: Radek Kucirek | C33: 1973 | D33: M | E33: Havlíčkův Brod | F33: CZ/C2 | G33: 27072 | H33: 3 | I33: =RANK(G33,G:G) -> 27 | J33: =IF(ISERROR(VLOOKUP(B33,'N PMČR 2026'!B:G,6,0)),"-",VLOOKUP(B33,'N PMČR 2026'!B:G,6,0)) -> 40 | O33: =IF(ISERROR(VLOOKUP(B33,'Zebrik W'!$B$7:$N$1000,13,0)),"",IF(VLOOKUP(B33,'Zebrik W'!$B$7:$N$1000,13,0)=0,"--",VLOOKUP(B33,'Zebrik W'!$B$7:$N$1000,13,0))) -> 
A34: =RANK(G34,G:G) -> 28 | B34: Martin Hrivna | C34: 1978 | D34: M | E34: Zbraslavice | F34: CZ/C1 | G34: 27043 | H34: 3 | I34: =RANK(G34,G:G) -> 28 | J34: =IF(ISERROR(VLOOKUP(B34,'N PMČR 2026'!B:G,6,0)),"-",VLOOKUP(B34,'N PMČR 2026'!B:G,6,0)) -> 38 | O34: =IF(ISERROR(VLOOKUP(B34,'Zebrik W'!$B$7:$N$1000,13,0)),"",IF(VLOOKUP(B34,'Zebrik W'!$B$7:$N$1000,13,0)=0,"--",VLOOKUP(B34,'Zebrik W'!$B$7:$N$1000,13,0))) -> 
A35: =RANK(G35,G:G) -> 29 | B35: Jindrich Svorc | C35: 1978 | D35: M | E35: Letňany | F35: CZ/C1 | G35: 27038 | H35: 3 | I35: =RANK(G35,G:G) -> 29 | J35: =IF(ISERROR(VLOOKUP(B35,'N PMČR 2026'!B:G,6,0)),"-",VLOOKUP(B35,'N PMČR 2026'!B:G,6,0)) -> 33 | O35: =IF(ISERROR(VLOOKUP(B35,'Zebrik W'!$B$7:$N$1000,13,0)),"",IF(VLOOKUP(B35,'Zebrik W'!$B$7:$N$1000,13,0)=0,"--",VLOOKUP(B35,'Zebrik W'!$B$7:$N$1000,13,0))) -> 
A36: =RANK(G36,G:G) -> 30 | B36: David Mach | C36: 1994 | D36: M | E36: Hronov | F36: CZ/C2 | G36: 26690 | H36: 3 | I36: =RANK(G36,G:G) -> 30 | J36: =IF(ISERROR(VLOOKUP(B36,'N PMČR 2026'!B:G,6,0)),"-",VLOOKUP(B36,'N PMČR 2026'!B:G,6,0)) -> 69 | O36: =IF(ISERROR(VLOOKUP(B36,'Zebrik W'!$B$7:$N$1000,13,0)),"",IF(VLOOKUP(B36,'Zebrik W'!$B$7:$N$1000,13,0)=0,"--",VLOOKUP(B36,'Zebrik W'!$B$7:$N$1000,13,0))) -> 
A37: =RANK(G37,G:G) -> 31 | B37: Petr Masik | C37: 2001 | D37: M | E37: Zábřeh | F37: CZ/M | G37: 26689 | H37: 3 | I37: =RANK(G37,G:G) -> 31 | J37: =IF(ISERROR(VLOOKUP(B37,'N PMČR 2026'!B:G,6,0)),"-",VLOOKUP(B37,'N PMČR 2026'!B:G,6,0)) -> 24 | K37: Junior v roce 2026 | N37: RV 2026 | O37: =IF(ISERROR(VLOOKUP(B37,'Zebrik W'!$B$7:$N$1000,13,0)),"",IF(VLOOKUP(B37,'Zebrik W'!$B$7:$N$1000,13,0)=0,"--",VLOOKUP(B37,'Zebrik W'!$B$7:$N$1000,13,0))) -> 
A38: =RANK(G38,G:G) -> 32 | B38: Petr Koutny | C38: 1971 | D38: M | E38: Křižanov | F38: CZ/M | G38: 26624 | H38: 3 | I38: =RANK(G38,G:G) -> 32 | J38: =IF(ISERROR(VLOOKUP(B38,'N PMČR 2026'!B:G,6,0)),"-",VLOOKUP(B38,'N PMČR 2026'!B:G,6,0)) -> 37 | O38: =IF(ISERROR(VLOOKUP(B38,'Zebrik W'!$B$7:$N$1000,13,0)),"",IF(VLOOKUP(B38,'Zebrik W'!$B$7:$N$1000,13,0)=0,"--",VLOOKUP(B38,'Zebrik W'!$B$7:$N$1000,13,0))) -> 
A39: =RANK(G39,G:G) -> 33 | B39: Ondrej Bordovsky | C39: 1983 | D39: M | E39: Krnov | F39: CZ/M | G39: 26438 | H39: 3 | I39: =RANK(G39,G:G) -> 33 | J39: =IF(ISERROR(VLOOKUP(B39,'N PMČR 2026'!B:G,6,0)),"-",VLOOKUP(B39,'N PMČR 2026'!B:G,6,0)) -> 41 | O39: =IF(ISERROR(VLOOKUP(B39,'Zebrik W'!$B$7:$N$1000,13,0)),"",IF(VLOOKUP(B39,'Zebrik W'!$B$7:$N$1000,13,0)=0,"--",VLOOKUP(B39,'Zebrik W'!$B$7:$N$1000,13,0))) -> 
A40: =RANK(G40,G:G) -> 34 | B40: Jan Boruvka | C40: 1984 | D40: M | E40: Jičín | F40: CZ/C2 | G40: 26422 | H40: 3 | I40: =RANK(G40,G:G) -> 34 | J40: =IF(ISERROR(VLOOKUP(B40,'N PMČR 2026'!B:G,6,0)),"-",VLOOKUP(B40,'N PMČR 2026'!B:G,6,0)) -> 43 | O40: =IF(ISERROR(VLOOKUP(B40,'Zebrik W'!$B$7:$N$1000,13,0)),"",IF(VLOOKUP(B40,'Zebrik W'!$B$7:$N$1000,13,0)=0,"--",VLOOKUP(B40,'Zebrik W'!$B$7:$N$1000,13,0))) -> 
A41: =RANK(G41,G:G) -> 35 | B41: Radek Hybl | C41: 1980 | D41: M | E41: Šumperk | F41: CZ/M | G41: 26337 | H41: 3 | I41: =RANK(G41,G:G) -> 35 | J41: =IF(ISERROR(VLOOKUP(B41,'N PMČR 2026'!B:G,6,0)),"-",VLOOKUP(B41,'N PMČR 2026'!B:G,6,0)) -> 70 | O41: =IF(ISERROR(VLOOKUP(B41,'Zebrik W'!$B$7:$N$1000,13,0)),"",IF(VLOOKUP(B41,'Zebrik W'!$B$7:$N$1000,13,0)=0,"--",VLOOKUP(B41,'Zebrik W'!$B$7:$N$1000,13,0))) -> 
A42: =RANK(G42,G:G) -> 36 | B42: Jan Viskot | C42: 1995 | D42: M | E42: Břeclav | F42: CZ/M | G42: 26234 | H42: 3 | I42: =RANK(G42,G:G) -> 36 | J42: =IF(ISERROR(VLOOKUP(B42,'N PMČR 2026'!B:G,6,0)),"-",VLOOKUP(B42,'N PMČR 2026'!B:G,6,0)) -> 71 | O42: =IF(ISERROR(VLOOKUP(B42,'Zebrik W'!$B$7:$N$1000,13,0)),"",IF(VLOOKUP(B42,'Zebrik W'!$B$7:$N$1000,13,0)=0,"--",VLOOKUP(B42,'Zebrik W'!$B$7:$N$1000,13,0))) -> 
A43: =RANK(G43,G:G) -> 37 | B43: Jaromir Macoun | C43: 1999 | D43: M | E43: Jičín | F43: CZ/C2 | G43: 26226 | H43: 3 | I43: =RANK(G43,G:G) -> 37 | J43: =IF(ISERROR(VLOOKUP(B43,'N PMČR 2026'!B:G,6,0)),"-",VLOOKUP(B43,'N PMČR 2026'!B:G,6,0)) -> 72 | O43: =IF(ISERROR(VLOOKUP(B43,'Zebrik W'!$B$7:$N$1000,13,0)),"",IF(VLOOKUP(B43,'Zebrik W'!$B$7:$N$1000,13,0)=0,"--",VLOOKUP(B43,'Zebrik W'!$B$7:$N$1000,13,0))) -> 
A44: =RANK(G44,G:G) -> 38 | B44: Lukas Capek | C44: 1992 | D44: M | E44: Letňany | F44: CZ/C1 | G44: 26203 | H44: 3 | I44: =RANK(G44,G:G) -> 38 | J44: =IF(ISERROR(VLOOKUP(B44,'N PMČR 2026'!B:G,6,0)),"-",VLOOKUP(B44,'N PMČR 2026'!B:G,6,0)) -> 49 | O44: =IF(ISERROR(VLOOKUP(B44,'Zebrik W'!$B$7:$N$1000,13,0)),"",IF(VLOOKUP(B44,'Zebrik W'!$B$7:$N$1000,13,0)=0,"--",VLOOKUP(B44,'Zebrik W'!$B$7:$N$1000,13,0))) -> 
A45: =RANK(G45,G:G) -> 39 | B45: Petr Hofman | C45: 1984 | D45: M | E45: Letňany | F45: CZ/C1 | G45: 26174 | H45: 3 | I45: =RANK(G45,G:G) -> 39 | J45: =IF(ISERROR(VLOOKUP(B45,'N PMČR 2026'!B:G,6,0)),"-",VLOOKUP(B45,'N PMČR 2026'!B:G,6,0)) -> 34 | O45: =IF(ISERROR(VLOOKUP(B45,'Zebrik W'!$B$7:$N$1000,13,0)),"",IF(VLOOKUP(B45,'Zebrik W'!$B$7:$N$1000,13,0)=0,"--",VLOOKUP(B45,'Zebrik W'!$B$7:$N$1000,13,0))) -> 
A46: =RANK(G46,G:G) -> 40 | B46: Jan Kantor | C46: 1983 | D46: M | E46: Letňany | F46: CZ/C1 | G46: 25777 | H46: 3 | I46: =RANK(G46,G:G) -> 40 | J46: =IF(ISERROR(VLOOKUP(B46,'N PMČR 2026'!B:G,6,0)),"-",VLOOKUP(B46,'N PMČR 2026'!B:G,6,0)) -> 36 | O46: =IF(ISERROR(VLOOKUP(B46,'Zebrik W'!$B$7:$N$1000,13,0)),"",IF(VLOOKUP(B46,'Zebrik W'!$B$7:$N$1000,13,0)=0,"--",VLOOKUP(B46,'Zebrik W'!$B$7:$N$1000,13,0))) -> 
A47: =RANK(G47,G:G) -> 41 | B47: Pavel Jiranek | C47: 1993 | D47: M | E47: Toužim | F47: CZ/C1 | G47: 25754 | H47: 3 | I47: =RANK(G47,G:G) -> 41 | J47: =IF(ISERROR(VLOOKUP(B47,'N PMČR 2026'!B:G,6,0)),"-",VLOOKUP(B47,'N PMČR 2026'!B:G,6,0)) -> 73 | O47: =IF(ISERROR(VLOOKUP(B47,'Zebrik W'!$B$7:$N$1000,13,0)),"",IF(VLOOKUP(B47,'Zebrik W'!$B$7:$N$1000,13,0)=0,"--",VLOOKUP(B47,'Zebrik W'!$B$7:$N$1000,13,0))) -> 
A48: =RANK(G48,G:G) -> 42 | B48: Roman Jokl | C48: 1979 | D48: M | E48: Letkov | F48: CZ/C1 | G48: 25724 | H48: 3 | I48: =RANK(G48,G:G) -> 42 | J48: =IF(ISERROR(VLOOKUP(B48,'N PMČR 2026'!B:G,6,0)),"-",VLOOKUP(B48,'N PMČR 2026'!B:G,6,0)) -> 74 | O48: =IF(ISERROR(VLOOKUP(B48,'Zebrik W'!$B$7:$N$1000,13,0)),"",IF(VLOOKUP(B48,'Zebrik W'!$B$7:$N$1000,13,0)=0,"--",VLOOKUP(B48,'Zebrik W'!$B$7:$N$1000,13,0))) -> 
A49: =RANK(G49,G:G) -> 43 | B49: Alena Netusilova | C49: 1970 | D49: F | E49: Zbraslavice | F49: CZ/C1 | G49: 25657 | H49: 3 | I49: =RANK(G49,G:G) -> 43 | J49: =IF(ISERROR(VLOOKUP(B49,'N PMČR 2026'!B:G,6,0)),"-",VLOOKUP(B49,'N PMČR 2026'!B:G,6,0)) -> 25 | N49: RV 2026 | O49: =IF(ISERROR(VLOOKUP(B49,'Zebrik W'!$B$7:$N$1000,13,0)),"",IF(VLOOKUP(B49,'Zebrik W'!$B$7:$N$1000,13,0)=0,"--",VLOOKUP(B49,'Zebrik W'!$B$7:$N$1000,13,0))) -> WRV 2026
A50: =RANK(G50,G:G) -> 44 | B50: Frantisek Vancura | C50: 1966 | D50: M | E50: Hranice | F50: CZ/M | G50: 25346 | H50: 3 | I50: =RANK(G50,G:G) -> 44 | J50: =IF(ISERROR(VLOOKUP(B50,'N PMČR 2026'!B:G,6,0)),"-",VLOOKUP(B50,'N PMČR 2026'!B:G,6,0)) -> 75 | O50: =IF(ISERROR(VLOOKUP(B50,'Zebrik W'!$B$7:$N$1000,13,0)),"",IF(VLOOKUP(B50,'Zebrik W'!$B$7:$N$1000,13,0)=0,"--",VLOOKUP(B50,'Zebrik W'!$B$7:$N$1000,13,0))) -> 
A51: =RANK(G51,G:G) -> 45 | B51: Marek Blatak | C51: 1969 | D51: M | E51: Šumperk | F51: CZ/M | G51: 25104 | H51: 3 | I51: =RANK(G51,G:G) -> 45 | J51: =IF(ISERROR(VLOOKUP(B51,'N PMČR 2026'!B:G,6,0)),"-",VLOOKUP(B51,'N PMČR 2026'!B:G,6,0)) -> 76 | O51: =IF(ISERROR(VLOOKUP(B51,'Zebrik W'!$B$7:$N$1000,13,0)),"",IF(VLOOKUP(B51,'Zebrik W'!$B$7:$N$1000,13,0)=0,"--",VLOOKUP(B51,'Zebrik W'!$B$7:$N$1000,13,0))) -> 
A52: =RANK(G52,G:G) -> 46 | B52: Stepan Bartos | C52: 2004 | D52: M | E52: Kolín | F52: CZ/C1 | G52: 24979 | H52: 3 | I52: =RANK(G52,G:G) -> 46 | J52: =IF(ISERROR(VLOOKUP(B52,'N PMČR 2026'!B:G,6,0)),"-",VLOOKUP(B52,'N PMČR 2026'!B:G,6,0)) -> N2 | K52: Junior v roce 2026 | L52: Junior v roce 2027 | O52: =IF(ISERROR(VLOOKUP(B52,'Zebrik W'!$B$7:$N$1000,13,0)),"",IF(VLOOKUP(B52,'Zebrik W'!$B$7:$N$1000,13,0)=0,"--",VLOOKUP(B52,'Zebrik W'!$B$7:$N$1000,13,0))) -> 
A53: =RANK(G53,G:G) -> 47 | B53: Jan Hruska | C53: 1988 | D53: M | E53: Tábor | F53: CZ/C1 | G53: 24600 | H53: 3 | I53: =RANK(G53,G:G) -> 47 | J53: =IF(ISERROR(VLOOKUP(B53,'N PMČR 2026'!B:G,6,0)),"-",VLOOKUP(B53,'N PMČR 2026'!B:G,6,0)) -> 77 | O53: =IF(ISERROR(VLOOKUP(B53,'Zebrik W'!$B$7:$N$1000,13,0)),"",IF(VLOOKUP(B53,'Zebrik W'!$B$7:$N$1000,13,0)=0,"--",VLOOKUP(B53,'Zebrik W'!$B$7:$N$1000,13,0))) -> 
A54: =RANK(G54,G:G) -> 48 | B54: Jiri Vondracek | C54: 1989 | D54: M | E54: Kladno | F54: CZ/C1 | G54: 24447 | H54: 3 | I54: =RANK(G54,G:G) -> 48 | J54: =IF(ISERROR(VLOOKUP(B54,'N PMČR 2026'!B:G,6,0)),"-",VLOOKUP(B54,'N PMČR 2026'!B:G,6,0)) -> 78 | O54: =IF(ISERROR(VLOOKUP(B54,'Zebrik W'!$B$7:$N$1000,13,0)),"",IF(VLOOKUP(B54,'Zebrik W'!$B$7:$N$1000,13,0)=0,"--",VLOOKUP(B54,'Zebrik W'!$B$7:$N$1000,13,0))) -> 
A55: =RANK(G55,G:G) -> 49 | B55: Josef Busek | C55: 1967 | D55: M | E55: Hosín | F55: CZ/C1 | G55: 24373 | H55: 3 | I55: =RANK(G55,G:G) -> 49 | J55: =IF(ISERROR(VLOOKUP(B55,'N PMČR 2026'!B:G,6,0)),"-",VLOOKUP(B55,'N PMČR 2026'!B:G,6,0)) -> 79 | O55: =IF(ISERROR(VLOOKUP(B55,'Zebrik W'!$B$7:$N$1000,13,0)),"",IF(VLOOKUP(B55,'Zebrik W'!$B$7:$N$1000,13,0)=0,"--",VLOOKUP(B55,'Zebrik W'!$B$7:$N$1000,13,0))) -> 
A56: =RANK(G56,G:G) -> 50 | B56: Jiri Steiger | C56: 1969 | D56: M | E56: Olomouc | F56: CZ/M | G56: 24314 | H56: 3 | I56: =RANK(G56,G:G) -> 50 | J56: =IF(ISERROR(VLOOKUP(B56,'N PMČR 2026'!B:G,6,0)),"-",VLOOKUP(B56,'N PMČR 2026'!B:G,6,0)) -> 80 | O56: =IF(ISERROR(VLOOKUP(B56,'Zebrik W'!$B$7:$N$1000,13,0)),"",IF(VLOOKUP(B56,'Zebrik W'!$B$7:$N$1000,13,0)=0,"--",VLOOKUP(B56,'Zebrik W'!$B$7:$N$1000,13,0))) -> 
A57: =RANK(G57,G:G) -> 51 | B57: Vaclav Marel | C57: 1974 | D57: M | E57: Jaroměř | F57: CZ/C2 | G57: 24261 | H57: 3 | I57: =RANK(G57,G:G) -> 51 | J57: =IF(ISERROR(VLOOKUP(B57,'N PMČR 2026'!B:G,6,0)),"-",VLOOKUP(B57,'N PMČR 2026'!B:G,6,0)) -> N1 | O57: =IF(ISERROR(VLOOKUP(B57,'Zebrik W'!$B$7:$N$1000,13,0)),"",IF(VLOOKUP(B57,'Zebrik W'!$B$7:$N$1000,13,0)=0,"--",VLOOKUP(B57,'Zebrik W'!$B$7:$N$1000,13,0))) -> 
A58: =RANK(G58,G:G) -> 52 | B58: Michal Cechmanek | C58: 1978 | D58: M | E58: Kroměříž | F58: CZ/M | G58: 24135 | H58: 3 | I58: =RANK(G58,G:G) -> 52 | J58: =IF(ISERROR(VLOOKUP(B58,'N PMČR 2026'!B:G,6,0)),"-",VLOOKUP(B58,'N PMČR 2026'!B:G,6,0)) -> N2 | O58: =IF(ISERROR(VLOOKUP(B58,'Zebrik W'!$B$7:$N$1000,13,0)),"",IF(VLOOKUP(B58,'Zebrik W'!$B$7:$N$1000,13,0)=0,"--",VLOOKUP(B58,'Zebrik W'!$B$7:$N$1000,13,0))) -> 
A59: =RANK(G59,G:G) -> 53 | B59: Jan Beran | C59: 1999 | D59: M | E59: Kladno | F59: CZ/C1 | G59: 24128 | H59: 3 | I59: =RANK(G59,G:G) -> 53 | J59: =IF(ISERROR(VLOOKUP(B59,'N PMČR 2026'!B:G,6,0)),"-",VLOOKUP(B59,'N PMČR 2026'!B:G,6,0)) -> N3 | O59: =IF(ISERROR(VLOOKUP(B59,'Zebrik W'!$B$7:$N$1000,13,0)),"",IF(VLOOKUP(B59,'Zebrik W'!$B$7:$N$1000,13,0)=0,"--",VLOOKUP(B59,'Zebrik W'!$B$7:$N$1000,13,0))) -> 
A60: =RANK(G60,G:G) -> 54 | B60: Petr Panek | C60: 1975 | D60: M | E60: Dvůr Králové | F60: CZ/C2 | G60: 24049 | H60: 3 | I60: =RANK(G60,G:G) -> 54 | J60: =IF(ISERROR(VLOOKUP(B60,'N PMČR 2026'!B:G,6,0)),"-",VLOOKUP(B60,'N PMČR 2026'!B:G,6,0)) -> 58 | O60: =IF(ISERROR(VLOOKUP(B60,'Zebrik W'!$B$7:$N$1000,13,0)),"",IF(VLOOKUP(B60,'Zebrik W'!$B$7:$N$1000,13,0)=0,"--",VLOOKUP(B60,'Zebrik W'!$B$7:$N$1000,13,0))) -> 
A61: =RANK(G61,G:G) -> 55 | B61: Jan Louda | C61: 1986 | D61: M | E61: Mladá Boleslav | F61: CZ/C1 | G61: 23896 | H61: 3 | I61: =RANK(G61,G:G) -> 55 | J61: =IF(ISERROR(VLOOKUP(B61,'N PMČR 2026'!B:G,6,0)),"-",VLOOKUP(B61,'N PMČR 2026'!B:G,6,0)) -> N4 | O61: =IF(ISERROR(VLOOKUP(B61,'Zebrik W'!$B$7:$N$1000,13,0)),"",IF(VLOOKUP(B61,'Zebrik W'!$B$7:$N$1000,13,0)=0,"--",VLOOKUP(B61,'Zebrik W'!$B$7:$N$1000,13,0))) -> 
A62: =RANK(G62,G:G) -> 56 | B62: Rene Hudak | C62: 1972 | D62: M | E62: Kunovice | F62: CZ/M | G62: 23841 | H62: 3 | I62: =RANK(G62,G:G) -> 56 | J62: =IF(ISERROR(VLOOKUP(B62,'N PMČR 2026'!B:G,6,0)),"-",VLOOKUP(B62,'N PMČR 2026'!B:G,6,0)) -> N5 | O62: =IF(ISERROR(VLOOKUP(B62,'Zebrik W'!$B$7:$N$1000,13,0)),"",IF(VLOOKUP(B62,'Zebrik W'!$B$7:$N$1000,13,0)=0,"--",VLOOKUP(B62,'Zebrik W'!$B$7:$N$1000,13,0))) -> 
A63: =RANK(G63,G:G) -> 57 | B63: Dana Novakova | C63: 1965 | D63: F | E63: Mladá Boleslav | F63: CZ/C1 | G63: 23751 | H63: 3 | I63: =RANK(G63,G:G) -> 57 | J63: =IF(ISERROR(VLOOKUP(B63,'N PMČR 2026'!B:G,6,0)),"-",VLOOKUP(B63,'N PMČR 2026'!B:G,6,0)) -> 26 | N63: RV 2026 | O63: =IF(ISERROR(VLOOKUP(B63,'Zebrik W'!$B$7:$N$1000,13,0)),"",IF(VLOOKUP(B63,'Zebrik W'!$B$7:$N$1000,13,0)=0,"--",VLOOKUP(B63,'Zebrik W'!$B$7:$N$1000,13,0))) -> WRV 2026
A64: =RANK(G64,G:G) -> 58 | B64: Milan Svoboda 80 | C64: 1980 | D64: M | E64: Havlíčkův Brod | F64: CZ/C2 | G64: 23727 | H64: 3 | I64: =RANK(G64,G:G) -> 58 | J64: =IF(ISERROR(VLOOKUP(B64,'N PMČR 2026'!B:G,6,0)),"-",VLOOKUP(B64,'N PMČR 2026'!B:G,6,0)) -> 35 | O64: =IF(ISERROR(VLOOKUP(B64,'Zebrik W'!$B$7:$N$1000,13,0)),"",IF(VLOOKUP(B64,'Zebrik W'!$B$7:$N$1000,13,0)=0,"--",VLOOKUP(B64,'Zebrik W'!$B$7:$N$1000,13,0))) -> 
A65: =RANK(G65,G:G) -> 59 | B65: Josef Novak | C65: 1981 | D65: M | E65: Kunovice | F65: CZ/M | G65: 23617 | H65: 3 | I65: =RANK(G65,G:G) -> 59 | J65: =IF(ISERROR(VLOOKUP(B65,'N PMČR 2026'!B:G,6,0)),"-",VLOOKUP(B65,'N PMČR 2026'!B:G,6,0)) -> N6 | O65: =IF(ISERROR(VLOOKUP(B65,'Zebrik W'!$B$7:$N$1000,13,0)),"",IF(VLOOKUP(B65,'Zebrik W'!$B$7:$N$1000,13,0)=0,"--",VLOOKUP(B65,'Zebrik W'!$B$7:$N$1000,13,0))) -> 
A66: =RANK(G66,G:G) -> 60 | B66: Alex Gulich | C66: 2005 | D66: M | E66: Slaný | F66: CZ/C1 | G66: 23570 | H66: 3 | I66: =RANK(G66,G:G) -> 60 | J66: =IF(ISERROR(VLOOKUP(B66,'N PMČR 2026'!B:G,6,0)),"-",VLOOKUP(B66,'N PMČR 2026'!B:G,6,0)) -> 45 | K66: Junior v roce 2026 | L66: Junior v roce 2027 | O66: =IF(ISERROR(VLOOKUP(B66,'Zebrik W'!$B$7:$N$1000,13,0)),"",IF(VLOOKUP(B66,'Zebrik W'!$B$7:$N$1000,13,0)=0,"--",VLOOKUP(B66,'Zebrik W'!$B$7:$N$1000,13,0))) -> 
A67: =RANK(G67,G:G) -> 61 | B67: Stepan Filakovsky | C67: 2005 | D67: M | E67: Medlánky | F67: CZ/M | G67: 23533 | H67: 3 | I67: =RANK(G67,G:G) -> 61 | J67: =IF(ISERROR(VLOOKUP(B67,'N PMČR 2026'!B:G,6,0)),"-",VLOOKUP(B67,'N PMČR 2026'!B:G,6,0)) -> 44 | K67: Junior v roce 2026 | L67: Junior v roce 2027 | O67: =IF(ISERROR(VLOOKUP(B67,'Zebrik W'!$B$7:$N$1000,13,0)),"",IF(VLOOKUP(B67,'Zebrik W'!$B$7:$N$1000,13,0)=0,"--",VLOOKUP(B67,'Zebrik W'!$B$7:$N$1000,13,0))) -> 
A68: =RANK(G68,G:G) -> 62 | B68: Barbora Moravcova | C68: 1994 | D68: F | E68: Zbraslavice | F68: CZ/C1 | G68: 23439 | H68: 3 | I68: =RANK(G68,G:G) -> 62 | J68: =IF(ISERROR(VLOOKUP(B68,'N PMČR 2026'!B:G,6,0)),"-",VLOOKUP(B68,'N PMČR 2026'!B:G,6,0)) -> 27 | N68: RV 2026 | O68: =IF(ISERROR(VLOOKUP(B68,'Zebrik W'!$B$7:$N$1000,13,0)),"",IF(VLOOKUP(B68,'Zebrik W'!$B$7:$N$1000,13,0)=0,"--",VLOOKUP(B68,'Zebrik W'!$B$7:$N$1000,13,0))) -> WRV 2026
A69: =RANK(G69,G:G) -> 63 | B69: Martin Urner | C69: 1974 | D69: M | E69: Letňany | F69: CZ/C1 | G69: 23325 | H69: 3 | I69: =RANK(G69,G:G) -> 63 | J69: =IF(ISERROR(VLOOKUP(B69,'N PMČR 2026'!B:G,6,0)),"-",VLOOKUP(B69,'N PMČR 2026'!B:G,6,0)) -> N7 | O69: =IF(ISERROR(VLOOKUP(B69,'Zebrik W'!$B$7:$N$1000,13,0)),"",IF(VLOOKUP(B69,'Zebrik W'!$B$7:$N$1000,13,0)=0,"--",VLOOKUP(B69,'Zebrik W'!$B$7:$N$1000,13,0))) -> 
A70: =RANK(G70,G:G) -> 64 | B70: Jana Treslova | C70: 1963 | D70: F | E70: Raná | F70: CZ/C2 | G70: 23262 | H70: 3 | I70: =RANK(G70,G:G) -> 64 | J70: =IF(ISERROR(VLOOKUP(B70,'N PMČR 2026'!B:G,6,0)),"-",VLOOKUP(B70,'N PMČR 2026'!B:G,6,0)) -> 28 | N70: RV 2026 | O70: =IF(ISERROR(VLOOKUP(B70,'Zebrik W'!$B$7:$N$1000,13,0)),"",IF(VLOOKUP(B70,'Zebrik W'!$B$7:$N$1000,13,0)=0,"--",VLOOKUP(B70,'Zebrik W'!$B$7:$N$1000,13,0))) -> WRV 2026
A71: =RANK(G71,G:G) -> 65 | B71: Jiri Fousek | C71: 1990 | D71: M | E71: Raná | F71: CZ/C2 | G71: 23248 | H71: 3 | I71: =RANK(G71,G:G) -> 65 | J71: =IF(ISERROR(VLOOKUP(B71,'N PMČR 2026'!B:G,6,0)),"-",VLOOKUP(B71,'N PMČR 2026'!B:G,6,0)) -> N8 | O71: =IF(ISERROR(VLOOKUP(B71,'Zebrik W'!$B$7:$N$1000,13,0)),"",IF(VLOOKUP(B71,'Zebrik W'!$B$7:$N$1000,13,0)=0,"--",VLOOKUP(B71,'Zebrik W'!$B$7:$N$1000,13,0))) -> 
A72: =RANK(G72,G:G) -> 66 | B72: Jan Simon | C72: 1970 | D72: M | E72: Kralupy | F72: CZ/C1 | G72: 23082 | H72: 3 | I72: =RANK(G72,G:G) -> 66 | J72: =IF(ISERROR(VLOOKUP(B72,'N PMČR 2026'!B:G,6,0)),"-",VLOOKUP(B72,'N PMČR 2026'!B:G,6,0)) -> N9 | K72: =IF(C72="(prázdné)","",IF(($K$4-C72)>25,"","Junior v roce "&$K$4)) ->  | L72: =IF(C72="(prázdné)","",IF(($L$4-C72)>25,"","Junior v roce "&$L$4)) ->  | O72: =IF(ISERROR(VLOOKUP(B72,'Zebrik W'!$B$7:$N$1000,13,0)),"",IF(VLOOKUP(B72,'Zebrik W'!$B$7:$N$1000,13,0)=0,"--",VLOOKUP(B72,'Zebrik W'!$B$7:$N$1000,13,0))) -> 
A73: =RANK(G73,G:G) -> 67 | B73: Vratislav Sram | C73: 1966 | D73: M | E73: Broumov | F73: CZ/C2 | G73: 22827 | H73: 3 | I73: =RANK(G73,G:G) -> 67 | J73: =IF(ISERROR(VLOOKUP(B73,'N PMČR 2026'!B:G,6,0)),"-",VLOOKUP(B73,'N PMČR 2026'!B:G,6,0)) -> N10 | O73: =IF(ISERROR(VLOOKUP(B73,'Zebrik W'!$B$7:$N$1000,13,0)),"",IF(VLOOKUP(B73,'Zebrik W'!$B$7:$N$1000,13,0)=0,"--",VLOOKUP(B73,'Zebrik W'!$B$7:$N$1000,13,0))) -> 
A74: =RANK(G74,G:G) -> 68 | B74: David Zapletal | C74: 1970 | D74: M | E74: Mladá Boleslav | F74: CZ/C1 | G74: 22722 | H74: 3 | I74: =RANK(G74,G:G) -> 68 | J74: =IF(ISERROR(VLOOKUP(B74,'N PMČR 2026'!B:G,6,0)),"-",VLOOKUP(B74,'N PMČR 2026'!B:G,6,0)) -> - | O74: =IF(ISERROR(VLOOKUP(B74,'Zebrik W'!$B$7:$N$1000,13,0)),"",IF(VLOOKUP(B74,'Zebrik W'!$B$7:$N$1000,13,0)=0,"--",VLOOKUP(B74,'Zebrik W'!$B$7:$N$1000,13,0))) -> 
A75: =RANK(G75,G:G) -> 69 | B75: Petr Hotovy | C75: 1958 | D75: M | E75: Česká Lípa | F75: CZ/C2 | G75: 22713 | H75: 3 | I75: =RANK(G75,G:G) -> 69 | J75: =IF(ISERROR(VLOOKUP(B75,'N PMČR 2026'!B:G,6,0)),"-",VLOOKUP(B75,'N PMČR 2026'!B:G,6,0)) -> 56 | O75: =IF(ISERROR(VLOOKUP(B75,'Zebrik W'!$B$7:$N$1000,13,0)),"",IF(VLOOKUP(B75,'Zebrik W'!$B$7:$N$1000,13,0)=0,"--",VLOOKUP(B75,'Zebrik W'!$B$7:$N$1000,13,0))) -> 
A76: =RANK(G76,G:G) -> 70 | B76: Jaroslav Buryan | C76: 1953 | D76: M | E76: Zábřeh | F76: CZ/M | G76: 22697 | H76: 3 | I76: =RANK(G76,G:G) -> 70 | J76: =IF(ISERROR(VLOOKUP(B76,'N PMČR 2026'!B:G,6,0)),"-",VLOOKUP(B76,'N PMČR 2026'!B:G,6,0)) -> - | O76: =IF(ISERROR(VLOOKUP(B76,'Zebrik W'!$B$7:$N$1000,13,0)),"",IF(VLOOKUP(B76,'Zebrik W'!$B$7:$N$1000,13,0)=0,"--",VLOOKUP(B76,'Zebrik W'!$B$7:$N$1000,13,0))) -> 
A77: =RANK(G77,G:G) -> 71 | B77: David Sachl | C77: 1978 | D77: M | E77: Kralupy | F77: CZ/C1 | G77: 22584 | H77: 3 | I77: =RANK(G77,G:G) -> 71 | J77: =IF(ISERROR(VLOOKUP(B77,'N PMČR 2026'!B:G,6,0)),"-",VLOOKUP(B77,'N PMČR 2026'!B:G,6,0)) -> 52 | O77: =IF(ISERROR(VLOOKUP(B77,'Zebrik W'!$B$7:$N$1000,13,0)),"",IF(VLOOKUP(B77,'Zebrik W'!$B$7:$N$1000,13,0)=0,"--",VLOOKUP(B77,'Zebrik W'!$B$7:$N$1000,13,0))) -> 
A78: =RANK(G78,G:G) -> 72 | B78: Radek Zima 78 | C78: 1978 | D78: M | E78: Hodkovice | F78: CZ/C2 | G78: 22451 | H78: 3 | I78: =RANK(G78,G:G) -> 72 | J78: =IF(ISERROR(VLOOKUP(B78,'N PMČR 2026'!B:G,6,0)),"-",VLOOKUP(B78,'N PMČR 2026'!B:G,6,0)) -> 54 | O78: =IF(ISERROR(VLOOKUP(B78,'Zebrik W'!$B$7:$N$1000,13,0)),"",IF(VLOOKUP(B78,'Zebrik W'!$B$7:$N$1000,13,0)=0,"--",VLOOKUP(B78,'Zebrik W'!$B$7:$N$1000,13,0))) -> 
A79: =RANK(G79,G:G) -> 73 | B79: Jan Smekal | C79: 1976 | D79: M | E79: Zbraslavice | F79: CZ/C1 | G79: 22315 | H79: 3 | I79: =RANK(G79,G:G) -> 73 | J79: =IF(ISERROR(VLOOKUP(B79,'N PMČR 2026'!B:G,6,0)),"-",VLOOKUP(B79,'N PMČR 2026'!B:G,6,0)) -> - | O79: =IF(ISERROR(VLOOKUP(B79,'Zebrik W'!$B$7:$N$1000,13,0)),"",IF(VLOOKUP(B79,'Zebrik W'!$B$7:$N$1000,13,0)=0,"--",VLOOKUP(B79,'Zebrik W'!$B$7:$N$1000,13,0))) -> 
A80: =RANK(G80,G:G) -> 74 | B80: Martin Ficnar | C80: 1971 | D80: M | E80: Šumperk | F80: CZ/M | G80: 22276 | H80: 3 | I80: =RANK(G80,G:G) -> 74 | J80: =IF(ISERROR(VLOOKUP(B80,'N PMČR 2026'!B:G,6,0)),"-",VLOOKUP(B80,'N PMČR 2026'!B:G,6,0)) -> - | O80: =IF(ISERROR(VLOOKUP(B80,'Zebrik W'!$B$7:$N$1000,13,0)),"",IF(VLOOKUP(B80,'Zebrik W'!$B$7:$N$1000,13,0)=0,"--",VLOOKUP(B80,'Zebrik W'!$B$7:$N$1000,13,0))) -> 
A81: =RANK(G81,G:G) -> 75 | B81: Zdenek Balcarek | C81: 1967 | D81: M | E81: Kroměříž | F81: CZ/M | G81: 22071 | H81: 3 | I81: =RANK(G81,G:G) -> 75 | J81: =IF(ISERROR(VLOOKUP(B81,'N PMČR 2026'!B:G,6,0)),"-",VLOOKUP(B81,'N PMČR 2026'!B:G,6,0)) -> - | O81: =IF(ISERROR(VLOOKUP(B81,'Zebrik W'!$B$7:$N$1000,13,0)),"",IF(VLOOKUP(B81,'Zebrik W'!$B$7:$N$1000,13,0)=0,"--",VLOOKUP(B81,'Zebrik W'!$B$7:$N$1000,13,0))) -> 
A82: =RANK(G82,G:G) -> 76 | B82: Jan Dersak 69 | C82: 1969 | D82: M | E82: Kralupy | F82: CZ/C1 | G82: 22044 | H82: 3 | I82: =RANK(G82,G:G) -> 76 | J82: =IF(ISERROR(VLOOKUP(B82,'N PMČR 2026'!B:G,6,0)),"-",VLOOKUP(B82,'N PMČR 2026'!B:G,6,0)) -> - | O82: =IF(ISERROR(VLOOKUP(B82,'Zebrik W'!$B$7:$N$1000,13,0)),"",IF(VLOOKUP(B82,'Zebrik W'!$B$7:$N$1000,13,0)=0,"--",VLOOKUP(B82,'Zebrik W'!$B$7:$N$1000,13,0))) -> 
A83: =RANK(G83,G:G) -> 77 | B83: Petr Stepanek | C83: 1989 | D83: M | E83: Moravská Třebová | F83: CZ/M | G83: 21994 | H83: 3 | I83: =RANK(G83,G:G) -> 77 | J83: =IF(ISERROR(VLOOKUP(B83,'N PMČR 2026'!B:G,6,0)),"-",VLOOKUP(B83,'N PMČR 2026'!B:G,6,0)) -> - | O83: =IF(ISERROR(VLOOKUP(B83,'Zebrik W'!$B$7:$N$1000,13,0)),"",IF(VLOOKUP(B83,'Zebrik W'!$B$7:$N$1000,13,0)=0,"--",VLOOKUP(B83,'Zebrik W'!$B$7:$N$1000,13,0))) -> 
A84: =RANK(G84,G:G) -> 78 | B84: Eliska Kudejova | C84: 2006 | D84: F | E84: Strakonice | F84: CZ/C1 | G84: 21916 | H84: 3 | I84: =RANK(G84,G:G) -> 78 | J84: =IF(ISERROR(VLOOKUP(B84,'N PMČR 2026'!B:G,6,0)),"-",VLOOKUP(B84,'N PMČR 2026'!B:G,6,0)) -> 29 | K84: Junior v roce 2026 | L84: Junior v roce 2027 | N84: RV 2026 | O84: =IF(ISERROR(VLOOKUP(B84,'Zebrik W'!$B$7:$N$1000,13,0)),"",IF(VLOOKUP(B84,'Zebrik W'!$B$7:$N$1000,13,0)=0,"--",VLOOKUP(B84,'Zebrik W'!$B$7:$N$1000,13,0))) -> WRV 2026
A85: =RANK(G85,G:G) -> 79 | B85: Martin Urban | C85: 1971 | D85: M | E85: Frýdlant | F85: CZ/M | G85: 21905 | H85: 3 | I85: =RANK(G85,G:G) -> 79 | J85: =IF(ISERROR(VLOOKUP(B85,'N PMČR 2026'!B:G,6,0)),"-",VLOOKUP(B85,'N PMČR 2026'!B:G,6,0)) -> - | O85: =IF(ISERROR(VLOOKUP(B85,'Zebrik W'!$B$7:$N$1000,13,0)),"",IF(VLOOKUP(B85,'Zebrik W'!$B$7:$N$1000,13,0)=0,"--",VLOOKUP(B85,'Zebrik W'!$B$7:$N$1000,13,0))) -> 
A86: =RANK(G86,G:G) -> 80 | B86: Jiri Stepanek | C86: 1956 | D86: M | E86: Moravská Třebová | F86: CZ/M | G86: 21861 | H86: 3 | I86: =RANK(G86,G:G) -> 80 | J86: =IF(ISERROR(VLOOKUP(B86,'N PMČR 2026'!B:G,6,0)),"-",VLOOKUP(B86,'N PMČR 2026'!B:G,6,0)) -> - | O86: =IF(ISERROR(VLOOKUP(B86,'Zebrik W'!$B$7:$N$1000,13,0)),"",IF(VLOOKUP(B86,'Zebrik W'!$B$7:$N$1000,13,0)=0,"--",VLOOKUP(B86,'Zebrik W'!$B$7:$N$1000,13,0))) -> 
A87: =RANK(G87,G:G) -> 81 | B87: Zdenek Boruvka 86 | C87: 1986 | D87: M | E87: Jičín | F87: CZ/C2 | G87: 21752 | H87: 3 | I87: =RANK(G87,G:G) -> 81 | J87: =IF(ISERROR(VLOOKUP(B87,'N PMČR 2026'!B:G,6,0)),"-",VLOOKUP(B87,'N PMČR 2026'!B:G,6,0)) -> - | O87: =IF(ISERROR(VLOOKUP(B87,'Zebrik W'!$B$7:$N$1000,13,0)),"",IF(VLOOKUP(B87,'Zebrik W'!$B$7:$N$1000,13,0)=0,"--",VLOOKUP(B87,'Zebrik W'!$B$7:$N$1000,13,0))) -> 
A88: =RANK(G88,G:G) -> 82 | B88: Michal Cupak | C88: 1991 | D88: M | E88: Medlánky | F88: CZ/M | G88: 21658 | H88: 3 | I88: =RANK(G88,G:G) -> 82 | J88: =IF(ISERROR(VLOOKUP(B88,'N PMČR 2026'!B:G,6,0)),"-",VLOOKUP(B88,'N PMČR 2026'!B:G,6,0)) -> - | O88: =IF(ISERROR(VLOOKUP(B88,'Zebrik W'!$B$7:$N$1000,13,0)),"",IF(VLOOKUP(B88,'Zebrik W'!$B$7:$N$1000,13,0)=0,"--",VLOOKUP(B88,'Zebrik W'!$B$7:$N$1000,13,0))) -> 
A89: =RANK(G89,G:G) -> 83 | B89: Petr Jiranek 91 | C89: 1991 | D89: M | E89: Toužim | F89: CZ/C1 | G89: 21585 | H89: 3 | I89: =RANK(G89,G:G) -> 83 | J89: =IF(ISERROR(VLOOKUP(B89,'N PMČR 2026'!B:G,6,0)),"-",VLOOKUP(B89,'N PMČR 2026'!B:G,6,0)) -> - | O89: =IF(ISERROR(VLOOKUP(B89,'Zebrik W'!$B$7:$N$1000,13,0)),"",IF(VLOOKUP(B89,'Zebrik W'!$B$7:$N$1000,13,0)=0,"--",VLOOKUP(B89,'Zebrik W'!$B$7:$N$1000,13,0))) -> 
A90: =RANK(G90,G:G) -> 84 | B90: Katerina Vojtova | C90: 1983 | D90: F | E90: Slaný | F90: CZ/C1 | G90: 21407 | H90: 3 | I90: =RANK(G90,G:G) -> 84 | J90: =IF(ISERROR(VLOOKUP(B90,'N PMČR 2026'!B:G,6,0)),"-",VLOOKUP(B90,'N PMČR 2026'!B:G,6,0)) -> 30 | N90: RV 2026 | O90: =IF(ISERROR(VLOOKUP(B90,'Zebrik W'!$B$7:$N$1000,13,0)),"",IF(VLOOKUP(B90,'Zebrik W'!$B$7:$N$1000,13,0)=0,"--",VLOOKUP(B90,'Zebrik W'!$B$7:$N$1000,13,0))) -> WRV 2026
A91: =RANK(G91,G:G) -> 85 | B91: Jiri Prochazka | C91: 1971 | D91: M | E91: Toužim | F91: CZ/C1 | G91: 21352 | H91: 3 | I91: =RANK(G91,G:G) -> 85 | J91: =IF(ISERROR(VLOOKUP(B91,'N PMČR 2026'!B:G,6,0)),"-",VLOOKUP(B91,'N PMČR 2026'!B:G,6,0)) -> - | O91: =IF(ISERROR(VLOOKUP(B91,'Zebrik W'!$B$7:$N$1000,13,0)),"",IF(VLOOKUP(B91,'Zebrik W'!$B$7:$N$1000,13,0)=0,"--",VLOOKUP(B91,'Zebrik W'!$B$7:$N$1000,13,0))) -> 
A92: =RANK(G92,G:G) -> 86 | B92: Lukas Koukal | C92: 1991 | D92: M | E92: Letkov | F92: CZ/C1 | G92: 21329 | H92: 3 | I92: =RANK(G92,G:G) -> 86 | J92: =IF(ISERROR(VLOOKUP(B92,'N PMČR 2026'!B:G,6,0)),"-",VLOOKUP(B92,'N PMČR 2026'!B:G,6,0)) -> - | O92: =IF(ISERROR(VLOOKUP(B92,'Zebrik W'!$B$7:$N$1000,13,0)),"",IF(VLOOKUP(B92,'Zebrik W'!$B$7:$N$1000,13,0)=0,"--",VLOOKUP(B92,'Zebrik W'!$B$7:$N$1000,13,0))) -> 
A93: =RANK(G93,G:G) -> 87 | B93: Radim Sobek | C93: 1977 | D93: M | E93: Hranice | F93: CZ/M | G93: 21296 | H93: 3 | I93: =RANK(G93,G:G) -> 87 | J93: =IF(ISERROR(VLOOKUP(B93,'N PMČR 2026'!B:G,6,0)),"-",VLOOKUP(B93,'N PMČR 2026'!B:G,6,0)) -> - | O93: =IF(ISERROR(VLOOKUP(B93,'Zebrik W'!$B$7:$N$1000,13,0)),"",IF(VLOOKUP(B93,'Zebrik W'!$B$7:$N$1000,13,0)=0,"--",VLOOKUP(B93,'Zebrik W'!$B$7:$N$1000,13,0))) -> 
A94: =RANK(G94,G:G) -> 88 | B94: Petr Bartak | C94: 1984 | D94: M | E94: Letkov | F94: CZ/C1 | G94: 21200 | H94: 3 | I94: =RANK(G94,G:G) -> 88 | J94: =IF(ISERROR(VLOOKUP(B94,'N PMČR 2026'!B:G,6,0)),"-",VLOOKUP(B94,'N PMČR 2026'!B:G,6,0)) -> - | O94: =IF(ISERROR(VLOOKUP(B94,'Zebrik W'!$B$7:$N$1000,13,0)),"",IF(VLOOKUP(B94,'Zebrik W'!$B$7:$N$1000,13,0)=0,"--",VLOOKUP(B94,'Zebrik W'!$B$7:$N$1000,13,0))) -> 
A95: =RANK(G95,G:G) -> 89 | B95: Daniel Dvorak | C95: 1980 | D95: M | E95: Letkov | F95: CZ/C1 | G95: 21195 | H95: 3 | I95: =RANK(G95,G:G) -> 89 | J95: =IF(ISERROR(VLOOKUP(B95,'N PMČR 2026'!B:G,6,0)),"-",VLOOKUP(B95,'N PMČR 2026'!B:G,6,0)) -> - | O95: =IF(ISERROR(VLOOKUP(B95,'Zebrik W'!$B$7:$N$1000,13,0)),"",IF(VLOOKUP(B95,'Zebrik W'!$B$7:$N$1000,13,0)=0,"--",VLOOKUP(B95,'Zebrik W'!$B$7:$N$1000,13,0))) -> 
A96: =RANK(G96,G:G) -> 90 | B96: Martin Hejny | C96: 1984 | D96: M | E96: Šumperk | F96: CZ/M | G96: 21096 | H96: 3 | I96: =RANK(G96,G:G) -> 90 | J96: =IF(ISERROR(VLOOKUP(B96,'N PMČR 2026'!B:G,6,0)),"-",VLOOKUP(B96,'N PMČR 2026'!B:G,6,0)) -> - | O96: =IF(ISERROR(VLOOKUP(B96,'Zebrik W'!$B$7:$N$1000,13,0)),"",IF(VLOOKUP(B96,'Zebrik W'!$B$7:$N$1000,13,0)=0,"--",VLOOKUP(B96,'Zebrik W'!$B$7:$N$1000,13,0))) -> 
A97: =RANK(G97,G:G) -> 91 | B97: Jan Muknsnabl | C97: 1992 | D97: M | E97: Letkov | F97: CZ/C1 | G97: 21081 | H97: 3 | I97: =RANK(G97,G:G) -> 91 | J97: =IF(ISERROR(VLOOKUP(B97,'N PMČR 2026'!B:G,6,0)),"-",VLOOKUP(B97,'N PMČR 2026'!B:G,6,0)) -> - | O97: =IF(ISERROR(VLOOKUP(B97,'Zebrik W'!$B$7:$N$1000,13,0)),"",IF(VLOOKUP(B97,'Zebrik W'!$B$7:$N$1000,13,0)=0,"--",VLOOKUP(B97,'Zebrik W'!$B$7:$N$1000,13,0))) -> 
A98: =RANK(G98,G:G) -> 92 | B98: Jan Smaha | C98: 1958 | D98: M | E98: Česká Lípa | F98: CZ/C2 | G98: 21054 | H98: 3 | I98: =RANK(G98,G:G) -> 92 | J98: =IF(ISERROR(VLOOKUP(B98,'N PMČR 2026'!B:G,6,0)),"-",VLOOKUP(B98,'N PMČR 2026'!B:G,6,0)) -> - | O98: =IF(ISERROR(VLOOKUP(B98,'Zebrik W'!$B$7:$N$1000,13,0)),"",IF(VLOOKUP(B98,'Zebrik W'!$B$7:$N$1000,13,0)=0,"--",VLOOKUP(B98,'Zebrik W'!$B$7:$N$1000,13,0))) -> 
A99: =RANK(G99,G:G) -> 93 | B99: Vojtech Vach 03 | C99: 2003 | D99: M | E99: Vrchlabí | F99: CZ/C2 | G99: 21015 | H99: 3 | I99: =RANK(G99,G:G) -> 93 | J99: =IF(ISERROR(VLOOKUP(B99,'N PMČR 2026'!B:G,6,0)),"-",VLOOKUP(B99,'N PMČR 2026'!B:G,6,0)) -> 46 | K99: Junior v roce 2026 | L99: Junior v roce 2027 | O99: =IF(ISERROR(VLOOKUP(B99,'Zebrik W'!$B$7:$N$1000,13,0)),"",IF(VLOOKUP(B99,'Zebrik W'!$B$7:$N$1000,13,0)=0,"--",VLOOKUP(B99,'Zebrik W'!$B$7:$N$1000,13,0))) -> 
A100: =RANK(G100,G:G) -> 94 | B100: Jan Vozeh | C100: 1995 | D100: M | E100: Rakovník | F100: CZ/C1 | G100: 20793 | H100: 3 | I100: =RANK(G100,G:G) -> 94 | J100: =IF(ISERROR(VLOOKUP(B100,'N PMČR 2026'!B:G,6,0)),"-",VLOOKUP(B100,'N PMČR 2026'!B:G,6,0)) -> - | O100: =IF(ISERROR(VLOOKUP(B100,'Zebrik W'!$B$7:$N$1000,13,0)),"",IF(VLOOKUP(B100,'Zebrik W'!$B$7:$N$1000,13,0)=0,"--",VLOOKUP(B100,'Zebrik W'!$B$7:$N$1000,13,0))) -> 
A101: =RANK(G101,G:G) -> 95 | B101: Martin Picka | C101: 1974 | D101: M | E101: Tábor | F101: CZ/C1 | G101: 20681 | H101: 3 | I101: =RANK(G101,G:G) -> 95 | J101: =IF(ISERROR(VLOOKUP(B101,'N PMČR 2026'!B:G,6,0)),"-",VLOOKUP(B101,'N PMČR 2026'!B:G,6,0)) -> - | O101: =IF(ISERROR(VLOOKUP(B101,'Zebrik W'!$B$7:$N$1000,13,0)),"",IF(VLOOKUP(B101,'Zebrik W'!$B$7:$N$1000,13,0)=0,"--",VLOOKUP(B101,'Zebrik W'!$B$7:$N$1000,13,0))) -> 
A102: =RANK(G102,G:G) -> 96 | B102: Jiri Koudela | C102: 1974 | D102: M | E102: Vyškov | F102: CZ/M | G102: 20664 | H102: 3 | I102: =RANK(G102,G:G) -> 96 | J102: =IF(ISERROR(VLOOKUP(B102,'N PMČR 2026'!B:G,6,0)),"-",VLOOKUP(B102,'N PMČR 2026'!B:G,6,0)) -> - | O102: =IF(ISERROR(VLOOKUP(B102,'Zebrik W'!$B$7:$N$1000,13,0)),"",IF(VLOOKUP(B102,'Zebrik W'!$B$7:$N$1000,13,0)=0,"--",VLOOKUP(B102,'Zebrik W'!$B$7:$N$1000,13,0))) -> 
A103: =RANK(G103,G:G) -> 97 | B103: Michal Drab | C103: 1969 | D103: M | E103: Letkov | F103: CZ/C1 | G103: 20450 | H103: 3 | I103: =RANK(G103,G:G) -> 97 | J103: =IF(ISERROR(VLOOKUP(B103,'N PMČR 2026'!B:G,6,0)),"-",VLOOKUP(B103,'N PMČR 2026'!B:G,6,0)) -> - | O103: =IF(ISERROR(VLOOKUP(B103,'Zebrik W'!$B$7:$N$1000,13,0)),"",IF(VLOOKUP(B103,'Zebrik W'!$B$7:$N$1000,13,0)=0,"--",VLOOKUP(B103,'Zebrik W'!$B$7:$N$1000,13,0))) -> 
A104: =RANK(G104,G:G) -> 98 | B104: Leos Strnadek | C104: 1983 | D104: M | E104: Hodkovice | F104: CZ/C2 | G104: 20445 | H104: 3 | I104: =RANK(G104,G:G) -> 98 | J104: =IF(ISERROR(VLOOKUP(B104,'N PMČR 2026'!B:G,6,0)),"-",VLOOKUP(B104,'N PMČR 2026'!B:G,6,0)) -> - | O104: =IF(ISERROR(VLOOKUP(B104,'Zebrik W'!$B$7:$N$1000,13,0)),"",IF(VLOOKUP(B104,'Zebrik W'!$B$7:$N$1000,13,0)=0,"--",VLOOKUP(B104,'Zebrik W'!$B$7:$N$1000,13,0))) -> 
A105: =RANK(G105,G:G) -> 99 | B105: Zdenek Boruvka 54 | C105: 1954 | D105: M | E105: Jičín | F105: CZ/C2 | G105: 20444 | H105: 3 | I105: =RANK(G105,G:G) -> 99 | J105: =IF(ISERROR(VLOOKUP(B105,'N PMČR 2026'!B:G,6,0)),"-",VLOOKUP(B105,'N PMČR 2026'!B:G,6,0)) -> - | O105: =IF(ISERROR(VLOOKUP(B105,'Zebrik W'!$B$7:$N$1000,13,0)),"",IF(VLOOKUP(B105,'Zebrik W'!$B$7:$N$1000,13,0)=0,"--",VLOOKUP(B105,'Zebrik W'!$B$7:$N$1000,13,0))) -> 
A106: =RANK(G106,G:G) -> 100 | B106: Pavlina Horackova | C106: 1965 | D106: F | E106: Šumperk | F106: CZ/M | G106: 20388 | H106: 3 | I106: =RANK(G106,G:G) -> 100 | J106: =IF(ISERROR(VLOOKUP(B106,'N PMČR 2026'!B:G,6,0)),"-",VLOOKUP(B106,'N PMČR 2026'!B:G,6,0)) -> 57 | O106: =IF(ISERROR(VLOOKUP(B106,'Zebrik W'!$B$7:$N$1000,13,0)),"",IF(VLOOKUP(B106,'Zebrik W'!$B$7:$N$1000,13,0)=0,"--",VLOOKUP(B106,'Zebrik W'!$B$7:$N$1000,13,0))) -> --
A107: =RANK(G107,G:G) -> 101 | B107: Frantisek Myska | C107: 1968 | D107: M | E107: Most | F107: CZ/C2 | G107: 20339 | H107: 3 | I107: =RANK(G107,G:G) -> 101 | J107: =IF(ISERROR(VLOOKUP(B107,'N PMČR 2026'!B:G,6,0)),"-",VLOOKUP(B107,'N PMČR 2026'!B:G,6,0)) -> - | O107: =IF(ISERROR(VLOOKUP(B107,'Zebrik W'!$B$7:$N$1000,13,0)),"",IF(VLOOKUP(B107,'Zebrik W'!$B$7:$N$1000,13,0)=0,"--",VLOOKUP(B107,'Zebrik W'!$B$7:$N$1000,13,0))) -> 
A108: =RANK(G108,G:G) -> 102 | B108: Josef Kolman | C108: 1983 | D108: M | E108: Letňany | F108: CZ/C1 | G108: 20321 | H108: 3 | I108: =RANK(G108,G:G) -> 102 | J108: =IF(ISERROR(VLOOKUP(B108,'N PMČR 2026'!B:G,6,0)),"-",VLOOKUP(B108,'N PMČR 2026'!B:G,6,0)) -> - | O108: =IF(ISERROR(VLOOKUP(B108,'Zebrik W'!$B$7:$N$1000,13,0)),"",IF(VLOOKUP(B108,'Zebrik W'!$B$7:$N$1000,13,0)=0,"--",VLOOKUP(B108,'Zebrik W'!$B$7:$N$1000,13,0))) -> 
A109: =RANK(G109,G:G) -> 103 | B109: Martin Kriz | C109: 1968 | D109: M | E109: Přibyslav | F109: CZ/C2 | G109: 20281 | H109: 3 | I109: =RANK(G109,G:G) -> 103 | J109: =IF(ISERROR(VLOOKUP(B109,'N PMČR 2026'!B:G,6,0)),"-",VLOOKUP(B109,'N PMČR 2026'!B:G,6,0)) -> - | O109: =IF(ISERROR(VLOOKUP(B109,'Zebrik W'!$B$7:$N$1000,13,0)),"",IF(VLOOKUP(B109,'Zebrik W'!$B$7:$N$1000,13,0)=0,"--",VLOOKUP(B109,'Zebrik W'!$B$7:$N$1000,13,0))) -> 
A110: =RANK(G110,G:G) -> 104 | B110: Pavel Liska | C110: 1965 | D110: M | E110: Roudnice | F110: CZ/C2 | G110: 20171 | H110: 3 | I110: =RANK(G110,G:G) -> 104 | J110: =IF(ISERROR(VLOOKUP(B110,'N PMČR 2026'!B:G,6,0)),"-",VLOOKUP(B110,'N PMČR 2026'!B:G,6,0)) -> - | O110: =IF(ISERROR(VLOOKUP(B110,'Zebrik W'!$B$7:$N$1000,13,0)),"",IF(VLOOKUP(B110,'Zebrik W'!$B$7:$N$1000,13,0)=0,"--",VLOOKUP(B110,'Zebrik W'!$B$7:$N$1000,13,0))) -> 
A111: =RANK(G111,G:G) -> 105 | B111: Martin Zahalka | C111: 1987 | D111: M | E111: Staňkov | F111: CZ/C1 | G111: 20161 | H111: 3 | I111: =RANK(G111,G:G) -> 105 | J111: =IF(ISERROR(VLOOKUP(B111,'N PMČR 2026'!B:G,6,0)),"-",VLOOKUP(B111,'N PMČR 2026'!B:G,6,0)) -> - | O111: =IF(ISERROR(VLOOKUP(B111,'Zebrik W'!$B$7:$N$1000,13,0)),"",IF(VLOOKUP(B111,'Zebrik W'!$B$7:$N$1000,13,0)=0,"--",VLOOKUP(B111,'Zebrik W'!$B$7:$N$1000,13,0))) -> 
A112: =RANK(G112,G:G) -> 106 | B112: Petr Havelka | C112: 1997 | D112: M | E112: Zbraslavice | F112: CZ/C1 | G112: 20077 | H112: 3 | I112: =RANK(G112,G:G) -> 106 | J112: =IF(ISERROR(VLOOKUP(B112,'N PMČR 2026'!B:G,6,0)),"-",VLOOKUP(B112,'N PMČR 2026'!B:G,6,0)) -> - | O112: =IF(ISERROR(VLOOKUP(B112,'Zebrik W'!$B$7:$N$1000,13,0)),"",IF(VLOOKUP(B112,'Zebrik W'!$B$7:$N$1000,13,0)=0,"--",VLOOKUP(B112,'Zebrik W'!$B$7:$N$1000,13,0))) -> 
A113: =RANK(G113,G:G) -> 107 | B113: Jan Horak | C113: 1971 | D113: M | E113: Zbraslavice | F113: CZ/C1 | G113: 20041 | H113: 3 | I113: =RANK(G113,G:G) -> 107 | J113: =IF(ISERROR(VLOOKUP(B113,'N PMČR 2026'!B:G,6,0)),"-",VLOOKUP(B113,'N PMČR 2026'!B:G,6,0)) -> - | O113: =IF(ISERROR(VLOOKUP(B113,'Zebrik W'!$B$7:$N$1000,13,0)),"",IF(VLOOKUP(B113,'Zebrik W'!$B$7:$N$1000,13,0)=0,"--",VLOOKUP(B113,'Zebrik W'!$B$7:$N$1000,13,0))) -> 
A114: =RANK(G114,G:G) -> 108 | B114: Rostislav Stryk | C114: 1972 | D114: M | E114: Frýdlant | F114: CZ/M | G114: 20019 | H114: 3 | I114: =RANK(G114,G:G) -> 108 | J114: =IF(ISERROR(VLOOKUP(B114,'N PMČR 2026'!B:G,6,0)),"-",VLOOKUP(B114,'N PMČR 2026'!B:G,6,0)) -> - | O114: =IF(ISERROR(VLOOKUP(B114,'Zebrik W'!$B$7:$N$1000,13,0)),"",IF(VLOOKUP(B114,'Zebrik W'!$B$7:$N$1000,13,0)=0,"--",VLOOKUP(B114,'Zebrik W'!$B$7:$N$1000,13,0))) -> 
A115: =RANK(G115,G:G) -> 109 | B115: Adam Sugl | C115: 1987 | D115: M | E115: Vyškov | F115: CZ/M | G115: 19921 | H115: 3 | I115: =RANK(G115,G:G) -> 109 | J115: =IF(ISERROR(VLOOKUP(B115,'N PMČR 2026'!B:G,6,0)),"-",VLOOKUP(B115,'N PMČR 2026'!B:G,6,0)) -> - | O115: =IF(ISERROR(VLOOKUP(B115,'Zebrik W'!$B$7:$N$1000,13,0)),"",IF(VLOOKUP(B115,'Zebrik W'!$B$7:$N$1000,13,0)=0,"--",VLOOKUP(B115,'Zebrik W'!$B$7:$N$1000,13,0))) -> 
A116: =RANK(G116,G:G) -> 110 | B116: Marek Kornec | C116: 1957 | D116: M | E116: Dvůr Králové | F116: CZ/C2 | G116: 19899 | H116: 3 | I116: =RANK(G116,G:G) -> 110 | J116: =IF(ISERROR(VLOOKUP(B116,'N PMČR 2026'!B:G,6,0)),"-",VLOOKUP(B116,'N PMČR 2026'!B:G,6,0)) -> - | O116: =IF(ISERROR(VLOOKUP(B116,'Zebrik W'!$B$7:$N$1000,13,0)),"",IF(VLOOKUP(B116,'Zebrik W'!$B$7:$N$1000,13,0)=0,"--",VLOOKUP(B116,'Zebrik W'!$B$7:$N$1000,13,0))) -> 
A117: =RANK(G117,G:G) -> 111 | B117: Lubomir Motl | C117: 1959 | D117: M | E117: Kyjov | F117: CZ/M | G117: 19817 | H117: 3 | I117: =RANK(G117,G:G) -> 111 | J117: =IF(ISERROR(VLOOKUP(B117,'N PMČR 2026'!B:G,6,0)),"-",VLOOKUP(B117,'N PMČR 2026'!B:G,6,0)) -> - | O117: =IF(ISERROR(VLOOKUP(B117,'Zebrik W'!$B$7:$N$1000,13,0)),"",IF(VLOOKUP(B117,'Zebrik W'!$B$7:$N$1000,13,0)=0,"--",VLOOKUP(B117,'Zebrik W'!$B$7:$N$1000,13,0))) -> 
A118: =RANK(G118,G:G) -> 112 | B118: Petr Babak | C118: 1973 | D118: M | E118: Hořice | F118: CZ/C2 | G118: 19785 | H118: 3 | I118: =RANK(G118,G:G) -> 112 | J118: =IF(ISERROR(VLOOKUP(B118,'N PMČR 2026'!B:G,6,0)),"-",VLOOKUP(B118,'N PMČR 2026'!B:G,6,0)) -> - | O118: =IF(ISERROR(VLOOKUP(B118,'Zebrik W'!$B$7:$N$1000,13,0)),"",IF(VLOOKUP(B118,'Zebrik W'!$B$7:$N$1000,13,0)=0,"--",VLOOKUP(B118,'Zebrik W'!$B$7:$N$1000,13,0))) -> 
A119: =RANK(G119,G:G) -> 113 | B119: Martin Svarc | C119: 1981 | D119: M | E119: Olomouc | F119: CZ/M | G119: 19758 | H119: 3 | I119: =RANK(G119,G:G) -> 113 | J119: =IF(ISERROR(VLOOKUP(B119,'N PMČR 2026'!B:G,6,0)),"-",VLOOKUP(B119,'N PMČR 2026'!B:G,6,0)) -> - | O119: =IF(ISERROR(VLOOKUP(B119,'Zebrik W'!$B$7:$N$1000,13,0)),"",IF(VLOOKUP(B119,'Zebrik W'!$B$7:$N$1000,13,0)=0,"--",VLOOKUP(B119,'Zebrik W'!$B$7:$N$1000,13,0))) -> 
A120: =RANK(G120,G:G) -> 114 | B120: Zdenek Schenk | C120: 1972 | D120: M | E120: Hranice | F120: CZ/M | G120: 19738 | H120: 3 | I120: =RANK(G120,G:G) -> 114 | J120: =IF(ISERROR(VLOOKUP(B120,'N PMČR 2026'!B:G,6,0)),"-",VLOOKUP(B120,'N PMČR 2026'!B:G,6,0)) -> - | O120: =IF(ISERROR(VLOOKUP(B120,'Zebrik W'!$B$7:$N$1000,13,0)),"",IF(VLOOKUP(B120,'Zebrik W'!$B$7:$N$1000,13,0)=0,"--",VLOOKUP(B120,'Zebrik W'!$B$7:$N$1000,13,0))) -> 
A121: =RANK(G121,G:G) -> 115 | B121: Jiri Hula | C121: 1973 | D121: M | E121: Slaný | F121: CZ/C1 | G121: 19734 | H121: 3 | I121: =RANK(G121,G:G) -> 115 | J121: =IF(ISERROR(VLOOKUP(B121,'N PMČR 2026'!B:G,6,0)),"-",VLOOKUP(B121,'N PMČR 2026'!B:G,6,0)) -> - | O121: =IF(ISERROR(VLOOKUP(B121,'Zebrik W'!$B$7:$N$1000,13,0)),"",IF(VLOOKUP(B121,'Zebrik W'!$B$7:$N$1000,13,0)=0,"--",VLOOKUP(B121,'Zebrik W'!$B$7:$N$1000,13,0))) -> 
A122: =RANK(G122,G:G) -> 116 | B122: Petr Jiranek 63 | C122: 1962 | D122: M | E122: Toužim | F122: CZ/C1 | G122: 19515 | H122: 3 | I122: =RANK(G122,G:G) -> 116 | J122: =IF(ISERROR(VLOOKUP(B122,'N PMČR 2026'!B:G,6,0)),"-",VLOOKUP(B122,'N PMČR 2026'!B:G,6,0)) -> - | O122: =IF(ISERROR(VLOOKUP(B122,'Zebrik W'!$B$7:$N$1000,13,0)),"",IF(VLOOKUP(B122,'Zebrik W'!$B$7:$N$1000,13,0)=0,"--",VLOOKUP(B122,'Zebrik W'!$B$7:$N$1000,13,0))) -> 
A123: =RANK(G123,G:G) -> 117 | B123: Josef Beran | C123: 1982 | D123: M | E123: Slaný | F123: CZ/C1 | G123: 19389 | H123: 3 | I123: =RANK(G123,G:G) -> 117 | J123: =IF(ISERROR(VLOOKUP(B123,'N PMČR 2026'!B:G,6,0)),"-",VLOOKUP(B123,'N PMČR 2026'!B:G,6,0)) -> 51 | O123: =IF(ISERROR(VLOOKUP(B123,'Zebrik W'!$B$7:$N$1000,13,0)),"",IF(VLOOKUP(B123,'Zebrik W'!$B$7:$N$1000,13,0)=0,"--",VLOOKUP(B123,'Zebrik W'!$B$7:$N$1000,13,0))) -> 
A124: =RANK(G124,G:G) -> 118 | B124: Jan Pazour | C124: 1979 | D124: M | E124: Dvůr Králové | F124: CZ/C2 | G124: 19386 | H124: 3 | I124: =RANK(G124,G:G) -> 118 | J124: =IF(ISERROR(VLOOKUP(B124,'N PMČR 2026'!B:G,6,0)),"-",VLOOKUP(B124,'N PMČR 2026'!B:G,6,0)) -> - | O124: =IF(ISERROR(VLOOKUP(B124,'Zebrik W'!$B$7:$N$1000,13,0)),"",IF(VLOOKUP(B124,'Zebrik W'!$B$7:$N$1000,13,0)=0,"--",VLOOKUP(B124,'Zebrik W'!$B$7:$N$1000,13,0))) -> 
A125: =RANK(G125,G:G) -> 119 | B125: Tomas Kulhavy | C125: 2001 | D125: M | E125: Liberec | F125: CZ/C2 | G125: 19324 | H125: 3 | I125: =RANK(G125,G:G) -> 119 | J125: =IF(ISERROR(VLOOKUP(B125,'N PMČR 2026'!B:G,6,0)),"-",VLOOKUP(B125,'N PMČR 2026'!B:G,6,0)) -> - | K125: Junior v roce 2026 | O125: =IF(ISERROR(VLOOKUP(B125,'Zebrik W'!$B$7:$N$1000,13,0)),"",IF(VLOOKUP(B125,'Zebrik W'!$B$7:$N$1000,13,0)=0,"--",VLOOKUP(B125,'Zebrik W'!$B$7:$N$1000,13,0))) -> 
A126: =RANK(G126,G:G) -> 120 | B126: Filip Mrstny | C126: 2006 | D126: M | E126: Beroun | F126: CZ/C1 | G126: 19046 | H126: 3 | I126: =RANK(G126,G:G) -> 120 | J126: =IF(ISERROR(VLOOKUP(B126,'N PMČR 2026'!B:G,6,0)),"-",VLOOKUP(B126,'N PMČR 2026'!B:G,6,0)) -> - | K126: Junior v roce 2026 | L126: Junior v roce 2027 | O126: =IF(ISERROR(VLOOKUP(B126,'Zebrik W'!$B$7:$N$1000,13,0)),"",IF(VLOOKUP(B126,'Zebrik W'!$B$7:$N$1000,13,0)=0,"--",VLOOKUP(B126,'Zebrik W'!$B$7:$N$1000,13,0))) -> 
A127: =RANK(G127,G:G) -> 120 | B127: Vaclav Svoboda | C127: 1970 | D127: M | E127: Letkov | F127: CZ/C1 | G127: 19046 | H127: 3 | I127: =RANK(G127,G:G) -> 120 | J127: =IF(ISERROR(VLOOKUP(B127,'N PMČR 2026'!B:G,6,0)),"-",VLOOKUP(B127,'N PMČR 2026'!B:G,6,0)) -> - | O127: =IF(ISERROR(VLOOKUP(B127,'Zebrik W'!$B$7:$N$1000,13,0)),"",IF(VLOOKUP(B127,'Zebrik W'!$B$7:$N$1000,13,0)=0,"--",VLOOKUP(B127,'Zebrik W'!$B$7:$N$1000,13,0))) -> 
A128: =RANK(G128,G:G) -> 122 | B128: David Riha | C128: 1983 | D128: M | E128: Vlašim | F128: CZ/C1 | G128: 18824 | H128: 3 | I128: =RANK(G128,G:G) -> 122 | J128: =IF(ISERROR(VLOOKUP(B128,'N PMČR 2026'!B:G,6,0)),"-",VLOOKUP(B128,'N PMČR 2026'!B:G,6,0)) -> - | O128: =IF(ISERROR(VLOOKUP(B128,'Zebrik W'!$B$7:$N$1000,13,0)),"",IF(VLOOKUP(B128,'Zebrik W'!$B$7:$N$1000,13,0)=0,"--",VLOOKUP(B128,'Zebrik W'!$B$7:$N$1000,13,0))) -> 
A129: =RANK(G129,G:G) -> 123 | B129: Marek Svancara | C129: 1976 | D129: M | E129: GAC Benešov | F129: CZ/C1 | G129: 18635 | H129: 3 | I129: =RANK(G129,G:G) -> 123 | J129: =IF(ISERROR(VLOOKUP(B129,'N PMČR 2026'!B:G,6,0)),"-",VLOOKUP(B129,'N PMČR 2026'!B:G,6,0)) -> - | O129: =IF(ISERROR(VLOOKUP(B129,'Zebrik W'!$B$7:$N$1000,13,0)),"",IF(VLOOKUP(B129,'Zebrik W'!$B$7:$N$1000,13,0)=0,"--",VLOOKUP(B129,'Zebrik W'!$B$7:$N$1000,13,0))) -> 
A130: =RANK(G130,G:G) -> 124 | B130: Wolfgang Sluka | C130: 1942 | D130: M | E130: Liberec | F130: CZ/C2 | G130: 18387 | H130: 3 | I130: =RANK(G130,G:G) -> 124 | J130: =IF(ISERROR(VLOOKUP(B130,'N PMČR 2026'!B:G,6,0)),"-",VLOOKUP(B130,'N PMČR 2026'!B:G,6,0)) -> - | O130: =IF(ISERROR(VLOOKUP(B130,'Zebrik W'!$B$7:$N$1000,13,0)),"",IF(VLOOKUP(B130,'Zebrik W'!$B$7:$N$1000,13,0)=0,"--",VLOOKUP(B130,'Zebrik W'!$B$7:$N$1000,13,0))) -> 
A131: =RANK(G131,G:G) -> 125 | B131: Miloslav Hulmak | C131: 1963 | D131: M | E131: Hosín | F131: CZ/C1 | G131: 18301 | H131: 3 | I131: =RANK(G131,G:G) -> 125 | J131: =IF(ISERROR(VLOOKUP(B131,'N PMČR 2026'!B:G,6,0)),"-",VLOOKUP(B131,'N PMČR 2026'!B:G,6,0)) -> - | O131: =IF(ISERROR(VLOOKUP(B131,'Zebrik W'!$B$7:$N$1000,13,0)),"",IF(VLOOKUP(B131,'Zebrik W'!$B$7:$N$1000,13,0)=0,"--",VLOOKUP(B131,'Zebrik W'!$B$7:$N$1000,13,0))) -> 
A132: =RANK(G132,G:G) -> 126 | B132: Jaroslav Sima | C132: 1972 | D132: M | E132: Chomutov | F132: CZ/C2 | G132: 18181 | H132: 3 | I132: =RANK(G132,G:G) -> 126 | J132: =IF(ISERROR(VLOOKUP(B132,'N PMČR 2026'!B:G,6,0)),"-",VLOOKUP(B132,'N PMČR 2026'!B:G,6,0)) -> - | O132: =IF(ISERROR(VLOOKUP(B132,'Zebrik W'!$B$7:$N$1000,13,0)),"",IF(VLOOKUP(B132,'Zebrik W'!$B$7:$N$1000,13,0)=0,"--",VLOOKUP(B132,'Zebrik W'!$B$7:$N$1000,13,0))) -> 
A133: =RANK(G133,G:G) -> 127 | B133: Ladislav Prokes | C133: 1954 | D133: M | E133: Vrchlabí | F133: CZ/C2 | G133: 18062 | H133: 3 | I133: =RANK(G133,G:G) -> 127 | J133: =IF(ISERROR(VLOOKUP(B133,'N PMČR 2026'!B:G,6,0)),"-",VLOOKUP(B133,'N PMČR 2026'!B:G,6,0)) -> - | O133: =IF(ISERROR(VLOOKUP(B133,'Zebrik W'!$B$7:$N$1000,13,0)),"",IF(VLOOKUP(B133,'Zebrik W'!$B$7:$N$1000,13,0)=0,"--",VLOOKUP(B133,'Zebrik W'!$B$7:$N$1000,13,0))) -> 
A134: =RANK(G134,G:G) -> 128 | B134: Frantisek Suna | C134: 1983 | D134: M | E134: Hosín | F134: CZ/C1 | G134: 17960 | H134: 3 | I134: =RANK(G134,G:G) -> 128 | J134: =IF(ISERROR(VLOOKUP(B134,'N PMČR 2026'!B:G,6,0)),"-",VLOOKUP(B134,'N PMČR 2026'!B:G,6,0)) -> - | O134: =IF(ISERROR(VLOOKUP(B134,'Zebrik W'!$B$7:$N$1000,13,0)),"",IF(VLOOKUP(B134,'Zebrik W'!$B$7:$N$1000,13,0)=0,"--",VLOOKUP(B134,'Zebrik W'!$B$7:$N$1000,13,0))) -> 
A135: =RANK(G135,G:G) -> 129 | B135: Jan Florian | C135: 1992 | D135: M | E135: Zbraslavice | F135: CZ/C1 | G135: 17833 | H135: 3 | I135: =RANK(G135,G:G) -> 129 | J135: =IF(ISERROR(VLOOKUP(B135,'N PMČR 2026'!B:G,6,0)),"-",VLOOKUP(B135,'N PMČR 2026'!B:G,6,0)) -> - | O135: =IF(ISERROR(VLOOKUP(B135,'Zebrik W'!$B$7:$N$1000,13,0)),"",IF(VLOOKUP(B135,'Zebrik W'!$B$7:$N$1000,13,0)=0,"--",VLOOKUP(B135,'Zebrik W'!$B$7:$N$1000,13,0))) -> 
A136: =RANK(G136,G:G) -> 130 | B136: Josef Novotny | C136: 1983 | D136: M | E136: Přibyslav | F136: CZ/C2 | G136: 17724 | H136: 2 | I136: =RANK(G136,G:G) -> 130 | J136: =IF(ISERROR(VLOOKUP(B136,'N PMČR 2026'!B:G,6,0)),"-",VLOOKUP(B136,'N PMČR 2026'!B:G,6,0)) -> - | K136: =IF(C136="(prázdné)","",IF(($K$4-C136)>25,"","Junior v roce "&$K$4)) ->  | L136: =IF(C136="(prázdné)","",IF(($L$4-C136)>25,"","Junior v roce "&$L$4)) ->  | O136: =IF(ISERROR(VLOOKUP(B136,'Zebrik W'!$B$7:$N$1000,13,0)),"",IF(VLOOKUP(B136,'Zebrik W'!$B$7:$N$1000,13,0)=0,"--",VLOOKUP(B136,'Zebrik W'!$B$7:$N$1000,13,0))) -> 
A137: =RANK(G137,G:G) -> 131 | B137: Tibor Hezina | C137: 2002 | D137: M | E137: Křižanov | F137: CZ/M | G137: 17684 | H137: 3 | I137: =RANK(G137,G:G) -> 131 | J137: =IF(ISERROR(VLOOKUP(B137,'N PMČR 2026'!B:G,6,0)),"-",VLOOKUP(B137,'N PMČR 2026'!B:G,6,0)) -> - | K137: Junior v roce 2026 | L137: Junior v roce 2027 | O137: =IF(ISERROR(VLOOKUP(B137,'Zebrik W'!$B$7:$N$1000,13,0)),"",IF(VLOOKUP(B137,'Zebrik W'!$B$7:$N$1000,13,0)=0,"--",VLOOKUP(B137,'Zebrik W'!$B$7:$N$1000,13,0))) -> 
A138: =RANK(G138,G:G) -> 132 | B138: Radim Tomala | C138: 1972 | D138: M | E138: Prostějov | F138: CZ/M | G138: 17672 | H138: 3 | I138: =RANK(G138,G:G) -> 132 | J138: =IF(ISERROR(VLOOKUP(B138,'N PMČR 2026'!B:G,6,0)),"-",VLOOKUP(B138,'N PMČR 2026'!B:G,6,0)) -> - | O138: =IF(ISERROR(VLOOKUP(B138,'Zebrik W'!$B$7:$N$1000,13,0)),"",IF(VLOOKUP(B138,'Zebrik W'!$B$7:$N$1000,13,0)=0,"--",VLOOKUP(B138,'Zebrik W'!$B$7:$N$1000,13,0))) -> 
A139: =RANK(G139,G:G) -> 133 | B139: Ondrej Teichman | C139: 1984 | D139: M | E139: Dvůr Králové | F139: CZ/C2 | G139: 17651 | H139: 3 | I139: =RANK(G139,G:G) -> 133 | J139: =IF(ISERROR(VLOOKUP(B139,'N PMČR 2026'!B:G,6,0)),"-",VLOOKUP(B139,'N PMČR 2026'!B:G,6,0)) -> - | O139: =IF(ISERROR(VLOOKUP(B139,'Zebrik W'!$B$7:$N$1000,13,0)),"",IF(VLOOKUP(B139,'Zebrik W'!$B$7:$N$1000,13,0)=0,"--",VLOOKUP(B139,'Zebrik W'!$B$7:$N$1000,13,0))) -> 
A140: =RANK(G140,G:G) -> 134 | B140: Jaroslav Potmesil | C140: 1964 | D140: M | E140: Zbraslavice | F140: CZ/C1 | G140: 17620 | H140: 3 | I140: =RANK(G140,G:G) -> 134 | J140: =IF(ISERROR(VLOOKUP(B140,'N PMČR 2026'!B:G,6,0)),"-",VLOOKUP(B140,'N PMČR 2026'!B:G,6,0)) -> 59 | O140: =IF(ISERROR(VLOOKUP(B140,'Zebrik W'!$B$7:$N$1000,13,0)),"",IF(VLOOKUP(B140,'Zebrik W'!$B$7:$N$1000,13,0)=0,"--",VLOOKUP(B140,'Zebrik W'!$B$7:$N$1000,13,0))) -> 
A141: =RANK(G141,G:G) -> 135 | B141: Jakub Kohn | C141: 1992 | D141: M | E141: Prostějov | F141: CZ/M | G141: 17573 | H141: 3 | I141: =RANK(G141,G:G) -> 135 | J141: =IF(ISERROR(VLOOKUP(B141,'N PMČR 2026'!B:G,6,0)),"-",VLOOKUP(B141,'N PMČR 2026'!B:G,6,0)) -> - | O141: =IF(ISERROR(VLOOKUP(B141,'Zebrik W'!$B$7:$N$1000,13,0)),"",IF(VLOOKUP(B141,'Zebrik W'!$B$7:$N$1000,13,0)=0,"--",VLOOKUP(B141,'Zebrik W'!$B$7:$N$1000,13,0))) -> 
A142: =RANK(G142,G:G) -> 136 | B142: Jan Mareth | C142: 1979 | D142: M | E142: Frýdlant | F142: CZ/M | G142: 17565 | H142: 3 | I142: =RANK(G142,G:G) -> 136 | J142: =IF(ISERROR(VLOOKUP(B142,'N PMČR 2026'!B:G,6,0)),"-",VLOOKUP(B142,'N PMČR 2026'!B:G,6,0)) -> - | O142: =IF(ISERROR(VLOOKUP(B142,'Zebrik W'!$B$7:$N$1000,13,0)),"",IF(VLOOKUP(B142,'Zebrik W'!$B$7:$N$1000,13,0)=0,"--",VLOOKUP(B142,'Zebrik W'!$B$7:$N$1000,13,0))) -> 
A143: =RANK(G143,G:G) -> 137 | B143: Radek Bares | C143: 1963 | D143: M | E143: Jičín | F143: CZ/C2 | G143: 17514 | H143: 3 | I143: =RANK(G143,G:G) -> 137 | J143: =IF(ISERROR(VLOOKUP(B143,'N PMČR 2026'!B:G,6,0)),"-",VLOOKUP(B143,'N PMČR 2026'!B:G,6,0)) -> - | O143: =IF(ISERROR(VLOOKUP(B143,'Zebrik W'!$B$7:$N$1000,13,0)),"",IF(VLOOKUP(B143,'Zebrik W'!$B$7:$N$1000,13,0)=0,"--",VLOOKUP(B143,'Zebrik W'!$B$7:$N$1000,13,0))) -> 
A144: =RANK(G144,G:G) -> 138 | B144: Ales Vyhnal | C144: 1989 | D144: M | E144: Kralupy | F144: CZ/C1 | G144: 17444 | H144: 3 | I144: =RANK(G144,G:G) -> 138 | J144: =IF(ISERROR(VLOOKUP(B144,'N PMČR 2026'!B:G,6,0)),"-",VLOOKUP(B144,'N PMČR 2026'!B:G,6,0)) -> - | O144: =IF(ISERROR(VLOOKUP(B144,'Zebrik W'!$B$7:$N$1000,13,0)),"",IF(VLOOKUP(B144,'Zebrik W'!$B$7:$N$1000,13,0)=0,"--",VLOOKUP(B144,'Zebrik W'!$B$7:$N$1000,13,0))) -> 
A145: =RANK(G145,G:G) -> 139 | B145: Jan Hybner | C145: 1977 | D145: M | E145: Liberec | F145: CZ/C2 | G145: 17391 | H145: 3 | I145: =RANK(G145,G:G) -> 139 | J145: =IF(ISERROR(VLOOKUP(B145,'N PMČR 2026'!B:G,6,0)),"-",VLOOKUP(B145,'N PMČR 2026'!B:G,6,0)) -> - | O145: =IF(ISERROR(VLOOKUP(B145,'Zebrik W'!$B$7:$N$1000,13,0)),"",IF(VLOOKUP(B145,'Zebrik W'!$B$7:$N$1000,13,0)=0,"--",VLOOKUP(B145,'Zebrik W'!$B$7:$N$1000,13,0))) -> 
A146: =RANK(G146,G:G) -> 140 | B146: Milan Meisner | C146: 1961 | D146: M | E146: Dvůr Králové | F146: CZ/C2 | G146: 17380 | H146: 3 | I146: =RANK(G146,G:G) -> 140 | J146: =IF(ISERROR(VLOOKUP(B146,'N PMČR 2026'!B:G,6,0)),"-",VLOOKUP(B146,'N PMČR 2026'!B:G,6,0)) -> - | O146: =IF(ISERROR(VLOOKUP(B146,'Zebrik W'!$B$7:$N$1000,13,0)),"",IF(VLOOKUP(B146,'Zebrik W'!$B$7:$N$1000,13,0)=0,"--",VLOOKUP(B146,'Zebrik W'!$B$7:$N$1000,13,0))) -> 
A147: =RANK(G147,G:G) -> 141 | B147: David Popovsky | C147: 1976 | D147: M | E147: Rakovník | F147: CZ/C1 | G147: 17219 | H147: 3 | I147: =RANK(G147,G:G) -> 141 | J147: =IF(ISERROR(VLOOKUP(B147,'N PMČR 2026'!B:G,6,0)),"-",VLOOKUP(B147,'N PMČR 2026'!B:G,6,0)) -> - | O147: =IF(ISERROR(VLOOKUP(B147,'Zebrik W'!$B$7:$N$1000,13,0)),"",IF(VLOOKUP(B147,'Zebrik W'!$B$7:$N$1000,13,0)=0,"--",VLOOKUP(B147,'Zebrik W'!$B$7:$N$1000,13,0))) -> 
A148: =RANK(G148,G:G) -> 142 | B148: Katerina Vancurova | C148: 2002 | D148: F | E148: Hranice | F148: CZ/M | G148: 17173 | H148: 3 | I148: =RANK(G148,G:G) -> 142 | J148: =IF(ISERROR(VLOOKUP(B148,'N PMČR 2026'!B:G,6,0)),"-",VLOOKUP(B148,'N PMČR 2026'!B:G,6,0)) -> N1 | K148: Junior v roce 2026 | L148: Junior v roce 2027 | O148: =IF(ISERROR(VLOOKUP(B148,'Zebrik W'!$B$7:$N$1000,13,0)),"",IF(VLOOKUP(B148,'Zebrik W'!$B$7:$N$1000,13,0)=0,"--",VLOOKUP(B148,'Zebrik W'!$B$7:$N$1000,13,0))) -> --
A149: =RANK(G149,G:G) -> 143 | B149: Jakub Malik | C149: 1999 | D149: M | E149: Letňany | F149: CZ/C1 | G149: 17167 | H149: 2 | I149: =RANK(G149,G:G) -> 143 | J149: =IF(ISERROR(VLOOKUP(B149,'N PMČR 2026'!B:G,6,0)),"-",VLOOKUP(B149,'N PMČR 2026'!B:G,6,0)) -> - | O149: =IF(ISERROR(VLOOKUP(B149,'Zebrik W'!$B$7:$N$1000,13,0)),"",IF(VLOOKUP(B149,'Zebrik W'!$B$7:$N$1000,13,0)=0,"--",VLOOKUP(B149,'Zebrik W'!$B$7:$N$1000,13,0))) -> 
A150: =RANK(G150,G:G) -> 144 | B150: Petr Starek | C150: 1974 | D150: M | E150: Zbraslavice | F150: CZ/C1 | G150: 17067 | H150: 3 | I150: =RANK(G150,G:G) -> 144 | J150: =IF(ISERROR(VLOOKUP(B150,'N PMČR 2026'!B:G,6,0)),"-",VLOOKUP(B150,'N PMČR 2026'!B:G,6,0)) -> - | O150: =IF(ISERROR(VLOOKUP(B150,'Zebrik W'!$B$7:$N$1000,13,0)),"",IF(VLOOKUP(B150,'Zebrik W'!$B$7:$N$1000,13,0)=0,"--",VLOOKUP(B150,'Zebrik W'!$B$7:$N$1000,13,0))) -> 
A151: =RANK(G151,G:G) -> 145 | B151: Jan Zahradka | C151: 1981 | D151: M | E151: Hodkovice | F151: CZ/C2 | G151: 17066 | H151: 3 | I151: =RANK(G151,G:G) -> 145 | J151: =IF(ISERROR(VLOOKUP(B151,'N PMČR 2026'!B:G,6,0)),"-",VLOOKUP(B151,'N PMČR 2026'!B:G,6,0)) -> - | O151: =IF(ISERROR(VLOOKUP(B151,'Zebrik W'!$B$7:$N$1000,13,0)),"",IF(VLOOKUP(B151,'Zebrik W'!$B$7:$N$1000,13,0)=0,"--",VLOOKUP(B151,'Zebrik W'!$B$7:$N$1000,13,0))) -> 
A152: =RANK(G152,G:G) -> 146 | B152: Tomas Prikryl | C152: 1973 | D152: M | E152: Vyškov | F152: CZ/M | G152: 16790 | H152: 3 | I152: =RANK(G152,G:G) -> 146 | J152: =IF(ISERROR(VLOOKUP(B152,'N PMČR 2026'!B:G,6,0)),"-",VLOOKUP(B152,'N PMČR 2026'!B:G,6,0)) -> - | O152: =IF(ISERROR(VLOOKUP(B152,'Zebrik W'!$B$7:$N$1000,13,0)),"",IF(VLOOKUP(B152,'Zebrik W'!$B$7:$N$1000,13,0)=0,"--",VLOOKUP(B152,'Zebrik W'!$B$7:$N$1000,13,0))) -> 
A153: =RANK(G153,G:G) -> 147 | B153: Jiri Maier 66 | C153: 1966 | D153: M | E153: Raná | F153: CZ/C2 | G153: 16719 | H153: 3 | I153: =RANK(G153,G:G) -> 147 | J153: =IF(ISERROR(VLOOKUP(B153,'N PMČR 2026'!B:G,6,0)),"-",VLOOKUP(B153,'N PMČR 2026'!B:G,6,0)) -> - | O153: =IF(ISERROR(VLOOKUP(B153,'Zebrik W'!$B$7:$N$1000,13,0)),"",IF(VLOOKUP(B153,'Zebrik W'!$B$7:$N$1000,13,0)=0,"--",VLOOKUP(B153,'Zebrik W'!$B$7:$N$1000,13,0))) -> 
A154: =RANK(G154,G:G) -> 148 | B154: Jan Zanda | C154: 1983 | D154: M | E154: Letkov | F154: CZ/C1 | G154: 16709 | H154: 3 | I154: =RANK(G154,G:G) -> 148 | J154: =IF(ISERROR(VLOOKUP(B154,'N PMČR 2026'!B:G,6,0)),"-",VLOOKUP(B154,'N PMČR 2026'!B:G,6,0)) -> - | O154: =IF(ISERROR(VLOOKUP(B154,'Zebrik W'!$B$7:$N$1000,13,0)),"",IF(VLOOKUP(B154,'Zebrik W'!$B$7:$N$1000,13,0)=0,"--",VLOOKUP(B154,'Zebrik W'!$B$7:$N$1000,13,0))) -> 
A155: =RANK(G155,G:G) -> 149 | B155: Miroslav Koci | C155: 1961 | D155: M | E155: Žamberk | F155: CZ/C2 | G155: 16598 | H155: 3 | I155: =RANK(G155,G:G) -> 149 | J155: =IF(ISERROR(VLOOKUP(B155,'N PMČR 2026'!B:G,6,0)),"-",VLOOKUP(B155,'N PMČR 2026'!B:G,6,0)) -> - | O155: =IF(ISERROR(VLOOKUP(B155,'Zebrik W'!$B$7:$N$1000,13,0)),"",IF(VLOOKUP(B155,'Zebrik W'!$B$7:$N$1000,13,0)=0,"--",VLOOKUP(B155,'Zebrik W'!$B$7:$N$1000,13,0))) -> 
A156: =RANK(G156,G:G) -> 150 | B156: Petr Rozhon | C156: 1972 | D156: M | E156: Hosín | F156: CZ/C1 | G156: 16586 | H156: 3 | I156: =RANK(G156,G:G) -> 150 | J156: =IF(ISERROR(VLOOKUP(B156,'N PMČR 2026'!B:G,6,0)),"-",VLOOKUP(B156,'N PMČR 2026'!B:G,6,0)) -> - | O156: =IF(ISERROR(VLOOKUP(B156,'Zebrik W'!$B$7:$N$1000,13,0)),"",IF(VLOOKUP(B156,'Zebrik W'!$B$7:$N$1000,13,0)=0,"--",VLOOKUP(B156,'Zebrik W'!$B$7:$N$1000,13,0))) -> 
A157: =RANK(G157,G:G) -> 151 | B157: Vladimir Hammer | C157: 2000 | D157: M | E157: Letkov | F157: CZ/C1 | G157: 16526 | H157: 3 | I157: =RANK(G157,G:G) -> 151 | J157: =IF(ISERROR(VLOOKUP(B157,'N PMČR 2026'!B:G,6,0)),"-",VLOOKUP(B157,'N PMČR 2026'!B:G,6,0)) -> - | O157: =IF(ISERROR(VLOOKUP(B157,'Zebrik W'!$B$7:$N$1000,13,0)),"",IF(VLOOKUP(B157,'Zebrik W'!$B$7:$N$1000,13,0)=0,"--",VLOOKUP(B157,'Zebrik W'!$B$7:$N$1000,13,0))) -> 
A158: =RANK(G158,G:G) -> 152 | B158: Martin Stastny | C158: 2005 | D158: M | E158: Medlánky | F158: CZ/M | G158: 16483 | H158: 3 | I158: =RANK(G158,G:G) -> 152 | J158: =IF(ISERROR(VLOOKUP(B158,'N PMČR 2026'!B:G,6,0)),"-",VLOOKUP(B158,'N PMČR 2026'!B:G,6,0)) -> - | K158: Junior v roce 2026 | L158: Junior v roce 2027 | O158: =IF(ISERROR(VLOOKUP(B158,'Zebrik W'!$B$7:$N$1000,13,0)),"",IF(VLOOKUP(B158,'Zebrik W'!$B$7:$N$1000,13,0)=0,"--",VLOOKUP(B158,'Zebrik W'!$B$7:$N$1000,13,0))) -> 
A159: =RANK(G159,G:G) -> 153 | B159: Premysl Muzik | C159: 1990 | D159: M | E159: Tábor | F159: CZ/C1 | G159: 16440 | H159: 3 | I159: =RANK(G159,G:G) -> 153 | J159: =IF(ISERROR(VLOOKUP(B159,'N PMČR 2026'!B:G,6,0)),"-",VLOOKUP(B159,'N PMČR 2026'!B:G,6,0)) -> 53 | O159: =IF(ISERROR(VLOOKUP(B159,'Zebrik W'!$B$7:$N$1000,13,0)),"",IF(VLOOKUP(B159,'Zebrik W'!$B$7:$N$1000,13,0)=0,"--",VLOOKUP(B159,'Zebrik W'!$B$7:$N$1000,13,0))) -> 
A160: =RANK(G160,G:G) -> 154 | B160: Tomas Ditrt | C160: 1969 | D160: M | E160: Podhořany | F160: CZ/C2 | G160: 16365 | H160: 3 | I160: =RANK(G160,G:G) -> 154 | J160: =IF(ISERROR(VLOOKUP(B160,'N PMČR 2026'!B:G,6,0)),"-",VLOOKUP(B160,'N PMČR 2026'!B:G,6,0)) -> - | O160: =IF(ISERROR(VLOOKUP(B160,'Zebrik W'!$B$7:$N$1000,13,0)),"",IF(VLOOKUP(B160,'Zebrik W'!$B$7:$N$1000,13,0)=0,"--",VLOOKUP(B160,'Zebrik W'!$B$7:$N$1000,13,0))) -> 
A161: =RANK(G161,G:G) -> 155 | B161: Frantisek Komarek | C161: 1985 | D161: M | E161: Zbraslavice | F161: CZ/C1 | G161: 16208 | H161: 3 | I161: =RANK(G161,G:G) -> 155 | J161: =IF(ISERROR(VLOOKUP(B161,'N PMČR 2026'!B:G,6,0)),"-",VLOOKUP(B161,'N PMČR 2026'!B:G,6,0)) -> - | O161: =IF(ISERROR(VLOOKUP(B161,'Zebrik W'!$B$7:$N$1000,13,0)),"",IF(VLOOKUP(B161,'Zebrik W'!$B$7:$N$1000,13,0)=0,"--",VLOOKUP(B161,'Zebrik W'!$B$7:$N$1000,13,0))) -> 
A162: =RANK(G162,G:G) -> 156 | B162: Petr Havrlant | C162: 1965 | D162: M | E162: Šumperk | F162: CZ/M | G162: 16139 | H162: 3 | I162: =RANK(G162,G:G) -> 156 | J162: =IF(ISERROR(VLOOKUP(B162,'N PMČR 2026'!B:G,6,0)),"-",VLOOKUP(B162,'N PMČR 2026'!B:G,6,0)) -> - | O162: =IF(ISERROR(VLOOKUP(B162,'Zebrik W'!$B$7:$N$1000,13,0)),"",IF(VLOOKUP(B162,'Zebrik W'!$B$7:$N$1000,13,0)=0,"--",VLOOKUP(B162,'Zebrik W'!$B$7:$N$1000,13,0))) -> 
A163: =RANK(G163,G:G) -> 157 | B163: Olga Mokosova | C163: 1970 | D163: F | E163: Jihlava | F163: CZ/M | G163: 16064 | H163: 3 | I163: =RANK(G163,G:G) -> 157 | J163: =IF(ISERROR(VLOOKUP(B163,'N PMČR 2026'!B:G,6,0)),"-",VLOOKUP(B163,'N PMČR 2026'!B:G,6,0)) -> - | O163: =IF(ISERROR(VLOOKUP(B163,'Zebrik W'!$B$7:$N$1000,13,0)),"",IF(VLOOKUP(B163,'Zebrik W'!$B$7:$N$1000,13,0)=0,"--",VLOOKUP(B163,'Zebrik W'!$B$7:$N$1000,13,0))) -> --
A164: =RANK(G164,G:G) -> 158 | B164: Marek Pechanec | C164: 1970 | D164: M | E164: Luhačovice | F164: CZ/M | G164: 16061 | H164: 2 | I164: =RANK(G164,G:G) -> 158 | J164: =IF(ISERROR(VLOOKUP(B164,'N PMČR 2026'!B:G,6,0)),"-",VLOOKUP(B164,'N PMČR 2026'!B:G,6,0)) -> - | O164: =IF(ISERROR(VLOOKUP(B164,'Zebrik W'!$B$7:$N$1000,13,0)),"",IF(VLOOKUP(B164,'Zebrik W'!$B$7:$N$1000,13,0)=0,"--",VLOOKUP(B164,'Zebrik W'!$B$7:$N$1000,13,0))) -> 
A165: =RANK(G165,G:G) -> 159 | B165: Radoslav Pur | C165: 1973 | D165: M | E165: Hosín | F165: CZ/C1 | G165: 16034 | H165: 3 | I165: =RANK(G165,G:G) -> 159 | J165: =IF(ISERROR(VLOOKUP(B165,'N PMČR 2026'!B:G,6,0)),"-",VLOOKUP(B165,'N PMČR 2026'!B:G,6,0)) -> - | O165: =IF(ISERROR(VLOOKUP(B165,'Zebrik W'!$B$7:$N$1000,13,0)),"",IF(VLOOKUP(B165,'Zebrik W'!$B$7:$N$1000,13,0)=0,"--",VLOOKUP(B165,'Zebrik W'!$B$7:$N$1000,13,0))) -> 
A166: =RANK(G166,G:G) -> 160 | B166: Matej Plch | C166: 1987 | D166: M | E166: Letkov | F166: CZ/C1 | G166: 15729 | H166: 3 | I166: =RANK(G166,G:G) -> 160 | J166: =IF(ISERROR(VLOOKUP(B166,'N PMČR 2026'!B:G,6,0)),"-",VLOOKUP(B166,'N PMČR 2026'!B:G,6,0)) -> - | O166: =IF(ISERROR(VLOOKUP(B166,'Zebrik W'!$B$7:$N$1000,13,0)),"",IF(VLOOKUP(B166,'Zebrik W'!$B$7:$N$1000,13,0)=0,"--",VLOOKUP(B166,'Zebrik W'!$B$7:$N$1000,13,0))) -> 
A167: =RANK(G167,G:G) -> 161 | B167: Karel Benisek 76 | C167: 1976 | D167: M | E167: Toužim | F167: CZ/C1 | G167: 15537 | H167: 3 | I167: =RANK(G167,G:G) -> 161 | J167: =IF(ISERROR(VLOOKUP(B167,'N PMČR 2026'!B:G,6,0)),"-",VLOOKUP(B167,'N PMČR 2026'!B:G,6,0)) -> - | O167: =IF(ISERROR(VLOOKUP(B167,'Zebrik W'!$B$7:$N$1000,13,0)),"",IF(VLOOKUP(B167,'Zebrik W'!$B$7:$N$1000,13,0)=0,"--",VLOOKUP(B167,'Zebrik W'!$B$7:$N$1000,13,0))) -> 
A168: =RANK(G168,G:G) -> 162 | B168: Matej Bartos | C168: 1998 | D168: M | E168: Hodkovice | F168: CZ/C2 | G168: 15533 | H168: 3 | I168: =RANK(G168,G:G) -> 162 | J168: =IF(ISERROR(VLOOKUP(B168,'N PMČR 2026'!B:G,6,0)),"-",VLOOKUP(B168,'N PMČR 2026'!B:G,6,0)) -> - | O168: =IF(ISERROR(VLOOKUP(B168,'Zebrik W'!$B$7:$N$1000,13,0)),"",IF(VLOOKUP(B168,'Zebrik W'!$B$7:$N$1000,13,0)=0,"--",VLOOKUP(B168,'Zebrik W'!$B$7:$N$1000,13,0))) -> 
A169: =RANK(G169,G:G) -> 163 | B169: Miroslav Sklenar | C169: 1964 | D169: M | E169: Žamberk | F169: CZ/C2 | G169: 15529 | H169: 3 | I169: =RANK(G169,G:G) -> 163 | J169: =IF(ISERROR(VLOOKUP(B169,'N PMČR 2026'!B:G,6,0)),"-",VLOOKUP(B169,'N PMČR 2026'!B:G,6,0)) -> - | O169: =IF(ISERROR(VLOOKUP(B169,'Zebrik W'!$B$7:$N$1000,13,0)),"",IF(VLOOKUP(B169,'Zebrik W'!$B$7:$N$1000,13,0)=0,"--",VLOOKUP(B169,'Zebrik W'!$B$7:$N$1000,13,0))) -> 
A170: =RANK(G170,G:G) -> 164 | B170: Jan Svestka | C170: 2005 | D170: M | E170: Křižanov | F170: CZ/M | G170: 15423 | H170: 3 | I170: =RANK(G170,G:G) -> 164 | J170: =IF(ISERROR(VLOOKUP(B170,'N PMČR 2026'!B:G,6,0)),"-",VLOOKUP(B170,'N PMČR 2026'!B:G,6,0)) -> N5 | K170: Junior v roce 2026 | L170: Junior v roce 2027 | O170: =IF(ISERROR(VLOOKUP(B170,'Zebrik W'!$B$7:$N$1000,13,0)),"",IF(VLOOKUP(B170,'Zebrik W'!$B$7:$N$1000,13,0)=0,"--",VLOOKUP(B170,'Zebrik W'!$B$7:$N$1000,13,0))) -> 
A171: =RANK(G171,G:G) -> 165 | B171: Karel Mares | C171: 1974 | D171: M | E171: Slaný | F171: CZ/C1 | G171: 15339 | H171: 3 | I171: =RANK(G171,G:G) -> 165 | J171: =IF(ISERROR(VLOOKUP(B171,'N PMČR 2026'!B:G,6,0)),"-",VLOOKUP(B171,'N PMČR 2026'!B:G,6,0)) -> 60 | O171: =IF(ISERROR(VLOOKUP(B171,'Zebrik W'!$B$7:$N$1000,13,0)),"",IF(VLOOKUP(B171,'Zebrik W'!$B$7:$N$1000,13,0)=0,"--",VLOOKUP(B171,'Zebrik W'!$B$7:$N$1000,13,0))) -> 
A172: =RANK(G172,G:G) -> 166 | B172: Martin Cicvarek | C172: 1966 | D172: M | E172: Liberec | F172: CZ/C2 | G172: 15105 | H172: 3 | I172: =RANK(G172,G:G) -> 166 | J172: =IF(ISERROR(VLOOKUP(B172,'N PMČR 2026'!B:G,6,0)),"-",VLOOKUP(B172,'N PMČR 2026'!B:G,6,0)) -> - | O172: =IF(ISERROR(VLOOKUP(B172,'Zebrik W'!$B$7:$N$1000,13,0)),"",IF(VLOOKUP(B172,'Zebrik W'!$B$7:$N$1000,13,0)=0,"--",VLOOKUP(B172,'Zebrik W'!$B$7:$N$1000,13,0))) -> 
A173: =RANK(G173,G:G) -> 167 | B173: Vojtech Hajek | C173: 1987 | D173: M | E173: Mladá Boleslav | F173: CZ/C1 | G173: 15017 | H173: 3 | I173: =RANK(G173,G:G) -> 167 | J173: =IF(ISERROR(VLOOKUP(B173,'N PMČR 2026'!B:G,6,0)),"-",VLOOKUP(B173,'N PMČR 2026'!B:G,6,0)) -> - | O173: =IF(ISERROR(VLOOKUP(B173,'Zebrik W'!$B$7:$N$1000,13,0)),"",IF(VLOOKUP(B173,'Zebrik W'!$B$7:$N$1000,13,0)=0,"--",VLOOKUP(B173,'Zebrik W'!$B$7:$N$1000,13,0))) -> 
A174: =RANK(G174,G:G) -> 168 | B174: Slavomir Piskaty 84 | C174: 1984 | D174: M | E174: Kunovice | F174: CZ/M | G174: 15001 | H174: 2 | I174: =RANK(G174,G:G) -> 168 | J174: =IF(ISERROR(VLOOKUP(B174,'N PMČR 2026'!B:G,6,0)),"-",VLOOKUP(B174,'N PMČR 2026'!B:G,6,0)) -> - | O174: =IF(ISERROR(VLOOKUP(B174,'Zebrik W'!$B$7:$N$1000,13,0)),"",IF(VLOOKUP(B174,'Zebrik W'!$B$7:$N$1000,13,0)=0,"--",VLOOKUP(B174,'Zebrik W'!$B$7:$N$1000,13,0))) -> 
A175: =RANK(G175,G:G) -> 169 | B175: Vojtech Pavek | C175: 2000 | D175: M | E175: Medlánky | F175: CZ/M | G175: 14985 | H175: 3 | I175: =RANK(G175,G:G) -> 169 | J175: =IF(ISERROR(VLOOKUP(B175,'N PMČR 2026'!B:G,6,0)),"-",VLOOKUP(B175,'N PMČR 2026'!B:G,6,0)) -> N3 | O175: =IF(ISERROR(VLOOKUP(B175,'Zebrik W'!$B$7:$N$1000,13,0)),"",IF(VLOOKUP(B175,'Zebrik W'!$B$7:$N$1000,13,0)=0,"--",VLOOKUP(B175,'Zebrik W'!$B$7:$N$1000,13,0))) -> 
A176: =RANK(G176,G:G) -> 170 | B176: Petr Lonsky | C176: 1965 | D176: M | E176: Toužim | F176: CZ/C1 | G176: 14740 | H176: 3 | I176: =RANK(G176,G:G) -> 170 | J176: =IF(ISERROR(VLOOKUP(B176,'N PMČR 2026'!B:G,6,0)),"-",VLOOKUP(B176,'N PMČR 2026'!B:G,6,0)) -> - | O176: =IF(ISERROR(VLOOKUP(B176,'Zebrik W'!$B$7:$N$1000,13,0)),"",IF(VLOOKUP(B176,'Zebrik W'!$B$7:$N$1000,13,0)=0,"--",VLOOKUP(B176,'Zebrik W'!$B$7:$N$1000,13,0))) -> 
A177: =RANK(G177,G:G) -> 171 | B177: Stepan Obrovsky | C177: 1990 | D177: M | E177: Frýdlant | F177: CZ/M | G177: 14716 | H177: 3 | I177: =RANK(G177,G:G) -> 171 | J177: =IF(ISERROR(VLOOKUP(B177,'N PMČR 2026'!B:G,6,0)),"-",VLOOKUP(B177,'N PMČR 2026'!B:G,6,0)) -> - | O177: =IF(ISERROR(VLOOKUP(B177,'Zebrik W'!$B$7:$N$1000,13,0)),"",IF(VLOOKUP(B177,'Zebrik W'!$B$7:$N$1000,13,0)=0,"--",VLOOKUP(B177,'Zebrik W'!$B$7:$N$1000,13,0))) -> 
A178: =RANK(G178,G:G) -> 172 | B178: David Vrchota | C178: 1976 | D178: M | E178: Jaroměř | F178: CZ/C2 | G178: 14603 | H178: 2 | I178: =RANK(G178,G:G) -> 172 | J178: =IF(ISERROR(VLOOKUP(B178,'N PMČR 2026'!B:G,6,0)),"-",VLOOKUP(B178,'N PMČR 2026'!B:G,6,0)) -> - | O178: =IF(ISERROR(VLOOKUP(B178,'Zebrik W'!$B$7:$N$1000,13,0)),"",IF(VLOOKUP(B178,'Zebrik W'!$B$7:$N$1000,13,0)=0,"--",VLOOKUP(B178,'Zebrik W'!$B$7:$N$1000,13,0))) -> 
A179: =RANK(G179,G:G) -> 173 | B179: Lukas Volek | C179: 2004 | D179: M | E179: Hodkovice | F179: CZ/C2 | G179: 14548 | H179: 2 | I179: =RANK(G179,G:G) -> 173 | J179: =IF(ISERROR(VLOOKUP(B179,'N PMČR 2026'!B:G,6,0)),"-",VLOOKUP(B179,'N PMČR 2026'!B:G,6,0)) -> 47 | K179: Junior v roce 2026 | L179: Junior v roce 2027 | O179: =IF(ISERROR(VLOOKUP(B179,'Zebrik W'!$B$7:$N$1000,13,0)),"",IF(VLOOKUP(B179,'Zebrik W'!$B$7:$N$1000,13,0)=0,"--",VLOOKUP(B179,'Zebrik W'!$B$7:$N$1000,13,0))) -> 
A180: =RANK(G180,G:G) -> 174 | B180: Pavel Haluza | C180: 1966 | D180: M | E180: Prostějov | F180: CZ/M | G180: 14539 | H180: 3 | I180: =RANK(G180,G:G) -> 174 | J180: =IF(ISERROR(VLOOKUP(B180,'N PMČR 2026'!B:G,6,0)),"-",VLOOKUP(B180,'N PMČR 2026'!B:G,6,0)) -> - | O180: =IF(ISERROR(VLOOKUP(B180,'Zebrik W'!$B$7:$N$1000,13,0)),"",IF(VLOOKUP(B180,'Zebrik W'!$B$7:$N$1000,13,0)=0,"--",VLOOKUP(B180,'Zebrik W'!$B$7:$N$1000,13,0))) -> 
A181: =RANK(G181,G:G) -> 175 | B181: Petr Setka | C181: 1971 | D181: M | E181: Letkov | F181: CZ/C1 | G181: 14497 | H181: 2 | I181: =RANK(G181,G:G) -> 175 | J181: =IF(ISERROR(VLOOKUP(B181,'N PMČR 2026'!B:G,6,0)),"-",VLOOKUP(B181,'N PMČR 2026'!B:G,6,0)) -> - | O181: =IF(ISERROR(VLOOKUP(B181,'Zebrik W'!$B$7:$N$1000,13,0)),"",IF(VLOOKUP(B181,'Zebrik W'!$B$7:$N$1000,13,0)=0,"--",VLOOKUP(B181,'Zebrik W'!$B$7:$N$1000,13,0))) -> 
A182: =RANK(G182,G:G) -> 176 | B182: Roman Schotli | C182: 1970 | D182: M | E182: Hranice | F182: CZ/M | G182: 14444 | H182: 3 | I182: =RANK(G182,G:G) -> 176 | J182: =IF(ISERROR(VLOOKUP(B182,'N PMČR 2026'!B:G,6,0)),"-",VLOOKUP(B182,'N PMČR 2026'!B:G,6,0)) -> - | O182: =IF(ISERROR(VLOOKUP(B182,'Zebrik W'!$B$7:$N$1000,13,0)),"",IF(VLOOKUP(B182,'Zebrik W'!$B$7:$N$1000,13,0)=0,"--",VLOOKUP(B182,'Zebrik W'!$B$7:$N$1000,13,0))) -> 
A183: =RANK(G183,G:G) -> 177 | B183: Jan Sponer | C183: 1988 | D183: M | E183: Medlánky | F183: CZ/M | G183: 14427 | H183: 2 | I183: =RANK(G183,G:G) -> 177 | J183: =IF(ISERROR(VLOOKUP(B183,'N PMČR 2026'!B:G,6,0)),"-",VLOOKUP(B183,'N PMČR 2026'!B:G,6,0)) -> - | O183: =IF(ISERROR(VLOOKUP(B183,'Zebrik W'!$B$7:$N$1000,13,0)),"",IF(VLOOKUP(B183,'Zebrik W'!$B$7:$N$1000,13,0)=0,"--",VLOOKUP(B183,'Zebrik W'!$B$7:$N$1000,13,0))) -> 
A184: =RANK(G184,G:G) -> 178 | B184: Petr Kolomaznik | C184: 1981 | D184: M | E184: Šumperk | F184: CZ/M | G184: 14391 | H184: 3 | I184: =RANK(G184,G:G) -> 178 | J184: =IF(ISERROR(VLOOKUP(B184,'N PMČR 2026'!B:G,6,0)),"-",VLOOKUP(B184,'N PMČR 2026'!B:G,6,0)) -> - | O184: =IF(ISERROR(VLOOKUP(B184,'Zebrik W'!$B$7:$N$1000,13,0)),"",IF(VLOOKUP(B184,'Zebrik W'!$B$7:$N$1000,13,0)=0,"--",VLOOKUP(B184,'Zebrik W'!$B$7:$N$1000,13,0))) -> 
A185: =RANK(G185,G:G) -> 179 | B185: Pavel Koudelka | C185: 1973 | D185: M | E185: Křižanov | F185: CZ/M | G185: 14339 | H185: 3 | I185: =RANK(G185,G:G) -> 179 | J185: =IF(ISERROR(VLOOKUP(B185,'N PMČR 2026'!B:G,6,0)),"-",VLOOKUP(B185,'N PMČR 2026'!B:G,6,0)) -> 55 | O185: =IF(ISERROR(VLOOKUP(B185,'Zebrik W'!$B$7:$N$1000,13,0)),"",IF(VLOOKUP(B185,'Zebrik W'!$B$7:$N$1000,13,0)=0,"--",VLOOKUP(B185,'Zebrik W'!$B$7:$N$1000,13,0))) -> 
A186: =RANK(G186,G:G) -> 180 | B186: Vojtech Pivonka | C186: 1976 | D186: M | E186: Vrchlabí | F186: CZ/C2 | G186: 14288 | H186: 3 | I186: =RANK(G186,G:G) -> 180 | J186: =IF(ISERROR(VLOOKUP(B186,'N PMČR 2026'!B:G,6,0)),"-",VLOOKUP(B186,'N PMČR 2026'!B:G,6,0)) -> - | O186: =IF(ISERROR(VLOOKUP(B186,'Zebrik W'!$B$7:$N$1000,13,0)),"",IF(VLOOKUP(B186,'Zebrik W'!$B$7:$N$1000,13,0)=0,"--",VLOOKUP(B186,'Zebrik W'!$B$7:$N$1000,13,0))) -> 
A187: =RANK(G187,G:G) -> 181 | B187: Ivo Burda | C187: 1962 | D187: M | E187: Zbraslavice | F187: CZ/C1 | G187: 14257 | H187: 3 | I187: =RANK(G187,G:G) -> 181 | J187: =IF(ISERROR(VLOOKUP(B187,'N PMČR 2026'!B:G,6,0)),"-",VLOOKUP(B187,'N PMČR 2026'!B:G,6,0)) -> - | O187: =IF(ISERROR(VLOOKUP(B187,'Zebrik W'!$B$7:$N$1000,13,0)),"",IF(VLOOKUP(B187,'Zebrik W'!$B$7:$N$1000,13,0)=0,"--",VLOOKUP(B187,'Zebrik W'!$B$7:$N$1000,13,0))) -> 
A188: =RANK(G188,G:G) -> 182 | B188: Jan Hejret | C188: 1976 | D188: M | E188: Jaroměř | F188: CZ/C2 | G188: 14222 | H188: 3 | I188: =RANK(G188,G:G) -> 182 | J188: =IF(ISERROR(VLOOKUP(B188,'N PMČR 2026'!B:G,6,0)),"-",VLOOKUP(B188,'N PMČR 2026'!B:G,6,0)) -> - | O188: =IF(ISERROR(VLOOKUP(B188,'Zebrik W'!$B$7:$N$1000,13,0)),"",IF(VLOOKUP(B188,'Zebrik W'!$B$7:$N$1000,13,0)=0,"--",VLOOKUP(B188,'Zebrik W'!$B$7:$N$1000,13,0))) -> 
A189: =RANK(G189,G:G) -> 183 | B189: Lubomir Doupal | C189: 1975 | D189: M | E189: Kroměříž | F189: CZ/M | G189: 14126 | H189: 3 | I189: =RANK(G189,G:G) -> 183 | J189: =IF(ISERROR(VLOOKUP(B189,'N PMČR 2026'!B:G,6,0)),"-",VLOOKUP(B189,'N PMČR 2026'!B:G,6,0)) -> - | O189: =IF(ISERROR(VLOOKUP(B189,'Zebrik W'!$B$7:$N$1000,13,0)),"",IF(VLOOKUP(B189,'Zebrik W'!$B$7:$N$1000,13,0)=0,"--",VLOOKUP(B189,'Zebrik W'!$B$7:$N$1000,13,0))) -> 
A190: =RANK(G190,G:G) -> 184 | B190: Vit Prokop | C190: 1987 | D190: M | E190: Medlánky | F190: CZ/M | G190: 14031 | H190: 3 | I190: =RANK(G190,G:G) -> 184 | J190: =IF(ISERROR(VLOOKUP(B190,'N PMČR 2026'!B:G,6,0)),"-",VLOOKUP(B190,'N PMČR 2026'!B:G,6,0)) -> - | O190: =IF(ISERROR(VLOOKUP(B190,'Zebrik W'!$B$7:$N$1000,13,0)),"",IF(VLOOKUP(B190,'Zebrik W'!$B$7:$N$1000,13,0)=0,"--",VLOOKUP(B190,'Zebrik W'!$B$7:$N$1000,13,0))) -> 
A191: =RANK(G191,G:G) -> 185 | B191: Milos Matejka | C191: 1956 | D191: M | E191: Beroun | F191: CZ/C1 | G191: 13878 | H191: 3 | I191: =RANK(G191,G:G) -> 185 | J191: =IF(ISERROR(VLOOKUP(B191,'N PMČR 2026'!B:G,6,0)),"-",VLOOKUP(B191,'N PMČR 2026'!B:G,6,0)) -> - | O191: =IF(ISERROR(VLOOKUP(B191,'Zebrik W'!$B$7:$N$1000,13,0)),"",IF(VLOOKUP(B191,'Zebrik W'!$B$7:$N$1000,13,0)=0,"--",VLOOKUP(B191,'Zebrik W'!$B$7:$N$1000,13,0))) -> 
A192: =RANK(G192,G:G) -> 186 | B192: Jaromir Pauer | C192: 1974 | D192: M | E192: Hosín | F192: CZ/C1 | G192: 13865 | H192: 2 | I192: =RANK(G192,G:G) -> 186 | J192: =IF(ISERROR(VLOOKUP(B192,'N PMČR 2026'!B:G,6,0)),"-",VLOOKUP(B192,'N PMČR 2026'!B:G,6,0)) -> - | O192: =IF(ISERROR(VLOOKUP(B192,'Zebrik W'!$B$7:$N$1000,13,0)),"",IF(VLOOKUP(B192,'Zebrik W'!$B$7:$N$1000,13,0)=0,"--",VLOOKUP(B192,'Zebrik W'!$B$7:$N$1000,13,0))) -> 
A193: =RANK(G193,G:G) -> 187 | B193: Vaclav Hruza | C193: 1965 | D193: M | E193: Břeclav | F193: CZ/M | G193: 13825 | H193: 3 | I193: =RANK(G193,G:G) -> 187 | J193: =IF(ISERROR(VLOOKUP(B193,'N PMČR 2026'!B:G,6,0)),"-",VLOOKUP(B193,'N PMČR 2026'!B:G,6,0)) -> - | O193: =IF(ISERROR(VLOOKUP(B193,'Zebrik W'!$B$7:$N$1000,13,0)),"",IF(VLOOKUP(B193,'Zebrik W'!$B$7:$N$1000,13,0)=0,"--",VLOOKUP(B193,'Zebrik W'!$B$7:$N$1000,13,0))) -> 
A194: =RANK(G194,G:G) -> 188 | B194: Danes Grula | C194: 1961 | D194: M | E194: Medlánky | F194: CZ/M | G194: 13736 | H194: 2 | I194: =RANK(G194,G:G) -> 188 | J194: =IF(ISERROR(VLOOKUP(B194,'N PMČR 2026'!B:G,6,0)),"-",VLOOKUP(B194,'N PMČR 2026'!B:G,6,0)) -> - | O194: =IF(ISERROR(VLOOKUP(B194,'Zebrik W'!$B$7:$N$1000,13,0)),"",IF(VLOOKUP(B194,'Zebrik W'!$B$7:$N$1000,13,0)=0,"--",VLOOKUP(B194,'Zebrik W'!$B$7:$N$1000,13,0))) -> 
A195: =RANK(G195,G:G) -> 189 | B195: Frantisek Filandr | C195: 1956 | D195: M | E195: Most | F195: CZ/C2 | G195: 13725 | H195: 2 | I195: =RANK(G195,G:G) -> 189 | J195: =IF(ISERROR(VLOOKUP(B195,'N PMČR 2026'!B:G,6,0)),"-",VLOOKUP(B195,'N PMČR 2026'!B:G,6,0)) -> - | O195: =IF(ISERROR(VLOOKUP(B195,'Zebrik W'!$B$7:$N$1000,13,0)),"",IF(VLOOKUP(B195,'Zebrik W'!$B$7:$N$1000,13,0)=0,"--",VLOOKUP(B195,'Zebrik W'!$B$7:$N$1000,13,0))) -> 
A196: =RANK(G196,G:G) -> 189 | B196: Daniel Ryba | C196: 1994 | D196: M | E196: Dvůr Králové | F196: CZ/C2 | G196: 13725 | H196: 2 | I196: =RANK(G196,G:G) -> 189 | J196: =IF(ISERROR(VLOOKUP(B196,'N PMČR 2026'!B:G,6,0)),"-",VLOOKUP(B196,'N PMČR 2026'!B:G,6,0)) -> - | O196: =IF(ISERROR(VLOOKUP(B196,'Zebrik W'!$B$7:$N$1000,13,0)),"",IF(VLOOKUP(B196,'Zebrik W'!$B$7:$N$1000,13,0)=0,"--",VLOOKUP(B196,'Zebrik W'!$B$7:$N$1000,13,0))) -> 
A197: =RANK(G197,G:G) -> 191 | B197: Martin Fric | C197: 1967 | D197: M | E197: Raná | F197: CZ/C2 | G197: 13693 | H197: 3 | I197: =RANK(G197,G:G) -> 191 | J197: =IF(ISERROR(VLOOKUP(B197,'N PMČR 2026'!B:G,6,0)),"-",VLOOKUP(B197,'N PMČR 2026'!B:G,6,0)) -> - | O197: =IF(ISERROR(VLOOKUP(B197,'Zebrik W'!$B$7:$N$1000,13,0)),"",IF(VLOOKUP(B197,'Zebrik W'!$B$7:$N$1000,13,0)=0,"--",VLOOKUP(B197,'Zebrik W'!$B$7:$N$1000,13,0))) -> 
A198: =RANK(G198,G:G) -> 192 | B198: David Benda | C198: 1974 | D198: M | E198: Letňany | F198: CZ/C1 | G198: 13603 | H198: 3 | I198: =RANK(G198,G:G) -> 192 | J198: =IF(ISERROR(VLOOKUP(B198,'N PMČR 2026'!B:G,6,0)),"-",VLOOKUP(B198,'N PMČR 2026'!B:G,6,0)) -> - | O198: =IF(ISERROR(VLOOKUP(B198,'Zebrik W'!$B$7:$N$1000,13,0)),"",IF(VLOOKUP(B198,'Zebrik W'!$B$7:$N$1000,13,0)=0,"--",VLOOKUP(B198,'Zebrik W'!$B$7:$N$1000,13,0))) -> 
A199: =RANK(G199,G:G) -> 193 | B199: Martin Suchy | C199: 1969 | D199: M | E199: Hranice | F199: CZ/M | G199: 13496 | H199: 2 | I199: =RANK(G199,G:G) -> 193 | J199: =IF(ISERROR(VLOOKUP(B199,'N PMČR 2026'!B:G,6,0)),"-",VLOOKUP(B199,'N PMČR 2026'!B:G,6,0)) -> - | O199: =IF(ISERROR(VLOOKUP(B199,'Zebrik W'!$B$7:$N$1000,13,0)),"",IF(VLOOKUP(B199,'Zebrik W'!$B$7:$N$1000,13,0)=0,"--",VLOOKUP(B199,'Zebrik W'!$B$7:$N$1000,13,0))) -> 
A200: =RANK(G200,G:G) -> 194 | B200: Karel Horalek | C200: 1976 | D200: M | E200: Olomouc | F200: CZ/M | G200: 13486 | H200: 2 | I200: =RANK(G200,G:G) -> 194 | J200: =IF(ISERROR(VLOOKUP(B200,'N PMČR 2026'!B:G,6,0)),"-",VLOOKUP(B200,'N PMČR 2026'!B:G,6,0)) -> - | K200: =IF(C200="(prázdné)","",IF(($K$4-C200)>25,"","Junior v roce "&$K$4)) ->  | L200: =IF(C200="(prázdné)","",IF(($L$4-C200)>25,"","Junior v roce "&$L$4)) ->  | O200: =IF(ISERROR(VLOOKUP(B200,'Zebrik W'!$B$7:$N$1000,13,0)),"",IF(VLOOKUP(B200,'Zebrik W'!$B$7:$N$1000,13,0)=0,"--",VLOOKUP(B200,'Zebrik W'!$B$7:$N$1000,13,0))) -> 
A201: =RANK(G201,G:G) -> 195 | B201: Pavel Foldyna | C201: 1976 | D201: M | E201: Frýdlant | F201: CZ/M | G201: 13394 | H201: 2 | I201: =RANK(G201,G:G) -> 195 | J201: =IF(ISERROR(VLOOKUP(B201,'N PMČR 2026'!B:G,6,0)),"-",VLOOKUP(B201,'N PMČR 2026'!B:G,6,0)) -> - | O201: =IF(ISERROR(VLOOKUP(B201,'Zebrik W'!$B$7:$N$1000,13,0)),"",IF(VLOOKUP(B201,'Zebrik W'!$B$7:$N$1000,13,0)=0,"--",VLOOKUP(B201,'Zebrik W'!$B$7:$N$1000,13,0))) -> 
... 782 more rows

Sheet Zebrik W
B1: ="Ženský Žebřík pilotek plachtařek PK AeČR "&A6 -> Ženský Žebřík pilotek plachtařek PK AeČR 2025 | K1: ='Zebrik G'!K1 -> 2025-12-21 | L1: Rev. | M1: ='Zebrik G'!M1 -> 02 | N1: ='Zebrik G'!N1 -> Opraveny chyby, odstraněny HOP 2025
B3: W | C3: x | J3: Nominace | K3: Juniorka v roce: | L3: Juniorka v roce: | M3: ="W Repre družstvo "&K4 -> W Repre družstvo 2026 | N3: ="W Repre výběr "&K4 -> W Repre výběr 2026 | O3: Poznámka
J4: PMČR 2026 | K4: =A6+1 -> 2026 | L4: =A6+2 -> 2027 | M4: (WRD) | N4: (WRV)
A5: Pořadí | G5: Data | I5: Pořadí | K5: =COUNTIF(K7:K489,"Juniorka v roce "&$K$4) -> 8 | L5: =COUNTIF(L7:L489,"Juniorka v roce "&$L$4) -> 6 | M5: =COUNTIF(M7:M489,"WRD "&$K$4) -> 0 | N5: =COUNTIF(N7:N489,"WRV "&$K$4) -> 12 | O5: =COUNTIF(O7:O489,"<>") -> 0
A6: ='Zebrik G'!A6 -> 2025 | B6: Jméno | C6: Rok narození | D6: M/F | E6: Aeroklub | F6: Region | G6: Součet z Bi×Kinp | H6: Počet W | I6: ='Zebrik G'!I6 -> 2025
A7: =RANK(G7,G:G) -> 1 | B7: Alena Netusilova | C7: 1970 | D7: F | E7: Zbraslavice | F7: CZ/C1 | G7: 30464 | H7: 3 | I7: =RANK(G7,G:G) -> 1 | J7: =IF(ISERROR(VLOOKUP(B7,'N PMČR 2026'!B:G,6,0)),"-",VLOOKUP(B7,'N PMČR 2026'!B:G,6,0)) -> 25 | K7: =IF(C7="(prázdné)","",IF(($K$4-C7)>25,"","Juniorka v roce "&$K$4)) ->  | L7: =IF(C7="(prázdné)","",IF(($L$4-C7)>25,"","Juniorka v roce "&$L$4)) ->  | N7: WRV 2026
A8: 2 | B8: Michaela Krizova | C8: 2001 | D8: F | E8: Přibyslav | F8: CZ/C2 | G8: 29616 | H8: 3 | I8: =RANK(G8,G:G) -> 2 | J8: =IF(ISERROR(VLOOKUP(B8,'N PMČR 2026'!B:G,6,0)),"-",VLOOKUP(B8,'N PMČR 2026'!B:G,6,0)) -> 15 | K8: =IF(C8="(prázdné)","",IF(($K$4-C8)>25,"","Juniorka v roce "&$K$4)) -> Juniorka v roce 2026 | L8: =IF(C8="(prázdné)","",IF(($L$4-C8)>25,"","Juniorka v roce "&$L$4)) ->  | N8: WRV 2026
A9: 3 | B9: Tereza Koubkova | C9: 1999 | D9: F | E9: Strakonice | F9: CZ/C1 | G9: 29258 | H9: 3 | I9: 3 | J9: =IF(ISERROR(VLOOKUP(B9,'N PMČR 2026'!B:G,6,0)),"-",VLOOKUP(B9,'N PMČR 2026'!B:G,6,0)) -> 22 | N9: WRV 2026
A10: 4 | B10: Michaela Rendlova | C10: 2004 | D10: F | E10: Toužim | F10: CZ/C1 | G10: 28958 | H10: 3 | I10: 4 | J10: =IF(ISERROR(VLOOKUP(B10,'N PMČR 2026'!B:G,6,0)),"-",VLOOKUP(B10,'N PMČR 2026'!B:G,6,0)) -> 18 | K10: Juniorka v roce 2026 | L10: Juniorka v roce 2027 | N10: WRV 2026
A11: 5 | B11: Hana Treslova | C11: 1991 | D11: F | E11: Raná | F11: CZ/C2 | G11: 28021 | H11: 3 | I11: 5 | J11: =IF(ISERROR(VLOOKUP(B11,'N PMČR 2026'!B:G,6,0)),"-",VLOOKUP(B11,'N PMČR 2026'!B:G,6,0)) -> 17 | N11: WRV 2026
A12: 6 | B12: Barbora Moravcova | C12: 1994 | D12: F | E12: Zbraslavice | F12: CZ/C1 | G12: 27789 | H12: 3 | I12: 6 | J12: =IF(ISERROR(VLOOKUP(B12,'N PMČR 2026'!B:G,6,0)),"-",VLOOKUP(B12,'N PMČR 2026'!B:G,6,0)) -> 27 | N12: WRV 2026
A13: 7 | B13: Dana Novakova | C13: 1965 | D13: F | E13: Mladá Boleslav | F13: CZ/C1 | G13: 24367 | H13: 3 | I13: 7 | J13: =IF(ISERROR(VLOOKUP(B13,'N PMČR 2026'!B:G,6,0)),"-",VLOOKUP(B13,'N PMČR 2026'!B:G,6,0)) -> 26 | N13: WRV 2026
A14: 8 | B14: Jana Treslova | C14: 1963 | D14: F | E14: Raná | F14: CZ/C2 | G14: 24274 | H14: 3 | I14: 8 | J14: =IF(ISERROR(VLOOKUP(B14,'N PMČR 2026'!B:G,6,0)),"-",VLOOKUP(B14,'N PMČR 2026'!B:G,6,0)) -> 28 | N14: WRV 2026
A15: 9 | B15: Katerina Vojtova | C15: 1983 | D15: F | E15: Slaný | F15: CZ/C1 | G15: 23234 | H15: 3 | I15: 9 | J15: =IF(ISERROR(VLOOKUP(B15,'N PMČR 2026'!B:G,6,0)),"-",VLOOKUP(B15,'N PMČR 2026'!B:G,6,0)) -> 30 | N15: WRV 2026
A16: 10 | B16: Petra Piskata | C16: 1989 | D16: F | E16: Luhačovice | F16: CZ/M | G16: 22839 | H16: 3 | I16: 10 | J16: =IF(ISERROR(VLOOKUP(B16,'N PMČR 2026'!B:G,6,0)),"-",VLOOKUP(B16,'N PMČR 2026'!B:G,6,0)) -> 31 | N16: WRV 2026
A17: 11 | B17: Eliska Kudejova | C17: 2006 | D17: F | E17: Strakonice | F17: CZ/C1 | G17: 21916 | H17: 3 | I17: 11 | J17: =IF(ISERROR(VLOOKUP(B17,'N PMČR 2026'!B:G,6,0)),"-",VLOOKUP(B17,'N PMČR 2026'!B:G,6,0)) -> 29 | K17: Juniorka v roce 2026 | L17: Juniorka v roce 2027 | N17: WRV 2026
A18: 12 | B18: Pavlina Horackova | C18: 1965 | D18: F | E18: Šumperk | F18: CZ/M | G18: 20388 | H18: 3 | I18: 12 | J18: =IF(ISERROR(VLOOKUP(B18,'N PMČR 2026'!B:G,6,0)),"-",VLOOKUP(B18,'N PMČR 2026'!B:G,6,0)) -> 57
A19: 13 | B19: Katerina Vancurova | C19: 2002 | D19: F | E19: Hranice | F19: CZ/M | G19: 17173 | H19: 3 | I19: 13 | J19: =IF(ISERROR(VLOOKUP(B19,'N PMČR 2026'!B:G,6,0)),"-",VLOOKUP(B19,'N PMČR 2026'!B:G,6,0)) -> N1 | K19: Juniorka v roce 2026 | L19: Juniorka v roce 2027
A20: 14 | B20: Olga Mokosova | C20: 1970 | D20: F | E20: Jihlava | F20: CZ/M | G20: 16064 | H20: 3 | I20: 14 | J20: =IF(ISERROR(VLOOKUP(B20,'N PMČR 2026'!B:G,6,0)),"-",VLOOKUP(B20,'N PMČR 2026'!B:G,6,0)) -> -
A21: 15 | B21: Klara Teichmannova | C21: 1993 | D21: F | E21: Hronov | F21: CZ/C2 | G21: 15475 | H21: 2 | I21: 15 | J21: =IF(ISERROR(VLOOKUP(B21,'N PMČR 2026'!B:G,6,0)),"-",VLOOKUP(B21,'N PMČR 2026'!B:G,6,0)) -> 32 | N21: WRV 2026
A22: 16 | B22: Adela Vachova | C22: 2007 | D22: F | E22: Hodkovice | F22: CZ/C2 | G22: 7754 | H22: 2 | I22: 16 | J22: =IF(ISERROR(VLOOKUP(B22,'N PMČR 2026'!B:G,6,0)),"-",VLOOKUP(B22,'N PMČR 2026'!B:G,6,0)) -> - | K22: Juniorka v roce 2026 | L22: Juniorka v roce 2027
A23: 17 | B23: Yvona Vyhnankova | C23: 1963 | D23: F | E23: Olomouc | F23: CZ/M | G23: 7393 | H23: 3 | I23: 17 | J23: =IF(ISERROR(VLOOKUP(B23,'N PMČR 2026'!B:G,6,0)),"-",VLOOKUP(B23,'N PMČR 2026'!B:G,6,0)) -> -
A24: 18 | B24: Sarka Lochova | C24: 1966 | D24: F | E24: Šumperk | F24: CZ/M | G24: 7317 | H24: 3 | I24: 18 | J24: =IF(ISERROR(VLOOKUP(B24,'N PMČR 2026'!B:G,6,0)),"-",VLOOKUP(B24,'N PMČR 2026'!B:G,6,0)) -> -
A25: 19 | B25: Jana Mezerova | C25: 1975 | D25: F | E25: Raná | F25: CZ/C2 | G25: 6702 | H25: 2 | I25: 19 | J25: =IF(ISERROR(VLOOKUP(B25,'N PMČR 2026'!B:G,6,0)),"-",VLOOKUP(B25,'N PMČR 2026'!B:G,6,0)) -> -
A26: 20 | B26: Tereza Ludvikova | C26: 1997 | D26: F | E26: Jaroměř | F26: CZ/C2 | G26: 5772 | H26: 1 | I26: 20 | J26: =IF(ISERROR(VLOOKUP(B26,'N PMČR 2026'!B:G,6,0)),"-",VLOOKUP(B26,'N PMČR 2026'!B:G,6,0)) -> -
A27: 21 | B27: Anna Lanzendorfova | C27: 2005 | D27: F | E27: Letkov | F27: CZ/C1 | G27: 4981 | H27: 1 | I27: 21 | J27: =IF(ISERROR(VLOOKUP(B27,'N PMČR 2026'!B:G,6,0)),"-",VLOOKUP(B27,'N PMČR 2026'!B:G,6,0)) -> - | K27: Juniorka v roce 2026 | L27: Juniorka v roce 2027
A28: 22 | B28: Eva Klapkova | C28: 1993 | D28: F | E28: Raná | F28: CZ/C2 | G28: 4620 | H28: 2 | I28: 22 | J28: =IF(ISERROR(VLOOKUP(B28,'N PMČR 2026'!B:G,6,0)),"-",VLOOKUP(B28,'N PMČR 2026'!B:G,6,0)) -> -
A29: 23 | B29: Viktorie Kusa | C29: 2004 | D29: F | E29: Letňany | F29: CZ/C1 | G29: 3979 | H29: 1 | I29: 23 | J29: =IF(ISERROR(VLOOKUP(B29,'N PMČR 2026'!B:G,6,0)),"-",VLOOKUP(B29,'N PMČR 2026'!B:G,6,0)) -> - | K29: Juniorka v roce 2026 | L29: Juniorka v roce 2027
A30: 24 | B30: Marie Vesela | C30: 1999 | D30: F | E30: Staňkov | F30: CZ/C1 | G30: 3617 | H30: 3 | I30: 24 | J30: =IF(ISERROR(VLOOKUP(B30,'N PMČR 2026'!B:G,6,0)),"-",VLOOKUP(B30,'N PMČR 2026'!B:G,6,0)) -> -
A31: 25 | B31: Tereza Novakova | C31: 1993 | D31: F | E31: Chrudim | F31: CZ/C2 | G31: 2570 | H31: 1 | I31: 25 | J31: =IF(ISERROR(VLOOKUP(B31,'N PMČR 2026'!B:G,6,0)),"-",VLOOKUP(B31,'N PMČR 2026'!B:G,6,0)) -> -
A32: 26 | B32: Petra Ctibor | C32: 1991 | D32: F | E32: Medlánky | F32: CZ/M | G32: 2402 | H32: 1 | I32: 26 | J32: =IF(ISERROR(VLOOKUP(B32,'N PMČR 2026'!B:G,6,0)),"-",VLOOKUP(B32,'N PMČR 2026'!B:G,6,0)) -> -
A33: 27 | B33: Zuzana Novakova | C33: 2001 | D33: F | E33: Hranice | F33: CZ/M | G33: 1852 | H33: 1 | I33: 27 | J33: =IF(ISERROR(VLOOKUP(B33,'N PMČR 2026'!B:G,6,0)),"-",VLOOKUP(B33,'N PMČR 2026'!B:G,6,0)) -> - | K33: =IF(C33="(prázdné)","",IF(($K$4-C33)>25,"","Juniorka v roce "&$K$4)) -> Juniorka v roce 2026 | L33: =IF(C33="(prázdné)","",IF(($L$4-C33)>25,"","Juniorka v roce "&$L$4)) -> 

Sheet KB PMRg 2023
A1: PMRg 2023 - Hosín - Korigované body
A2: Pořadí v KB | B2: Jméno | C2: Rok narození | D2: M/F | E2: Aeroklub | F2: Region | G2: Soutěž | H2: Pořadí ve třídě | I2: Body ve třídě | J2: Bi | K2: Typ | L2: CN | M2: Junior
A3: =RANK(J3,J:J) -> 1 | B3: Pavel Rericha | C3: =VLOOKUP(B3,Pilot,2,0) -> 1967 | D3: =VLOOKUP(B3,Pilot,5,0) -> M | E3: =VLOOKUP(B3,Pilot,3,0) -> Moravská Třebová | F3: =VLOOKUP(B3,Pilot,4,0) -> CZ/M | G3: PMRg 2023 - Klub | H3: 1 | I3: 8730 | J3: 10000 | K3: ASW-19B | L3: NO | M3: =IF(ISERROR(VLOOKUP(B3,Pilot,6,0)),"Není v databázi",VLOOKUP(B3,Pilot,6,0)) -> 
A4: 1 | B4: Lukas Kriz | C4: =VLOOKUP(B4,Pilot,2,0) -> 2003 | D4: =VLOOKUP(B4,Pilot,5,0) -> M | E4: =VLOOKUP(B4,Pilot,3,0) -> Křižanov | F4: =VLOOKUP(B4,Pilot,4,0) -> CZ/M | G4: PMRg, PMČRj 2023 - Kombi | H4: 1 | I4: 9417 | J4: 10000 | K4: LS 8 15m | L4: AU | M4: Junior v roce 2026
A5: 3 | B5: Jaromir Macoun | C5: 1999 | D5: M | E5: Jičín | F5: CZ/C2 | G5: PMRg, PMČRj 2023 - Kombi | H5: 2 | I5: 9221 | J5: 9554 | K5: LS 8A | L5: EU
A6: 4 | B6: Jan Louda | C6: 1986 | D6: M | E6: Mladá Boleslav | F6: CZ/C1 | G6: PMRg 2023 - Klub | H6: 2 | I6: 8448 | J6: 9543 | K6: ASW-19 | L6: XS
A7: 5 | B7: Josef Busek | C7: 1967 | D7: M | E7: Hosín | F7: CZ/C1 | G7: PMRg, PMČRj 2023 - Kombi | H7: 3 | I7: 8601 | J7: 8793 | K7: Duo Discus | L7: BB
A8: 6 | B8: Marek Svancara | C8: 1976 | D8: M | E8: GAC Benešov | F8: CZ/C1 | G8: PMRg 2023 - Klub | H8: 3 | I8: 7660 | J8: 8681 | K8: Std. Cirrus | L8: GT
A9: 7 | B9: Jan Smaha | C9: 1958 | D9: M | E9: Česká Lípa | F9: CZ/C2 | G9: PMRg 2023 - Klub | H9: 4 | I9: 7225 | J9: 8101 | K9: ASW-15B | L9: CW
A10: 8 | B10: Théo Manfredi | E10: Association Aéronautique du Val d\'Oise | F10: FR | G10: PMRg, PMČRj 2023 - Kombi | H10: 4 | I10: 7258 | J10: 7495 | K10: LAK-17A WL 15m | L10: LE | M10: Není v databázi
A11: 9 | B11: Jaromir Pauer | C11: =VLOOKUP(B11,Pilot,2,0) -> 1974 | D11: =VLOOKUP(B11,Pilot,5,0) -> M | E11: =VLOOKUP(B11,Pilot,3,0) -> Hosín | F11: =VLOOKUP(B11,Pilot,4,0) -> CZ/C1 | G11: PMRg, PMČRj 2023 - Kombi | H11: 5 | I11: 6880 | J11: 6914 | K11: Ventus B 16.6m WL | L11: 7F
A12: 10 | B12: Petr Rozhon | C12: 1972 | D12: M | E12: Hosín | F12: CZ/C1 | G12: PMRg 2023 - Klub | H12: 5 | I12: 5980 | J12: 6872 | K12: VSO-10 | L12: 9
A13: 11 | B13: Pavel Koudelka | C13: 1973 | D13: M | E13: Křižanov | F13: CZ/M | G13: PMRg 2023 - Klub | H13: 6 | I13: 5915 | J13: 6589 | K13: STD. Cirrus | L13: ZL
A14: 12 | B14: Michael Fik | C14: 1972 | D14: M | E14: Strakonice | F14: CZ/C1 | G14: PMRg, PMČRj 2023 - Kombi | H14: 6 | I14: 6702 | J14: 6482 | K14: Ventus 2c | L14: ZR
A15: 13 | B15: Jiri Krofta | C15: 1988 | D15: M | E15: Hosín | F15: CZ/C1 | G15: PMRg 2023 - Klub | H15: 7 | I15: 5909 | J15: 6353 | K15: Std. Cirrus | L15: UY
A16: 14 | B16: Michal Vranek | C16: 1993 | D16: M | E16: Hosín | F16: CZ/C1 | G16: PMRg 2023 - Klub | H16: 8 | I16: 5599 | J16: 5874 | K16: DG-100 | L16: 8W
A17: 15 | B17: Karel Mares | C17: 1974 | D17: M | E17: Slaný | F17: CZ/C1 | G17: PMRg, PMČRj 2023 - Kombi | H17: 7 | I17: 5894 | J17: 5581 | K17: Duo Discus XT | L17: DD
A18: 16 | B18: Miloslav Hulmak | C18: 1963 | D18: M | E18: Hosín | F18: CZ/C1 | G18: PMRg 2023 - Klub | H18: 9 | I18: 4969 | J18: 5138 | K18: ASW-15B | L18: HH
A19: 17 | B19: Radek Zima 78 | C19: 1978 | D19: M | E19: Hodkovice | F19: CZ/C2 | G19: PMRg, PMČRj 2023 - Kombi | H19: 8 | I19: 5577 | J19: 5046 | K19: DG 500 22m | L19: YA
A20: 18 | B20: Daniel Marek | C20: 1983 | D20: M | E20: Hosín | F20: CZ/C1 | G20: PMRg 2023 - Klub | H20: 10 | I20: 4846 | J20: 4809 | K20: Std. Cirrus | L20: XII
A21: 19 | B21: Frantisek Suna | C21: 1983 | D21: M | E21: Hosín | F21: CZ/C1 | G21: PMRg 2023 - Klub | H21: 11 | I21: 4331 | J21: 4165 | K21: DG-100 | L21: 78
A22: 20 | B22: Peter Janoska | E22: Nitra | F22: SK | G22: PMRg, PMČRj 2023 - Kombi | H22: 9 | I22: 4662 | J22: 4065 | K22: LS 6C /17,5m | L22: N6 | M22: Není v databázi
A23: 21 | B23: Michal Hemrle | C23: =VLOOKUP(B23,Pilot,2,0) -> 1974 | D23: =VLOOKUP(B23,Pilot,5,0) -> M | E23: =VLOOKUP(B23,Pilot,3,0) -> Česká Lípa | F23: =VLOOKUP(B23,Pilot,4,0) -> CZ/C2 | G23: PMRg, PMČRj 2023 - Kombi | H23: 10 | I23: 4036 | J23: 3300 | K23: ASG 29 Es 18m | L23: ET
A24: 22 | B24: Radoslav Pur | C24: 1973 | D24: M | E24: Hosín | F24: CZ/C1 | G24: PMRg 2023 - Klub | H24: 12 | I24: 3358 | J24: 3154 | K24: DG-200 | L24: EK
A25: 23 | B25: Jiri Holcman | C25: 1976 | D25: M | E25: Hosín | F25: CZ/C1 | G25: PMRg 2023 - Klub | H25: 13 | I25: 2234 | J25: 2022 | K25: ASW-19 | L25: BO
A26: 24 | B26: Tomas Vaclavik | C26: 1974 | D26: M | E26: Hosín | F26: CZ/C1 | G26: PMRg, PMČRj 2023 - Kombi | H26: 11 | I26: 1238 | J26: 920 | K26: LAK-12 | L26: 12
A27: 25 | B27: Petr Sochor | C27: 1986 | D27: M | E27: Hosín | F27: CZ/C1 | G27: PMRg 2023 - Klub | H27: 14 | I27: 0 | J27: 0 | K27: ASW-15B | L27: 6Y

Sheet KB PMRg 2024
A1: PMRg 2024 - Hodkovice - Korigované body
A2: Pořadí v KB | B2: Jméno | C2: Rok narození | D2: M/F | E2: Aeroklub | F2: Region | G2: Soutěž | H2: Pořadí ve třídě | I2: Body ve třídě | J2: Bi | K2: Typ | L2: CN | M2: Junior
A3: =RANK(J3,J:J) -> 1 | B3: Jan Hruska | C3: =VLOOKUP(B3,Pilot,2,0) -> 1988 | D3: =VLOOKUP(B3,Pilot,5,0) -> M | E3: =VLOOKUP(B3,Pilot,3,0) -> Tábor | F3: =VLOOKUP(B3,Pilot,4,0) -> CZ/C1 | G3: PMRg 2024 - Klub | H3: 1 | I3: 1293 | J3: 10000 | K3: ASW 15 B | L3: LF | M3: =IF(ISERROR(VLOOKUP(B3,Pilot,6,0)),"Není v databázi",VLOOKUP(B3,Pilot,6,0)) -> 
A4: 1 | B4: Petr Panek | C4: 1975 | D4: M | E4: Dvůr Králové | F4: CZ/C2 | G4: PMRg 2024 - Kombi | H4: 1 | I4: 1018 | J4: 10000 | K4: JS-1b EVO JET | L4: IGC
A5: 3 | B5: Lukas Capek | C5: 1992 | D5: M | E5: Letňany | F5: CZ/C1 | G5: PMRg 2024 - Klub | H5: 2 | I5: 1292 | J5: 9858 | K5: Mosquito | L5: LC
A6: 4 | B6: Radek Zima 78 | C6: 1978 | D6: M | E6: Hodkovice | F6: CZ/C2 | G6: PMRg 2024 - Kombi | H6: 2 | I6: 1004 | J6: 9604 | K6: ASG 29 E 18m | L6: XZ
A7: 5 | B7: Leos Strnadek | C7: 1983 | D7: M | E7: Hodkovice | F7: CZ/C2 | G7: PMRg 2024 - Klub | H7: 3 | I7: 1259 | J7: 9543 | K7: ASW 19 B | L7: XP
A8: 5 | B8: Pavlina Horackova | C8: 1965 | D8: F | E8: Šumperk | F8: CZ/M | G8: PMRg 2024 - Klub | H8: 3 | I8: 1259 | J8: 9543 | K8: SZD-48 Jantar Std. 2 | L8: SU
A9: 7 | B9: Michaela Rendlova | C9: 2004 | D9: F | E9: Toužim | F9: CZ/C1 | G9: PMRg 2024 - Kombi | H9: 3 | I9: 916 | J9: 8699 | K9: LS 8 | L9: W8 | M9: Junior v roce 2026
A10: 8 | B10: Michal Kares | C10: 1987 | D10: M | E10: Ústí nad Orlicí | F10: CZ/C2 | G10: PMRg 2024 - Klub | H10: 5 | I10: 1103 | J10: 8426 | K10: Std. Cirrus | L10: J3
A11: 9 | B11: Jiri Maier 66 | C11: 1966 | D11: M | E11: Raná | F11: CZ/C2 | G11: PMRg 2024 - Klub | H11: 6 | I11: 1096 | J11: 8252 | K11: ASW 24 E | L11: JM
A12: 10 | B12: Katerina Vojtova | C12: 1983 | D12: F | E12: Slaný | F12: CZ/C1 | G12: PMRg 2024 - Klub | H12: 7 | I12: 1070 | J12: 7975 | K12: Std. Cirrus | L12: KAC
A13: 11 | B13: Jaromir Macoun | C13: 1999 | D13: M | E13: Jičín | F13: CZ/C2 | G13: PMRg 2024 - Kombi | H13: 4 | I13: 832 | J13: 7821 | K13: LS 8 | L13: EU
A14: 12 | B14: Jiri Hula | C14: 1973 | D14: M | E14: Slaný | F14: CZ/C1 | G14: PMRg 2024 - Klub | H14: 8 | I14: 1062 | J14: 7795 | K14: Std. Cirrus WL | L14: IT
A15: 13 | B15: Zdenek Balcarek | C15: 1967 | D15: M | E15: Kroměříž | F15: CZ/M | G15: PMRg 2024 - Klub | H15: 9 | I15: 1035 | J15: 7512 | K15: Discus b | L15: AI
A16: 14 | B16: Lukas Kriz | C16: 2003 | D16: M | E16: Křižanov | F16: CZ/M | G16: PMRg 2024 - Kombi | H16: 5 | I16: 820 | J16: 7439 | K16: LS 8 | L16: AU | M16: Junior v roce 2026
A17: 15 | B17: Jan Smaha | C17: 1958 | D17: M | E17: Česká Lípa | F17: CZ/C2 | G17: PMRg 2024 - Klub | H17: 10 | I17: 1000 | J17: 7186 | K17: ASW 15 B | L17: CW
A18: 16 | B18: Stanislav Poslusny | C18: 1965 | D18: M | E18: GAC Benešov | F18: CZ/C1 | G18: PMRg 2024 - Klub | H18: 11 | I18: 974 | J18: 6909 | K18: Std. Cirrus | L18: SP
A19: 17 | B19: Vaclav Zak | C19: 1962 | D19: M | E19: GAC Benešov | F19: CZ/C1 | G19: PMRg 2024 - Klub | H19: 12 | I19: 944 | J19: 6611 | K19: Std. Cirrus | L19: TSI
A20: 18 | B20: Matej Krestes | C20: 1986 | D20: M | E20: Slaný | F20: CZ/C1 | G20: PMRg 2024 - Klub | H20: 13 | I20: 912 | J20: 6301 | K20: Std. Cirrus | L20: CON
A21: 19 | B21: Jaroslav Potmesil | C21: 1964 | D21: M | E21: Zbraslavice | F21: CZ/C1 | G21: PMRg 2024 - Kombi | H21: 6 | I21: 626 | J21: 5805 | K21: TwinShark | L21: TS
A22: 20 | B22: Matej Bartos | C22: 1998 | D22: M | E22: Hodkovice | F22: CZ/C2 | G22: PMRg 2024 - Klub | H22: 14 | I22: 832 | J22: 5732 | K22: ASW 15 B | L22: BF
A23: 21 | B23: Matej Plch | C23: 1987 | D23: M | E23: Letkov | F23: CZ/C1 | G23: PMRg 2024 - Kombi | H23: 7 | I23: 588 | J23: 5243 | K23: LS 8 18m | L23: EJ
A24: 22 | B24: Jiri Krofta | C24: 1988 | D24: M | E24: Hosín | F24: CZ/C1 | G24: PMRg 2024 - Klub | H24: 15 | I24: 759 | J24: 5200 | K24: Std. Cirrus | L24: UB
A25: 23 | B25: David Riha | C25: 1983 | D25: M | E25: Vlašim | F25: CZ/C1 | G25: PMRg 2024 - Klub | H25: 16 | I25: 744 | J25: 4982 | K25: ASW 15 B | L25: XE
A26: 24 | B26: Pavel Svetlik | C26: 1968 | D26: M | E26: Kunovice | F26: CZ/M | G26: PMRg 2024 - Kombi | H26: 8 | I26: 581 | J26: 4895 | K26: DG 500 22m | L26: YA
A27: 25 | B27: Premysl Muzik | C27: 1990 | D27: M | E27: Tábor | F27: CZ/C1 | G27: PMRg 2024 - Klub | H27: 17 | I27: 737 | J27: 4808 | K27: Std. Cirrus | L27: IMI
A28: 26 | B28: Lukas Maly | C28: 1998 | D28: M | E28: Vysoké Mýto | F28: CZ/C2 | G28: PMRg 2024 - Klub | H28: 18 | I28: 684 | J28: 4385 | K28: Discus CS | L28: 65
A29: 27 | B29: Martin Kriz | C29: 1968 | D29: M | E29: Přibyslav | F29: CZ/C2 | G29: PMRg 2024 - Klub | H29: 19 | I29: 628 | J29: 3945 | K29: ASW 20 | L29: 67
A30: 28 | B30: Michal Fortik | C30: 1976 | D30: M | E30: Točná | F30: CZ/C1 | G30: PMRg 2024 - Klub | H30: 20 | I30: 618 | J30: 3755 | K30: ASW 15 B | L30: B
A31: 29 | B31: Antonin Kutalek | C31: 1943 | D31: M | E31: Zábřeh | F31: CZ/M | G31: PMRg 2024 - Kombi | H31: 9 | I31: 378 | J31: 3199 | K31: LAK-17A T 15m | L31: GL
A32: 30 | B32: Michael Fik | C32: 1972 | D32: M | E32: Strakonice | F32: CZ/C1 | G32: PMRg 2024 - Kombi | H32: 10 | I32: 259 | J32: 2081 | K32: Duo Discus | L32: DD
A33: 31 | B33: Pavel Koudelka | C33: 1973 | D33: M | E33: Křižanov | F33: CZ/M | G33: PMRg 2024 - Klub | H33: 21 | I33: 259 | J33: 1675 | K33: Std. Cirrus | L33: ZL
A34: 32 | B34: Jan Zahradka | C34: 1981 | D34: M | E34: Hodkovice | F34: CZ/C2 | G34: PMRg 2024 - Klub | H34: 22 | I34: 156 | J34: 981 | K34: Std. Cirrus | L34: AR
A35: 33 | B35: Petr Weinhauer | C35: 1977 | D35: M | E35: Tábor | F35: CZ/C1 | G35: PMRg 2024 - Klub | H35: 23 | I35: 0 | J35: 0 | K35: VSO-10 | L35: F3
A36: 33 | B36: Michal Vranek | C36: 1993 | D36: M | E36: Hosín | F36: CZ/C1 | G36: PMRg 2024 - Klub | H36: 23 | I36: 0 | J36: 0 | K36: DG 100 | L36: 8W
A37: 33 | B37: Eva Klapkova | C37: 1993 | D37: F | E37: Raná | F37: CZ/C2 | G37: PMRg 2024 - Klub | H37: 23 | I37: 0 | J37: 0 | K37: ASW 15 | L37: TZ
A38: 33 | B38: Jan Louda | C38: 1986 | D38: M | E38: Mladá Boleslav | F38: CZ/C1 | G38: PMRg 2024 - Klub | H38: 23 | I38: 0 | J38: 0 | K38: ASW 19 B | L38: XS
A39: 33 | B39: Daniel Devecka | C39: 1981 | D39: M | E39: Vlašim | F39: CZ/C1 | G39: PMRg 2024 - Klub | H39: 23 | I39: 0 | J39: 0 | K39: LS 3a | L39: 2G
A40: 33 | B40: Zdenek Buben | C40: 1978 | D40: M | E40: Hodkovice | F40: CZ/C2 | G40: PMRg 2024 - Kombi | H40: 11 | I40: 0 | J40: 0 | K40: ASW 27 B WL | L40: MF
A41: 33 | B41: Ondrej Dvorak 87 | C41: 1987 | D41: M | E41: Raná | F41: CZ/C2 | G41: PMRg 2024 - Kombi | H41: 11 | I41: 0 | J41: 0 | K41: Ventus a 15 WL | L41: FW

Sheet KB PMRg 2025
A1: PMRg 2025 - Strakonice - Korigované body
A2: Pořadí v KB | B2: Jméno | C2: Rok narození | D2: M/F | E2: Aeroklub | F2: Region | G2: Soutěž | H2: Pořadí ve třídě | I2: Body ve třídě | J2: Bi | K2: Typ | L2: CN | M2: Junior
A3: =RANK(J3,J:J) -> 1 | B3: Lukas Capek | C3: =VLOOKUP(B3,Pilot,2,0) -> 1992 | D3: =VLOOKUP(B3,Pilot,5,0) -> M | E3: =VLOOKUP(B3,Pilot,3,0) -> Letňany | F3: =VLOOKUP(B3,Pilot,4,0) -> CZ/C1 | G3: PMRg 2025 - Klub | H3: 1 | I3: 2112 | J3: 10000 | K3: 303 Mosquito | L3: LC | M3: =IF(ISERROR(VLOOKUP(B3,Pilot,6,0)),"Není v databázi",VLOOKUP(B3,Pilot,6,0)) -> 
A4: 1 | B4: Lukas Kriz | C4: 2003 | D4: M | E4: Křižanov | F4: CZ/M | G4: PMRg 2025 - Kombi | H4: 1 | I4: 1933 | J4: 10000 | K4: LS 8 | L4: AU | M4: Junior v roce 2026
A5: 3 | B5: Jan Zapletal | C5: 1997 | D5: M | E5: Břeclav | F5: CZ/M | G5: PMRg 2025 - Kombi | H5: 2 | I5: 1799 | J5: 9181 | K5: ASG 29 E 18m | L5: 2L
A6: 4 | B6: Josef Beran | C6: 1982 | D6: M | E6: Slaný | F6: CZ/C1 | G6: PMRg 2025 - Klub | H6: 2 | I6: 1887 | J6: 8921 | K6: Std. Cirrus WL | L6: IT
A7: 5 | B7: David Sachl | C7: 1978 | D7: M | E7: Kralupy | F7: CZ/C1 | G7: PMRg 2025 - Kombi | H7: 3 | I7: 1755 | J7: 8689 | K7: ASW 27b | L7: MF
A8: 6 | B8: Premysl Muzik | C8: 1990 | D8: M | E8: Tábor | F8: CZ/C1 | G8: PMRg 2025 - Klub | H8: 3 | I8: 1765 | J8: 8183 | K8: Std. Cirrus | L8: IMI
A9: 7 | B9: Radek Zima 78 | C9: 1978 | D9: M | E9: Hodkovice | F9: CZ/C2 | G9: PMRg 2025 - Kombi | H9: 4 | I9: 1609 | J9: 7827 | K9: ASG 29 E 18m | L9: XZ
A10: 8 | B10: Pavel Koudelka | C10: 1973 | D10: M | E10: Křižanov | F10: CZ/M | G10: PMRg 2025 - Klub | H10: 4 | I10: 1655 | J10: 7485 | K10: Std. Cirrus | L10: ZL
A11: 9 | B11: Petr Hotovy | C11: 1958 | D11: M | E11: Česká Lípa | F11: CZ/C2 | G11: PMRg 2025 - Kombi | H11: 5 | I11: 1538 | J11: 7236 | K11: Ventus 3 FES Sport | L11: LB
A12: 10 | B12: Pavlina Horackova | C12: 1965 | D12: F | E12: Šumperk | F12: CZ/M | G12: PMRg 2025 - Klub | H12: 5 | I12: 1554 | J12: 6817 | K12: SZD-48 Jantar Std. | L12: SU
A13: 11 | B13: Petr Panek | C13: 1975 | D13: M | E13: Dvůr Králové | F13: CZ/C2 | G13: PMRg 2025 - Kombi | H13: 6 | I13: 1367 | J13: 6284 | K13: JS1 EVO JET | L13: IGC
A14: 12 | B14: Jaroslav Potmesil | C14: 1964 | D14: M | E14: Zbraslavice | F14: CZ/C1 | G14: PMRg 2025 - Kombi | H14: 7 | I14: 1361 | J14: 5929 | K14: HpH 304 MS Shark | L14: MS
A15: 13 | B15: Karel Mares | C15: 1974 | D15: M | E15: Slaný | F15: CZ/C1 | G15: PMRg 2025 - Kombi | H15: 8 | I15: 1213 | J15: 5059 | K15: DuoDiscus XT | L15: BB
A16: 14 | B16: Vojtech Bystricky | C16: 2004 | D16: M | E16: Strakonice | F16: CZ/C1 | G16: PMRg 2025 - Klub | H16: 6 | I16: 1087 | J16: 4936 | K16: VSO-10 | L16: L3 | M16: Junior v roce 2026
A17: 15 | B17: Michael Fik | C17: 1972 | D17: M | E17: Strakonice | F17: CZ/C1 | G17: PMRg 2025 - Kombi | H17: 9 | I17: 551 | J17: 2329 | K17: Duo Discus XT | L17: DD
A18: 16 | B18: Miroslav Kus | C18: 1970 | D18: M | E18: Strakonice | F18: CZ/C1 | G18: PMRg 2025 - Klub | H18: 7 | I18: 330 | J18: 2094 | K18: VSO-10 | L18: C6
A19: 17 | B19: Jan Hirs | C19: 1975 | D19: M | E19: Strakonice | F19: CZ/C1 | G19: PMRg 2025 - Klub | H19: 8 | I19: 249 | J19: 1492 | K19: Std. Cirrus | L19: ST
A20: 18 | B20: Ales Sokolik | C20: 1973 | D20: M | E20: Strakonice | F20: CZ/C1 | G20: PMRg 2025 - Klub | H20: 9 | I20: 3 | J20: 343 | K20: LS 3 | L20: XX
A21: 19 | B21: Daniel Marek | C21: 1983 | D21: M | E21: Hosín | F21: CZ/C1 | G21: PMRg 2025 - Klub | H21: 10 | I21: 2 | J21: 7 | K21: ASW 19B | L21: OWL
A22: 20 | B22: Bohus Marcinik | C22: 1947 | D22: M | E22: Příbram | F22: CZ/C1 | G22: PMRg 2025 - Kombi | H22: 10 | I22: 0 | J22: 0 | K22: Ventus 2cxM 18m | L22: EK

Sheet KB RPS 2025 (hidden)
A1: RPS 2025 - AZ Cup, JPJ, TCup, PPV - Korigované body | P1: <48
A2: Pořadí v KB | B2: Jméno | C2: Rok narození | D2: M/F | E2: Aeroklub | F2: Region | G2: Soutěž | H2: Pořadí ve třídě | I2: Body ve třídě | J2: Bi | K2: Typ | L2: CN | M2: Junior | N2: Pořadí Žebřík 2026 | O2: Nominace PMČR 2026 | P2: Nominace z KB RPS 2025
A3: =RANK(J3,J:J) -> 1 | B3: Uwe Wahlig | E3: Segelfluggruppe Bensheim e.V. | G3: AZ Cup 2025 - Klub | H3: 1 | I3: 2674 | J3: 10000 | K3: LS 3 WL | L3: SN | M3: =IF(ISERROR(VLOOKUP(B3,Pilot,6,0)),"Není v databázi",VLOOKUP(B3,Pilot,6,0)) -> Není v databázi | N3: =IF(ISERROR(VLOOKUP(B3,'Zebrik G'!B:I,8,0)),"-",VLOOKUP(B3,'Zebrik G'!B:I,8,0)) -> - | O3: =IF(ISERROR(VLOOKUP(B3,'N PMČR 2026'!B:G,6,0)),"-",VLOOKUP(B3,'N PMČR 2026'!B:G,6,0)) -> -
A4: 1 | B4: Karel Novak | C4: =VLOOKUP(B4,Pilot,2,0) -> 1993 | D4: =VLOOKUP(B4,Pilot,5,0) -> M | E4: =VLOOKUP(B4,Pilot,3,0) -> Mladá Boleslav | F4: =VLOOKUP(B4,Pilot,4,0) -> CZ/C1 | G4: AZ Cup 2025 - Kombi 15m | H4: 1 | I4: 3138 | J4: 10000 | K4: Ventus 2a | L4: AXI | N4: =IF(ISERROR(VLOOKUP(B4,'Zebrik G'!B:I,8,0)),"-",VLOOKUP(B4,'Zebrik G'!B:I,8,0)) -> 10 | O4: =IF(ISERROR(VLOOKUP(B4,'N PMČR 2026'!B:G,6,0)),"-",VLOOKUP(B4,'N PMČR 2026'!B:G,6,0)) -> 10
A5: 1 | B5: Radek Krejcirik | C5: 1991 | D5: M | E5: Hranice | F5: CZ/M | G5: AZ Cup 2025 - Kombi Open | H5: 1 | I5: 2791 | J5: 10000 | K5: JS1 | L5: ZF | N5: =IF(ISERROR(VLOOKUP(B5,'Zebrik G'!B:I,8,0)),"-",VLOOKUP(B5,'Zebrik G'!B:I,8,0)) -> 4 | O5: =IF(ISERROR(VLOOKUP(B5,'N PMČR 2026'!B:G,6,0)),"-",VLOOKUP(B5,'N PMČR 2026'!B:G,6,0)) -> 4
A6: 1 | B6: Jindrich Svorc | C6: 1978 | D6: M | E6: Letňany | F6: CZ/C1 | G6: JPJ 2025 - Klub | H6: 1 | I6: 4627 | J6: 10000 | K6: Discus bt | L6: OI | N6: =IF(ISERROR(VLOOKUP(B6,'Zebrik G'!B:I,8,0)),"-",VLOOKUP(B6,'Zebrik G'!B:I,8,0)) -> 29 | O6: =IF(ISERROR(VLOOKUP(B6,'N PMČR 2026'!B:G,6,0)),"-",VLOOKUP(B6,'N PMČR 2026'!B:G,6,0)) -> 33
A7: 1 | B7: Petr Koutny | C7: 1971 | D7: M | E7: Křižanov | F7: CZ/M | G7: JPJ 2025 - Kombi 15m | H7: 1 | I7: 4894 | J7: 10000 | K7: LS-8 15m | L7: 18 | N7: =IF(ISERROR(VLOOKUP(B7,'Zebrik G'!B:I,8,0)),"-",VLOOKUP(B7,'Zebrik G'!B:I,8,0)) -> 32 | O7: =IF(ISERROR(VLOOKUP(B7,'N PMČR 2026'!B:G,6,0)),"-",VLOOKUP(B7,'N PMČR 2026'!B:G,6,0)) -> 37
A8: 1 | B8: Radek Hybl | C8: 1980 | D8: M | E8: Šumperk | F8: CZ/M | G8: JPJ 2025 - Kombi Open | H8: 1 | I8: 4709 | J8: 10000 | K8: Ventus cm 17,6m | L8: IHH | N8: =IF(ISERROR(VLOOKUP(B8,'Zebrik G'!B:I,8,0)),"-",VLOOKUP(B8,'Zebrik G'!B:I,8,0)) -> 35 | O8: =IF(ISERROR(VLOOKUP(B8,'N PMČR 2026'!B:G,6,0)),"-",VLOOKUP(B8,'N PMČR 2026'!B:G,6,0)) -> 70 | P8: 1
A9: 1 | B9: Jiri Vondracek | C9: 1989 | D9: M | E9: Kladno | F9: CZ/C1 | G9: Toužim Cup 2025 - Klub | H9: 1 | I9: 2136 | J9: 10000 | K9: H-201b Std. Libelle WL | L9: 442 | N9: =IF(ISERROR(VLOOKUP(B9,'Zebrik G'!B:I,8,0)),"-",VLOOKUP(B9,'Zebrik G'!B:I,8,0)) -> 48 | O9: =IF(ISERROR(VLOOKUP(B9,'N PMČR 2026'!B:G,6,0)),"-",VLOOKUP(B9,'N PMČR 2026'!B:G,6,0)) -> 78 | P9: 2
A10: 1 | B10: Petr Jiranek 91 | C10: 1991 | D10: M | E10: Toužim | F10: CZ/C1 | G10: Toužim Cup 2025 - Kombi | H10: 1 | I10: 2240 | J10: 10000 | K10: Ventus c /17,6m | L10: PC | N10: =IF(ISERROR(VLOOKUP(B10,'Zebrik G'!B:I,8,0)),"-",VLOOKUP(B10,'Zebrik G'!B:I,8,0)) -> 83 | O10: =IF(ISERROR(VLOOKUP(B10,'N PMČR 2026'!B:G,6,0)),"-",VLOOKUP(B10,'N PMČR 2026'!B:G,6,0)) -> - | P10: 3
A11: 1 | B11: Petr Masik | C11: 2001 | D11: M | E11: Zábřeh | F11: CZ/M | G11: PPV 2025 - Klub | H11: 1 | I11: 3503 | J11: 10000 | K11: ASW 19 B | L11: 34 | M11: Junior v roce 2026 | N11: =IF(ISERROR(VLOOKUP(B11,'Zebrik G'!B:I,8,0)),"-",VLOOKUP(B11,'Zebrik G'!B:I,8,0)) -> 31 | O11: =IF(ISERROR(VLOOKUP(B11,'N PMČR 2026'!B:G,6,0)),"-",VLOOKUP(B11,'N PMČR 2026'!B:G,6,0)) -> 24
A12: 1 | B12: Jan Kotan | C12: 1982 | D12: M | E12: Letňany | F12: CZ/C1 | G12: PPV 2025 - Kombi | H12: 1 | I12: 3849 | J12: 10000 | K12: AS 33 Es 18m | L12: CAT | N12: =IF(ISERROR(VLOOKUP(B12,'Zebrik G'!B:I,8,0)),"-",VLOOKUP(B12,'Zebrik G'!B:I,8,0)) -> 22 | O12: =IF(ISERROR(VLOOKUP(B12,'N PMČR 2026'!B:G,6,0)),"-",VLOOKUP(B12,'N PMČR 2026'!B:G,6,0)) -> 42
A13: 11 | B13: Ondrej Dupal | C13: 1966 | D13: M | E13: GAC Benešov | F13: CZ/C1 | G13: Toužim Cup 2025 - Kombi | H13: 2 | I13: 2225 | J13: 9862 | K13: ASG-29E /18m | L13: GO | N13: =IF(ISERROR(VLOOKUP(B13,'Zebrik G'!B:I,8,0)),"-",VLOOKUP(B13,'Zebrik G'!B:I,8,0)) -> 23 | O13: =IF(ISERROR(VLOOKUP(B13,'N PMČR 2026'!B:G,6,0)),"-",VLOOKUP(B13,'N PMČR 2026'!B:G,6,0)) -> 39
A14: 12 | B14: Jaroslav Tomana | C14: 1975 | D14: M | E14: Zbraslavice | F14: CZ/C1 | G14: AZ Cup 2025 - Klub | H14: 2 | I14: 2646 | J14: 9811 | K14: Centair 101 BC Pegase | L14: RT | N14: =IF(ISERROR(VLOOKUP(B14,'Zebrik G'!B:I,8,0)),"-",VLOOKUP(B14,'Zebrik G'!B:I,8,0)) -> 6 | O14: =IF(ISERROR(VLOOKUP(B14,'N PMČR 2026'!B:G,6,0)),"-",VLOOKUP(B14,'N PMČR 2026'!B:G,6,0)) -> 6
A15: 13 | B15: Petr Tichy | C15: 1973 | D15: M | E15: Zbraslavice | F15: CZ/C1 | G15: AZ Cup 2025 - Kombi Open | H15: 2 | I15: 2767 | J15: 9790 | K15: AS 33 | L15: EZ | N15: =IF(ISERROR(VLOOKUP(B15,'Zebrik G'!B:I,8,0)),"-",VLOOKUP(B15,'Zebrik G'!B:I,8,0)) -> 8 | O15: =IF(ISERROR(VLOOKUP(B15,'N PMČR 2026'!B:G,6,0)),"-",VLOOKUP(B15,'N PMČR 2026'!B:G,6,0)) -> 8
A16: 14 | B16: Stepan Bartos | C16: 2004 | D16: M | E16: Kolín | F16: CZ/C1 | G16: PPV 2025 - Klub | H16: 2 | I16: 3440 | J16: 9774 | K16: Discus b WL | L16: LD | M16: Junior v roce 2026 | N16: =IF(ISERROR(VLOOKUP(B16,'Zebrik G'!B:I,8,0)),"-",VLOOKUP(B16,'Zebrik G'!B:I,8,0)) -> 46 | O16: =IF(ISERROR(VLOOKUP(B16,'N PMČR 2026'!B:G,6,0)),"-",VLOOKUP(B16,'N PMČR 2026'!B:G,6,0)) -> N2 | P16: 4
A17: 15 | B17: Jan Viskot | C17: 1995 | D17: M | E17: Břeclav | F17: CZ/M | G17: Toužim Cup 2025 - Kombi | H17: 3 | I17: 2216 | J17: 9743 | K17: Discus 2a /15m | L17: GX | N17: =IF(ISERROR(VLOOKUP(B17,'Zebrik G'!B:I,8,0)),"-",VLOOKUP(B17,'Zebrik G'!B:I,8,0)) -> 36 | O17: =IF(ISERROR(VLOOKUP(B17,'N PMČR 2026'!B:G,6,0)),"-",VLOOKUP(B17,'N PMČR 2026'!B:G,6,0)) -> 71 | P17: 5
A18: 16 | B18: Marek Blatak | C18: 1969 | D18: M | E18: Šumperk | F18: CZ/M | G18: JPJ 2025 - Kombi Open | H18: 2 | I18: 4606 | J18: 9670 | K18: DG-808 S Comp 18m WL | L18: W | N18: =IF(ISERROR(VLOOKUP(B18,'Zebrik G'!B:I,8,0)),"-",VLOOKUP(B18,'Zebrik G'!B:I,8,0)) -> 45 | O18: =IF(ISERROR(VLOOKUP(B18,'N PMČR 2026'!B:G,6,0)),"-",VLOOKUP(B18,'N PMČR 2026'!B:G,6,0)) -> 76 | P18: 6
A19: 17 | B19: Pavel Jiranek | C19: 1993 | D19: M | E19: Toužim | F19: CZ/C1 | G19: Toužim Cup 2025 - Kombi | H19: 4 | I19: 2202 | J19: 9609 | K19: Ventus c /17,6m | L19: CS | N19: =IF(ISERROR(VLOOKUP(B19,'Zebrik G'!B:I,8,0)),"-",VLOOKUP(B19,'Zebrik G'!B:I,8,0)) -> 41 | O19: =IF(ISERROR(VLOOKUP(B19,'N PMČR 2026'!B:G,6,0)),"-",VLOOKUP(B19,'N PMČR 2026'!B:G,6,0)) -> 73 | P19: 7
A20: 18 | B20: Milan Svoboda 80 | C20: 1980 | D20: M | E20: Havlíčkův Brod | F20: CZ/C2 | G20: PPV 2025 - Klub | H20: 3 | I20: 3406 | J20: 9606 | K20: Std. Cirrus | L20: MS | N20: =IF(ISERROR(VLOOKUP(B20,'Zebrik G'!B:I,8,0)),"-",VLOOKUP(B20,'Zebrik G'!B:I,8,0)) -> 58 | O20: =IF(ISERROR(VLOOKUP(B20,'N PMČR 2026'!B:G,6,0)),"-",VLOOKUP(B20,'N PMČR 2026'!B:G,6,0)) -> 35
A21: 19 | B21: Roman Jokl | C21: 1979 | D21: M | E21: Letkov | F21: CZ/C1 | G21: Toužim Cup 2025 - Klub | H21: 2 | I21: 2050 | J21: 9598 | K21: ASW-19B WL | L21: JL | N21: =IF(ISERROR(VLOOKUP(B21,'Zebrik G'!B:I,8,0)),"-",VLOOKUP(B21,'Zebrik G'!B:I,8,0)) -> 42 | O21: =IF(ISERROR(VLOOKUP(B21,'N PMČR 2026'!B:G,6,0)),"-",VLOOKUP(B21,'N PMČR 2026'!B:G,6,0)) -> 74 | P21: 8
A22: 20 | B22: Pavel Trybenekr | C22: 1990 | D22: M | E22: Hořice | F22: CZ/C2 | G22: AZ Cup 2025 - Kombi 15m | H22: 2 | I22: 3044 | J22: 9590 | K22: JS 3 | L22: ZE | N22: =IF(ISERROR(VLOOKUP(B22,'Zebrik G'!B:I,8,0)),"-",VLOOKUP(B22,'Zebrik G'!B:I,8,0)) -> 11 | O22: =IF(ISERROR(VLOOKUP(B22,'N PMČR 2026'!B:G,6,0)),"-",VLOOKUP(B22,'N PMČR 2026'!B:G,6,0)) -> 11
A23: 21 | B23: Tomas Rendla | C23: 1973 | D23: M | E23: Zbraslavice | F23: CZ/C1 | G23: AZ Cup 2025 - Kombi Open | H23: 3 | I23: 2729 | J23: 9545 | K23: EB 29 r | L23: EX | N23: =IF(ISERROR(VLOOKUP(B23,'Zebrik G'!B:I,8,0)),"-",VLOOKUP(B23,'Zebrik G'!B:I,8,0)) -> 21 | O23: =IF(ISERROR(VLOOKUP(B23,'N PMČR 2026'!B:G,6,0)),"-",VLOOKUP(B23,'N PMČR 2026'!B:G,6,0)) -> 21
A24: 22 | B24: Josef Novotny | C24: 1983 | D24: M | E24: Přibyslav | F24: CZ/C2 | G24: JPJ 2025 - Klub | H24: 2 | I24: 4384 | J24: 9532 | K24: Std. Cirrus | L24: AW | N24: =IF(ISERROR(VLOOKUP(B24,'Zebrik G'!B:I,8,0)),"-",VLOOKUP(B24,'Zebrik G'!B:I,8,0)) -> 130 | O24: =IF(ISERROR(VLOOKUP(B24,'N PMČR 2026'!B:G,6,0)),"-",VLOOKUP(B24,'N PMČR 2026'!B:G,6,0)) -> -
A25: 23 | B25: Lukas Capek | C25: 1992 | D25: M | E25: Letňany | F25: CZ/C1 | G25: PPV 2025 - Klub | H25: 4 | I25: 3391 | J25: 9476 | K25: Mosquito | L25: LC | N25: =IF(ISERROR(VLOOKUP(B25,'Zebrik G'!B:I,8,0)),"-",VLOOKUP(B25,'Zebrik G'!B:I,8,0)) -> 38 | O25: =IF(ISERROR(VLOOKUP(B25,'N PMČR 2026'!B:G,6,0)),"-",VLOOKUP(B25,'N PMČR 2026'!B:G,6,0)) -> 49 | P25: 9
A26: 24 | B26: Jan Boruvka | C26: 1984 | D26: M | E26: Jičín | F26: CZ/C2 | G26: PPV 2025 - Kombi | H26: 2 | I26: 3613 | J26: 9460 | K26: ASG 29 E 18m | L26: QX | N26: =IF(ISERROR(VLOOKUP(B26,'Zebrik G'!B:I,8,0)),"-",VLOOKUP(B26,'Zebrik G'!B:I,8,0)) -> 34 | O26: =IF(ISERROR(VLOOKUP(B26,'N PMČR 2026'!B:G,6,0)),"-",VLOOKUP(B26,'N PMČR 2026'!B:G,6,0)) -> 43
A27: 25 | B27: Viktor Becan | E27: ALC Lesce | F27: SLO | G27: AZ Cup 2025 - Klub | H27: 3 | I27: 2553 | J27: 9452 | K27: ASW 20 | L27: CP | M27: Není v databázi | N27: =IF(ISERROR(VLOOKUP(B27,'Zebrik G'!B:I,8,0)),"-",VLOOKUP(B27,'Zebrik G'!B:I,8,0)) -> - | O27: =IF(ISERROR(VLOOKUP(B27,'N PMČR 2026'!B:G,6,0)),"-",VLOOKUP(B27,'N PMČR 2026'!B:G,6,0)) -> -
A28: 26 | B28: Ondrej Dupal | C28: =VLOOKUP(B28,Pilot,2,0) -> 1966 | D28: =VLOOKUP(B28,Pilot,5,0) -> M | E28: =VLOOKUP(B28,Pilot,3,0) -> GAC Benešov | F28: =VLOOKUP(B28,Pilot,4,0) -> CZ/C1 | G28: AZ Cup 2025 - Kombi Open | H28: 4 | I28: 2728 | J28: 9392 | K28: ASG 29 E | L28: GO | N28: =IF(ISERROR(VLOOKUP(B28,'Zebrik G'!B:I,8,0)),"-",VLOOKUP(B28,'Zebrik G'!B:I,8,0)) -> 23 | O28: =IF(ISERROR(VLOOKUP(B28,'N PMČR 2026'!B:G,6,0)),"-",VLOOKUP(B28,'N PMČR 2026'!B:G,6,0)) -> 39
A29: 27 | B29: Frantisek Vancura | C29: =VLOOKUP(B29,Pilot,2,0) -> 1966 | D29: =VLOOKUP(B29,Pilot,5,0) -> M | E29: =VLOOKUP(B29,Pilot,3,0) -> Hranice | F29: =VLOOKUP(B29,Pilot,4,0) -> CZ/M | G29: JPJ 2025 - Kombi Open | H29: 3 | I29: 4537 | J29: 9391 | K29: Nimbus 3 24,5m WL 750kg | L29: A1 | N29: =IF(ISERROR(VLOOKUP(B29,'Zebrik G'!B:I,8,0)),"-",VLOOKUP(B29,'Zebrik G'!B:I,8,0)) -> 44 | O29: =IF(ISERROR(VLOOKUP(B29,'N PMČR 2026'!B:G,6,0)),"-",VLOOKUP(B29,'N PMČR 2026'!B:G,6,0)) -> 75 | P29: 10
A30: 28 | B30: Amelie Boulanger | E30: Grenoble Vol à Voile | G30: PPV 2025 - Klub | H30: 5 | I30: 3351 | J30: 9296 | K30: ASW 24 | L30: 69 | M30: Není v databázi | N30: =IF(ISERROR(VLOOKUP(B30,'Zebrik G'!B:I,8,0)),"-",VLOOKUP(B30,'Zebrik G'!B:I,8,0)) -> - | O30: =IF(ISERROR(VLOOKUP(B30,'N PMČR 2026'!B:G,6,0)),"-",VLOOKUP(B30,'N PMČR 2026'!B:G,6,0)) -> -
A31: 29 | B31: Darius Gudziunas | E31: Vilniaus Aeroklubas | G31: AZ Cup 2025 - Klub | H31: 4 | I31: 2518 | J31: 9245 | K31: ASW 20 | L31: FL | M31: Není v databázi | N31: =IF(ISERROR(VLOOKUP(B31,'Zebrik G'!B:I,8,0)),"-",VLOOKUP(B31,'Zebrik G'!B:I,8,0)) -> - | O31: =IF(ISERROR(VLOOKUP(B31,'N PMČR 2026'!B:G,6,0)),"-",VLOOKUP(B31,'N PMČR 2026'!B:G,6,0)) -> -
A32: 30 | B32: Stepan Filakovsky | C32: =VLOOKUP(B32,Pilot,2,0) -> 2005 | D32: =VLOOKUP(B32,Pilot,5,0) -> M | E32: =VLOOKUP(B32,Pilot,3,0) -> Medlánky | F32: =VLOOKUP(B32,Pilot,4,0) -> CZ/M | G32: Toužim Cup 2025 - Klub | H32: 3 | I32: 1964 | J32: 9196 | K32: LS-1f | L32: FD | M32: Junior v roce 2026 | N32: =IF(ISERROR(VLOOKUP(B32,'Zebrik G'!B:I,8,0)),"-",VLOOKUP(B32,'Zebrik G'!B:I,8,0)) -> 61 | O32: =IF(ISERROR(VLOOKUP(B32,'N PMČR 2026'!B:G,6,0)),"-",VLOOKUP(B32,'N PMČR 2026'!B:G,6,0)) -> 44
A33: 31 | B33: Petr Jiranek 63 | C33: =VLOOKUP(B33,Pilot,2,0) -> 1962 | D33: =VLOOKUP(B33,Pilot,5,0) -> M | E33: =VLOOKUP(B33,Pilot,3,0) -> Toužim | F33: =VLOOKUP(B33,Pilot,4,0) -> CZ/C1 | G33: Toužim Cup 2025 - Kombi | H33: 5 | I33: 2097 | J33: 9189 | K33: HpH 304MS SHARK /18m (560 kg) | L33: LK | N33: =IF(ISERROR(VLOOKUP(B33,'Zebrik G'!B:I,8,0)),"-",VLOOKUP(B33,'Zebrik G'!B:I,8,0)) -> 116 | O33: =IF(ISERROR(VLOOKUP(B33,'N PMČR 2026'!B:G,6,0)),"-",VLOOKUP(B33,'N PMČR 2026'!B:G,6,0)) -> - | P33: 11
A34: 32 | B34: Petr Masik | C34: =VLOOKUP(B34,Pilot,2,0) -> 2001 | D34: =VLOOKUP(B34,Pilot,5,0) -> M | E34: =VLOOKUP(B34,Pilot,3,0) -> Zábřeh | F34: =VLOOKUP(B34,Pilot,4,0) -> CZ/M | G34: JPJ 2025 - Klub | H34: 3 | I34: 4213 | J34: 9174 | K34: ASW-19B | L34: 34 | M34: Junior v roce 2026 | N34: =IF(ISERROR(VLOOKUP(B34,'Zebrik G'!B:I,8,0)),"-",VLOOKUP(B34,'Zebrik G'!B:I,8,0)) -> 31 | O34: =IF(ISERROR(VLOOKUP(B34,'N PMČR 2026'!B:G,6,0)),"-",VLOOKUP(B34,'N PMČR 2026'!B:G,6,0)) -> 24
A35: 33 | B35: Ondrej Bordovsky | C35: =VLOOKUP(B35,Pilot,2,0) -> 1983 | D35: =VLOOKUP(B35,Pilot,5,0) -> M | E35: =VLOOKUP(B35,Pilot,3,0) -> Krnov | F35: =VLOOKUP(B35,Pilot,4,0) -> CZ/M | G35: PPV 2025 - Kombi | H35: 3 | I35: 3491 | J35: 9127 | K35: Ventus c 17.6m | L35: AD | N35: =IF(ISERROR(VLOOKUP(B35,'Zebrik G'!B:I,8,0)),"-",VLOOKUP(B35,'Zebrik G'!B:I,8,0)) -> 33 | O35: =IF(ISERROR(VLOOKUP(B35,'N PMČR 2026'!B:G,6,0)),"-",VLOOKUP(B35,'N PMČR 2026'!B:G,6,0)) -> 41
A36: 34 | B36: Daniel Eliott | E36: Chérence | G36: AZ Cup 2025 - Klub | H36: 5 | I36: 2513 | J36: 9117 | K36: LS 4 | L36: YG | M36: Není v databázi | N36: =IF(ISERROR(VLOOKUP(B36,'Zebrik G'!B:I,8,0)),"-",VLOOKUP(B36,'Zebrik G'!B:I,8,0)) -> - | O36: =IF(ISERROR(VLOOKUP(B36,'N PMČR 2026'!B:G,6,0)),"-",VLOOKUP(B36,'N PMČR 2026'!B:G,6,0)) -> -
A37: 35 | B37: Marius Pluscauskas | E37: Vilniaus aeroklubas | G37: AZ Cup 2025 - Kombi 15m | H37: 3 | I37: 2907 | J37: 9085 | K37: Diana 2 | L37: BB | M37: Není v databázi | N37: =IF(ISERROR(VLOOKUP(B37,'Zebrik G'!B:I,8,0)),"-",VLOOKUP(B37,'Zebrik G'!B:I,8,0)) -> - | O37: =IF(ISERROR(VLOOKUP(B37,'N PMČR 2026'!B:G,6,0)),"-",VLOOKUP(B37,'N PMČR 2026'!B:G,6,0)) -> -
A38: 36 | B38: Jan Smekal | C38: =VLOOKUP(B38,Pilot,2,0) -> 1976 | D38: =VLOOKUP(B38,Pilot,5,0) -> M | E38: =VLOOKUP(B38,Pilot,3,0) -> Zbraslavice | F38: =VLOOKUP(B38,Pilot,4,0) -> CZ/C1 | G38: Toužim Cup 2025 - Kombi | H38: 6 | I38: 2092 | J38: 9083 | K38: Ventus c /17,6m | L38: CL | N38: =IF(ISERROR(VLOOKUP(B38,'Zebrik G'!B:I,8,0)),"-",VLOOKUP(B38,'Zebrik G'!B:I,8,0)) -> 73 | O38: =IF(ISERROR(VLOOKUP(B38,'N PMČR 2026'!B:G,6,0)),"-",VLOOKUP(B38,'N PMČR 2026'!B:G,6,0)) -> - | P38: 12
A39: 37 | B39: Jan Beran | C39: =VLOOKUP(B39,Pilot,2,0) -> 1999 | D39: =VLOOKUP(B39,Pilot,5,0) -> M | E39: =VLOOKUP(B39,Pilot,3,0) -> Kladno | F39: =VLOOKUP(B39,Pilot,4,0) -> CZ/C1 | G39: Toužim Cup 2025 - Klub | H39: 4 | I39: 1963 | J39: 9073 | K39: ASW-19B | L39: HB | N39: =IF(ISERROR(VLOOKUP(B39,'Zebrik G'!B:I,8,0)),"-",VLOOKUP(B39,'Zebrik G'!B:I,8,0)) -> 53 | O39: =IF(ISERROR(VLOOKUP(B39,'N PMČR 2026'!B:G,6,0)),"-",VLOOKUP(B39,'N PMČR 2026'!B:G,6,0)) -> N3 | P39: 13
A40: 38 | B40: Louis Janzam | E40: Grenoble Vol à Voile | G40: PPV 2025 - Klub | H40: 6 | I40: 3288 | J40: 9070 | K40: Glasflugel 304 | L40: IMW | M40: Není v databázi | N40: =IF(ISERROR(VLOOKUP(B40,'Zebrik G'!B:I,8,0)),"-",VLOOKUP(B40,'Zebrik G'!B:I,8,0)) -> - | O40: =IF(ISERROR(VLOOKUP(B40,'N PMČR 2026'!B:G,6,0)),"-",VLOOKUP(B40,'N PMČR 2026'!B:G,6,0)) -> -
A41: 39 | B41: Alena Netusilova | C41: =VLOOKUP(B41,Pilot,2,0) -> 1970 | D41: =VLOOKUP(B41,Pilot,5,0) -> F | E41: =VLOOKUP(B41,Pilot,3,0) -> Zbraslavice | F41: =VLOOKUP(B41,Pilot,4,0) -> CZ/C1 | G41: AZ Cup 2025 - Kombi Open | H41: 5 | I41: 2632 | J41: 9001 | K41: JS 3 | L41: 3J | N41: =IF(ISERROR(VLOOKUP(B41,'Zebrik G'!B:I,8,0)),"-",VLOOKUP(B41,'Zebrik G'!B:I,8,0)) -> 43 | O41: =IF(ISERROR(VLOOKUP(B41,'N PMČR 2026'!B:G,6,0)),"-",VLOOKUP(B41,'N PMČR 2026'!B:G,6,0)) -> 25
A42: 40 | B42: Ivan Harasta 65 | C42: =VLOOKUP(B42,Pilot,2,0) -> 1965 | D42: =VLOOKUP(B42,Pilot,5,0) -> M | E42: =VLOOKUP(B42,Pilot,3,0) -> Toužim | F42: =VLOOKUP(B42,Pilot,4,0) -> CZ/C1 | G42: AZ Cup 2025 - Klub | H42: 6 | I42: 2506 | J42: 8983 | K42: LS 4 | L42: IX | N42: =IF(ISERROR(VLOOKUP(B42,'Zebrik G'!B:I,8,0)),"-",VLOOKUP(B42,'Zebrik G'!B:I,8,0)) -> 13 | O42: =IF(ISERROR(VLOOKUP(B42,'N PMČR 2026'!B:G,6,0)),"-",VLOOKUP(B42,'N PMČR 2026'!B:G,6,0)) -> 13
A43: 41 | B43: Vaclav Marel | C43: =VLOOKUP(B43,Pilot,2,0) -> 1974 | D43: =VLOOKUP(B43,Pilot,5,0) -> M | E43: =VLOOKUP(B43,Pilot,3,0) -> Jaroměř | F43: =VLOOKUP(B43,Pilot,4,0) -> CZ/C2 | G43: PPV 2025 - Klub | H43: 7 | I43: 3284 | J43: 8962 | K43: Std. Cirrus | L43: IF | N43: =IF(ISERROR(VLOOKUP(B43,'Zebrik G'!B:I,8,0)),"-",VLOOKUP(B43,'Zebrik G'!B:I,8,0)) -> 51 | O43: =IF(ISERROR(VLOOKUP(B43,'N PMČR 2026'!B:G,6,0)),"-",VLOOKUP(B43,'N PMČR 2026'!B:G,6,0)) -> N1 | P43: 14
A44: 42 | B44: Jiri Steiger | C44: =VLOOKUP(B44,Pilot,2,0) -> 1969 | D44: =VLOOKUP(B44,Pilot,5,0) -> M | E44: =VLOOKUP(B44,Pilot,3,0) -> Olomouc | F44: =VLOOKUP(B44,Pilot,4,0) -> CZ/M | G44: JPJ 2025 - Kombi Open | H44: 4 | I44: 4301 | J44: 8864 | K44: Ventus 3M 18m | L44: JS | N44: =IF(ISERROR(VLOOKUP(B44,'Zebrik G'!B:I,8,0)),"-",VLOOKUP(B44,'Zebrik G'!B:I,8,0)) -> 50 | O44: =IF(ISERROR(VLOOKUP(B44,'N PMČR 2026'!B:G,6,0)),"-",VLOOKUP(B44,'N PMČR 2026'!B:G,6,0)) -> 80 | P44: 15
A45: 43 | B45: Hugo Corbille | E45: ATVV Grauhlet | G45: AZ Cup 2025 - Klub | H45: 7 | I45: 2494 | J45: 8836 | K45: LS 7 WL | L45: HG | M45: Není v databázi | N45: =IF(ISERROR(VLOOKUP(B45,'Zebrik G'!B:I,8,0)),"-",VLOOKUP(B45,'Zebrik G'!B:I,8,0)) -> - | O45: =IF(ISERROR(VLOOKUP(B45,'N PMČR 2026'!B:G,6,0)),"-",VLOOKUP(B45,'N PMČR 2026'!B:G,6,0)) -> -
A46: 44 | B46: Steffen Goettler | E46: LSC Bad Homburg | G46: AZ Cup 2025 - Kombi 15m | H46: 4 | I46: 2882 | J46: 8829 | K46: Ventus 2a | L46: SG | M46: Není v databázi | N46: =IF(ISERROR(VLOOKUP(B46,'Zebrik G'!B:I,8,0)),"-",VLOOKUP(B46,'Zebrik G'!B:I,8,0)) -> - | O46: =IF(ISERROR(VLOOKUP(B46,'N PMČR 2026'!B:G,6,0)),"-",VLOOKUP(B46,'N PMČR 2026'!B:G,6,0)) -> -
A47: 45 | B47: Martin Ficnar | C47: =VLOOKUP(B47,Pilot,2,0) -> 1971 | D47: =VLOOKUP(B47,Pilot,5,0) -> M | E47: =VLOOKUP(B47,Pilot,3,0) -> Šumperk | F47: =VLOOKUP(B47,Pilot,4,0) -> CZ/M | G47: JPJ 2025 - Klub | H47: 4 | I47: 4045 | J47: 8820 | K47: LS-3a 15m | L47: S20 | N47: =IF(ISERROR(VLOOKUP(B47,'Zebrik G'!B:I,8,0)),"-",VLOOKUP(B47,'Zebrik G'!B:I,8,0)) -> 74 | O47: =IF(ISERROR(VLOOKUP(B47,'N PMČR 2026'!B:G,6,0)),"-",VLOOKUP(B47,'N PMČR 2026'!B:G,6,0)) -> - | P47: 16
A48: 45 | B48: Ivan Harasta 65 | C48: 1965 | D48: M | E48: Toužim | F48: CZ/C1 | G48: Toužim Cup 2025 - Kombi | H48: 7 | I48: 2037 | J48: 8820 | K48: Nimbus 4DM | L48: MM | N48: =IF(ISERROR(VLOOKUP(B48,'Zebrik G'!B:I,8,0)),"-",VLOOKUP(B48,'Zebrik G'!B:I,8,0)) -> 13 | O48: =IF(ISERROR(VLOOKUP(B48,'N PMČR 2026'!B:G,6,0)),"-",VLOOKUP(B48,'N PMČR 2026'!B:G,6,0)) -> 13
A49: 47 | B49: Jan Kotan | C49: 1982 | D49: M | E49: Letňany | F49: CZ/C1 | G49: AZ Cup 2025 - Kombi Open | H49: 6 | I49: 2582 | J49: 8726 | K49: AS 33 | L49: CAT | N49: =IF(ISERROR(VLOOKUP(B49,'Zebrik G'!B:I,8,0)),"-",VLOOKUP(B49,'Zebrik G'!B:I,8,0)) -> 22 | O49: =IF(ISERROR(VLOOKUP(B49,'N PMČR 2026'!B:G,6,0)),"-",VLOOKUP(B49,'N PMČR 2026'!B:G,6,0)) -> 42
A50: 48 | B50: Jiri Fousek | C50: 1990 | D50: M | E50: Raná | F50: CZ/C2 | G50: Toužim Cup 2025 - Kombi | H50: 8 | I50: 2034 | J50: 8720 | K50: Ventus c /17,6m | L50: XE | N50: =IF(ISERROR(VLOOKUP(B50,'Zebrik G'!B:I,8,0)),"-",VLOOKUP(B50,'Zebrik G'!B:I,8,0)) -> 65 | O50: =IF(ISERROR(VLOOKUP(B50,'N PMČR 2026'!B:G,6,0)),"-",VLOOKUP(B50,'N PMČR 2026'!B:G,6,0)) -> N8 | P50: 17
A51: 49 | B51: Martin Hejny | C51: 1984 | D51: M | E51: Šumperk | F51: CZ/M | G51: JPJ 2025 - Klub | H51: 5 | I51: 4039 | J51: 8710 | K51: ASW-19B | L51: B8 | N51: =IF(ISERROR(VLOOKUP(B51,'Zebrik G'!B:I,8,0)),"-",VLOOKUP(B51,'Zebrik G'!B:I,8,0)) -> 90 | O51: =IF(ISERROR(VLOOKUP(B51,'N PMČR 2026'!B:G,6,0)),"-",VLOOKUP(B51,'N PMČR 2026'!B:G,6,0)) -> - | P51: 18
A52: 50 | B52: Josef Kolman | C52: 1983 | D52: M | E52: Letňany | F52: CZ/C1 | G52: PPV 2025 - Klub | H52: 8 | I52: 3206 | J52: 8707 | K52: ASW 15 B | L52: BA4 | N52: =IF(ISERROR(VLOOKUP(B52,'Zebrik G'!B:I,8,0)),"-",VLOOKUP(B52,'Zebrik G'!B:I,8,0)) -> 102 | O52: =IF(ISERROR(VLOOKUP(B52,'N PMČR 2026'!B:G,6,0)),"-",VLOOKUP(B52,'N PMČR 2026'!B:G,6,0)) -> - | P52: 19
A53: 51 | B53: Alexandre Fierain | E53: Abbeville | G53: AZ Cup 2025 - Klub | H53: 8 | I53: 2485 | J53: 8698 | K53: LS 7 neo | L53: AG | M53: Není v databázi | N53: =IF(ISERROR(VLOOKUP(B53,'Zebrik G'!B:I,8,0)),"-",VLOOKUP(B53,'Zebrik G'!B:I,8,0)) -> - | O53: =IF(ISERROR(VLOOKUP(B53,'N PMČR 2026'!B:G,6,0)),"-",VLOOKUP(B53,'N PMČR 2026'!B:G,6,0)) -> -
A54: 52 | B54: Jiri Prochazka | C54: =VLOOKUP(B54,Pilot,2,0) -> 1971 | D54: =VLOOKUP(B54,Pilot,5,0) -> M | E54: =VLOOKUP(B54,Pilot,3,0) -> Toužim | F54: =VLOOKUP(B54,Pilot,4,0) -> CZ/C1 | G54: Toužim Cup 2025 - Klub | H54: 5 | I54: 1878 | J54: 8674 | K54: Janus CM (FG) (fix gear=pevný podvozek) | L54: J59 | N54: =IF(ISERROR(VLOOKUP(B54,'Zebrik G'!B:I,8,0)),"-",VLOOKUP(B54,'Zebrik G'!B:I,8,0)) -> 85 | O54: =IF(ISERROR(VLOOKUP(B54,'N PMČR 2026'!B:G,6,0)),"-",VLOOKUP(B54,'N PMČR 2026'!B:G,6,0)) -> - | P54: 20
A55: 53 | B55: David Zapletal | C55: =VLOOKUP(B55,Pilot,2,0) -> 1970 | D55: =VLOOKUP(B55,Pilot,5,0) -> M | E55: =VLOOKUP(B55,Pilot,3,0) -> Mladá Boleslav | F55: =VLOOKUP(B55,Pilot,4,0) -> CZ/C1 | G55: PPV 2025 - Kombi | H55: 4 | I55: 3258 | J55: 8592 | K55: Ventus c 17.6m | L55: PUP | N55: =IF(ISERROR(VLOOKUP(B55,'Zebrik G'!B:I,8,0)),"-",VLOOKUP(B55,'Zebrik G'!B:I,8,0)) -> 68 | O55: =IF(ISERROR(VLOOKUP(B55,'N PMČR 2026'!B:G,6,0)),"-",VLOOKUP(B55,'N PMČR 2026'!B:G,6,0)) -> -
A56: 54 | B56: Balazs Endrodi | E56: MÁV SE | G56: AZ Cup 2025 - Kombi 15m | H56: 5 | I56: 2838 | J56: 8531 | K56: Discus 2a | L56: WD | M56: Není v databázi | N56: =IF(ISERROR(VLOOKUP(B56,'Zebrik G'!B:I,8,0)),"-",VLOOKUP(B56,'Zebrik G'!B:I,8,0)) -> - | O56: =IF(ISERROR(VLOOKUP(B56,'N PMČR 2026'!B:G,6,0)),"-",VLOOKUP(B56,'N PMČR 2026'!B:G,6,0)) -> -
A57: 55 | B57: Jan Zahradka | C57: =VLOOKUP(B57,Pilot,2,0) -> 1981 | D57: =VLOOKUP(B57,Pilot,5,0) -> M | E57: =VLOOKUP(B57,Pilot,3,0) -> Hodkovice | F57: =VLOOKUP(B57,Pilot,4,0) -> CZ/C2 | G57: PPV 2025 - Klub | H57: 9 | I57: 3165 | J57: 8525 | K57: Std. Cirrus | L57: AR | N57: =IF(ISERROR(VLOOKUP(B57,'Zebrik G'!B:I,8,0)),"-",VLOOKUP(B57,'Zebrik G'!B:I,8,0)) -> 145 | O57: =IF(ISERROR(VLOOKUP(B57,'N PMČR 2026'!B:G,6,0)),"-",VLOOKUP(B57,'N PMČR 2026'!B:G,6,0)) -> -
A58: 56 | B58: Jan Muknsnabl | C58: 1992 | D58: M | E58: Letkov | F58: CZ/C1 | G58: Toužim Cup 2025 - Kombi | H58: 9 | I58: 1997 | J58: 8513 | K58: Nimbus 2M WL | L58: NB | N58: =IF(ISERROR(VLOOKUP(B58,'Zebrik G'!B:I,8,0)),"-",VLOOKUP(B58,'Zebrik G'!B:I,8,0)) -> 91 | O58: =IF(ISERROR(VLOOKUP(B58,'N PMČR 2026'!B:G,6,0)),"-",VLOOKUP(B58,'N PMČR 2026'!B:G,6,0)) -> -
A59: 57 | B59: Alex Gulich | C59: 2005 | D59: M | E59: Slaný | F59: CZ/C1 | G59: Toužim Cup 2025 - Klub | H59: 6 | I59: 1854 | J59: 8476 | K59: Std. Cirrus | L59: TI | M59: Junior v roce 2026 | N59: =IF(ISERROR(VLOOKUP(B59,'Zebrik G'!B:I,8,0)),"-",VLOOKUP(B59,'Zebrik G'!B:I,8,0)) -> 60 | O59: =IF(ISERROR(VLOOKUP(B59,'N PMČR 2026'!B:G,6,0)),"-",VLOOKUP(B59,'N PMČR 2026'!B:G,6,0)) -> 45
A60: 58 | B60: Lukas Kriz | C60: 2003 | D60: M | E60: Křižanov | F60: CZ/M | G60: JPJ 2025 - Kombi 15m | H60: 2 | I60: 4006 | J60: 8430 | K60: LS-8-18 15m | L60: W8 | M60: Junior v roce 2026 | N60: =IF(ISERROR(VLOOKUP(B60,'Zebrik G'!B:I,8,0)),"-",VLOOKUP(B60,'Zebrik G'!B:I,8,0)) -> 3 | O60: =IF(ISERROR(VLOOKUP(B60,'N PMČR 2026'!B:G,6,0)),"-",VLOOKUP(B60,'N PMČR 2026'!B:G,6,0)) -> 3
A61: 59 | B61: Jan Vozeh | C61: 1995 | D61: M | E61: Rakovník | F61: CZ/C1 | G61: JPJ 2025 - Klub | H61: 6 | I61: 3914 | J61: 8421 | K61: LS-7 | L61: LZ | N61: =IF(ISERROR(VLOOKUP(B61,'Zebrik G'!B:I,8,0)),"-",VLOOKUP(B61,'Zebrik G'!B:I,8,0)) -> 94 | O61: =IF(ISERROR(VLOOKUP(B61,'N PMČR 2026'!B:G,6,0)),"-",VLOOKUP(B61,'N PMČR 2026'!B:G,6,0)) -> -
A62: 60 | B62: Miroslav Koci | C62: 1961 | D62: M | E62: Žamberk | F62: CZ/C2 | G62: JPJ 2025 - Kombi Open | H62: 5 | I62: 4121 | J62: 8420 | K62: Ventus 2cxm 18m 565kg | L62: E8 | N62: =IF(ISERROR(VLOOKUP(B62,'Zebrik G'!B:I,8,0)),"-",VLOOKUP(B62,'Zebrik G'!B:I,8,0)) -> 149 | O62: =IF(ISERROR(VLOOKUP(B62,'N PMČR 2026'!B:G,6,0)),"-",VLOOKUP(B62,'N PMČR 2026'!B:G,6,0)) -> -
A63: 61 | B63: Marek Blatak | C63: 1969 | D63: M | E63: Šumperk | F63: CZ/M | G63: PPV 2025 - Kombi | H63: 5 | I63: 3211 | J63: 8395 | K63: DG 808C Classic 18m | L63: W | N63: =IF(ISERROR(VLOOKUP(B63,'Zebrik G'!B:I,8,0)),"-",VLOOKUP(B63,'Zebrik G'!B:I,8,0)) -> 45 | O63: =IF(ISERROR(VLOOKUP(B63,'N PMČR 2026'!B:G,6,0)),"-",VLOOKUP(B63,'N PMČR 2026'!B:G,6,0)) -> 76
A64: 62 | B64: Boris Zorz | E64: AK ALC Lesce | G64: AZ Cup 2025 - Kombi Open | H64: 7 | I64: 2482 | J64: 8325 | K64: JS 3 | L64: BL | M64: Není v databázi | N64: =IF(ISERROR(VLOOKUP(B64,'Zebrik G'!B:I,8,0)),"-",VLOOKUP(B64,'Zebrik G'!B:I,8,0)) -> - | O64: =IF(ISERROR(VLOOKUP(B64,'N PMČR 2026'!B:G,6,0)),"-",VLOOKUP(B64,'N PMČR 2026'!B:G,6,0)) -> -
A65: 63 | B65: Hana Treslova | C65: =VLOOKUP(B65,Pilot,2,0) -> 1991 | D65: =VLOOKUP(B65,Pilot,5,0) -> F | E65: =VLOOKUP(B65,Pilot,3,0) -> Raná | F65: =VLOOKUP(B65,Pilot,4,0) -> CZ/C2 | G65: Toužim Cup 2025 - Kombi | H65: 10 | I65: 1961 | J65: 8310 | K65: JS3-18m | L65: XM | N65: =IF(ISERROR(VLOOKUP(B65,'Zebrik G'!B:I,8,0)),"-",VLOOKUP(B65,'Zebrik G'!B:I,8,0)) -> 17 | O65: =IF(ISERROR(VLOOKUP(B65,'N PMČR 2026'!B:G,6,0)),"-",VLOOKUP(B65,'N PMČR 2026'!B:G,6,0)) -> 17
A66: 64 | B66: Martin Ficnar | C66: =VLOOKUP(B66,Pilot,2,0) -> 1971 | D66: =VLOOKUP(B66,Pilot,5,0) -> M | E66: =VLOOKUP(B66,Pilot,3,0) -> Šumperk | F66: =VLOOKUP(B66,Pilot,4,0) -> CZ/M | G66: PPV 2025 - Klub | H66: 10 | I66: 3102 | J66: 8299 | K66: LS 3a | L66: S20 | N66: =IF(ISERROR(VLOOKUP(B66,'Zebrik G'!B:I,8,0)),"-",VLOOKUP(B66,'Zebrik G'!B:I,8,0)) -> 74 | O66: =IF(ISERROR(VLOOKUP(B66,'N PMČR 2026'!B:G,6,0)),"-",VLOOKUP(B66,'N PMČR 2026'!B:G,6,0)) -> -
A67: =RANK(J67,J:J) -> 65 | B67: Aurelien Doriat | E67: ACP Poitiers | G67: AZ Cup 2025 - Kombi 15m | H67: 6 | I67: 2814 | J67: 8277 | K67: LS 8 | L67: P1 | M67: =IF(ISERROR(VLOOKUP(B67,Pilot,6,0)),"Není v databázi",VLOOKUP(B67,Pilot,6,0)) -> Není v databázi | N67: =IF(ISERROR(VLOOKUP(B67,'Zebrik G'!B:I,8,0)),"-",VLOOKUP(B67,'Zebrik G'!B:I,8,0)) -> - | O67: =IF(ISERROR(VLOOKUP(B67,'N PMČR 2026'!B:G,6,0)),"-",VLOOKUP(B67,'N PMČR 2026'!B:G,6,0)) -> -
A68: 66 | B68: David Popovsky | C68: =VLOOKUP(B68,Pilot,2,0) -> 1976 | D68: =VLOOKUP(B68,Pilot,5,0) -> M | E68: =VLOOKUP(B68,Pilot,3,0) -> Rakovník | F68: =VLOOKUP(B68,Pilot,4,0) -> CZ/C1 | G68: AZ Cup 2025 - Klub | H68: 9 | I68: 2367 | J68: 8273 | K68: ASW 24 | L68: 76 | N68: =IF(ISERROR(VLOOKUP(B68,'Zebrik G'!B:I,8,0)),"-",VLOOKUP(B68,'Zebrik G'!B:I,8,0)) -> 141 | O68: =IF(ISERROR(VLOOKUP(B68,'N PMČR 2026'!B:G,6,0)),"-",VLOOKUP(B68,'N PMČR 2026'!B:G,6,0)) -> -
A69: 67 | B69: Jan Simon | C69: =VLOOKUP(B69,Pilot,2,0) -> 1970 | D69: =VLOOKUP(B69,Pilot,5,0) -> M | E69: =VLOOKUP(B69,Pilot,3,0) -> Kralupy | F69: =VLOOKUP(B69,Pilot,4,0) -> CZ/C1 | G69: PPV 2025 - Kombi | H69: 6 | I69: 3181 | J69: 8230 | K69: Ventus cT 17.6m | L69: KR | N69: =IF(ISERROR(VLOOKUP(B69,'Zebrik G'!B:I,8,0)),"-",VLOOKUP(B69,'Zebrik G'!B:I,8,0)) -> 66 | O69: =IF(ISERROR(VLOOKUP(B69,'N PMČR 2026'!B:G,6,0)),"-",VLOOKUP(B69,'N PMČR 2026'!B:G,6,0)) -> N9
A70: 68 | B70: Karel Benisek 76 | C70: =VLOOKUP(B70,Pilot,2,0) -> 1976 | D70: =VLOOKUP(B70,Pilot,5,0) -> M | E70: =VLOOKUP(B70,Pilot,3,0) -> Toužim | F70: =VLOOKUP(B70,Pilot,4,0) -> CZ/C1 | G70: Toužim Cup 2025 - Klub | H70: 7 | I70: 1793 | J70: 8156 | K70: Janus C (FG) | L70: DF | N70: =IF(ISERROR(VLOOKUP(B70,'Zebrik G'!B:I,8,0)),"-",VLOOKUP(B70,'Zebrik G'!B:I,8,0)) -> 161 | O70: =IF(ISERROR(VLOOKUP(B70,'N PMČR 2026'!B:G,6,0)),"-",VLOOKUP(B70,'N PMČR 2026'!B:G,6,0)) -> -
A71: 69 | B71: Louise Rodriguez | E71: Bailleau | G71: AZ Cup 2025 - Klub | H71: 10 | I71: 2360 | J71: 8140 | K71: ASW 20 | L71: XI | M71: Není v databázi | N71: =IF(ISERROR(VLOOKUP(B71,'Zebrik G'!B:I,8,0)),"-",VLOOKUP(B71,'Zebrik G'!B:I,8,0)) -> - | O71: =IF(ISERROR(VLOOKUP(B71,'N PMČR 2026'!B:G,6,0)),"-",VLOOKUP(B71,'N PMČR 2026'!B:G,6,0)) -> -
A72: 70 | B72: Zdenek Balcarek | C72: =VLOOKUP(B72,Pilot,2,0) -> 1967 | D72: =VLOOKUP(B72,Pilot,5,0) -> M | E72: =VLOOKUP(B72,Pilot,3,0) -> Kroměříž | F72: =VLOOKUP(B72,Pilot,4,0) -> CZ/M | G72: JPJ 2025 - Klub | H72: 7 | I72: 3776 | J72: 8113 | K72: Discus b | L72: AI | N72: =IF(ISERROR(VLOOKUP(B72,'Zebrik G'!B:I,8,0)),"-",VLOOKUP(B72,'Zebrik G'!B:I,8,0)) -> 75 | O72: =IF(ISERROR(VLOOKUP(B72,'N PMČR 2026'!B:G,6,0)),"-",VLOOKUP(B72,'N PMČR 2026'!B:G,6,0)) -> -
A73: 71 | B73: Jan Simon | C73: =VLOOKUP(B73,Pilot,2,0) -> 1970 | D73: =VLOOKUP(B73,Pilot,5,0) -> M | E73: =VLOOKUP(B73,Pilot,3,0) -> Kralupy | F73: =VLOOKUP(B73,Pilot,4,0) -> CZ/C1 | G73: JPJ 2025 - Kombi Open | H73: 6 | I73: 4020 | J73: 8093 | K73: Ventus ct 17,6m | L73: KR | N73: =IF(ISERROR(VLOOKUP(B73,'Zebrik G'!B:I,8,0)),"-",VLOOKUP(B73,'Zebrik G'!B:I,8,0)) -> 66 | O73: =IF(ISERROR(VLOOKUP(B73,'N PMČR 2026'!B:G,6,0)),"-",VLOOKUP(B73,'N PMČR 2026'!B:G,6,0)) -> N9
A74: 72 | B74: Martin Zahalka | C74: =VLOOKUP(B74,Pilot,2,0) -> 1987 | D74: =VLOOKUP(B74,Pilot,5,0) -> M | E74: =VLOOKUP(B74,Pilot,3,0) -> Staňkov | F74: =VLOOKUP(B74,Pilot,4,0) -> CZ/C1 | G74: Toužim Cup 2025 - Kombi | H74: 11 | I74: 1920 | J74: 8091 | K74: DG-400 17m | L74: FF | N74: =IF(ISERROR(VLOOKUP(B74,'Zebrik G'!B:I,8,0)),"-",VLOOKUP(B74,'Zebrik G'!B:I,8,0)) -> 105 | O74: =IF(ISERROR(VLOOKUP(B74,'N PMČR 2026'!B:G,6,0)),"-",VLOOKUP(B74,'N PMČR 2026'!B:G,6,0)) -> -
A75: 73 | B75: Vladas Motuza | E75: KAASK | G75: AZ Cup 2025 - Kombi 15m | H75: 7 | I75: 2806 | J75: 8059 | K75: ASG 29 15m | L75: M7 | M75: Není v databázi | N75: =IF(ISERROR(VLOOKUP(B75,'Zebrik G'!B:I,8,0)),"-",VLOOKUP(B75,'Zebrik G'!B:I,8,0)) -> - | O75: =IF(ISERROR(VLOOKUP(B75,'N PMČR 2026'!B:G,6,0)),"-",VLOOKUP(B75,'N PMČR 2026'!B:G,6,0)) -> -
A76: 74 | B76: Eliska Kudejova | C76: =VLOOKUP(B76,Pilot,2,0) -> 2006 | D76: =VLOOKUP(B76,Pilot,5,0) -> F | E76: =VLOOKUP(B76,Pilot,3,0) -> Strakonice | F76: =VLOOKUP(B76,Pilot,4,0) -> CZ/C1 | G76: Toužim Cup 2025 - Klub | H76: 8 | I76: 1790 | J76: 8026 | K76: DG-101 G | L76: JE | M76: Junior v roce 2026 | N76: =IF(ISERROR(VLOOKUP(B76,'Zebrik G'!B:I,8,0)),"-",VLOOKUP(B76,'Zebrik G'!B:I,8,0)) -> 78 | O76: =IF(ISERROR(VLOOKUP(B76,'N PMČR 2026'!B:G,6,0)),"-",VLOOKUP(B76,'N PMČR 2026'!B:G,6,0)) -> 29
A77: 75 | B77: Jan Boruvka | C77: 1984 | D77: M | E77: Jičín | F77: CZ/C2 | G77: AZ Cup 2025 - Kombi Open | H77: 8 | I77: 2413 | J77: 8002 | K77: ASG 29 E | L77: QX | N77: =IF(ISERROR(VLOOKUP(B77,'Zebrik G'!B:I,8,0)),"-",VLOOKUP(B77,'Zebrik G'!B:I,8,0)) -> 34 | O77: =IF(ISERROR(VLOOKUP(B77,'N PMČR 2026'!B:G,6,0)),"-",VLOOKUP(B77,'N PMČR 2026'!B:G,6,0)) -> 43
A78: 76 | B78: Adam Sugl | C78: 1987 | D78: M | E78: Vyškov | F78: CZ/M | G78: JPJ 2025 - Klub | H78: 8 | I78: 3766 | J78: 7997 | K78: Std. Cirrus | L78: GT | N78: =IF(ISERROR(VLOOKUP(B78,'Zebrik G'!B:I,8,0)),"-",VLOOKUP(B78,'Zebrik G'!B:I,8,0)) -> 109 | O78: =IF(ISERROR(VLOOKUP(B78,'N PMČR 2026'!B:G,6,0)),"-",VLOOKUP(B78,'N PMČR 2026'!B:G,6,0)) -> -
A79: 77 | B79: Vratislav Sram | C79: 1966 | D79: M | E79: Broumov | F79: CZ/C2 | G79: Toužim Cup 2025 - Kombi | H79: 12 | I79: 1916 | J79: 7988 | K79: Nimbus 4DM | L79: 7 | N79: =IF(ISERROR(VLOOKUP(B79,'Zebrik G'!B:I,8,0)),"-",VLOOKUP(B79,'Zebrik G'!B:I,8,0)) -> 67 | O79: =IF(ISERROR(VLOOKUP(B79,'N PMČR 2026'!B:G,6,0)),"-",VLOOKUP(B79,'N PMČR 2026'!B:G,6,0)) -> N10
A80: 78 | B80: Jaromir Pauer | C80: 1974 | D80: M | E80: Hosín | F80: CZ/C1 | G80: PPV 2025 - Kombi | H80: 7 | I80: 3102 | J80: 7975 | K80: Ventus b 16.6m | L80: 7F | N80: =IF(ISERROR(VLOOKUP(B80,'Zebrik G'!B:I,8,0)),"-",VLOOKUP(B80,'Zebrik G'!B:I,8,0)) -> 186 | O80: =IF(ISERROR(VLOOKUP(B80,'N PMČR 2026'!B:G,6,0)),"-",VLOOKUP(B80,'N PMČR 2026'!B:G,6,0)) -> -
A81: 79 | B81: Martin Urner | C81: 1974 | D81: M | E81: Letňany | F81: CZ/C1 | G81: PPV 2025 - Klub | H81: 11 | I81: 2959 | J81: 7913 | K81: ASW 15 B | L81: JJ | N81: =IF(ISERROR(VLOOKUP(B81,'Zebrik G'!B:I,8,0)),"-",VLOOKUP(B81,'Zebrik G'!B:I,8,0)) -> 63 | O81: =IF(ISERROR(VLOOKUP(B81,'N PMČR 2026'!B:G,6,0)),"-",VLOOKUP(B81,'N PMČR 2026'!B:G,6,0)) -> N7
A82: 80 | B82: Edita Skalskiene | E82: KAASK | G82: AZ Cup 2025 - Klub | H82: 11 | I82: 2308 | J82: 7888 | K82: ASW 20f | L82: W4 | M82: Není v databázi | N82: =IF(ISERROR(VLOOKUP(B82,'Zebrik G'!B:I,8,0)),"-",VLOOKUP(B82,'Zebrik G'!B:I,8,0)) -> - | O82: =IF(ISERROR(VLOOKUP(B82,'N PMČR 2026'!B:G,6,0)),"-",VLOOKUP(B82,'N PMČR 2026'!B:G,6,0)) -> -
A83: 81 | B83: Josef Novak | C83: =VLOOKUP(B83,Pilot,2,0) -> 1981 | D83: =VLOOKUP(B83,Pilot,5,0) -> M | E83: =VLOOKUP(B83,Pilot,3,0) -> Kunovice | F83: =VLOOKUP(B83,Pilot,4,0) -> CZ/M | G83: JPJ 2025 - Klub | H83: 9 | I83: 3731 | J83: 7844 | K83: LS-1f | L83: JT | N83: =IF(ISERROR(VLOOKUP(B83,'Zebrik G'!B:I,8,0)),"-",VLOOKUP(B83,'Zebrik G'!B:I,8,0)) -> 59 | O83: =IF(ISERROR(VLOOKUP(B83,'N PMČR 2026'!B:G,6,0)),"-",VLOOKUP(B83,'N PMČR 2026'!B:G,6,0)) -> N6
A84: 82 | B84: Lukas Koukal | C84: =VLOOKUP(B84,Pilot,2,0) -> 1991 | D84: =VLOOKUP(B84,Pilot,5,0) -> M | E84: =VLOOKUP(B84,Pilot,3,0) -> Letkov | F84: =VLOOKUP(B84,Pilot,4,0) -> CZ/C1 | G84: Toužim Cup 2025 - Klub | H84: 9 | I84: 1750 | J84: 7775 | K84: ASW-15B | L84: T1 | N84: =IF(ISERROR(VLOOKUP(B84,'Zebrik G'!B:I,8,0)),"-",VLOOKUP(B84,'Zebrik G'!B:I,8,0)) -> 86 | O84: =IF(ISERROR(VLOOKUP(B84,'N PMČR 2026'!B:G,6,0)),"-",VLOOKUP(B84,'N PMČR 2026'!B:G,6,0)) -> -
A85: 83 | B85: Jan Dersak 69 | C85: =VLOOKUP(B85,Pilot,2,0) -> 1969 | D85: =VLOOKUP(B85,Pilot,5,0) -> M | E85: =VLOOKUP(B85,Pilot,3,0) -> Kralupy | F85: =VLOOKUP(B85,Pilot,4,0) -> CZ/C1 | G85: JPJ 2025 - Kombi Open | H85: 7 | I85: 3920 | J85: 7768 | K85: HpH 304MS Shark 18m 600kg | L85: DJ | N85: =IF(ISERROR(VLOOKUP(B85,'Zebrik G'!B:I,8,0)),"-",VLOOKUP(B85,'Zebrik G'!B:I,8,0)) -> 76 | O85: =IF(ISERROR(VLOOKUP(B85,'N PMČR 2026'!B:G,6,0)),"-",VLOOKUP(B85,'N PMČR 2026'!B:G,6,0)) -> -
A86: 84 | B86: Rostislav Stryk | C86: =VLOOKUP(B86,Pilot,2,0) -> 1972 | D86: =VLOOKUP(B86,Pilot,5,0) -> M | E86: =VLOOKUP(B86,Pilot,3,0) -> Frýdlant | F86: =VLOOKUP(B86,Pilot,4,0) -> CZ/M | G86: JPJ 2025 - Klub | H86: 10 | I86: 3702 | J86: 7701 | K86: Std. Cirrus | L86: 22 | N86: =IF(ISERROR(VLOOKUP(B86,'Zebrik G'!B:I,8,0)),"-",VLOOKUP(B86,'Zebrik G'!B:I,8,0)) -> 108 | O86: =IF(ISERROR(VLOOKUP(B86,'N PMČR 2026'!B:G,6,0)),"-",VLOOKUP(B86,'N PMČR 2026'!B:G,6,0)) -> -
A87: 85 | B87: Zdenek Boruvka 86 | C87: =VLOOKUP(B87,Pilot,2,0) -> 1986 | D87: =VLOOKUP(B87,Pilot,5,0) -> M | E87: =VLOOKUP(B87,Pilot,3,0) -> Jičín | F87: =VLOOKUP(B87,Pilot,4,0) -> CZ/C2 | G87: AZ Cup 2025 - Kombi Open | H87: 9 | I87: 2350 | J87: 7694 | K87: Ventus c | L87: VV | N87: =IF(ISERROR(VLOOKUP(B87,'Zebrik G'!B:I,8,0)),"-",VLOOKUP(B87,'Zebrik G'!B:I,8,0)) -> 81 | O87: =IF(ISERROR(VLOOKUP(B87,'N PMČR 2026'!B:G,6,0)),"-",VLOOKUP(B87,'N PMČR 2026'!B:G,6,0)) -> -
A88: 86 | B88: Gerald Moser-Furst | E88: USFC Krems | G88: Toužim Cup 2025 - Kombi | H88: 13 | I88: 1849 | J88: 7687 | K88: Duo Discus (700 kg) | L88: K2 | M88: Není v databázi | N88: =IF(ISERROR(VLOOKUP(B88,'Zebrik G'!B:I,8,0)),"-",VLOOKUP(B88,'Zebrik G'!B:I,8,0)) -> - | O88: =IF(ISERROR(VLOOKUP(B88,'N PMČR 2026'!B:G,6,0)),"-",VLOOKUP(B88,'N PMČR 2026'!B:G,6,0)) -> -
A89: 87 | B89: Frantisek Suna | C89: =VLOOKUP(B89,Pilot,2,0) -> 1983 | D89: =VLOOKUP(B89,Pilot,5,0) -> M | E89: =VLOOKUP(B89,Pilot,3,0) -> Hosín | F89: =VLOOKUP(B89,Pilot,4,0) -> CZ/C1 | G89: PPV 2025 - Klub | H89: 12 | I89: 2893 | J89: 7681 | K89: DG 100 | L89: 78 | N89: =IF(ISERROR(VLOOKUP(B89,'Zebrik G'!B:I,8,0)),"-",VLOOKUP(B89,'Zebrik G'!B:I,8,0)) -> 128 | O89: =IF(ISERROR(VLOOKUP(B89,'N PMČR 2026'!B:G,6,0)),"-",VLOOKUP(B89,'N PMČR 2026'!B:G,6,0)) -> -
A90: 88 | B90: Jiri Koudela | C90: 1974 | D90: M | E90: Vyškov | F90: CZ/M | G90: PPV 2025 - Kombi | H90: 8 | I90: 2995 | J90: 7669 | K90: Ventus cM 17.6m | L90: JK | N90: =IF(ISERROR(VLOOKUP(B90,'Zebrik G'!B:I,8,0)),"-",VLOOKUP(B90,'Zebrik G'!B:I,8,0)) -> 96 | O90: =IF(ISERROR(VLOOKUP(B90,'N PMČR 2026'!B:G,6,0)),"-",VLOOKUP(B90,'N PMČR 2026'!B:G,6,0)) -> -
A91: 89 | B91: Josef Beran | C91: 1982 | D91: M | E91: Slaný | F91: CZ/C1 | G91: Toužim Cup 2025 - Klub | H91: 10 | I91: 1742 | J91: 7629 | K91: Std. Cirrus WL | L91: IT | N91: =IF(ISERROR(VLOOKUP(B91,'Zebrik G'!B:I,8,0)),"-",VLOOKUP(B91,'Zebrik G'!B:I,8,0)) -> 117 | O91: =IF(ISERROR(VLOOKUP(B91,'N PMČR 2026'!B:G,6,0)),"-",VLOOKUP(B91,'N PMČR 2026'!B:G,6,0)) -> 51
A92: 89 | B92: Daniel Dvorak | C92: 1980 | D92: M | E92: Letkov | F92: CZ/C1 | G92: Toužim Cup 2025 - Klub | H92: 10 | I92: 1742 | J92: 7629 | K92: Std. Cirrus | L92: LD | N92: =IF(ISERROR(VLOOKUP(B92,'Zebrik G'!B:I,8,0)),"-",VLOOKUP(B92,'Zebrik G'!B:I,8,0)) -> 89 | O92: =IF(ISERROR(VLOOKUP(B92,'N PMČR 2026'!B:G,6,0)),"-",VLOOKUP(B92,'N PMČR 2026'!B:G,6,0)) -> -
A93: 91 | B93: Radek Tobolka | C93: 1977 | D93: M | E93: Jičín | F93: CZ/C2 | G93: JPJ 2025 - Klub | H93: 11 | I93: 3689 | J93: 7581 | K93: TST-10M Atlas | L93: 10 | N93: =IF(ISERROR(VLOOKUP(B93,'Zebrik G'!B:I,8,0)),"-",VLOOKUP(B93,'Zebrik G'!B:I,8,0)) -> 215 | O93: =IF(ISERROR(VLOOKUP(B93,'N PMČR 2026'!B:G,6,0)),"-",VLOOKUP(B93,'N PMČR 2026'!B:G,6,0)) -> -
A94: 92 | B94: Petr Bartak | C94: 1984 | D94: M | E94: Letkov | F94: CZ/C1 | G94: Toužim Cup 2025 - Kombi | H94: 14 | I94: 1835 | J94: 7553 | K94: JS3-18m | L94: BS | N94: =IF(ISERROR(VLOOKUP(B94,'Zebrik G'!B:I,8,0)),"-",VLOOKUP(B94,'Zebrik G'!B:I,8,0)) -> 88 | O94: =IF(ISERROR(VLOOKUP(B94,'N PMČR 2026'!B:G,6,0)),"-",VLOOKUP(B94,'N PMČR 2026'!B:G,6,0)) -> -
A95: 92 | B95: Matous Schmidt | C95: 1981 | D95: M | E95: Letňany | F95: CZ/C1 | G95: PPV 2025 - Kombi | H95: 9 | I95: 2992 | J95: 7553 | K95: Ventus c 17.6m | L95: UC | N95: =IF(ISERROR(VLOOKUP(B95,'Zebrik G'!B:I,8,0)),"-",VLOOKUP(B95,'Zebrik G'!B:I,8,0)) -> 245 | O95: =IF(ISERROR(VLOOKUP(B95,'N PMČR 2026'!B:G,6,0)),"-",VLOOKUP(B95,'N PMČR 2026'!B:G,6,0)) -> -
A96: 94 | B96: Petr Masik | C96: 2001 | D96: M | E96: Zábřeh | F96: CZ/M | G96: AZ Cup 2025 - Klub | H96: 12 | I96: 2207 | J96: 7508 | K96: ASW 19b | L96: 34 | M96: Junior v roce 2026 | N96: =IF(ISERROR(VLOOKUP(B96,'Zebrik G'!B:I,8,0)),"-",VLOOKUP(B96,'Zebrik G'!B:I,8,0)) -> 31 | O96: =IF(ISERROR(VLOOKUP(B96,'N PMČR 2026'!B:G,6,0)),"-",VLOOKUP(B96,'N PMČR 2026'!B:G,6,0)) -> 24
A97: 95 | B97: Martin Urban | C97: 1971 | D97: M | E97: Frýdlant | F97: CZ/M | G97: JPJ 2025 - Klub | H97: 12 | I97: 3678 | J97: 7464 | K97: LS-3a 15m | L97: SJ | N97: =IF(ISERROR(VLOOKUP(B97,'Zebrik G'!B:I,8,0)),"-",VLOOKUP(B97,'Zebrik G'!B:I,8,0)) -> 79 | O97: =IF(ISERROR(VLOOKUP(B97,'N PMČR 2026'!B:G,6,0)),"-",VLOOKUP(B97,'N PMČR 2026'!B:G,6,0)) -> -
A98: 96 | B98: Vit Prokop | C98: 1987 | D98: M | E98: Medlánky | F98: CZ/M | G98: Toužim Cup 2025 - Kombi | H98: 15 | I98: 1828 | J98: 7440 | K98: Ventus c /17,6m | L98: PD | N98: =IF(ISERROR(VLOOKUP(B98,'Zebrik G'!B:I,8,0)),"-",VLOOKUP(B98,'Zebrik G'!B:I,8,0)) -> 184 | O98: =IF(ISERROR(VLOOKUP(B98,'N PMČR 2026'!B:G,6,0)),"-",VLOOKUP(B98,'N PMČR 2026'!B:G,6,0)) -> -
A99: 97 | B99: Jiri Koudela | C99: 1974 | D99: M | E99: Vyškov | F99: CZ/M | G99: JPJ 2025 - Kombi Open | H99: 8 | I99: 3813 | J99: 7433 | K99: Ventus cm 17,6m | L99: JK | N99: =IF(ISERROR(VLOOKUP(B99,'Zebrik G'!B:I,8,0)),"-",VLOOKUP(B99,'Zebrik G'!B:I,8,0)) -> 96 | O99: =IF(ISERROR(VLOOKUP(B99,'N PMČR 2026'!B:G,6,0)),"-",VLOOKUP(B99,'N PMČR 2026'!B:G,6,0)) -> -
A100: 98 | B100: Petr Babak | C100: 1973 | D100: M | E100: Hořice | F100: CZ/C2 | G100: PPV 2025 - Kombi | H100: 10 | I100: 2983 | J100: 7425 | K100: Ventus 2cM 18m | L100: ES | N100: =IF(ISERROR(VLOOKUP(B100,'Zebrik G'!B:I,8,0)),"-",VLOOKUP(B100,'Zebrik G'!B:I,8,0)) -> 112 | O100: =IF(ISERROR(VLOOKUP(B100,'N PMČR 2026'!B:G,6,0)),"-",VLOOKUP(B100,'N PMČR 2026'!B:G,6,0)) -> -
A101: 99 | B101: Ivan Novak | C101: 1962 | D101: M | E101: Mladá Boleslav | F101: CZ/C1 | G101: AZ Cup 2025 - Kombi Open | H101: 10 | I101: 2295 | J101: 7406 | K101: LS 8 18m | L101: ID | N101: =IF(ISERROR(VLOOKUP(B101,'Zebrik G'!B:I,8,0)),"-",VLOOKUP(B101,'Zebrik G'!B:I,8,0)) -> 19 | O101: =IF(ISERROR(VLOOKUP(B101,'N PMČR 2026'!B:G,6,0)),"-",VLOOKUP(B101,'N PMČR 2026'!B:G,6,0)) -> 19
A102: 100 | B102: Frantisek Myska | C102: 1968 | D102: M | E102: Most | F102: CZ/C2 | G102: Toužim Cup 2025 - Kombi | H102: 16 | I102: 1824 | J102: 7336 | K102: Ventus bt /16,6m | L102: SK | N102: =IF(ISERROR(VLOOKUP(B102,'Zebrik G'!B:I,8,0)),"-",VLOOKUP(B102,'Zebrik G'!B:I,8,0)) -> 101 | O102: =IF(ISERROR(VLOOKUP(B102,'N PMČR 2026'!B:G,6,0)),"-",VLOOKUP(B102,'N PMČR 2026'!B:G,6,0)) -> -
A103: 101 | B103: Radek Kucirek | C103: 1973 | D103: M | E103: Havlíčkův Brod | F103: CZ/C2 | G103: AZ Cup 2025 - Kombi 15m | H103: 8 | I103: 2570 | J103: 7333 | K103: Duo Discus T 700kg | L103: XH | N103: =IF(ISERROR(VLOOKUP(B103,'Zebrik G'!B:I,8,0)),"-",VLOOKUP(B103,'Zebrik G'!B:I,8,0)) -> 27 | O103: =IF(ISERROR(VLOOKUP(B103,'N PMČR 2026'!B:G,6,0)),"-",VLOOKUP(B103,'N PMČR 2026'!B:G,6,0)) -> 40
A104: 102 | B104: Miloslav Hulmak | C104: 1963 | D104: M | E104: Hosín | F104: CZ/C1 | G104: PPV 2025 - Klub | H104: 13 | I104: 2738 | J104: 7271 | K104: ASW 15 B | L104: HH | N104: =IF(ISERROR(VLOOKUP(B104,'Zebrik G'!B:I,8,0)),"-",VLOOKUP(B104,'Zebrik G'!B:I,8,0)) -> 125 | O104: =IF(ISERROR(VLOOKUP(B104,'N PMČR 2026'!B:G,6,0)),"-",VLOOKUP(B104,'N PMČR 2026'!B:G,6,0)) -> -
A105: 103 | B105: Martin Neuvirt | C105: 2001 | D105: M | E105: Přibyslav | F105: CZ/C2 | G105: JPJ 2025 - Klub | H105: 13 | I105: 3614 | J105: 7267 | K105: Std. Cirrus | L105: 2C | M105: Junior v roce 2026 | N105: =IF(ISERROR(VLOOKUP(B105,'Zebrik G'!B:I,8,0)),"-",VLOOKUP(B105,'Zebrik G'!B:I,8,0)) -> 212 | O105: =IF(ISERROR(VLOOKUP(B105,'N PMČR 2026'!B:G,6,0)),"-",VLOOKUP(B105,'N PMČR 2026'!B:G,6,0)) -> -
A106: 104 | B106: Martin Kriz | C106: 1968 | D106: M | E106: Přibyslav | F106: CZ/C2 | G106: JPJ 2025 - Kombi 15m | H106: 3 | I106: 3374 | J106: 7226 | K106: ASW-20 (A)+F 15m WL | L106: 67 | N106: =IF(ISERROR(VLOOKUP(B106,'Zebrik G'!B:I,8,0)),"-",VLOOKUP(B106,'Zebrik G'!B:I,8,0)) -> 103 | O106: =IF(ISERROR(VLOOKUP(B106,'N PMČR 2026'!B:G,6,0)),"-",VLOOKUP(B106,'N PMČR 2026'!B:G,6,0)) -> -
A107: 105 | B107: Josef Busek | C107: 1967 | D107: M | E107: Hosín | F107: CZ/C1 | G107: PPV 2025 - Kombi | H107: 11 | I107: 2910 | J107: 7181 | K107: HpH 304 TS Twin Shark | L107: TS | N107: =IF(ISERROR(VLOOKUP(B107,'Zebrik G'!B:I,8,0)),"-",VLOOKUP(B107,'Zebrik G'!B:I,8,0)) -> 49 | O107: =IF(ISERROR(VLOOKUP(B107,'N PMČR 2026'!B:G,6,0)),"-",VLOOKUP(B107,'N PMČR 2026'!B:G,6,0)) -> 79
A108: 106 | B108: Stepan Bartos | C108: 2004 | D108: M | E108: Kolín | F108: CZ/C1 | G108: AZ Cup 2025 - Klub | H108: 13 | I108: 2116 | J108: 7155 | K108: Discus b WL | L108: LD | M108: Junior v roce 2026 | N108: =IF(ISERROR(VLOOKUP(B108,'Zebrik G'!B:I,8,0)),"-",VLOOKUP(B108,'Zebrik G'!B:I,8,0)) -> 46 | O108: =IF(ISERROR(VLOOKUP(B108,'N PMČR 2026'!B:G,6,0)),"-",VLOOKUP(B108,'N PMČR 2026'!B:G,6,0)) -> N2
A109: 107 | B109: Radek Zima 78 | C109: 1978 | D109: M | E109: Hodkovice | F109: CZ/C2 | G109: Toužim Cup 2025 - Kombi | H109: 17 | I109: 1778 | J109: 7102 | K109: ASG-29E /18m | L109: XZ | N109: =IF(ISERROR(VLOOKUP(B109,'Zebrik G'!B:I,8,0)),"-",VLOOKUP(B109,'Zebrik G'!B:I,8,0)) -> 72 | O109: =IF(ISERROR(VLOOKUP(B109,'N PMČR 2026'!B:G,6,0)),"-",VLOOKUP(B109,'N PMČR 2026'!B:G,6,0)) -> 54
A110: 108 | B110: Ales Vyhnal | C110: 1989 | D110: M | E110: Kralupy | F110: CZ/C1 | G110: PPV 2025 - Kombi | H110: 12 | I110: 2909 | J110: 7068 | K110: Nimbus 3 22.9m | L110: HS | N110: =IF(ISERROR(VLOOKUP(B110,'Zebrik G'!B:I,8,0)),"-",VLOOKUP(B110,'Zebrik G'!B:I,8,0)) -> 138 | O110: =IF(ISERROR(VLOOKUP(B110,'N PMČR 2026'!B:G,6,0)),"-",VLOOKUP(B110,'N PMČR 2026'!B:G,6,0)) -> -
A111: 109 | B111: Anna Piotrowska | E111: Warszawski/Medimur | G111: AZ Cup 2025 - Kombi Open | H111: 11 | I111: 2186 | J111: 6983 | K111: ASG 29 E | L111: HE | M111: Není v databázi | N111: =IF(ISERROR(VLOOKUP(B111,'Zebrik G'!B:I,8,0)),"-",VLOOKUP(B111,'Zebrik G'!B:I,8,0)) -> - | O111: =IF(ISERROR(VLOOKUP(B111,'N PMČR 2026'!B:G,6,0)),"-",VLOOKUP(B111,'N PMČR 2026'!B:G,6,0)) -> -
A112: 109 | B112: Michal Cupak | C112: =VLOOKUP(B112,Pilot,2,0) -> 1991 | D112: =VLOOKUP(B112,Pilot,5,0) -> M | E112: =VLOOKUP(B112,Pilot,3,0) -> Medlánky | F112: =VLOOKUP(B112,Pilot,4,0) -> CZ/M | G112: Toužim Cup 2025 - Kombi | H112: 18 | I112: 1769 | J112: 6983 | K112: Duo Discus X | L112: MD | N112: =IF(ISERROR(VLOOKUP(B112,'Zebrik G'!B:I,8,0)),"-",VLOOKUP(B112,'Zebrik G'!B:I,8,0)) -> 82 | O112: =IF(ISERROR(VLOOKUP(B112,'N PMČR 2026'!B:G,6,0)),"-",VLOOKUP(B112,'N PMČR 2026'!B:G,6,0)) -> -
A113: 111 | B113: Miroslav Sklenar | C113: =VLOOKUP(B113,Pilot,2,0) -> 1964 | D113: =VLOOKUP(B113,Pilot,5,0) -> M | E113: =VLOOKUP(B113,Pilot,3,0) -> Žamberk | F113: =VLOOKUP(B113,Pilot,4,0) -> CZ/C2 | G113: JPJ 2025 - Kombi Open | H113: 9 | I113: 3613 | J113: 6959 | K113: Duo Discus 700kg | L113: VP | N113: =IF(ISERROR(VLOOKUP(B113,'Zebrik G'!B:I,8,0)),"-",VLOOKUP(B113,'Zebrik G'!B:I,8,0)) -> 163 | O113: =IF(ISERROR(VLOOKUP(B113,'N PMČR 2026'!B:G,6,0)),"-",VLOOKUP(B113,'N PMČR 2026'!B:G,6,0)) -> -
A114: 112 | B114: Jan Hruska | C114: =VLOOKUP(B114,Pilot,2,0) -> 1988 | D114: =VLOOKUP(B114,Pilot,5,0) -> M | E114: =VLOOKUP(B114,Pilot,3,0) -> Tábor | F114: =VLOOKUP(B114,Pilot,4,0) -> CZ/C1 | G114: PPV 2025 - Klub | H114: 14 | I114: 2625 | J114: 6946 | K114: ASW 15 B | L114: LF | N114: =IF(ISERROR(VLOOKUP(B114,'Zebrik G'!B:I,8,0)),"-",VLOOKUP(B114,'Zebrik G'!B:I,8,0)) -> 47 | O114: =IF(ISERROR(VLOOKUP(B114,'N PMČR 2026'!B:G,6,0)),"-",VLOOKUP(B114,'N PMČR 2026'!B:G,6,0)) -> 77
A115: 113 | B115: Rene Hudak | C115: =VLOOKUP(B115,Pilot,2,0) -> 1972 | D115: =VLOOKUP(B115,Pilot,5,0) -> M | E115: =VLOOKUP(B115,Pilot,3,0) -> Kunovice | F115: =VLOOKUP(B115,Pilot,4,0) -> CZ/M | G115: JPJ 2025 - Klub | H115: 14 | I115: 3451 | J115: 6921 | K115: Std. Cirrus | L115: NK | N115: =IF(ISERROR(VLOOKUP(B115,'Zebrik G'!B:I,8,0)),"-",VLOOKUP(B115,'Zebrik G'!B:I,8,0)) -> 56 | O115: =IF(ISERROR(VLOOKUP(B115,'N PMČR 2026'!B:G,6,0)),"-",VLOOKUP(B115,'N PMČR 2026'!B:G,6,0)) -> N5
A116: 114 | B116: Petr Havelka | C116: =VLOOKUP(B116,Pilot,2,0) -> 1997 | D116: =VLOOKUP(B116,Pilot,5,0) -> M | E116: =VLOOKUP(B116,Pilot,3,0) -> Zbraslavice | F116: =VLOOKUP(B116,Pilot,4,0) -> CZ/C1 | G116: AZ Cup 2025 - Klub | H116: 14 | I116: 2070 | J116: 6919 | K116: ASW 19b | L116: PH | N116: =IF(ISERROR(VLOOKUP(B116,'Zebrik G'!B:I,8,0)),"-",VLOOKUP(B116,'Zebrik G'!B:I,8,0)) -> 106 | O116: =IF(ISERROR(VLOOKUP(B116,'N PMČR 2026'!B:G,6,0)),"-",VLOOKUP(B116,'N PMČR 2026'!B:G,6,0)) -> -
A117: 115 | B117: Louis Bouderlique | E117: Amiens | G117: AZ Cup 2025 - Kombi 15m | H117: 9 | I117: 2457 | J117: 6881 | K117: Discus 2a | L117: ET | M117: Není v databázi | N117: =IF(ISERROR(VLOOKUP(B117,'Zebrik G'!B:I,8,0)),"-",VLOOKUP(B117,'Zebrik G'!B:I,8,0)) -> - | O117: =IF(ISERROR(VLOOKUP(B117,'N PMČR 2026'!B:G,6,0)),"-",VLOOKUP(B117,'N PMČR 2026'!B:G,6,0)) -> -
A118: 116 | B118: Zdenek Boruvka 86 | C118: =VLOOKUP(B118,Pilot,2,0) -> 1986 | D118: =VLOOKUP(B118,Pilot,5,0) -> M | E118: =VLOOKUP(B118,Pilot,3,0) -> Jičín | F118: =VLOOKUP(B118,Pilot,4,0) -> CZ/C2 | G118: PPV 2025 - Kombi | H118: 13 | I118: 2856 | J118: 6861 | K118: Ventus c 17.6m | L118: VV | N118: =IF(ISERROR(VLOOKUP(B118,'Zebrik G'!B:I,8,0)),"-",VLOOKUP(B118,'Zebrik G'!B:I,8,0)) -> 81 | O118: =IF(ISERROR(VLOOKUP(B118,'N PMČR 2026'!B:G,6,0)),"-",VLOOKUP(B118,'N PMČR 2026'!B:G,6,0)) -> -
A119: 117 | B119: Jan Florian | C119: =VLOOKUP(B119,Pilot,2,0) -> 1992 | D119: =VLOOKUP(B119,Pilot,5,0) -> M | E119: =VLOOKUP(B119,Pilot,3,0) -> Zbraslavice | F119: =VLOOKUP(B119,Pilot,4,0) -> CZ/C1 | G119: PPV 2025 - Kombi | H119: 14 | I119: 2851 | J119: 6741 | K119: Ventus c 17.6m | L119: LS | N119: =IF(ISERROR(VLOOKUP(B119,'Zebrik G'!B:I,8,0)),"-",VLOOKUP(B119,'Zebrik G'!B:I,8,0)) -> 129 | O119: =IF(ISERROR(VLOOKUP(B119,'N PMČR 2026'!B:G,6,0)),"-",VLOOKUP(B119,'N PMČR 2026'!B:G,6,0)) -> -
A120: 118 | B120: Alex Gulich | C120: =VLOOKUP(B120,Pilot,2,0) -> 2005 | D120: =VLOOKUP(B120,Pilot,5,0) -> M | E120: =VLOOKUP(B120,Pilot,3,0) -> Slaný | F120: =VLOOKUP(B120,Pilot,4,0) -> CZ/C1 | G120: AZ Cup 2025 - Klub | H120: 15 | I120: 2041 | J120: 6728 | K120: Cirrus std. | L120: TI | M120: Junior v roce 2026 | N120: =IF(ISERROR(VLOOKUP(B120,'Zebrik G'!B:I,8,0)),"-",VLOOKUP(B120,'Zebrik G'!B:I,8,0)) -> 60 | O120: =IF(ISERROR(VLOOKUP(B120,'N PMČR 2026'!B:G,6,0)),"-",VLOOKUP(B120,'N PMČR 2026'!B:G,6,0)) -> 45
A121: 118 | B121: Jan Kohout | C121: =VLOOKUP(B121,Pilot,2,0) -> 1970 | D121: =VLOOKUP(B121,Pilot,5,0) -> M | E121: =VLOOKUP(B121,Pilot,3,0) -> Žamberk | F121: =VLOOKUP(B121,Pilot,4,0) -> CZ/C2 | G121: JPJ 2025 - Kombi Open | H121: 10 | I121: 3576 | J121: 6728 | K121: JS1-CTJ 18m EVO | L121: SK | N121: =IF(ISERROR(VLOOKUP(B121,'Zebrik G'!B:I,8,0)),"-",VLOOKUP(B121,'Zebrik G'!B:I,8,0)) -> 207 | O121: =IF(ISERROR(VLOOKUP(B121,'N PMČR 2026'!B:G,6,0)),"-",VLOOKUP(B121,'N PMČR 2026'!B:G,6,0)) -> -
A122: 120 | B122: Michal Drab | C122: =VLOOKUP(B122,Pilot,2,0) -> 1969 | D122: =VLOOKUP(B122,Pilot,5,0) -> M | E122: =VLOOKUP(B122,Pilot,3,0) -> Letkov | F122: =VLOOKUP(B122,Pilot,4,0) -> CZ/C1 | G122: Toužim Cup 2025 - Kombi | H122: 19 | I122: 1716 | J122: 6726 | K122: DG-400 17m | L122: DM | N122: =IF(ISERROR(VLOOKUP(B122,'Zebrik G'!B:I,8,0)),"-",VLOOKUP(B122,'Zebrik G'!B:I,8,0)) -> 97 | O122: =IF(ISERROR(VLOOKUP(B122,'N PMČR 2026'!B:G,6,0)),"-",VLOOKUP(B122,'N PMČR 2026'!B:G,6,0)) -> -
A123: 121 | B123: Julien Duboc | E123: Condom | G123: AZ Cup 2025 - Kombi 15m | H123: 10 | I123: 2451 | J123: 6667 | K123: Discus 2ax | L123: JPA | M123: Není v databázi | N123: =IF(ISERROR(VLOOKUP(B123,'Zebrik G'!B:I,8,0)),"-",VLOOKUP(B123,'Zebrik G'!B:I,8,0)) -> - | O123: =IF(ISERROR(VLOOKUP(B123,'N PMČR 2026'!B:G,6,0)),"-",VLOOKUP(B123,'N PMČR 2026'!B:G,6,0)) -> -
A124: 122 | B124: Milos Srank | E124: Aeroklub Nové Zámky | G124: PPV 2025 - Kombi | H124: 15 | I124: 2844 | J124: 6617 | K124: ASG 29 E 18m | L124: LK | M124: Není v databázi | N124: =IF(ISERROR(VLOOKUP(B124,'Zebrik G'!B:I,8,0)),"-",VLOOKUP(B124,'Zebrik G'!B:I,8,0)) -> - | O124: =IF(ISERROR(VLOOKUP(B124,'N PMČR 2026'!B:G,6,0)),"-",VLOOKUP(B124,'N PMČR 2026'!B:G,6,0)) -> -
A125: 123 | B125: Pavel Rericha | C125: =VLOOKUP(B125,Pilot,2,0) -> 1967 | D125: =VLOOKUP(B125,Pilot,5,0) -> M | E125: =VLOOKUP(B125,Pilot,3,0) -> Moravská Třebová | F125: =VLOOKUP(B125,Pilot,4,0) -> CZ/M | G125: JPJ 2025 - Kombi 15m | H125: 4 | I125: 3157 | J125: 6616 | K125: Ventus c 15m WL | L125: EG | N125: =IF(ISERROR(VLOOKUP(B125,'Zebrik G'!B:I,8,0)),"-",VLOOKUP(B125,'Zebrik G'!B:I,8,0)) -> 24 | O125: =IF(ISERROR(VLOOKUP(B125,'N PMČR 2026'!B:G,6,0)),"-",VLOOKUP(B125,'N PMČR 2026'!B:G,6,0)) -> 68
A126: 124 | B126: Jaroslav Buryan | C126: 1953 | D126: M | E126: Zábřeh | F126: CZ/M | G126: PPV 2025 - Klub | H126: 15 | I126: 2495 | J126: 6586 | K126: Discus bM WL | L126: OL | N126: =IF(ISERROR(VLOOKUP(B126,'Zebrik G'!B:I,8,0)),"-",VLOOKUP(B126,'Zebrik G'!B:I,8,0)) -> 70 | O126: =IF(ISERROR(VLOOKUP(B126,'N PMČR 2026'!B:G,6,0)),"-",VLOOKUP(B126,'N PMČR 2026'!B:G,6,0)) -> -
A127: 125 | B127: Peter Kaspar | C127: 1980 | D127: M | E127: Vyškov | F127: CZ/M | G127: JPJ 2025 - Klub | H127: 15 | I127: 3249 | J127: 6515 | K127: Astir CS 77 | L127: 1B | N127: =IF(ISERROR(VLOOKUP(B127,'Zebrik G'!B:I,8,0)),"-",VLOOKUP(B127,'Zebrik G'!B:I,8,0)) -> 298 | O127: =IF(ISERROR(VLOOKUP(B127,'N PMČR 2026'!B:G,6,0)),"-",VLOOKUP(B127,'N PMČR 2026'!B:G,6,0)) -> -
A128: 126 | B128: Josef Kreutzer | C128: 1992 | D128: M | E128: Letkov | F128: CZ/C1 | G128: Toužim Cup 2025 - Klub | H128: 12 | I128: 1462 | J128: 6471 | K128: Std. Cirrus | L128: AL | N128: =IF(ISERROR(VLOOKUP(B128,'Zebrik G'!B:I,8,0)),"-",VLOOKUP(B128,'Zebrik G'!B:I,8,0)) -> 306 | O128: =IF(ISERROR(VLOOKUP(B128,'N PMČR 2026'!B:G,6,0)),"-",VLOOKUP(B128,'N PMČR 2026'!B:G,6,0)) -> -
A129: 127 | B129: Jan Dersak 69 | C129: 1969 | D129: M | E129: Kralupy | F129: CZ/C1 | G129: PPV 2025 - Kombi | H129: 16 | I129: 2821 | J129: 6464 | K129: HpH 304 MS Shark | L129: DJ | N129: =IF(ISERROR(VLOOKUP(B129,'Zebrik G'!B:I,8,0)),"-",VLOOKUP(B129,'Zebrik G'!B:I,8,0)) -> 76 | O129: =IF(ISERROR(VLOOKUP(B129,'N PMČR 2026'!B:G,6,0)),"-",VLOOKUP(B129,'N PMČR 2026'!B:G,6,0)) -> -
A130: 128 | B130: David Sachl | C130: 1978 | D130: M | E130: Kralupy | F130: CZ/C1 | G130: AZ Cup 2025 - Kombi 15m | H130: 11 | I130: 2440 | J130: 6443 | K130: ASW 27 WL | L130: MF | N130: =IF(ISERROR(VLOOKUP(B130,'Zebrik G'!B:I,8,0)),"-",VLOOKUP(B130,'Zebrik G'!B:I,8,0)) -> 71 | O130: =IF(ISERROR(VLOOKUP(B130,'N PMČR 2026'!B:G,6,0)),"-",VLOOKUP(B130,'N PMČR 2026'!B:G,6,0)) -> 52
A131: =RANK(J131,J:J) -> 129 | B131: David Riha | C131: 1983 | D131: M | E131: Vlašim | F131: CZ/C1 | G131: AZ Cup 2025 - Klub | H131: 16 | I131: 1970 | J131: 6426 | K131: ASW 15b | L131: XEI | M131: =IF(ISERROR(VLOOKUP(B131,Pilot,6,0)),"Není v databázi",VLOOKUP(B131,Pilot,6,0)) ->  | N131: =IF(ISERROR(VLOOKUP(B131,'Zebrik G'!B:I,8,0)),"-",VLOOKUP(B131,'Zebrik G'!B:I,8,0)) -> 122 | O131: =IF(ISERROR(VLOOKUP(B131,'N PMČR 2026'!B:G,6,0)),"-",VLOOKUP(B131,'N PMČR 2026'!B:G,6,0)) -> -
A132: 130 | B132: Martin Svarc | C132: 1981 | D132: M | E132: Olomouc | F132: CZ/M | G132: JPJ 2025 - Klub | H132: 16 | I132: 3244 | J132: 6408 | K132: DG-101 G | L132: HE | N132: =IF(ISERROR(VLOOKUP(B132,'Zebrik G'!B:I,8,0)),"-",VLOOKUP(B132,'Zebrik G'!B:I,8,0)) -> 113 | O132: =IF(ISERROR(VLOOKUP(B132,'N PMČR 2026'!B:G,6,0)),"-",VLOOKUP(B132,'N PMČR 2026'!B:G,6,0)) -> -
A133: 131 | B133: Tomas Prikryl | C133: 1973 | D133: M | E133: Vyškov | F133: CZ/M | G133: JPJ 2025 - Kombi Open | H133: 11 | I133: 3470 | J133: 6394 | K133: Ventus 2cm 18m 525kg | L133: FN | N133: =IF(ISERROR(VLOOKUP(B133,'Zebrik G'!B:I,8,0)),"-",VLOOKUP(B133,'Zebrik G'!B:I,8,0)) -> 146 | O133: =IF(ISERROR(VLOOKUP(B133,'N PMČR 2026'!B:G,6,0)),"-",VLOOKUP(B133,'N PMČR 2026'!B:G,6,0)) -> -
A134: 132 | B134: Hana Treslova | C134: 1991 | D134: F | E134: Raná | F134: CZ/C2 | G134: AZ Cup 2025 - Kombi Open | H134: 12 | I134: 2007 | J134: 6384 | K134: JS 3 | L134: XM | N134: =IF(ISERROR(VLOOKUP(B134,'Zebrik G'!B:I,8,0)),"-",VLOOKUP(B134,'Zebrik G'!B:I,8,0)) -> 17 | O134: =IF(ISERROR(VLOOKUP(B134,'N PMČR 2026'!B:G,6,0)),"-",VLOOKUP(B134,'N PMČR 2026'!B:G,6,0)) -> 17
A135: 133 | B135: Michal Kares | C135: 1987 | D135: M | E135: Ústí nad Orlicí | F135: CZ/C2 | G135: PPV 2025 - Klub | H135: 16 | I135: 2440 | J135: 6376 | K135: Std. Cirrus | L135: A | N135: =IF(ISERROR(VLOOKUP(B135,'Zebrik G'!B:I,8,0)),"-",VLOOKUP(B135,'Zebrik G'!B:I,8,0)) -> 201 | O135: =IF(ISERROR(VLOOKUP(B135,'N PMČR 2026'!B:G,6,0)),"-",VLOOKUP(B135,'N PMČR 2026'!B:G,6,0)) -> -
A136: 134 | B136: Michal Cechmanek | C136: 1978 | D136: M | E136: Kroměříž | F136: CZ/M | G136: JPJ 2025 - Kombi 15m | H136: 5 | I136: 3129 | J136: 6275 | K136: ASW-20 (A)+F 15m WL | L136: MK | N136: =IF(ISERROR(VLOOKUP(B136,'Zebrik G'!B:I,8,0)),"-",VLOOKUP(B136,'Zebrik G'!B:I,8,0)) -> 52 | O136: =IF(ISERROR(VLOOKUP(B136,'N PMČR 2026'!B:G,6,0)),"-",VLOOKUP(B136,'N PMČR 2026'!B:G,6,0)) -> N2
A137: 135 | B137: Martin Urner | C137: 1974 | D137: M | E137: Letňany | F137: CZ/C1 | G137: JPJ 2025 - Klub | H137: 17 | I137: 3216 | J137: 6265 | K137: ASW-15B | L137: JJ | N137: =IF(ISERROR(VLOOKUP(B137,'Zebrik G'!B:I,8,0)),"-",VLOOKUP(B137,'Zebrik G'!B:I,8,0)) -> 63 | O137: =IF(ISERROR(VLOOKUP(B137,'N PMČR 2026'!B:G,6,0)),"-",VLOOKUP(B137,'N PMČR 2026'!B:G,6,0)) -> N7
A138: 136 | B138: Jiri Fousek | C138: 1990 | D138: M | E138: Raná | F138: CZ/C2 | G138: AZ Cup 2025 - Kombi Open | H138: 13 | I138: 1985 | J138: 6179 | K138: Ventus c | L138: XE | N138: =IF(ISERROR(VLOOKUP(B138,'Zebrik G'!B:I,8,0)),"-",VLOOKUP(B138,'Zebrik G'!B:I,8,0)) -> 65 | O138: =IF(ISERROR(VLOOKUP(B138,'N PMČR 2026'!B:G,6,0)),"-",VLOOKUP(B138,'N PMČR 2026'!B:G,6,0)) -> N8
A139: 137 | B139: Radim Sobek | C139: 1977 | D139: M | E139: Hranice | F139: CZ/M | G139: JPJ 2025 - Klub | H139: 18 | I139: 3212 | J139: 6159 | K139: TST-10M | L139: 7 | N139: =IF(ISERROR(VLOOKUP(B139,'Zebrik G'!B:I,8,0)),"-",VLOOKUP(B139,'Zebrik G'!B:I,8,0)) -> 87 | O139: =IF(ISERROR(VLOOKUP(B139,'N PMČR 2026'!B:G,6,0)),"-",VLOOKUP(B139,'N PMČR 2026'!B:G,6,0)) -> -
A140: 138 | B140: Petr Lonsky | C140: 1965 | D140: M | E140: Toužim | F140: CZ/C1 | G140: Toužim Cup 2025 - Klub | H140: 13 | I140: 1388 | J140: 6109 | K140: LS-1d | L140: CLI | N140: =IF(ISERROR(VLOOKUP(B140,'Zebrik G'!B:I,8,0)),"-",VLOOKUP(B140,'Zebrik G'!B:I,8,0)) -> 170 | O140: =IF(ISERROR(VLOOKUP(B140,'N PMČR 2026'!B:G,6,0)),"-",VLOOKUP(B140,'N PMČR 2026'!B:G,6,0)) -> -
A141: 139 | B141: Anais Gaubert | G141: AZ Cup 2025 - Klub | H141: 17 | I141: 1852 | J141: 6002 | K141: LS 7 WL | L141: VX | M141: Není v databázi | N141: =IF(ISERROR(VLOOKUP(B141,'Zebrik G'!B:I,8,0)),"-",VLOOKUP(B141,'Zebrik G'!B:I,8,0)) -> - | O141: =IF(ISERROR(VLOOKUP(B141,'N PMČR 2026'!B:G,6,0)),"-",VLOOKUP(B141,'N PMČR 2026'!B:G,6,0)) -> -
A142: 140 | B142: Petr Starek | C142: =VLOOKUP(B142,Pilot,2,0) -> 1974 | D142: =VLOOKUP(B142,Pilot,5,0) -> M | E142: =VLOOKUP(B142,Pilot,3,0) -> Zbraslavice | F142: =VLOOKUP(B142,Pilot,4,0) -> CZ/C1 | G142: AZ Cup 2025 - Kombi Open | H142: 14 | I142: 1964 | J142: 5976 | K142: HpH 304 JS 600 kg | L142: 66 | N142: =IF(ISERROR(VLOOKUP(B142,'Zebrik G'!B:I,8,0)),"-",VLOOKUP(B142,'Zebrik G'!B:I,8,0)) -> 144 | O142: =IF(ISERROR(VLOOKUP(B142,'N PMČR 2026'!B:G,6,0)),"-",VLOOKUP(B142,'N PMČR 2026'!B:G,6,0)) -> -
A143: 141 | B143: Pavel Liska | C143: =VLOOKUP(B143,Pilot,2,0) -> 1965 | D143: =VLOOKUP(B143,Pilot,5,0) -> M | E143: =VLOOKUP(B143,Pilot,3,0) -> Roudnice | F143: =VLOOKUP(B143,Pilot,4,0) -> CZ/C2 | G143: PPV 2025 - Klub | H143: 17 | I143: 2255 | J143: 5906 | K143: VSO-10 | L143: 6 | N143: =IF(ISERROR(VLOOKUP(B143,'Zebrik G'!B:I,8,0)),"-",VLOOKUP(B143,'Zebrik G'!B:I,8,0)) -> 104 | O143: =IF(ISERROR(VLOOKUP(B143,'N PMČR 2026'!B:G,6,0)),"-",VLOOKUP(B143,'N PMČR 2026'!B:G,6,0)) -> -
